Workbook

Sheet Control
B1: コントロールシート
B2: No. | C2: 説明 | D2: 値 | E2: セル名 | K2: ★モードを変更したか
B3: 1 | C3: 会社の正式名称 | D3: 事例企業 株式会社 | E3: 正式名称 | H3: -2 | I3: 0 | K3: ★前年データを入力したか
B4: 2 | C4: グラフに表示する会社名の表示 | D4: 事例企業 | E4: 略称 | H4: =■比較表!I7 -> -0.5 | I4: 1
B5: 3 | C5: モード | D5: 自動車 | E5: 業界平均値 | H5: =AVERAGE(H4,H6) -> -0.25 | I5: 2
B6: 4 | C6: Ⅰ領域の表示下限値 | D6: -0.5 | E6: Ⅰ表示下限 | H6: =■比較表!K7 -> 0 | I6: 3
B7: 5 | C7: Ⅰ領域のとても低いやや低い区分値 | D7: 0 | E7: Ⅰ低い | H7: =AVERAGE(H6,H8) -> 0.25 | I7: 4
B8: 6 | C8: Ⅰ領域の±０値 | D8: 0.5 | E8: Ⅰどちらでもない | H8: =■比較表!M7 -> 0.5 | I8: 5
B9: 7 | C9: Ⅰ領域のとても高いやや高い区分値 | D9: 1 | E9: Ⅰ高い | H9: =AVERAGE(H8,H10) -> 0.75 | I9: 6
B10: 8 | C10: Ⅰ領域の表示上限値 | D10: 1.5 | E10: Ⅰ表示上限 | H10: =■比較表!O7 -> 1 | I10: 7
B11: =B10+1 -> 9 | C11: Ⅱ領域の表示下限値 | D11: -0.5 | E11: Ⅱ表示下限 | H11: =AVERAGE(H10,H12) -> 1.25 | I11: 8
B12: 10 | C12: Ⅱ領域のとても低いやや低い区分値 | D12: 0 | E12: Ⅱ低い | H12: =■比較表!Q7 -> 1.5 | I12: 9
B13: 11 | C13: Ⅱ領域の±０値 | D13: 0.5 | E13: Ⅱどちらでもない
B14: 12 | C14: Ⅱ領域のとても高いやや高い区分値 | D14: 1 | E14: Ⅱ高い
B15: 13 | C15: Ⅱ領域の表示上限値 | D15: 1.5 | E15: Ⅱ表示上限 | H15: -2 | I15: 0
B16: 14 | C16: Ⅲ領域の表示下限値 | D16: -0.5 | E16: Ⅲ表示下限 | H16: =■比較表!I26 -> -0.5 | I16: 1
B17: 15 | C17: Ⅲ領域のとても低いやや低い区分値 | D17: 0 | E17: Ⅲ低い | H17: =AVERAGE(H16,H18) -> -0.25 | I17: 2
B18: 16 | C18: Ⅲ領域の±０値 | D18: 0.5 | E18: Ⅲどちらでもない | H18: =■比較表!K26 -> 0 | I18: 3
B19: 17 | C19: Ⅲ領域のとても高いやや高い区分値 | D19: 1 | E19: Ⅲ高い | H19: =AVERAGE(H18,H20) -> 0.25 | I19: 4
B20: 18 | C20: Ⅲ領域の表示上限値 | D20: 1.5 | E20: Ⅲ表示上限 | H20: =■比較表!M26 -> 0.5 | I20: 5
B21: 19 | C21: Ⅳ領域の表示下限値 | D21: -0.5 | E21: Ⅳ表示下限 | H21: =AVERAGE(H20,H22) -> 0.75 | I21: 6
B22: 20 | C22: Ⅳ領域のとても低いやや低い区分値 | D22: 0 | E22: Ⅳ低い | H22: =■比較表!O26 -> 1 | I22: 7
B23: 21 | C23: Ⅳ領域の±０値 | D23: 0.5 | E23: Ⅳどちらでもない | H23: =AVERAGE(H22,H24) -> 1.25 | I23: 8
B24: 22 | C24: Ⅳ領域のとても高いやや高い区分値 | D24: 1 | E24: Ⅳ高い | H24: =■比較表!Q26 -> 1.5 | I24: 9
B25: 23 | C25: Ⅳ領域の表示上限値 | D25: 1.5 | E25: Ⅳ表示上限
B26: 24 | C26: Ⅴ領域の表示下限値 | D26: -0.5 | E26: Ⅴ表示下限
B27: 25 | C27: Ⅴ領域のとても低いやや低い区分値 | D27: 0 | E27: Ⅴ低い | H27: -2 | I27: 0
B28: 26 | C28: Ⅴ領域の±０値 | D28: 0.5 | E28: Ⅴどちらでもない | H28: =■比較表!I50 -> -0.5 | I28: 1
B29: 27 | C29: Ⅴ領域のとても高いやや高い区分値 | D29: 1 | E29: Ⅴ高い | H29: =AVERAGE(H28,H30) -> -0.25 | I29: 2
B30: 28 | C30: Ⅴ領域の表示上限値 | D30: 1.5 | E30: Ⅴ表示上限 | H30: =■比較表!K50 -> 0 | I30: 3
B31: 29 | C31: 業界平均比高い判定値 | D31: 0.2 | E31: 業界平均比高 | H31: =AVERAGE(H30,H32) -> 0.25 | I31: 4
B32: 30 | C32: 業界平均比やや高い判定値 | D32: 0 | E32: 業界平均比並 | H32: =■比較表!M50 -> 0.5 | I32: 5
B33: 31 | C33: 業界平均比やや低い判定値 | D33: -0.2 | E33: 業界平均比低 | H33: =AVERAGE(H32,H34) -> 0.75 | I33: 6
B34: 32 | C34: 階層別 開始列 | D34: 2 | E34: 列（シート「データ」より） | H34: =■比較表!O50 -> 1 | I34: 7
B35: 0 | H35: =AVERAGE(H34,H36) -> 1.25 | I35: 8
B36: =B35+1 -> 1 | H36: =■比較表!Q50 -> 1.5 | I36: 9
B37: =B36+1 -> 2
B38: 3
B39: 4 | H39: -2 | I39: 0
B40: 5 | H40: =■比較表!BB7 -> -0.5 | I40: 1
B41: 6 | H41: =AVERAGE(H40,H42) -> -0.25 | I41: 2
B42: 7 | H42: =■比較表!BD7 -> 0 | I42: 3
B43: 8 | H43: =AVERAGE(H42,H44) -> 0.25 | I43: 4
B44: 9 | H44: =■比較表!BF7 -> 0.5 | I44: 5
B45: 10 | H45: =AVERAGE(H44,H46) -> 0.75 | I45: 6
B46: 11 | H46: =■比較表!BH7 -> 1 | I46: 7
B47: 12 | H47: =AVERAGE(H46,H48) -> 1.25 | I47: 8
B48: 13 | H48: =■比較表!BJ7 -> 1.5 | I48: 9
B49: 14
B50: 15
B51: 16 | H51: -2 | I51: 0
B52: 17 | H52: =■比較表!BB25 -> -0.5 | I52: 1
B53: 18 | H53: =AVERAGE(H52,H54) -> -0.25 | I53: 2
B54: 19 | H54: =■比較表!BD25 -> 0 | I54: 3
B55: 20 | H55: =AVERAGE(H54,H56) -> 0.25 | I55: 4
B56: 21 | H56: =■比較表!BF25 -> 0.5 | I56: 5
H57: =AVERAGE(H56,H58) -> 0.75 | I57: 6
H58: =■比較表!BH25 -> 1 | I58: 7
H59: =AVERAGE(H58,H60) -> 1.25 | I59: 8
H60: =■比較表!BJ25 -> 1.5 | I60: 9

Sheet データ
B1: 集計結果入力シート | M1: 1 | N1: =M1+1 -> 2 | O1: =N1+1 -> 3 | P1: 4 | Q1: 5 | R1: 6 | S1: 7 | T1: 8 | U1: 9 | V1: 10 | W1: 11 | X1: 12 | Y1: 13 | Z1: 14 | AA1: 15 | AB1: 16 | AC1: 17 | AD1: 18 | AE1: 19 | AF1: 20 | AG1: 21 | AH1: 22 | AI1: 23 | AJ1: 24 | AK1: 25 | AL1: 26 | AM1: 27 | AN1: 28 | AO1: 29 | AP1: 30 | AQ1: 31 | AR1: 32 | AS1: 33 | AT1: 34 | AU1: 35 | AV1: 36 | AW1: 37 | AX1: 38 | AY1: 39 | AZ1: 40 | BA1: 41 | BB1: 42 | BC1: 43 | BD1: 44 | BE1: 45 | BF1: 46 | BG1: 47 | BH1: 48 | BI1: 49 | BJ1: 50 | BK1: 51 | BL1: 52 | BM1: 53 | BN1: 54 | BO1: 55 | BP1: 56 | BQ1: 57 | BR1: 58 | BS1: 59 | BT1: 60 | BU1: 61 | BV1: =BU1+1 -> 62 | BW1: =BV1+1 -> 63 | BX1: =BW1+1 -> 64 | BY1: =BX1+1 -> 65 | BZ1: =BY1+1 -> 66 | CA1: =BZ1+1 -> 67 | CB1: =CA1+1 -> 68 | CC1: =CB1+1 -> 69 | CD1: =CC1+1 -> 70 | CE1: =CD1+1 -> 71 | CF1: =CE1+1 -> 72 | CG1: =CF1+1 -> 73 | CH1: =CG1+1 -> 74 | CI1: =CH1+1 -> 75 | CJ1: =CI1+1 -> 76 | CK1: =CJ1+1 -> 77 | CL1: =CK1+1 -> 78 | CM1: =CL1+1 -> 79 | CN1: =CM1+1 -> 80 | CO1: =CN1+1 -> 81 | CP1: =CO1+1 -> 82 | CQ1: =CP1+1 -> 83 | CR1: =CQ1+1 -> 84 | CS1: =CR1+1 -> 85 | CT1: =CS1+1 -> 86 | CU1: =CT1+1 -> 87 | CV1: =CU1+1 -> 88 | CW1: =CV1+1 -> 89 | CX1: =CW1+1 -> 90 | CY1: =CX1+1 -> 91 | CZ1: =CY1+1 -> 92 | DA1: =CZ1+1 -> 93 | DB1: =DA1+1 -> 94 | DC1: =DB1+1 -> 95 | DD1: =DC1+1 -> 96 | DE1: =DD1+1 -> 97 | DF1: =DE1+1 -> 98 | DG1: =DF1+1 -> 99 | DH1: =DG1+1 -> 100
D3: 他社平均 標準偏差 | E3: 他社平均 | F3: 経営職他社平均 | G3: 管理職他社平均 | H3: 現業職他社平均 | I3: 基準 | J3: 順位 | K3: 上位20％ | L3: 上位10％
B4: 領域 | C4: Ⅰ．トップの価値観・行動の充実と浸透 | D4: =OFFSET(標準・基準!AM2,0,標準・基準!$D$11) -> 0.2814921862 | E4: =OFFSET(標準・基準!AB2,0,標準・基準!$D$11) -> 0.3106480378 | I4: =10*(M4-E4)/D4+50 -> 38.9642394 | J4: =ROUND((1-(NORMDIST(I4,50,10,TRUE)))*100,0) -> 87 | K4: =0.1*(D4*(NORMINV(0.8,50,10)-50)+E4*10) -> 0.5475578388 | L4: =0.1*(D4*(NORMINV(0.9,50,10)-50)+E4*10) -> 0.6713947897
B5: 領域 | C5: Ⅱ．マネジメントサイクルの充実と浸透 | D5: =OFFSET(標準・基準!AM3,0,標準・基準!$D$11) -> 0.1727010582 | E5: =OFFSET(標準・基準!AB3,0,標準・基準!$D$11) -> 0.4480961816 | I5: =10*(M5-E5)/D5+50 -> 24.05365164 | J5: =ROUND((1-(NORMDIST(I5,50,10,TRUE)))*100,0) -> 100 | K5: =0.1*(D5*(NORMINV(0.8,50,10)-50)+E5*10) -> 0.5934450593 | L5: =0.1*(D5*(NORMINV(0.9,50,10)-50)+E5*10) -> 0.6694214931
B6: 領域 | C6: Ⅲ．教育訓練の充実 | D6: =OFFSET(標準・基準!AM4,0,標準・基準!$D$11) -> 0.263349915 | E6: =OFFSET(標準・基準!AB4,0,標準・基準!$D$11) -> 0.5176419901 | I6: 30.34394695 | J6: 98 | K6: 0.7392828704 | L6: 0.855138486
B7: 領域 | C7: Ⅳ．現場管理の充実 | D7: =OFFSET(標準・基準!AM5,0,標準・基準!$D$11) -> 0.2633877816 | E7: =OFFSET(標準・基準!AB5,0,標準・基準!$D$11) -> 0.4625536168 | I7: 32.43830393 | J7: 96 | K7: 0.6842263665 | L7: 0.8000986406
B8: 領域 | C8: Ⅴ．職場メンバーの積極心 | D8: =OFFSET(標準・基準!AM6,0,標準・基準!$D$11) -> 0.1098583892 | E8: =OFFSET(標準・基準!AB6,0,標準・基準!$D$11) -> 0.6480561493 | I8: -8.990137584 | J8: 100 | K8: 0.7405153024 | L8: 0.78884534
B9: 区分 | C9: １．経営理念（トップの価値観） | D9: =OFFSET(標準・基準!AM7,0,標準・基準!$D$11) -> 0.2771155394 | E9: =OFFSET(標準・基準!AB7,0,標準・基準!$D$11) -> 0.3137859315 | I9: 38.67671109 | J9: 87 | K9: 0.5470122536 | L9: 0.6689237848
B10: 区分 | C10: ２．マネジメントシステム | D10: =OFFSET(標準・基準!AM8,0,標準・基準!$D$11) -> 0.2767623245 | E10: =OFFSET(標準・基準!AB8,0,標準・基準!$D$11) -> 0.2919647556 | I10: 39.45070446 | J10: 85 | K10: 0.5248938045 | L10: 0.6466499458
B11: 区分 | C11: ３．現場重視の行動・姿勢 | D11: =OFFSET(標準・基準!AM9,0,標準・基準!$D$11) -> 0.3194121355 | E11: =OFFSET(標準・基準!AB9,0,標準・基準!$D$11) -> 0.3223070793 | I11: 39.9093665 | J11: 84 | K11: 0.5911311148 | L11: 0.7316502016
B12: 区分 | C12: １．PDCAの実践 | D12: =OFFSET(標準・基準!AM10,0,標準・基準!$D$11) -> 0.1682617789 | E12: =OFFSET(標準・基準!AB10,0,標準・基準!$D$11) -> 0.5557036941 | I12: 16.97386074 | J12: 100 | K12: 0.69731638 | L12: 0.7713398403
B13: 区分 | C13: ２．コミュニケーションの実践 | D13: =OFFSET(標準・基準!AM11,0,標準・基準!$D$11) -> 0.1950276293 | E13: =OFFSET(標準・基準!AB11,0,標準・基準!$D$11) -> 0.3644014497 | I13: 31.31539357 | J13: 97 | K13: 0.5285408437 | L13: 0.6143394134
B14: 区分 | C14: １．採用・教育の充実 | D14: =OFFSET(標準・基準!AM12,0,標準・基準!$D$11) -> 0.2943016298 | E14: =OFFSET(標準・基準!AB12,0,標準・基準!$D$11) -> 0.5866090389 | I14: 30.06776112 | J14: 98 | K14: 0.8342995396 | L14: 0.9637717532
B15: 区分 | C15: ２．リーダー教育の充実 | D15: =OFFSET(標準・基準!AM13,0,標準・基準!$D$11) -> 0.2848034479 | E15: =OFFSET(標準・基準!AB13,0,標準・基準!$D$11) -> 0.2885670051 | I15: 39.86785423 | J15: 84 | K15: 0.5282636343 | L15: 0.6535573096
B16: 区分 | C16: ３．安全教育の充実 | D16: =OFFSET(標準・基準!AM14,0,標準・基準!$D$11) -> 0.2867751573 | E16: =OFFSET(標準・基準!AB14,0,標準・基準!$D$11) -> 0.6777499263 | I16: 26.36650494 | J16: 99 | K16: 0.9191059879 | L16: 1.045267078
B17: 区分 | C17: １．現場コミュニケーション | D17: =OFFSET(標準・基準!AM15,0,標準・基準!$D$11) -> 0.2930999854 | E17: =OFFSET(標準・基準!AB15,0,標準・基準!$D$11) -> 0.4989274695 | I17: 32.97756758 | J17: 96 | K17: 0.7456066408 | L17: 0.8745502147
B18: 区分 | C18: ２．日常管理の充実 | D18: =OFFSET(標準・基準!AM16,0,標準・基準!$D$11) -> 0.2670065005 | E18: =OFFSET(標準・基準!AB16,0,標準・基準!$D$11) -> 0.5704387244 | I18: 28.63577391 | J18: 98 | K18: 0.7951570647 | L18: 0.9126213231
B19: 区分 | C19: ３．現場管理施策の充実 | D19: =OFFSET(標準・基準!AM17,0,標準・基準!$D$11) -> 0.2947337388 | E19: =OFFSET(標準・基準!AB17,0,標準・基準!$D$11) -> 0.3182946566 | I19: 39.2006033 | J19: 86 | K19: 0.5663488294 | L19: 0.696011141
B20: 区分 | C20: １．基本行動への意識 | D20: =OFFSET(標準・基準!AM18,0,標準・基準!$D$11) -> 0.1186087206 | E20: =OFFSET(標準・基準!AB18,0,標準・基準!$D$11) -> 0.6203952731 | I20: -2.306042091 | J20: 100 | K20: 0.7202188908 | L20: 0.7723984646
B21: 区分 | C21: ２．職務への意識 | D21: =OFFSET(標準・基準!AM19,0,標準・基準!$D$11) -> 0.1324474314 | E21: =OFFSET(標準・基準!AB19,0,標準・基準!$D$11) -> 0.6038541676 | I21: 4.408012211 | J21: 100 | K21: 0.7153247382 | L21: 0.7735923807
B22: 区分 | C22: ３．人間関係への意識 | D22: =OFFSET(標準・基準!AM20,0,標準・基準!$D$11) -> 0.1322595968 | E22: =OFFSET(標準・基準!AB20,0,標準・基準!$D$11) -> 0.7378847219 | I22: -5.790637473 | J22: 100 | K22: 0.849197207 | L22: 0.9073822153
B23: 項目 | C23: 経営姿勢への共感 | D23: =OFFSET(標準・基準!AM21,0,標準・基準!$D$11) -> 0.3261677571 | E23: =OFFSET(標準・基準!AB21,0,標準・基準!$D$11) -> 0.07052689005 | I23: 47.83771116 | J23: 59 | K23: 0.3450366001 | L23: 0.4885276898
B24: 項目 | C24: 安全に関するコンプライアンスの浸透 | D24: =OFFSET(標準・基準!AM22,0,標準・基準!$D$11) -> 0.3249217785 | E24: =OFFSET(標準・基準!AB22,0,標準・基準!$D$11) -> 0.5702137624 | I24: 32.45073737 | J24: 96 | K24: 0.8436748304 | L24: 0.9866177763
B25: 項目 | C25: 経営執行の監視（コーポレートガバナンス） | D25: =OFFSET(標準・基準!AM23,0,標準・基準!$D$11) -> 0.2924053289 | E25: =OFFSET(標準・基準!AB23,0,標準・基準!$D$11) -> 0.300617142 | I25: 39.71916336 | J25: 85 | K25: 0.5467116755 | L25: 0.6753496489
B26: 項目 | C26: 継続的改善 | D26: =OFFSET(標準・基準!AM24,0,標準・基準!$D$11) -> 0.2701297408 | E26: =OFFSET(標準・基準!AB24,0,標準・基準!$D$11) -> 0.3154543244 | I26: 38.32211798 | J26: 88 | K26: 0.5428012501 | L26: 0.6616395167
B27: 項目 | C27: 管理者育成（人材育成） | D27: =OFFSET(標準・基準!AM25,0,標準・基準!$D$11) -> 0.3034174322 | E27: =OFFSET(標準・基準!AB25,0,標準・基準!$D$11) -> 0.1788032183 | I27: 44.10702223 | J27: 72 | K27: 0.4341657719 | L27: 0.5676483036
B28: 項目 | C28: 現場情報の活用 | D28: =OFFSET(標準・基準!AM26,0,標準・基準!$D$11) -> 0.3171453943 | E28: =OFFSET(標準・基準!AB26,0,標準・基準!$D$11) -> 0.381636724 | I28: 37.96650587 | J28: 89 | K28: 0.648553022 | L28: 0.7880749006
B29: 項目 | C29: 率先垂範への共感 | D29: =OFFSET(標準・基準!AM27,0,標準・基準!$D$11) -> 0.3592217478 | E29: =OFFSET(標準・基準!AB27,0,標準・基準!$D$11) -> 0.3463440119 | I29: 40.35848987 | J29: 83 | K29: 0.6486726624 | L29: 0.8067052051
B30: 項目 | C30: 問題解決の意思決定 | D30: =OFFSET(標準・基準!AM28,0,標準・基準!$D$11) -> 0.3394504558 | E30: =OFFSET(標準・基準!AB28,0,標準・基準!$D$11) -> 0.3682143246 | I30: 39.15263426 | J30: 86 | K30: 0.653903036 | L30: 0.8032375877
B31: 項目 | C31: 安全理念・方針の浸透 | D31: =OFFSET(標準・基準!AM29,0,標準・基準!$D$11) -> 0.3360048381 | E31: =OFFSET(標準・基準!AB29,0,標準・基準!$D$11) -> 0.356261421 | I31: 39.39713419 | J31: 86 | K31: 0.6390502274 | L31: 0.7868689473
B32: 項目 | C32: 経営者による現場コミュニケーション | D32: =OFFSET(標準・基準!AM30,0,標準・基準!$D$11) -> 0.3493406081 | E32: =OFFSET(標準・基準!AB30,0,標準・基準!$D$11) -> 0.2184085597 | I32: 43.74797677 | J32: 73 | K32: 0.5124210333 | L32: 0.666106563
B33: 項目 | C33: 安全の理念・方針の理解 | D33: =OFFSET(標準・基準!AM31,0,標準・基準!$D$11) -> 0.2071790981 | E33: =OFFSET(標準・基準!AB31,0,標準・基準!$D$11) -> 0.5222969547 | I33: 24.79007489 | J33: 99 | K33: 0.6966632828 | L33: 0.7878076522
B34: 項目 | C34: 安全目標の設定 | D34: =OFFSET(標準・基準!AM32,0,標準・基準!$D$11) -> 0.2354524939 | E34: =OFFSET(標準・基準!AB32,0,標準・基準!$D$11) -> 0.584461144 | I34: 25.17710965 | J34: 99 | K34: 0.7826229624 | L34: 0.8862056562
B35: 項目 | C35: 取り組み計画の具体化 | D35: =OFFSET(標準・基準!AM33,0,標準・基準!$D$11) -> 0.2143238037 | E35: =OFFSET(標準・基準!AB33,0,標準・基準!$D$11) -> 0.4277651951 | I35: 30.04117192 | J35: 98 | K35: 0.6081446592 | L35: 0.7024322013
B36: 項目 | C36: 計画の遂行度合 | D36: =OFFSET(標準・基準!AM34,0,標準・基準!$D$11) -> 0.2101017564 | E36: =OFFSET(標準・基準!AB34,0,標準・基準!$D$11) -> 0.4932577369 | I36: 26.52291226 | J36: 99 | K36: 0.6700838363 | L36: 0.7625139717
B37: 項目 | C37: 改善志向 | D37: =OFFSET(標準・基準!AM35,0,標準・基準!$D$11) -> 0.1861034893 | E37: =OFFSET(標準・基準!AB35,0,標準・基準!$D$11) -> 0.9111490849 | I37: 1.040730696 | J37: 100 | K37: 1.067777733 | L37: 1.149650303
B38: 項目 | C38: 見直しと次へのアクション | D38: =OFFSET(標準・基準!AM36,0,標準・基準!$D$11) -> 0.178002469 | E38: =OFFSET(標準・基準!AB36,0,標準・基準!$D$11) -> 0.552189482 | I38: 18.97854929 | J38: 100 | K38: 0.7020001396 | L38: 0.7803088249
B39: 項目 | C39: 文書・記録の管理・活用 | D39: =OFFSET(標準・基準!AM37,0,標準・基準!$D$11) -> 0.2428032007 | E39: =OFFSET(標準・基準!AB37,0,標準・基準!$D$11) -> 0.3988062613 | I39: 33.57491746 | J39: 95 | K39: 0.6031545906 | L39: 0.7099710833
B40: 項目 | C40: 職場の風通し | D40: =OFFSET(標準・基準!AM38,0,標準・基準!$D$11) -> 0.193013508 | E40: =OFFSET(標準・基準!AB38,0,標準・基準!$D$11) -> 0.703656206 | I40: 13.54368079 | J40: 100 | K40: 0.8661004727 | L40: 0.9510129694
B41: 項目 | C41: リーダーシップ | D41: =OFFSET(標準・基準!AM39,0,標準・基準!$D$11) -> 0.222191 | E41: =OFFSET(標準・基準!AB39,0,標準・基準!$D$11) -> 0.1747434264 | I41: 42.13544084 | J41: 78 | K41: 0.3617440898 | L41: 0.4594926502
B42: 項目 | C42: 部署間コミュニケーション | D42: =OFFSET(標準・基準!AM40,0,標準・基準!$D$11) -> 0.2156327487 | E42: =OFFSET(標準・基準!AB40,0,標準・基準!$D$11) -> 0.4568694041 | I42: 28.81261511 | J42: 98 | K42: 0.638350504 | L42: 0.7332138907
B43: 項目 | C43: 部署間連携 | D43: =OFFSET(標準・基準!AM41,0,標準・基準!$D$11) -> 0.2652089961 | E43: =OFFSET(標準・基準!AB41,0,標準・基準!$D$11) -> 0.1979288832 | I43: 42.53687144 | J43: 77 | K43: 0.4211344056 | L43: 0.5378078873
B44: 項目 | C44: 報告・連絡・相談の環境作り | D44: =OFFSET(標準・基準!AM42,0,標準・基準!$D$11) -> 0.2071553309 | E44: =OFFSET(標準・基準!AB42,0,標準・基準!$D$11) -> 0.5243599983 | I44: 24.68759331 | J44: 99 | K44: 0.6987063234 | L44: 0.7898402369
B45: 項目 | C45: 報告・連絡・相談の実践 | D45: =OFFSET(標準・基準!AM43,0,標準・基準!$D$11) -> 0.2294977565 | E45: =OFFSET(標準・基準!AB43,0,標準・基準!$D$11) -> 0.7170026419 | I45: 18.7577494 | J45: 100 | K45: 0.9101528268 | L45: 1.011115851
B46: 項目 | C46: 職場環境（仕事面） | D46: =OFFSET(標準・基準!AM44,0,標準・基準!$D$11) -> 0.2821740695 | E46: =OFFSET(標準・基準!AB44,0,標準・基準!$D$11) -> 0.2802124464 | I46: 40.06951819 | J46: 84 | K46: 0.5176961348 | L46: 0.6418330669
B47: 項目 | C47: 職場環境（健康面） | D47: =OFFSET(標準・基準!AM45,0,標準・基準!$D$11) -> 0.3004801325 | E47: =OFFSET(標準・基準!AB45,0,標準・基準!$D$11) -> 0.128634223 | I47: 45.71904399 | J47: 67 | K47: 0.3815246827 | L47: 0.5137150072
B48: 項目 | C48: 職場環境（精神面） | D48: =OFFSET(標準・基準!AM46,0,標準・基準!$D$11) -> 0.2240647619 | E48: =OFFSET(標準・基準!AB46,0,標準・基準!$D$11) -> 0.09620581836 | I48: 45.70633876 | J48: 67 | K48: 0.2847834796 | L48: 0.3833563647
B49: 項目 | C49: 人材確保 | D49: =OFFSET(標準・基準!AM47,0,標準・基準!$D$11) -> 0.3034274975 | E49: =OFFSET(標準・基準!AB47,0,標準・基準!$D$11) -> 0.5432756055 | I49: 32.09537336 | J49: 96 | K49: 0.7986466302 | L49: 0.9321335899
B50: 項目 | C50: 採用への経営者の関わり | D50: =OFFSET(標準・基準!AM48,0,標準・基準!$D$11) -> 0.4375861925 | E50: =OFFSET(標準・基準!AB48,0,標準・基準!$D$11) -> 0.5323393626 | I50: 37.83463985 | J50: 89 | K50: 0.9006211937 | L50: 1.093128633
B51: 項目 | C51: 新人教育の効果 | D51: =OFFSET(標準・基準!AM49,0,標準・基準!$D$11) -> 0.3573696268 | E51: =OFFSET(標準・基準!AB49,0,標準・基準!$D$11) -> 0.6842121484 | I51: 30.85421656 | J51: 97 | K51: 0.9849820146 | L51: 1.142199753
B52: 項目 | C52: 知識・技能教育（定期的教育） | D52: =OFFSET(標準・基準!AM50,0,標準・基準!$D$11) -> 0.3621656957 | E52: =OFFSET(標準・基準!AB50,0,標準・基準!$D$11) -> 0.4914789837 | I52: 36.42944405 | J52: 91 | K52: 0.7962853233 | L52: 0.955612998
B53: 項目 | C53: 現場リーダーの育成 | D53: =OFFSET(標準・基準!AM51,0,標準・基準!$D$11) -> 0.2811078095 | E53: =OFFSET(標準・基準!AB51,0,標準・基準!$D$11) -> 0.06143616175 | I53: 47.81449822 | J53: 59 | K53: 0.2980224631 | L53: 0.421690315
B54: 項目 | C54: 指導員による指導の効果 | D54: =OFFSET(標準・基準!AM52,0,標準・基準!$D$11) -> 0.2775074369 | E54: =OFFSET(標準・基準!AB52,0,標準・基準!$D$11) -> 0.3127858698 | I54: 38.72873919 | J54: 87 | K54: 0.5463420212 | L54: 0.66842596
B55: 項目 | C55: 事故分析と再発防止教育 | D55: =OFFSET(標準・基準!AM53,0,標準・基準!$D$11) -> 0.3133117156 | E55: =OFFSET(標準・基準!AB53,0,標準・基準!$D$11) -> 0.8217816654 | I55: 23.77111597 | J55: 100 | K55: 1.085471458 | L55: 1.223306785
B56: 項目 | C56: ﾋﾔﾘﾊｯﾄ、危険予知訓練の効果 | D56: =OFFSET(標準・基準!AM54,0,標準・基準!$D$11) -> 0.3197496227 | E56: =OFFSET(標準・基準!AB54,0,標準・基準!$D$11) -> 0.6748864977 | I56: 28.89328244 | J56: 98 | K56: 0.9439945696 | L56: 1.084662127
B57: 項目 | C57: 事故・災害対応手順の見直し | D57: =OFFSET(標準・基準!AM55,0,標準・基準!$D$11) -> 0.2999523083 | E57: =OFFSET(標準・基準!AB55,0,標準・基準!$D$11) -> 0.5365816157 | I57: 32.1111023 | J57: 96 | K57: 0.7890278474 | L57: 0.920985966
B58: 項目 | C58: 親身になった指導 | D58: =OFFSET(標準・基準!AM56,0,標準・基準!$D$11) -> 0.3015972619 | E58: =OFFSET(標準・基準!AB56,0,標準・基準!$D$11) -> 0.5820241474 | I58: 30.70194193 | J58: 97 | K58: 0.835854807 | L58: 0.9685365906
B59: 項目 | C59: 積極的な声かけ | D59: =OFFSET(標準・基準!AM57,0,標準・基準!$D$11) -> 0.2896451526 | E59: =OFFSET(標準・基準!AB57,0,標準・基準!$D$11) -> 0.5317274883 | I59: 31.64210644 | J59: 97 | K59: 0.7754989989 | L59: 0.9029226871
B60: 項目 | C60: 朝礼の活性化 | D60: =OFFSET(標準・基準!AM58,0,標準・基準!$D$11) -> 0.3988420072 | E60: =OFFSET(標準・基準!AB58,0,標準・基準!$D$11) -> 0.3830307728 | I60: 40.39642851 | J60: 83 | K60: 0.7187046749 | L60: 0.8941673715
B61: 項目 | C61: 基本行動の指導 | D61: =OFFSET(標準・基準!AM59,0,標準・基準!$D$11) -> 0.3680860609 | E61: =OFFSET(標準・基準!AB59,0,標準・基準!$D$11) -> 0.7295840215 | I61: 30.17898261 | J61: 98 | K61: 1.039373066 | L61: 1.201305289
B62: 項目 | C62: 日々の報告と改善活動 | D62: =OFFSET(標準・基準!AM60,0,標準・基準!$D$11) -> 0.2615134666 | E62: =OFFSET(標準・基準!AB60,0,標準・基準!$D$11) -> 0.7596797755 | I62: 20.95064414 | J62: 100 | K62: 0.9797750619 | L62: 1.094822768
B63: 項目 | C63: 生活管理・健康管理 | D63: =OFFSET(標準・基準!AM61,0,標準・基準!$D$11) -> 0.3077551678 | E63: =OFFSET(標準・基準!AB61,0,標準・基準!$D$11) -> 0.2220523762 | I63: 42.78477181 | J63: 76 | K63: 0.4810656602 | L63: 0.6164564933
B64: 項目 | C64: 改善意欲の醸成 | D64: =OFFSET(標準・基準!AM62,0,標準・基準!$D$11) -> 0.3137892878 | E64: =OFFSET(標準・基準!AB62,0,標準・基準!$D$11) -> 0.267749966 | I64: 41.46720502 | J64: 80 | K64: 0.5318416935 | L64: 0.6698871191
B65: 項目 | C65: ミーティング（班活動等）の充実 | D65: =OFFSET(標準・基準!AM63,0,標準・基準!$D$11) -> 0.3468318928 | E65: =OFFSET(標準・基準!AB63,0,標準・基準!$D$11) -> 0.3724838451 | I65: 39.26039235 | J65: 86 | K65: 0.6643849306 | L65: 0.8169668003
B66: 項目 | C66: 現場ﾊﾟﾄﾛｰﾙ・立会の充実 | D66: =OFFSET(標準・基準!AM64,0,標準・基準!$D$11) -> 0.4329507533 | E66: =OFFSET(標準・基準!AB64,0,標準・基準!$D$11) -> 0.3146501587 | I66: 42.73242612 | J66: 77 | K66: 0.6790307058 | L66: 0.8694988744
B67: 項目 | C67: 健康 | D67: =OFFSET(標準・基準!AM65,0,標準・基準!$D$11) -> 0.1946522767 | E67: =OFFSET(標準・基準!AB65,0,標準・基準!$D$11) -> 0.5718293584 | I67: 20.62303261 | J67: 100 | K67: 0.7356528477 | L67: 0.8212862884
B68: 項目 | C68: あいさつ | D68: =OFFSET(標準・基準!AM66,0,標準・基準!$D$11) -> 0.1310093103 | E68: =OFFSET(標準・基準!AB66,0,標準・基準!$D$11) -> 0.2718428969 | I68: 29.25010854 | J68: 98 | K68: 0.3821031142 | L68: 0.4397380835
B69: 項目 | C69: 約束 | D69: =OFFSET(標準・基準!AM67,0,標準・基準!$D$11) -> 0.1498824498 | E69: =OFFSET(標準・基準!AB67,0,標準・基準!$D$11) -> 1.052145027 | I69: =10*(M69-E69)/D69+50 -> -20.19801373 | J69: =ROUND((1-(NORMDIST(I69,50,10,TRUE)))*100,0) -> 100 | K69: =0.1*(D69*(NORMINV(0.8,50,10)-50)+E69*10) -> 1.178289279 | L69: =0.1*(D69*(NORMINV(0.9,50,10)-50)+E69*10) -> 1.244227115
B70: 項目 | C70: 計画 | D70: =OFFSET(標準・基準!AM68,0,標準・基準!$D$11) -> 0.1976019668 | E70: =OFFSET(標準・基準!AB68,0,標準・基準!$D$11) -> 0.4698693495 | I70: 26.22142345 | J70: 99 | K70: 0.6361753606 | L70: 0.7231064594
B71: 項目 | C71: 報告 | D71: =OFFSET(標準・基準!AM69,0,標準・基準!$D$11) -> 0.2115036356 | E71: =OFFSET(標準・基準!AB69,0,標準・基準!$D$11) -> 0.7362897336 | I71: 15.18784505 | J71: 100 | K71: 0.9142956843 | L71: 1.007342549
B72: 項目 | C72: 終業 | D72: =OFFSET(標準・基準!AM70,0,標準・基準!$D$11) -> 0.1920773763 | E72: =OFFSET(標準・基準!AB70,0,標準・基準!$D$11) -> 0.6120155789 | I72: 18.13702942 | J72: 100 | K72: 0.7736719772 | L72: 0.8581726411
B73: 項目 | C73: 仕事 | D73: =OFFSET(標準・基準!AM71,0,標準・基準!$D$11) -> 0.1933174091 | E73: =OFFSET(標準・基準!AB71,0,標準・基準!$D$11) -> 0.4576640961 | I73: 26.3257692 | J73: 99 | K73: 0.6203641324 | L73: 0.7054103244
B74: 項目 | C74: 車両・機材・施設 | D74: =OFFSET(標準・基準!AM72,0,標準・基準!$D$11) -> 0.1506544093 | E74: =OFFSET(標準・基準!AB72,0,標準・基準!$D$11) -> 0.8881301288 | I74: -8.951485912 | J74: 100 | K74: 1.014924079 | L74: 1.081201523
B75: 項目 | C75: 会議・会合 | D75: =OFFSET(標準・基準!AM73,0,標準・基準!$D$11) -> 0.2484277998 | E75: =OFFSET(標準・基準!AB73,0,標準・基準!$D$11) -> 0.6498978612 | I75: 23.83956781 | J75: 100 | K75: 0.8589799726 | L75: 0.968270897
B76: 項目 | C76: 出勤 | D76: =OFFSET(標準・基準!AM74,0,標準・基準!$D$11) -> 0.1490181271 | E76: =OFFSET(標準・基準!AB74,0,標準・基準!$D$11) -> 0.4115631728 | I76: 22.38167055 | J76: 100 | K76: 0.5369799928 | L76: 0.6025375869
B77: 項目 | C77: 上役 | D77: =OFFSET(標準・基準!AM75,0,標準・基準!$D$11) -> 0.1703067374 | E77: =OFFSET(標準・基準!AB75,0,標準・基準!$D$11) -> 0.3698820812 | I77: 28.28141817 | J77: 99 | K77: 0.5132158476 | L77: 0.5881389471
B78: 項目 | C78: 先輩 | D78: =OFFSET(標準・基準!AM76,0,標準・基準!$D$11) -> 0.2156862332 | E78: =OFFSET(標準・基準!AB76,0,標準・基準!$D$11) -> 0.8885982049 | I78: 8.801348059 | J78: 100 | K78: 1.070124319 | L78: 1.165011235
B79: 項目 | C79: 職場仲間 | D79: =OFFSET(標準・基準!AM77,0,標準・基準!$D$11) -> 0.1558598573 | E79: =OFFSET(標準・基準!AB77,0,標準・基準!$D$11) -> 0.595736199 | I79: 11.77744484 | J79: 100 | K79: 0.7269111644 | L79: 0.7954786431
B80: 項目 | C80: 部下 | D80: =OFFSET(標準・基準!AM78,0,標準・基準!$D$11) -> 0.1578263396 | E80: =OFFSET(標準・基準!AB78,0,標準・基準!$D$11) -> 1.097322403 | I80: -19.52720347 | J80: 100 | K80: 1.230152401 | L80: 1.299584995
B81: Ⅴ | C81: 1.2点以上 | D81: =OFFSET(標準・基準!AM79,0,標準・基準!$D$11) -> 0.04941032615 | E81: =OFFSET(標準・基準!AB79,0,標準・基準!$D$11) -> 0.1167193715 | I81: 0.2
C82: 1.0点以上1.2点未満 | D82: =OFFSET(標準・基準!AM80,0,標準・基準!$D$11) -> 0.05633698221 | E82: =OFFSET(標準・基準!AB80,0,標準・基準!$D$11) -> 0.1513871326 | I82: 0.25
C83: 0.4点以上1.0点未満 | D83: =OFFSET(標準・基準!AM81,0,標準・基準!$D$11) -> 0.06114062787 | E83: =OFFSET(標準・基準!AB81,0,標準・基準!$D$11) -> 0.4679011283 | I83: 0.45
C84: 0.4点未満 | D84: =OFFSET(標準・基準!AM82,0,標準・基準!$D$11) -> 0.09265500016 | E84: =OFFSET(標準・基準!AB82,0,標準・基準!$D$11) -> 0.2639923676 | I84: 0.1
C85: 人数 | D85: =OFFSET(標準・基準!AM83,0,標準・基準!$D$11) -> 931.9700056 | E85: =OFFSET(標準・基準!AB83,0,標準・基準!$D$11) -> 530.1016949
C87: 標準偏差
C88: Ⅰ．トップの価値観・行動の充実と浸透
C89: Ⅱ．マネジメントサイクルの充実と浸透
C90: Ⅲ．教育訓練の充実
C91: Ⅳ．現場管理の充実
C92: Ⅴ．職場メンバーの積極心
C93: １．経営理念（トップの価値観）
C94: ２．マネジメントシステム
C95: ３．現場重視の行動・姿勢
C96: １．PDCAの実践
C97: ２．コミュニケーションの実践
C98: １．採用・教育の充実
C99: ２．リーダー教育の充実
C100: ３．安全教育の充実
C101: １．現場コミュニケーション
C102: ２．日常管理の充実
C103: ３．現場管理施策の充実
C104: １．基本行動への意識
C105: ２．職務への意識
C106: ３．人間関係への意識
C107: 経営姿勢への共感
C108: 安全に関するコンプライアンスの浸透
C109: 経営執行の監視（コーポレートガバナンス）
C110: 継続的改善
C111: 管理者育成（人材育成）
C112: 現場情報の活用
C113: 率先垂範への共感
C114: 問題解決の意思決定
C115: 安全理念・方針の浸透
C116: 経営者による現場コミュニケーション
C117: 安全の理念・方針の理解
C118: 安全目標の設定
C119: 取り組み計画の具体化
C120: 計画の遂行度合
C121: 改善志向
C122: 見直しと次へのアクション
C123: 文書・記録の管理・活用
C124: 職場の風通し
C125: リーダーシップ
C126: 部署間コミュニケーション
C127: 部署間連携
C128: 報告・連絡・相談の環境作り
C129: 報告・連絡・相談の実践
C130: 職場環境（仕事面）
C131: 職場環境（健康面）
C132: 職場環境（精神面）
C133: 人材確保
C134: 採用への経営者の関わり
C135: 新人教育の効果
C136: 知識・技能教育（定期的教育）
C137: 現場リーダーの育成
C138: 指導員による指導の効果
C139: 事故分析と再発防止教育
C140: ﾋﾔﾘﾊｯﾄ、危険予知訓練の効果
C141: 事故・災害対応手順の見直し
C142: 親身になった指導
C143: 積極的な声かけ
C144: 朝礼の活性化
C145: 基本行動の指導
C146: 日々の報告と改善活動
C147: 生活管理・健康管理
C148: 改善意欲の醸成
C149: ミーティング（班活動等）の充実
C150: 現場ﾊﾟﾄﾛｰﾙ・立会の充実
C151: 健康
C152: あいさつ
C153: 約束
C154: 計画
C155: 報告
C156: 終業
C157: 仕事
C158: 車両・機材・施設
C159: 会議・会合
C160: 出勤
C161: 上役
C162: 先輩
C163: 職場仲間
C164: 部下
C165: 1.2点以上
C166: 1.0点以上1.2点未満
C167: 0.4点以上1.0点未満
C168: 0.4点未満
C169: KD-Ⅰ
C171: 標準誤差
C172: Ⅰ．トップの価値観・行動の充実と浸透
C173: Ⅱ．マネジメントサイクルの充実と浸透
C174: Ⅲ．教育訓練の充実
C175: Ⅳ．現場管理の充実
C176: Ⅴ．職場メンバーの積極心
C177: １．経営理念（トップの価値観）
C178: ２．マネジメントシステム
C179: ３．現場重視の行動・姿勢
C180: １．PDCAの実践
C181: ２．コミュニケーションの実践
C182: １．採用・教育の充実
C183: ２．リーダー教育の充実
C184: ３．安全教育の充実
C185: １．現場コミュニケーション
C186: ２．日常管理の充実
C187: ３．現場管理施策の充実
C188: １．基本行動への意識
C189: ２．職務への意識
C190: ３．人間関係への意識
C191: 経営姿勢への共感
C192: 安全に関するコンプライアンスの浸透
C193: 経営執行の監視（コーポレートガバナンス）
C194: 継続的改善
C195: 管理者育成（人材育成）
C196: 現場情報の活用
C197: 率先垂範への共感
C198: 問題解決の意思決定
C199: 安全理念・方針の浸透
C200: 経営者による現場コミュニケーション
C201: 安全の理念・方針の理解
C202: 安全目標の設定
C203: 取り組み計画の具体化
... 50 more rows

Sheet 前回データ
B1: 集計結果入力シート | M1: 1 | N1: =M1+1 -> 2 | O1: =N1+1 -> 3 | P1: 4 | Q1: 5 | R1: 6 | S1: 7 | T1: 8 | U1: 9 | V1: 10 | W1: 11 | X1: 12 | Y1: 13 | Z1: 14 | AA1: 15 | AB1: 16 | AC1: 17 | AD1: 18 | AE1: 19 | AF1: 20 | AG1: 21 | AH1: 22 | AI1: 23 | AJ1: 24 | AK1: 25 | AL1: 26 | AM1: 27 | AN1: 28 | AO1: 29 | AP1: 30 | AQ1: 31 | AR1: 32 | AS1: 33 | AT1: 34 | AU1: 35 | AV1: 36 | AW1: 37 | AX1: 38 | AY1: 39 | AZ1: 40 | BA1: 41 | BB1: 42 | BC1: 43 | BD1: 44 | BE1: 45 | BF1: 46 | BG1: 47 | BH1: 48 | BI1: 49 | BJ1: 50 | BK1: 51 | BL1: 52 | BM1: 53 | BN1: 54 | BO1: 55 | BP1: 56 | BQ1: 57 | BR1: 58 | BS1: 59 | BT1: 60 | BU1: 61 | BV1: 62 | BW1: 63 | BX1: 64 | BY1: 65 | BZ1: 66 | CA1: =BZ1+1 -> 67 | CB1: 68 | CC1: 69 | CD1: 70 | CE1: 71 | CF1: 72 | CG1: 73 | CH1: 74 | CI1: 75 | CJ1: 76 | CK1: 77 | CL1: 78 | CM1: 79 | CN1: 80 | CO1: 81 | CP1: 82 | CQ1: 83 | CR1: 84 | CS1: 85 | CT1: 86 | CU1: 87 | CV1: 88 | CW1: 89 | CX1: 90 | CY1: 91 | CZ1: 92 | DA1: 93 | DB1: 94 | DC1: 95 | DD1: 96 | DE1: 97 | DF1: 98 | DG1: 99 | DH1: 100
D3: 他社平均 標準偏差 | E3: 他社平均 | F3: 経営職他社平均 | G3: 管理職他社平均 | H3: 現業職他社平均 | I3: 基準 | J3: 順位 | K3: 上位20％ | L3: 上位10％
B4: 領域 | C4: Ⅰ．トップの価値観・行動の充実と浸透 | D4: =OFFSET(標準・基準!BI2,0,標準・基準!$D$11) -> 0.2798078898 | E4: =OFFSET(標準・基準!AX2,0,標準・基準!$D$11) -> 0.2946103786 | I4: =10*(M4-E4)/D4+50 -> 39.47097672 | J4: =ROUND((1-(NORMDIST(I4,50,10,TRUE)))*100,0) -> 85 | K4: =0.1*(D4*(NORMINV(0.8,50,10)-50)+E4*10) -> 0.5301026399 | L4: =0.1*(D4*(NORMINV(0.9,50,10)-50)+E4*10) -> 0.6531986178
B5: 領域 | C5: Ⅱ．マネジメントサイクルの充実と浸透 | D5: =OFFSET(標準・基準!BI3,0,標準・基準!$D$11) -> 0.1721438414 | E5: =OFFSET(標準・基準!AX3,0,標準・基準!$D$11) -> 0.4373660028 | I5: =10*(M5-E5)/D5+50 -> 24.59299157 | J5: =ROUND((1-(NORMDIST(I5,50,10,TRUE)))*100,0) -> 99 | K5: =0.1*(D5*(NORMINV(0.8,50,10)-50)+E5*10) -> 0.5822459149 | L5: =0.1*(D5*(NORMINV(0.9,50,10)-50)+E5*10) -> 0.6579772122
B6: 領域 | C6: Ⅲ．教育訓練の充実 | D6: =OFFSET(標準・基準!BI4,0,標準・基準!$D$11) -> 0.2611199555 | E6: =OFFSET(標準・基準!AX4,0,標準・基準!$D$11) -> 0.4980508876 | I6: 30.92635675 | J6: 97 | K6: 0.7178149866 | L6: 0.8326895753
B7: 領域 | C7: Ⅳ．現場管理の充実 | D7: =OFFSET(標準・基準!BI5,0,標準・基準!$D$11) -> 0.263693273 | E7: =OFFSET(標準・基準!AX5,0,標準・基準!$D$11) -> 0.4375645426 | I7: 33.40630621 | J7: 95 | K7: 0.6594944003 | L7: 0.7755010694
B8: 領域 | C8: Ⅴ．職場メンバーの積極心 | D8: =OFFSET(標準・基準!BI6,0,標準・基準!$D$11) -> 0.112822655 | E8: =OFFSET(標準・基準!AX6,0,標準・基準!$D$11) -> 0.6496205203 | I8: -7.578907371 | J8: 100 | K8: 0.7445744624 | L8: 0.7942085704
B9: 区分 | C9: １．経営理念（トップの価値観） | D9: =OFFSET(標準・基準!BI7,0,標準・基準!$D$11) -> 0.2785381506 | E9: =OFFSET(標準・基準!AX7,0,標準・基準!$D$11) -> 0.2952245104 | I9: 39.4009309 | J9: 86 | K9: 0.5296481324 | L9: 0.6521855134
B10: 区分 | C10: ２．マネジメントシステム | D10: =OFFSET(標準・基準!BI8,0,標準・基準!$D$11) -> 0.2767770509 | E10: =OFFSET(標準・基準!AX8,0,標準・基準!$D$11) -> 0.2825286957 | I10: 39.79219214 | J10: 85 | K10: 0.5154701387 | L10: 0.6372327586
B11: 区分 | C11: ３．現場重視の行動・姿勢 | D11: =OFFSET(標準・基準!BI9,0,標準・基準!$D$11) -> 0.3144995255 | E11: =OFFSET(標準・基準!AX9,0,標準・基準!$D$11) -> 0.3032110419 | I11: 40.35893484 | J11: 83 | K11: 0.5679005206 | L11: 0.7062584012
B12: 区分 | C12: １．PDCAの実践 | D12: =OFFSET(標準・基準!BI10,0,標準・基準!$D$11) -> 0.1662502063 | E12: =OFFSET(標準・基準!AX10,0,標準・基準!$D$11) -> 0.544975358 | I12: 17.21956802 | J12: 100 | K12: 0.6848950617 | L12: 0.7580335701
B13: 区分 | C13: ２．コミュニケーションの実践 | D13: =OFFSET(標準・基準!BI11,0,標準・基準!$D$11) -> 0.196502319 | E13: =OFFSET(標準・基準!AX11,0,標準・基準!$D$11) -> 0.3536698377 | I13: 32.00174739 | J13: 96 | K13: 0.5190503618 | L13: 0.6054976923
B14: 区分 | C14: １．採用・教育の充実 | D14: =OFFSET(標準・基準!BI12,0,標準・基準!$D$11) -> 0.2892843289 | E14: =OFFSET(標準・基準!AX12,0,標準・基準!$D$11) -> 0.5663607761 | I14: 30.42200287 | J14: 97 | K14: 0.8098286099 | L14: 0.9370935607
B15: 区分 | C15: ２．リーダー教育の充実 | D15: =OFFSET(標準・基準!BI13,0,標準・基準!$D$11) -> 0.2820741057 | E15: =OFFSET(標準・基準!AX13,0,標準・基準!$D$11) -> 0.2698312885 | I15: 40.4340284 | J15: 83 | K15: 0.5072308452 | L15: 0.6313238002
B16: 区分 | C16: ３．安全教育の充実 | D16: =OFFSET(標準・基準!BI14,0,標準・基準!$D$11) -> 0.2850316804 | E16: =OFFSET(標準・基準!AX14,0,標準・基準!$D$11) -> 0.6579605982 | I16: 26.9162292 | J16: 99 | K16: 0.8978493127 | L16: 1.023243394
B17: 区分 | C17: １．現場コミュニケーション | D17: =OFFSET(標準・基準!BI15,0,標準・基準!$D$11) -> 0.2917074341 | E17: =OFFSET(標準・基準!AX15,0,標準・基準!$D$11) -> 0.4837054221 | I17: 33.41813181 | J17: 95 | K17: 0.7292125926 | L17: 0.8575435409
B18: 区分 | C18: ２．日常管理の充実 | D18: =OFFSET(標準・基準!BI16,0,標準・基準!$D$11) -> 0.2687989859 | E18: =OFFSET(標準・基準!AX16,0,標準・基準!$D$11) -> 0.5482450433 | I18: 29.6039021 | J18: 98 | K18: 0.7744719774 | L18: 0.8927248045
B19: 区分 | C19: ３．現場管理施策の充実 | D19: =OFFSET(標準・基準!BI17,0,標準・基準!$D$11) -> 0.2935192245 | E19: =OFFSET(標準・基準!AX17,0,標準・基準!$D$11) -> 0.2807431623 | I19: 40.43527173 | J19: 83 | K19: 0.5277751741 | L19: 0.656903184
B20: 区分 | C20: １．基本行動への意識 | D20: =OFFSET(標準・基準!BI18,0,標準・基準!$D$11) -> 0.1207296312 | E20: =OFFSET(標準・基準!AX18,0,標準・基準!$D$11) -> 0.6224400269 | I20: -1.556525177 | J20: 100 | K20: 0.7240486481 | L20: 0.7771612748
B21: 区分 | C21: ２．職務への意識 | D21: =OFFSET(標準・基準!BI19,0,標準・基準!$D$11) -> 0.1354299413 | E21: =OFFSET(標準・基準!AX19,0,標準・基準!$D$11) -> 0.6080759095 | I21: 5.100334264 | J21: 100 | K21: 0.7220566237 | L21: 0.7816363628
B22: 区分 | C22: ３．人間関係への意識 | D22: =OFFSET(標準・基準!BI20,0,標準・基準!$D$11) -> 0.1350148914 | E22: =OFFSET(標準・基準!AX20,0,標準・基準!$D$11) -> 0.7355269004 | I22: -4.477464897 | J22: 100 | K22: 0.8491582998 | L22: 0.9085554458
B23: 項目 | C23: 経営姿勢への共感 | D23: =OFFSET(標準・基準!BI21,0,標準・基準!$D$11) -> 0.3304601623 | E23: =OFFSET(標準・基準!AX21,0,標準・基準!$D$11) -> 0.03909225332 | I23: 48.81703583 | J23: 55 | K23: 0.3172145428 | L23: 0.4625939917
B24: 項目 | C24: 安全に関するコンプライアンスの浸透 | D24: =OFFSET(標準・基準!BI22,0,標準・基準!$D$11) -> 0.3294875143 | E24: =OFFSET(標準・基準!AX22,0,標準・基準!$D$11) -> 0.5637482781 | I24: 32.89014747 | J24: 96 | K24: 0.8410519664 | L24: 0.9860035179
B25: 項目 | C25: 経営執行の監視（コーポレートガバナンス） | D25: =OFFSET(標準・基準!BI23,0,標準・基準!$D$11) -> 0.2904355761 | E25: =OFFSET(標準・基準!AX23,0,標準・基準!$D$11) -> 0.2828329999 | I25: 40.26176463 | J25: 83 | K25: 0.5272697477 | L25: 0.6550411672
B26: 項目 | C26: 継続的改善 | D26: =OFFSET(標準・基準!BI24,0,標準・基準!$D$11) -> 0.2716120643 | E26: =OFFSET(標準・基準!AX24,0,標準・基準!$D$11) -> 0.3060398256 | I26: 38.73246568 | J26: 87 | K26: 0.5346343062 | L26: 0.6541246918
B27: 項目 | C27: 管理者育成（人材育成） | D27: =OFFSET(標準・基準!BI25,0,標準・基準!$D$11) -> 0.3018876845 | E27: =OFFSET(標準・基準!AX25,0,標準・基準!$D$11) -> 0.1676325706 | I27: 44.44718751 | J27: 71 | K27: 0.4217076561 | L27: 0.5545172053
B28: 項目 | C28: 現場情報の活用 | D28: =OFFSET(標準・基準!BI26,0,標準・基準!$D$11) -> 0.3172473997 | E28: =OFFSET(標準・基準!AX26,0,標準・基準!$D$11) -> 0.3739136908 | I28: 38.21381385 | J28: 88 | K28: 0.6409158387 | L28: 0.7804825926
B29: 項目 | C29: 率先垂範への共感 | D29: =OFFSET(標準・基準!BI27,0,標準・基準!$D$11) -> 0.3571573492 | E29: =OFFSET(標準・基準!AX27,0,標準・基準!$D$11) -> 0.3212296253 | I29: 41.00593545 | J29: 82 | K29: 0.6218208341 | L29: 0.7789451853
B30: 項目 | C30: 問題解決の意思決定 | D30: =OFFSET(標準・基準!BI28,0,標準・基準!$D$11) -> 0.3388704154 | E30: =OFFSET(標準・基準!AX28,0,標準・基準!$D$11) -> 0.3482826425 | I30: 39.72224701 | J30: 85 | K30: 0.6334831795 | L30: 0.7825625538
B31: 項目 | C31: 安全理念・方針の浸透 | D31: =OFFSET(標準・基準!BI29,0,標準・基準!$D$11) -> 0.3303384496 | E31: =OFFSET(標準・基準!AX29,0,標準・基準!$D$11) -> 0.345852041 | I31: 39.53037282 | J31: 85 | K31: 0.6238718944 | L31: 0.7691977982
B32: 項目 | C32: 経営者による現場コミュニケーション | D32: =OFFSET(標準・基準!BI30,0,標準・基準!$D$11) -> 0.3459401939 | E32: =OFFSET(標準・基準!AX30,0,標準・基準!$D$11) -> 0.1974798589 | I32: 44.29150291 | J32: 72 | K32: 0.4886304717 | L32: 0.6408200561
B33: 項目 | C33: 安全の理念・方針の理解 | D33: =OFFSET(標準・基準!BI31,0,標準・基準!$D$11) -> 0.2057441461 | E33: =OFFSET(標準・基準!AX31,0,標準・基準!$D$11) -> 0.5064823108 | I33: 25.3829054 | J33: 99 | K33: 0.6796409528 | L33: 0.7701540433
B34: 項目 | C34: 安全目標の設定 | D34: =OFFSET(標準・基準!BI32,0,標準・基準!$D$11) -> 0.2304336292 | E34: =OFFSET(標準・基準!AX32,0,標準・基準!$D$11) -> 0.5729733406 | I34: 25.13499473 | J34: 99 | K34: 0.7669111759 | L34: 0.8682859189
B35: 項目 | C35: 取り組み計画の具体化 | D35: =OFFSET(標準・基準!BI33,0,標準・基準!$D$11) -> 0.2098207434 | E35: =OFFSET(標準・基準!AX33,0,標準・基準!$D$11) -> 0.4123813118 | I35: 30.34601798 | J35: 98 | K35: 0.5889709047 | L35: 0.681277414
B36: 項目 | C36: 計画の遂行度合 | D36: =OFFSET(標準・基準!BI34,0,標準・基準!$D$11) -> 0.2081032227 | E36: =OFFSET(標準・基準!AX34,0,標準・基準!$D$11) -> 0.4803233885 | I36: 26.91898365 | J36: 99 | K36: 0.6554674795 | L36: 0.7470183994
B37: 項目 | C37: 改善志向 | D37: =OFFSET(標準・基準!BI35,0,標準・基準!$D$11) -> 0.1875309466 | E37: =OFFSET(標準・基準!AX35,0,標準・基準!$D$11) -> 0.9040731924 | I37: 1.790719938 | J37: 100 | K37: 1.061903219 | L37: 1.144403771
B38: 項目 | C38: 見直しと次へのアクション | D38: =OFFSET(標準・基準!BI36,0,標準・基準!$D$11) -> 0.1789044301 | E38: =OFFSET(標準・基準!AX36,0,標準・基準!$D$11) -> 0.5444804678 | I38: 19.56584767 | J38: 100 | K38: 0.6950502349 | L38: 0.7737557203
B39: 項目 | C39: 文書・記録の管理・活用 | D39: =OFFSET(標準・基準!BI37,0,標準・基準!$D$11) -> 0.2509158558 | E39: =OFFSET(標準・基準!AX37,0,標準・基準!$D$11) -> 0.3941134939 | I39: 34.29300163 | J39: 94 | K39: 0.605289606 | L39: 0.7156751018
B40: 項目 | C40: 職場の風通し | D40: =OFFSET(標準・基準!BI38,0,標準・基準!$D$11) -> 0.1953458322 | E40: =OFFSET(標準・基準!AX38,0,標準・基準!$D$11) -> 0.7104686286 | I40: 13.63021312 | J40: 100 | K40: 0.8748758288 | L40: 0.9608143857
B41: 項目 | C41: リーダーシップ | D41: =OFFSET(標準・基準!BI39,0,標準・基準!$D$11) -> 0.2231658804 | E41: =OFFSET(標準・基準!AX39,0,標準・基準!$D$11) -> 0.162704772 | I41: 42.70924517 | J41: 77 | K41: 0.3505259155 | L41: 0.4487033553
B42: 項目 | C42: 部署間コミュニケーション | D42: =OFFSET(標準・基準!BI40,0,標準・基準!$D$11) -> 0.2162340165 | E42: =OFFSET(標準・基準!AX40,0,標準・基準!$D$11) -> 0.4428699286 | I42: 29.51895193 | J42: 98 | K42: 0.6248570683 | L42: 0.719984971
B43: 項目 | C43: 部署間連携 | D43: =OFFSET(標準・基準!BI41,0,標準・基準!$D$11) -> 0.2701546777 | E43: =OFFSET(標準・基準!AX41,0,標準・基準!$D$11) -> 0.1866129164 | I43: 43.09236775 | J43: 76 | K43: 0.4139808295 | L43: 0.5328300665
B44: 項目 | C44: 報告・連絡・相談の環境作り | D44: =OFFSET(標準・基準!BI42,0,標準・基準!$D$11) -> 0.2043547978 | E44: =OFFSET(標準・基準!AX42,0,標準・基準!$D$11) -> 0.5190829949 | I44: 24.5989328 | J44: 99 | K44: 0.6910723319 | L44: 0.7809742059
B45: 項目 | C45: 報告・連絡・相談の実践 | D45: =OFFSET(標準・基準!BI43,0,標準・基準!$D$11) -> 0.227172171 | E45: =OFFSET(標準・基準!AX43,0,標準・基準!$D$11) -> 0.705061248 | I45: 18.9635731 | J45: 100 | K45: 0.8962541709 | L45: 0.9961940995
B46: 項目 | C46: 職場環境（仕事面） | D46: =OFFSET(標準・基準!BI44,0,標準・基準!$D$11) -> 0.2802523986 | E46: =OFFSET(標準・基準!AX44,0,標準・基準!$D$11) -> 0.2674484255 | I46: 40.45687292 | J46: 83 | K46: 0.5033147949 | L46: 0.6266063257
B47: 項目 | C47: 職場環境（健康面） | D47: =OFFSET(標準・基準!BI45,0,標準・基準!$D$11) -> 0.3028866066 | E47: =OFFSET(標準・基準!AX45,0,標準・基準!$D$11) -> 0.1030159245 | I47: 46.59886168 | J47: 63 | K47: 0.357931724 | L47: 0.4911807294
B48: 項目 | C48: 職場環境（精神面） | D48: =OFFSET(標準・基準!BI46,0,標準・基準!$D$11) -> 0.227646622 | E48: =OFFSET(標準・基準!AX46,0,標準・基準!$D$11) -> 0.08576370062 | I48: 46.23259507 | J48: 65 | K48: 0.2773559314 | L48: 0.3775045854
B49: 項目 | C49: 人材確保 | D49: =OFFSET(標準・基準!BI47,0,標準・基準!$D$11) -> 0.3020715711 | E49: =OFFSET(標準・基準!AX47,0,標準・基準!$D$11) -> 0.524384721 | I49: 32.64038158 | J49: 96 | K49: 0.7786145693 | L49: 0.9115050158
B50: 項目 | C50: 採用への経営者の関わり | D50: =OFFSET(標準・基準!BI48,0,標準・基準!$D$11) -> 0.4344371529 | E50: =OFFSET(標準・基準!AX48,0,標準・基準!$D$11) -> 0.5010011688 | I50: 38.46781023 | J50: 88 | K50: 0.8666327014 | L50: 1.057754782
B51: 項目 | C51: 新人教育の効果 | D51: =OFFSET(標準・基準!BI49,0,標準・基準!$D$11) -> 0.3459918883 | E51: =OFFSET(標準・基準!AX49,0,標準・基準!$D$11) -> 0.6736964385 | I51: 30.52854817 | J51: 97 | K51: 0.9648905584 | L51: 1.117102885
B52: 項目 | C52: 知識・技能教育（定期的教育） | D52: =OFFSET(標準・基準!BI50,0,標準・基準!$D$11) -> 0.3626032698 | E52: =OFFSET(標準・基準!AX50,0,標準・基準!$D$11) -> 0.4752724574 | I52: 36.89276967 | J52: 91 | K52: 0.7804470686 | L52: 0.9399672454
B53: 項目 | C53: 現場リーダーの育成 | D53: =OFFSET(標準・基準!BI51,0,標準・基準!$D$11) -> 0.2707021153 | E53: =OFFSET(標準・基準!AX51,0,標準・基準!$D$11) -> 0.0394978533 | I53: 48.5409108 | J53: 56 | K53: 0.2673265015 | L53: 0.386416573
B54: 項目 | C54: 指導員による指導の効果 | D54: =OFFSET(標準・基準!BI52,0,標準・基準!$D$11) -> 0.2810100679 | E54: =OFFSET(標準・基準!AX52,0,標準・基準!$D$11) -> 0.2947235547 | I54: 39.51199304 | J54: 85 | K54: 0.5312275947 | L54: 0.6548524472
B55: 項目 | C55: 事故分析と再発防止教育 | D55: =OFFSET(標準・基準!BI53,0,標準・基準!$D$11) -> 0.3098919184 | E55: =OFFSET(標準・基準!AX53,0,標準・基準!$D$11) -> 0.801841491 | I55: 24.12512417 | J55: 100 | K55: 1.06265311 | L55: 1.198983964
B56: 項目 | C56: ﾋﾔﾘﾊｯﾄ、危険予知訓練の効果 | D56: =OFFSET(標準・基準!BI54,0,標準・基準!$D$11) -> 0.3156300089 | E56: =OFFSET(標準・基準!AX54,0,標準・基準!$D$11) -> 0.6600519046 | I56: 29.08779628 | J56: 98 | K56: 0.9256928221 | L56: 1.064548037
B57: 項目 | C57: 事故・災害対応手順の見直し | D57: =OFFSET(標準・基準!BI55,0,標準・基準!$D$11) -> 0.2999622485 | E57: =OFFSET(標準・基準!AX55,0,標準・基準!$D$11) -> 0.5119883991 | I57: 32.93157217 | J57: 96 | K57: 0.7644429967 | L57: 0.8964054883
B58: 項目 | C58: 親身になった指導 | D58: =OFFSET(標準・基準!BI56,0,標準・基準!$D$11) -> 0.2975470683 | E58: =OFFSET(標準・基準!AX56,0,標準・基準!$D$11) -> 0.5651862372 | I58: 31.00514851 | J58: 97 | K58: 0.8156081679 | L58: 0.9465081484
B59: 項目 | C59: 積極的な声かけ | D59: =OFFSET(標準・基準!BI57,0,標準・基準!$D$11) -> 0.2909261635 | E59: =OFFSET(標準・基準!AX57,0,標準・基準!$D$11) -> 0.5282823838 | I59: 31.84135873 | J59: 97 | K59: 0.7731320204 | L59: 0.9011192641
B60: 項目 | C60: 朝礼の活性化 | D60: =OFFSET(標準・基準!BI58,0,標準・基準!$D$11) -> 0.3952383418 | E60: =OFFSET(標準・基準!AX58,0,標準・基準!$D$11) -> 0.3576476453 | I60: 40.95108932 | J60: 82 | K60: 0.6902886261 | L60: 0.864165961
B61: 項目 | C61: 基本行動の指導 | D61: =OFFSET(標準・基準!BI59,0,標準・基準!$D$11) -> 0.3669957658 | E61: =OFFSET(標準・基準!AX59,0,標準・基準!$D$11) -> 0.7270243271 | I61: 30.18984427 | J61: 98 | K61: 1.035895756 | L61: 1.197348325
B62: 項目 | C62: 日々の報告と改善活動 | D62: =OFFSET(標準・基準!BI60,0,標準・基準!$D$11) -> 0.2554706588 | E62: =OFFSET(標準・基準!AX60,0,標準・基準!$D$11) -> 0.7254624923 | I62: 21.60290361 | J62: 100 | K62: 0.9404720233 | L62: 1.052861315
B63: 項目 | C63: 生活管理・健康管理 | D63: =OFFSET(標準・基準!BI61,0,標準・基準!$D$11) -> 0.3084687558 | E63: =OFFSET(標準・基準!AX61,0,標準・基準!$D$11) -> 0.1922483104 | I63: 43.76765696 | J63: 73 | K63: 0.4518621652 | L63: 0.5875669273
B64: 項目 | C64: 改善意欲の醸成 | D64: =OFFSET(標準・基準!BI62,0,標準・基準!$D$11) -> 0.3073253111 | E64: =OFFSET(標準・基準!AX62,0,標準・基準!$D$11) -> 0.2194545235 | I64: 42.85921089 | J64: 76 | K64: 0.478106031 | L64: 0.6133077571
B65: 項目 | C65: ミーティング（班活動等）の充実 | D65: =OFFSET(標準・基準!BI63,0,標準・基準!$D$11) -> 0.3458570581 | E65: =OFFSET(標準・基準!AX63,0,標準・基準!$D$11) -> 0.323960705 | I65: 40.63310413 | J65: 83 | K65: 0.6150413488 | L65: 0.7671943592
B66: 項目 | C66: 現場ﾊﾟﾄﾛｰﾙ・立会の充実 | D66: =OFFSET(標準・基準!BI64,0,標準・基準!$D$11) -> 0.4385214942 | E66: =OFFSET(標準・基準!AX64,0,標準・基準!$D$11) -> 0.2988142584 | I66: 43.18586974 | J66: 75 | K66: 0.6678832593 | L66: 0.8608021658
B67: 項目 | C67: 健康 | D67: =OFFSET(標準・基準!BI65,0,標準・基準!$D$11) -> 0.1955336908 | E67: =OFFSET(標準・基準!AX65,0,標準・基準!$D$11) -> 0.5808618852 | I67: 20.29351398 | J67: 100 | K67: 0.7454271912 | L67: 0.8314483927
B68: 項目 | C68: あいさつ | D68: =OFFSET(標準・基準!BI66,0,標準・基準!$D$11) -> 0.13179786 | E68: =OFFSET(標準・基準!AX66,0,標準・基準!$D$11) -> 0.2793145002 | I68: 28.80735696 | J68: 98 | K68: 0.3902383777 | L68: 0.448220254
B69: 項目 | C69: 約束 | D69: =OFFSET(標準・基準!BI67,0,標準・基準!$D$11) -> 0.153727151 | E69: =OFFSET(標準・基準!AX67,0,標準・基準!$D$11) -> 1.05105334 | I69: =10*(M69-E69)/D69+50 -> -18.37135362 | J69: =ROUND((1-(NORMDIST(I69,50,10,TRUE)))*100,0) -> 100 | K69: =0.1*(D69*(NORMINV(0.8,50,10)-50)+E69*10) -> 1.180433375 | L69: =0.1*(D69*(NORMINV(0.9,50,10)-50)+E69*10) -> 1.248062611
B70: 項目 | C70: 計画 | D70: =OFFSET(標準・基準!BI68,0,標準・基準!$D$11) -> 0.1995168008 | E70: =OFFSET(標準・基準!AX68,0,標準・基準!$D$11) -> 0.4675205723 | I70: 26.56735822 | J70: 99 | K70: 0.6354381483 | L70: 0.7232116407
B71: 項目 | C71: 報告 | D71: =OFFSET(標準・基準!BI69,0,標準・基準!$D$11) -> 0.2062748647 | E71: =OFFSET(標準・基準!AX69,0,標準・基準!$D$11) -> 0.7334498367 | I71: 14.44308241 | J71: 100 | K71: 0.9070551428 | L71: 0.9978017125
B72: 項目 | C72: 終業 | D72: =OFFSET(標準・基準!BI70,0,標準・基準!$D$11) -> 0.1886603558 | E72: =OFFSET(標準・基準!AX70,0,標準・基準!$D$11) -> 0.6286697545 | I72: 16.67716692 | J72: 100 | K72: 0.7874503158 | L72: 0.8704477288
B73: 項目 | C73: 仕事 | D73: =OFFSET(標準・基準!BI71,0,標準・基準!$D$11) -> 0.2028493712 | E73: =OFFSET(標準・基準!AX71,0,標準・基準!$D$11) -> 0.4614935065 | I73: 27.24944851 | J73: 99 | K73: 0.6322158445 | L73: 0.7214554357
B74: 項目 | C74: 車両・機材・施設 | D74: =OFFSET(標準・基準!BI72,0,標準・基準!$D$11) -> 0.1728199021 | E74: =OFFSET(標準・基準!AX72,0,標準・基準!$D$11) -> 0.8780423978 | I74: -0.8067871298 | J74: 100 | K74: 1.023491297 | L74: 1.099520014
B75: 項目 | C75: 会議・会合 | D75: =OFFSET(標準・基準!BI73,0,標準・基準!$D$11) -> 0.242814544 | E75: =OFFSET(標準・基準!AX73,0,標準・基準!$D$11) -> 0.6514425884 | I75: 23.17118745 | J75: 100 | K75: 0.8558004644 | L75: 0.9626219473
B76: 項目 | C76: 出勤 | D76: =OFFSET(標準・基準!BI74,0,標準・基準!$D$11) -> 0.1450642286 | E76: =OFFSET(標準・基準!AX74,0,標準・基準!$D$11) -> 0.4207313003 | I76: 20.99689534 | J76: 100 | K76: 0.5428204353 | L76: 0.6066385896
B77: 項目 | C77: 上役 | D77: =OFFSET(標準・基準!BI75,0,標準・基準!$D$11) -> 0.1708047764 | E77: =OFFSET(標準・基準!AX75,0,標準・基準!$D$11) -> 0.3658135358 | I77: 28.5829446 | J77: 98 | K77: 0.5095664624 | L77: 0.5847086644
B78: 項目 | C78: 先輩 | D78: =OFFSET(標準・基準!BI76,0,標準・基準!$D$11) -> 0.221569904 | E78: =OFFSET(標準・基準!AX76,0,標準・基準!$D$11) -> 0.8845979081 | I78: 10.07589965 | J78: 100 | K78: 1.071075844 | L78: 1.168551165
B79: 項目 | C79: 職場仲間 | D79: =OFFSET(標準・基準!BI77,0,標準・基準!$D$11) -> 0.1587134603 | E79: =OFFSET(標準・基準!AX77,0,標準・基準!$D$11) -> 0.5986363264 | I79: 12.28194348 | J79: 100 | K79: 0.7322129446 | L79: 0.8020358098
B80: 項目 | C80: 部下 | D80: =OFFSET(標準・基準!BI78,0,標準・基準!$D$11) -> 0.1614135114 | E80: =OFFSET(標準・基準!AX78,0,標準・基準!$D$11) -> 1.093059831 | I80: -17.71798853 | J80: 100 | K80: 1.22890887 | L80: 1.29991957
B81: Ⅴ | C81: 1.2点以上 | D81: =OFFSET(標準・基準!BI79,0,標準・基準!$D$11) -> 0.05061313941 | E81: =OFFSET(標準・基準!AX79,0,標準・基準!$D$11) -> 0.1185297596 | I81: 0.2
C82: 1.0点以上1.2点未満 | D82: =OFFSET(標準・基準!BI80,0,標準・基準!$D$11) -> 0.05568505972 | E82: =OFFSET(標準・基準!AX80,0,標準・基準!$D$11) -> 0.1495355057 | I82: 0.25
C83: 0.4点以上1.0点未満 | D83: =OFFSET(標準・基準!BI81,0,標準・基準!$D$11) -> 0.06078745098 | E83: =OFFSET(標準・基準!AX81,0,標準・基準!$D$11) -> 0.4702912445 | I83: 0.45
C84: 0.4点未満 | D84: =OFFSET(標準・基準!BI82,0,標準・基準!$D$11) -> 0.09553942021 | E84: =OFFSET(標準・基準!AX82,0,標準・基準!$D$11) -> 0.2616434902 | I84: 0.1
C85: 人数 | D85: =OFFSET(標準・基準!BI83,0,標準・基準!$D$11) -> 923.3123844 | E85: =OFFSET(標準・基準!AX83,0,標準・基準!$D$11) -> 544.6271186
C88: Ⅰ．トップの価値観・行動の充実と浸透
C89: Ⅱ．マネジメントサイクルの充実と浸透
C90: Ⅲ．教育訓練の充実
C91: Ⅳ．現場管理の充実
C92: Ⅴ．職場メンバーの積極心
C93: １．経営理念（トップの価値観）
C94: ２．マネジメントシステム
C95: ３．現場重視の行動・姿勢
C96: １．PDCAの実践
C97: ２．コミュニケーションの実践
C98: １．採用・教育の充実
C99: ２．リーダー教育の充実
C100: ３．安全教育の充実
C101: １．現場コミュニケーション
C102: ２．日常管理の充実
C103: ３．現場管理施策の充実
C104: １．基本行動への意識
C105: ２．職務への意識
C106: ３．人間関係への意識
C107: 経営姿勢への共感
C108: 安全に関するコンプライアンスの浸透
C109: 経営執行の監視（コーポレートガバナンス）
C110: 継続的改善
C111: 管理者育成（人材育成）
C112: 現場情報の活用
C113: 率先垂範への共感
C114: 問題解決の意思決定
C115: 安全理念・方針の浸透
C116: 経営者による現場コミュニケーション
C117: 安全の理念・方針の理解
C118: 安全目標の設定
C119: 取り組み計画の具体化
C120: 計画の遂行度合
C121: 改善志向
C122: 見直しと次へのアクション
C123: 文書・記録の管理・活用
C124: 職場の風通し
C125: リーダーシップ
C126: 部署間コミュニケーション
C127: 部署間連携
C128: 報告・連絡・相談の環境作り
C129: 報告・連絡・相談の実践
C130: 職場環境（仕事面）
C131: 職場環境（健康面）
C132: 職場環境（精神面）
C133: 人材確保
C134: 採用への経営者の関わり
C135: 新人教育の効果
C136: 知識・技能教育（定期的教育）
C137: 現場リーダーの育成
C138: 指導員による指導の効果
C139: 事故分析と再発防止教育
C140: ﾋﾔﾘﾊｯﾄ、危険予知訓練の効果
C141: 事故・災害対応手順の見直し
C142: 親身になった指導
C143: 積極的な声かけ
C144: 朝礼の活性化
C145: 基本行動の指導
C146: 日々の報告と改善活動
C147: 生活管理・健康管理
C148: 改善意欲の醸成
C149: ミーティング（班活動等）の充実
C150: 現場ﾊﾟﾄﾛｰﾙ・立会の充実
C151: 健康
C152: あいさつ
C153: 約束
C154: 計画
C155: 報告
C156: 終業
C157: 仕事
C158: 車両・機材・施設
C159: 会議・会合
C160: 出勤
C161: 上役
C162: 先輩
C163: 職場仲間
C164: 部下
C165: 1.2点以上
C166: 1.0点以上1.2点未満
C167: 0.4点以上1.0点未満
C168: 0.4点未満
C169: KD-Ⅰ
C171: 標準誤差
C172: Ⅰ．トップの価値観・行動の充実と浸透
C173: Ⅱ．マネジメントサイクルの充実と浸透
C174: Ⅲ．教育訓練の充実
C175: Ⅳ．現場管理の充実
C176: Ⅴ．職場メンバーの積極心
C177: １．経営理念（トップの価値観）
C178: ２．マネジメントシステム
C179: ３．現場重視の行動・姿勢
C180: １．PDCAの実践
C181: ２．コミュニケーションの実践
C182: １．採用・教育の充実
C183: ２．リーダー教育の充実
C184: ３．安全教育の充実
C185: １．現場コミュニケーション
C186: ２．日常管理の充実
C187: ３．現場管理施策の充実
C188: １．基本行動への意識
C189: ２．職務への意識
C190: ３．人間関係への意識
C191: 経営姿勢への共感
C192: 安全に関するコンプライアンスの浸透
C193: 経営執行の監視（コーポレートガバナンス）
C194: 継続的改善
C195: 管理者育成（人材育成）
C196: 現場情報の活用
C197: 率先垂範への共感
C198: 問題解決の意思決定
C199: 安全理念・方針の浸透
C200: 経営者による現場コミュニケーション
C201: 安全の理念・方針の理解
C202: 安全目標の設定
C203: 取り組み計画の具体化
C204: 計画の遂行度合
... 49 more rows

Sheet グラフデータ
D1: 1
D2: =IF(D$1=0,"",OFFSET(データ!$M3,0,D$1-1)) -> 0 | E2: =IF(E$1=0,"",OFFSET(データ!$M3,0,E$1-1)) ->  | F2: =IF(F$1=0,"",OFFSET(データ!$M3,0,F$1-1)) ->  | G2: =IF(G$1=0,"",OFFSET(データ!$M3,0,G$1-1)) ->  | H2: =IF(H$1=0,"",OFFSET(データ!$M3,0,H$1-1)) ->  | I2: =IF(I$1=0,"",OFFSET(データ!$M3,0,I$1-1)) ->  | J2: =IF(J$1=0,"",OFFSET(データ!$M3,0,J$1-1)) ->  | K2: =IF(K$1=0,"",OFFSET(データ!$M3,0,K$1-1)) ->  | L2: =IF(L$1=0,"",OFFSET(データ!$M3,0,L$1-1)) ->  | M2: =IF(M$1=0,"",OFFSET(データ!$M3,0,M$1-1)) ->  | N2: =IF(N$1=0,"",OFFSET(データ!$M3,0,N$1-1)) ->  | O2: =IF(O$1=0,"",OFFSET(データ!$M3,0,O$1-1)) ->  | P2: =IF(P$1=0,"",OFFSET(データ!$M3,0,P$1-1)) ->  | Q2: =IF(Q$1=0,"",OFFSET(データ!$M3,0,Q$1-1)) ->  | R2: =IF(R$1=0,"",OFFSET(データ!$M3,0,R$1-1)) ->  | S2: =IF(S$1=0,"",OFFSET(データ!$M3,0,S$1-1)) ->  | T2: =IF(T$1=0,"",OFFSET(データ!$M3,0,T$1-1)) ->  | U2: =IF(U$1=0,"",OFFSET(データ!$M3,0,U$1-1)) ->  | V2: =IF(V$1=0,"",OFFSET(データ!$M3,0,V$1-1)) -> 
B3: 領域 | C3: Ⅰ．トップの価値観・行動の充実と浸透 | D3: =IF(D$1=0,"",OFFSET(データ!$M4,0,D$1-1)) -> 0 | E3: =IF(E$1=0,"",OFFSET(データ!$M4,0,E$1-1)) ->  | F3: =IF(F$1=0,"",OFFSET(データ!$M4,0,F$1-1)) ->  | G3: =IF(G$1=0,"",OFFSET(データ!$M4,0,G$1-1)) ->  | H3: =IF(H$1=0,"",OFFSET(データ!$M4,0,H$1-1)) ->  | I3: =IF(I$1=0,"",OFFSET(データ!$M4,0,I$1-1)) ->  | J3: =IF(J$1=0,"",OFFSET(データ!$M4,0,J$1-1)) ->  | K3: =IF(K$1=0,"",OFFSET(データ!$M4,0,K$1-1)) ->  | L3: =IF(L$1=0,"",OFFSET(データ!$M4,0,L$1-1)) ->  | M3: =IF(M$1=0,"",OFFSET(データ!$M4,0,M$1-1)) ->  | N3: =IF(N$1=0,"",OFFSET(データ!$M4,0,N$1-1)) ->  | O3: =IF(O$1=0,"",OFFSET(データ!$M4,0,O$1-1)) ->  | P3: =IF(P$1=0,"",OFFSET(データ!$M4,0,P$1-1)) ->  | Q3: =IF(Q$1=0,"",OFFSET(データ!$M4,0,Q$1-1)) ->  | R3: =IF(R$1=0,"",OFFSET(データ!$M4,0,R$1-1)) ->  | S3: =IF(S$1=0,"",OFFSET(データ!$M4,0,S$1-1)) ->  | T3: =IF(T$1=0,"",OFFSET(データ!$M4,0,T$1-1)) ->  | U3: =IF(U$1=0,"",OFFSET(データ!$M4,0,U$1-1)) ->  | V3: =IF(V$1=0,"",OFFSET(データ!$M4,0,V$1-1)) -> 
B4: 領域 | C4: Ⅱ．マネジメントサイクルの充実と浸透 | D4: =IF(D$1=0,"",OFFSET(データ!$M5,0,D$1-1)) -> 0 | E4: =IF(E$1=0,"",OFFSET(データ!$M5,0,E$1-1)) ->  | F4: =IF(F$1=0,"",OFFSET(データ!$M5,0,F$1-1)) ->  | G4: =IF(G$1=0,"",OFFSET(データ!$M5,0,G$1-1)) ->  | H4: =IF(H$1=0,"",OFFSET(データ!$M5,0,H$1-1)) ->  | I4: =IF(I$1=0,"",OFFSET(データ!$M5,0,I$1-1)) ->  | J4: =IF(J$1=0,"",OFFSET(データ!$M5,0,J$1-1)) ->  | K4: =IF(K$1=0,"",OFFSET(データ!$M5,0,K$1-1)) ->  | L4: =IF(L$1=0,"",OFFSET(データ!$M5,0,L$1-1)) ->  | M4: =IF(M$1=0,"",OFFSET(データ!$M5,0,M$1-1)) ->  | N4: =IF(N$1=0,"",OFFSET(データ!$M5,0,N$1-1)) ->  | O4: =IF(O$1=0,"",OFFSET(データ!$M5,0,O$1-1)) ->  | P4: =IF(P$1=0,"",OFFSET(データ!$M5,0,P$1-1)) ->  | Q4: =IF(Q$1=0,"",OFFSET(データ!$M5,0,Q$1-1)) ->  | R4: =IF(R$1=0,"",OFFSET(データ!$M5,0,R$1-1)) ->  | S4: =IF(S$1=0,"",OFFSET(データ!$M5,0,S$1-1)) ->  | T4: =IF(T$1=0,"",OFFSET(データ!$M5,0,T$1-1)) ->  | U4: =IF(U$1=0,"",OFFSET(データ!$M5,0,U$1-1)) ->  | V4: =IF(V$1=0,"",OFFSET(データ!$M5,0,V$1-1)) -> 
B5: 領域 | C5: Ⅲ．教育訓練の充実 | D5: =IF(D$1=0,"",OFFSET(データ!$M6,0,D$1-1)) -> 0 | E5: =IF(E$1=0,"",OFFSET(データ!$M6,0,E$1-1)) ->  | F5: =IF(F$1=0,"",OFFSET(データ!$M6,0,F$1-1)) ->  | G5: =IF(G$1=0,"",OFFSET(データ!$M6,0,G$1-1)) ->  | H5: =IF(H$1=0,"",OFFSET(データ!$M6,0,H$1-1)) ->  | I5: =IF(I$1=0,"",OFFSET(データ!$M6,0,I$1-1)) ->  | J5: =IF(J$1=0,"",OFFSET(データ!$M6,0,J$1-1)) ->  | K5: =IF(K$1=0,"",OFFSET(データ!$M6,0,K$1-1)) ->  | L5: =IF(L$1=0,"",OFFSET(データ!$M6,0,L$1-1)) ->  | M5: =IF(M$1=0,"",OFFSET(データ!$M6,0,M$1-1)) ->  | N5: =IF(N$1=0,"",OFFSET(データ!$M6,0,N$1-1)) ->  | O5: =IF(O$1=0,"",OFFSET(データ!$M6,0,O$1-1)) ->  | P5: =IF(P$1=0,"",OFFSET(データ!$M6,0,P$1-1)) ->  | Q5: =IF(Q$1=0,"",OFFSET(データ!$M6,0,Q$1-1)) ->  | R5: =IF(R$1=0,"",OFFSET(データ!$M6,0,R$1-1)) ->  | S5: =IF(S$1=0,"",OFFSET(データ!$M6,0,S$1-1)) ->  | T5: =IF(T$1=0,"",OFFSET(データ!$M6,0,T$1-1)) ->  | U5: =IF(U$1=0,"",OFFSET(データ!$M6,0,U$1-1)) ->  | V5: =IF(V$1=0,"",OFFSET(データ!$M6,0,V$1-1)) -> 
B6: 領域 | C6: Ⅳ．現場管理の充実 | D6: =IF(D$1=0,"",OFFSET(データ!$M7,0,D$1-1)) -> 0 | E6: =IF(E$1=0,"",OFFSET(データ!$M7,0,E$1-1)) ->  | F6: =IF(F$1=0,"",OFFSET(データ!$M7,0,F$1-1)) ->  | G6: =IF(G$1=0,"",OFFSET(データ!$M7,0,G$1-1)) ->  | H6: =IF(H$1=0,"",OFFSET(データ!$M7,0,H$1-1)) ->  | I6: =IF(I$1=0,"",OFFSET(データ!$M7,0,I$1-1)) ->  | J6: =IF(J$1=0,"",OFFSET(データ!$M7,0,J$1-1)) ->  | K6: =IF(K$1=0,"",OFFSET(データ!$M7,0,K$1-1)) ->  | L6: =IF(L$1=0,"",OFFSET(データ!$M7,0,L$1-1)) ->  | M6: =IF(M$1=0,"",OFFSET(データ!$M7,0,M$1-1)) ->  | N6: =IF(N$1=0,"",OFFSET(データ!$M7,0,N$1-1)) ->  | O6: =IF(O$1=0,"",OFFSET(データ!$M7,0,O$1-1)) ->  | P6: =IF(P$1=0,"",OFFSET(データ!$M7,0,P$1-1)) ->  | Q6: =IF(Q$1=0,"",OFFSET(データ!$M7,0,Q$1-1)) ->  | R6: =IF(R$1=0,"",OFFSET(データ!$M7,0,R$1-1)) ->  | S6: =IF(S$1=0,"",OFFSET(データ!$M7,0,S$1-1)) ->  | T6: =IF(T$1=0,"",OFFSET(データ!$M7,0,T$1-1)) ->  | U6: =IF(U$1=0,"",OFFSET(データ!$M7,0,U$1-1)) ->  | V6: =IF(V$1=0,"",OFFSET(データ!$M7,0,V$1-1)) -> 
B7: 領域 | C7: Ⅴ．職場メンバーの積極心 | D7: =IF(D$1=0,"",OFFSET(データ!$M8,0,D$1-1)) -> 0 | E7: =IF(E$1=0,"",OFFSET(データ!$M8,0,E$1-1)) ->  | F7: =IF(F$1=0,"",OFFSET(データ!$M8,0,F$1-1)) ->  | G7: =IF(G$1=0,"",OFFSET(データ!$M8,0,G$1-1)) ->  | H7: =IF(H$1=0,"",OFFSET(データ!$M8,0,H$1-1)) ->  | I7: =IF(I$1=0,"",OFFSET(データ!$M8,0,I$1-1)) ->  | J7: =IF(J$1=0,"",OFFSET(データ!$M8,0,J$1-1)) ->  | K7: =IF(K$1=0,"",OFFSET(データ!$M8,0,K$1-1)) ->  | L7: =IF(L$1=0,"",OFFSET(データ!$M8,0,L$1-1)) ->  | M7: =IF(M$1=0,"",OFFSET(データ!$M8,0,M$1-1)) ->  | N7: =IF(N$1=0,"",OFFSET(データ!$M8,0,N$1-1)) ->  | O7: =IF(O$1=0,"",OFFSET(データ!$M8,0,O$1-1)) ->  | P7: =IF(P$1=0,"",OFFSET(データ!$M8,0,P$1-1)) ->  | Q7: =IF(Q$1=0,"",OFFSET(データ!$M8,0,Q$1-1)) ->  | R7: =IF(R$1=0,"",OFFSET(データ!$M8,0,R$1-1)) ->  | S7: =IF(S$1=0,"",OFFSET(データ!$M8,0,S$1-1)) ->  | T7: =IF(T$1=0,"",OFFSET(データ!$M8,0,T$1-1)) ->  | U7: =IF(U$1=0,"",OFFSET(データ!$M8,0,U$1-1)) ->  | V7: =IF(V$1=0,"",OFFSET(データ!$M8,0,V$1-1)) -> 
B8: 区分 | C8: １．経営理念（トップの価値観） | D8: =IF(D$1=0,"",OFFSET(データ!$M9,0,D$1-1)) -> 0 | E8: =IF(E$1=0,"",OFFSET(データ!$M9,0,E$1-1)) ->  | F8: =IF(F$1=0,"",OFFSET(データ!$M9,0,F$1-1)) ->  | G8: =IF(G$1=0,"",OFFSET(データ!$M9,0,G$1-1)) ->  | H8: =IF(H$1=0,"",OFFSET(データ!$M9,0,H$1-1)) ->  | I8: =IF(I$1=0,"",OFFSET(データ!$M9,0,I$1-1)) ->  | J8: =IF(J$1=0,"",OFFSET(データ!$M9,0,J$1-1)) ->  | K8: =IF(K$1=0,"",OFFSET(データ!$M9,0,K$1-1)) ->  | L8: =IF(L$1=0,"",OFFSET(データ!$M9,0,L$1-1)) ->  | M8: =IF(M$1=0,"",OFFSET(データ!$M9,0,M$1-1)) ->  | N8: =IF(N$1=0,"",OFFSET(データ!$M9,0,N$1-1)) ->  | O8: =IF(O$1=0,"",OFFSET(データ!$M9,0,O$1-1)) ->  | P8: =IF(P$1=0,"",OFFSET(データ!$M9,0,P$1-1)) ->  | Q8: =IF(Q$1=0,"",OFFSET(データ!$M9,0,Q$1-1)) ->  | R8: =IF(R$1=0,"",OFFSET(データ!$M9,0,R$1-1)) ->  | S8: =IF(S$1=0,"",OFFSET(データ!$M9,0,S$1-1)) ->  | T8: =IF(T$1=0,"",OFFSET(データ!$M9,0,T$1-1)) ->  | U8: =IF(U$1=0,"",OFFSET(データ!$M9,0,U$1-1)) ->  | V8: =IF(V$1=0,"",OFFSET(データ!$M9,0,V$1-1)) -> 
B9: 区分 | C9: ２．マネジメントシステム | D9: =IF(D$1=0,"",OFFSET(データ!$M10,0,D$1-1)) -> 0 | E9: =IF(E$1=0,"",OFFSET(データ!$M10,0,E$1-1)) ->  | F9: =IF(F$1=0,"",OFFSET(データ!$M10,0,F$1-1)) ->  | G9: =IF(G$1=0,"",OFFSET(データ!$M10,0,G$1-1)) ->  | H9: =IF(H$1=0,"",OFFSET(データ!$M10,0,H$1-1)) ->  | I9: =IF(I$1=0,"",OFFSET(データ!$M10,0,I$1-1)) ->  | J9: =IF(J$1=0,"",OFFSET(データ!$M10,0,J$1-1)) ->  | K9: =IF(K$1=0,"",OFFSET(データ!$M10,0,K$1-1)) ->  | L9: =IF(L$1=0,"",OFFSET(データ!$M10,0,L$1-1)) ->  | M9: =IF(M$1=0,"",OFFSET(データ!$M10,0,M$1-1)) ->  | N9: =IF(N$1=0,"",OFFSET(データ!$M10,0,N$1-1)) ->  | O9: =IF(O$1=0,"",OFFSET(データ!$M10,0,O$1-1)) ->  | P9: =IF(P$1=0,"",OFFSET(データ!$M10,0,P$1-1)) ->  | Q9: =IF(Q$1=0,"",OFFSET(データ!$M10,0,Q$1-1)) ->  | R9: =IF(R$1=0,"",OFFSET(データ!$M10,0,R$1-1)) ->  | S9: =IF(S$1=0,"",OFFSET(データ!$M10,0,S$1-1)) ->  | T9: =IF(T$1=0,"",OFFSET(データ!$M10,0,T$1-1)) ->  | U9: =IF(U$1=0,"",OFFSET(データ!$M10,0,U$1-1)) ->  | V9: =IF(V$1=0,"",OFFSET(データ!$M10,0,V$1-1)) -> 
B10: 区分 | C10: ３．現場重視の行動・姿勢 | D10: =IF(D$1=0,"",OFFSET(データ!$M11,0,D$1-1)) -> 0 | E10: =IF(E$1=0,"",OFFSET(データ!$M11,0,E$1-1)) ->  | F10: =IF(F$1=0,"",OFFSET(データ!$M11,0,F$1-1)) ->  | G10: =IF(G$1=0,"",OFFSET(データ!$M11,0,G$1-1)) ->  | H10: =IF(H$1=0,"",OFFSET(データ!$M11,0,H$1-1)) ->  | I10: =IF(I$1=0,"",OFFSET(データ!$M11,0,I$1-1)) ->  | J10: =IF(J$1=0,"",OFFSET(データ!$M11,0,J$1-1)) ->  | K10: =IF(K$1=0,"",OFFSET(データ!$M11,0,K$1-1)) ->  | L10: =IF(L$1=0,"",OFFSET(データ!$M11,0,L$1-1)) ->  | M10: =IF(M$1=0,"",OFFSET(データ!$M11,0,M$1-1)) ->  | N10: =IF(N$1=0,"",OFFSET(データ!$M11,0,N$1-1)) ->  | O10: =IF(O$1=0,"",OFFSET(データ!$M11,0,O$1-1)) ->  | P10: =IF(P$1=0,"",OFFSET(データ!$M11,0,P$1-1)) ->  | Q10: =IF(Q$1=0,"",OFFSET(データ!$M11,0,Q$1-1)) ->  | R10: =IF(R$1=0,"",OFFSET(データ!$M11,0,R$1-1)) ->  | S10: =IF(S$1=0,"",OFFSET(データ!$M11,0,S$1-1)) ->  | T10: =IF(T$1=0,"",OFFSET(データ!$M11,0,T$1-1)) ->  | U10: =IF(U$1=0,"",OFFSET(データ!$M11,0,U$1-1)) ->  | V10: =IF(V$1=0,"",OFFSET(データ!$M11,0,V$1-1)) -> 
B11: 区分 | C11: １．PDCAの実践 | D11: =IF(D$1=0,"",OFFSET(データ!$M12,0,D$1-1)) -> 0 | E11: =IF(E$1=0,"",OFFSET(データ!$M12,0,E$1-1)) ->  | F11: =IF(F$1=0,"",OFFSET(データ!$M12,0,F$1-1)) ->  | G11: =IF(G$1=0,"",OFFSET(データ!$M12,0,G$1-1)) ->  | H11: =IF(H$1=0,"",OFFSET(データ!$M12,0,H$1-1)) ->  | I11: =IF(I$1=0,"",OFFSET(データ!$M12,0,I$1-1)) ->  | J11: =IF(J$1=0,"",OFFSET(データ!$M12,0,J$1-1)) ->  | K11: =IF(K$1=0,"",OFFSET(データ!$M12,0,K$1-1)) ->  | L11: =IF(L$1=0,"",OFFSET(データ!$M12,0,L$1-1)) ->  | M11: =IF(M$1=0,"",OFFSET(データ!$M12,0,M$1-1)) ->  | N11: =IF(N$1=0,"",OFFSET(データ!$M12,0,N$1-1)) ->  | O11: =IF(O$1=0,"",OFFSET(データ!$M12,0,O$1-1)) ->  | P11: =IF(P$1=0,"",OFFSET(データ!$M12,0,P$1-1)) ->  | Q11: =IF(Q$1=0,"",OFFSET(データ!$M12,0,Q$1-1)) ->  | R11: =IF(R$1=0,"",OFFSET(データ!$M12,0,R$1-1)) ->  | S11: =IF(S$1=0,"",OFFSET(データ!$M12,0,S$1-1)) ->  | T11: =IF(T$1=0,"",OFFSET(データ!$M12,0,T$1-1)) ->  | U11: =IF(U$1=0,"",OFFSET(データ!$M12,0,U$1-1)) ->  | V11: =IF(V$1=0,"",OFFSET(データ!$M12,0,V$1-1)) -> 
B12: 区分 | C12: ２．コミュニケーションの実践 | D12: =IF(D$1=0,"",OFFSET(データ!$M13,0,D$1-1)) -> 0 | E12: =IF(E$1=0,"",OFFSET(データ!$M13,0,E$1-1)) ->  | F12: =IF(F$1=0,"",OFFSET(データ!$M13,0,F$1-1)) ->  | G12: =IF(G$1=0,"",OFFSET(データ!$M13,0,G$1-1)) ->  | H12: =IF(H$1=0,"",OFFSET(データ!$M13,0,H$1-1)) ->  | I12: =IF(I$1=0,"",OFFSET(データ!$M13,0,I$1-1)) ->  | J12: =IF(J$1=0,"",OFFSET(データ!$M13,0,J$1-1)) ->  | K12: =IF(K$1=0,"",OFFSET(データ!$M13,0,K$1-1)) ->  | L12: =IF(L$1=0,"",OFFSET(データ!$M13,0,L$1-1)) ->  | M12: =IF(M$1=0,"",OFFSET(データ!$M13,0,M$1-1)) ->  | N12: =IF(N$1=0,"",OFFSET(データ!$M13,0,N$1-1)) ->  | O12: =IF(O$1=0,"",OFFSET(データ!$M13,0,O$1-1)) ->  | P12: =IF(P$1=0,"",OFFSET(データ!$M13,0,P$1-1)) ->  | Q12: =IF(Q$1=0,"",OFFSET(データ!$M13,0,Q$1-1)) ->  | R12: =IF(R$1=0,"",OFFSET(データ!$M13,0,R$1-1)) ->  | S12: =IF(S$1=0,"",OFFSET(データ!$M13,0,S$1-1)) ->  | T12: =IF(T$1=0,"",OFFSET(データ!$M13,0,T$1-1)) ->  | U12: =IF(U$1=0,"",OFFSET(データ!$M13,0,U$1-1)) ->  | V12: =IF(V$1=0,"",OFFSET(データ!$M13,0,V$1-1)) -> 
B13: 区分 | C13: １．採用・教育の充実 | D13: =IF(D$1=0,"",OFFSET(データ!$M14,0,D$1-1)) -> 0 | E13: =IF(E$1=0,"",OFFSET(データ!$M14,0,E$1-1)) ->  | F13: =IF(F$1=0,"",OFFSET(データ!$M14,0,F$1-1)) ->  | G13: =IF(G$1=0,"",OFFSET(データ!$M14,0,G$1-1)) ->  | H13: =IF(H$1=0,"",OFFSET(データ!$M14,0,H$1-1)) ->  | I13: =IF(I$1=0,"",OFFSET(データ!$M14,0,I$1-1)) ->  | J13: =IF(J$1=0,"",OFFSET(データ!$M14,0,J$1-1)) ->  | K13: =IF(K$1=0,"",OFFSET(データ!$M14,0,K$1-1)) ->  | L13: =IF(L$1=0,"",OFFSET(データ!$M14,0,L$1-1)) ->  | M13: =IF(M$1=0,"",OFFSET(データ!$M14,0,M$1-1)) ->  | N13: =IF(N$1=0,"",OFFSET(データ!$M14,0,N$1-1)) ->  | O13: =IF(O$1=0,"",OFFSET(データ!$M14,0,O$1-1)) ->  | P13: =IF(P$1=0,"",OFFSET(データ!$M14,0,P$1-1)) ->  | Q13: =IF(Q$1=0,"",OFFSET(データ!$M14,0,Q$1-1)) ->  | R13: =IF(R$1=0,"",OFFSET(データ!$M14,0,R$1-1)) ->  | S13: =IF(S$1=0,"",OFFSET(データ!$M14,0,S$1-1)) ->  | T13: =IF(T$1=0,"",OFFSET(データ!$M14,0,T$1-1)) ->  | U13: =IF(U$1=0,"",OFFSET(データ!$M14,0,U$1-1)) ->  | V13: =IF(V$1=0,"",OFFSET(データ!$M14,0,V$1-1)) -> 
B14: 区分 | C14: ２．リーダー教育の充実 | D14: =IF(D$1=0,"",OFFSET(データ!$M15,0,D$1-1)) -> 0 | E14: =IF(E$1=0,"",OFFSET(データ!$M15,0,E$1-1)) ->  | F14: =IF(F$1=0,"",OFFSET(データ!$M15,0,F$1-1)) ->  | G14: =IF(G$1=0,"",OFFSET(データ!$M15,0,G$1-1)) ->  | H14: =IF(H$1=0,"",OFFSET(データ!$M15,0,H$1-1)) ->  | I14: =IF(I$1=0,"",OFFSET(データ!$M15,0,I$1-1)) ->  | J14: =IF(J$1=0,"",OFFSET(データ!$M15,0,J$1-1)) ->  | K14: =IF(K$1=0,"",OFFSET(データ!$M15,0,K$1-1)) ->  | L14: =IF(L$1=0,"",OFFSET(データ!$M15,0,L$1-1)) ->  | M14: =IF(M$1=0,"",OFFSET(データ!$M15,0,M$1-1)) ->  | N14: =IF(N$1=0,"",OFFSET(データ!$M15,0,N$1-1)) ->  | O14: =IF(O$1=0,"",OFFSET(データ!$M15,0,O$1-1)) ->  | P14: =IF(P$1=0,"",OFFSET(データ!$M15,0,P$1-1)) ->  | Q14: =IF(Q$1=0,"",OFFSET(データ!$M15,0,Q$1-1)) ->  | R14: =IF(R$1=0,"",OFFSET(データ!$M15,0,R$1-1)) ->  | S14: =IF(S$1=0,"",OFFSET(データ!$M15,0,S$1-1)) ->  | T14: =IF(T$1=0,"",OFFSET(データ!$M15,0,T$1-1)) ->  | U14: =IF(U$1=0,"",OFFSET(データ!$M15,0,U$1-1)) ->  | V14: =IF(V$1=0,"",OFFSET(データ!$M15,0,V$1-1)) -> 
B15: 区分 | C15: ３．安全教育の充実 | D15: =IF(D$1=0,"",OFFSET(データ!$M16,0,D$1-1)) -> 0 | E15: =IF(E$1=0,"",OFFSET(データ!$M16,0,E$1-1)) ->  | F15: =IF(F$1=0,"",OFFSET(データ!$M16,0,F$1-1)) ->  | G15: =IF(G$1=0,"",OFFSET(データ!$M16,0,G$1-1)) ->  | H15: =IF(H$1=0,"",OFFSET(データ!$M16,0,H$1-1)) ->  | I15: =IF(I$1=0,"",OFFSET(データ!$M16,0,I$1-1)) ->  | J15: =IF(J$1=0,"",OFFSET(データ!$M16,0,J$1-1)) ->  | K15: =IF(K$1=0,"",OFFSET(データ!$M16,0,K$1-1)) ->  | L15: =IF(L$1=0,"",OFFSET(データ!$M16,0,L$1-1)) ->  | M15: =IF(M$1=0,"",OFFSET(データ!$M16,0,M$1-1)) ->  | N15: =IF(N$1=0,"",OFFSET(データ!$M16,0,N$1-1)) ->  | O15: =IF(O$1=0,"",OFFSET(データ!$M16,0,O$1-1)) ->  | P15: =IF(P$1=0,"",OFFSET(データ!$M16,0,P$1-1)) ->  | Q15: =IF(Q$1=0,"",OFFSET(データ!$M16,0,Q$1-1)) ->  | R15: =IF(R$1=0,"",OFFSET(データ!$M16,0,R$1-1)) ->  | S15: =IF(S$1=0,"",OFFSET(データ!$M16,0,S$1-1)) ->  | T15: =IF(T$1=0,"",OFFSET(データ!$M16,0,T$1-1)) ->  | U15: =IF(U$1=0,"",OFFSET(データ!$M16,0,U$1-1)) ->  | V15: =IF(V$1=0,"",OFFSET(データ!$M16,0,V$1-1)) -> 
B16: 区分 | C16: １．現場コミュニケーション | D16: =IF(D$1=0,"",OFFSET(データ!$M17,0,D$1-1)) -> 0 | E16: =IF(E$1=0,"",OFFSET(データ!$M17,0,E$1-1)) ->  | F16: =IF(F$1=0,"",OFFSET(データ!$M17,0,F$1-1)) ->  | G16: =IF(G$1=0,"",OFFSET(データ!$M17,0,G$1-1)) ->  | H16: =IF(H$1=0,"",OFFSET(データ!$M17,0,H$1-1)) ->  | I16: =IF(I$1=0,"",OFFSET(データ!$M17,0,I$1-1)) ->  | J16: =IF(J$1=0,"",OFFSET(データ!$M17,0,J$1-1)) ->  | K16: =IF(K$1=0,"",OFFSET(データ!$M17,0,K$1-1)) ->  | L16: =IF(L$1=0,"",OFFSET(データ!$M17,0,L$1-1)) ->  | M16: =IF(M$1=0,"",OFFSET(データ!$M17,0,M$1-1)) ->  | N16: =IF(N$1=0,"",OFFSET(データ!$M17,0,N$1-1)) ->  | O16: =IF(O$1=0,"",OFFSET(データ!$M17,0,O$1-1)) ->  | P16: =IF(P$1=0,"",OFFSET(データ!$M17,0,P$1-1)) ->  | Q16: =IF(Q$1=0,"",OFFSET(データ!$M17,0,Q$1-1)) ->  | R16: =IF(R$1=0,"",OFFSET(データ!$M17,0,R$1-1)) ->  | S16: =IF(S$1=0,"",OFFSET(データ!$M17,0,S$1-1)) ->  | T16: =IF(T$1=0,"",OFFSET(データ!$M17,0,T$1-1)) ->  | U16: =IF(U$1=0,"",OFFSET(データ!$M17,0,U$1-1)) ->  | V16: =IF(V$1=0,"",OFFSET(データ!$M17,0,V$1-1)) -> 
B17: 区分 | C17: ２．日常管理の充実 | D17: =IF(D$1=0,"",OFFSET(データ!$M18,0,D$1-1)) -> 0 | E17: =IF(E$1=0,"",OFFSET(データ!$M18,0,E$1-1)) ->  | F17: =IF(F$1=0,"",OFFSET(データ!$M18,0,F$1-1)) ->  | G17: =IF(G$1=0,"",OFFSET(データ!$M18,0,G$1-1)) ->  | H17: =IF(H$1=0,"",OFFSET(データ!$M18,0,H$1-1)) ->  | I17: =IF(I$1=0,"",OFFSET(データ!$M18,0,I$1-1)) ->  | J17: =IF(J$1=0,"",OFFSET(データ!$M18,0,J$1-1)) ->  | K17: =IF(K$1=0,"",OFFSET(データ!$M18,0,K$1-1)) ->  | L17: =IF(L$1=0,"",OFFSET(データ!$M18,0,L$1-1)) ->  | M17: =IF(M$1=0,"",OFFSET(データ!$M18,0,M$1-1)) ->  | N17: =IF(N$1=0,"",OFFSET(データ!$M18,0,N$1-1)) ->  | O17: =IF(O$1=0,"",OFFSET(データ!$M18,0,O$1-1)) ->  | P17: =IF(P$1=0,"",OFFSET(データ!$M18,0,P$1-1)) ->  | Q17: =IF(Q$1=0,"",OFFSET(データ!$M18,0,Q$1-1)) ->  | R17: =IF(R$1=0,"",OFFSET(データ!$M18,0,R$1-1)) ->  | S17: =IF(S$1=0,"",OFFSET(データ!$M18,0,S$1-1)) ->  | T17: =IF(T$1=0,"",OFFSET(データ!$M18,0,T$1-1)) ->  | U17: =IF(U$1=0,"",OFFSET(データ!$M18,0,U$1-1)) ->  | V17: =IF(V$1=0,"",OFFSET(データ!$M18,0,V$1-1)) -> 
B18: 区分 | C18: ３．現場管理施策の充実 | D18: =IF(D$1=0,"",OFFSET(データ!$M19,0,D$1-1)) -> 0 | E18: =IF(E$1=0,"",OFFSET(データ!$M19,0,E$1-1)) ->  | F18: =IF(F$1=0,"",OFFSET(データ!$M19,0,F$1-1)) ->  | G18: =IF(G$1=0,"",OFFSET(データ!$M19,0,G$1-1)) ->  | H18: =IF(H$1=0,"",OFFSET(データ!$M19,0,H$1-1)) ->  | I18: =IF(I$1=0,"",OFFSET(データ!$M19,0,I$1-1)) ->  | J18: =IF(J$1=0,"",OFFSET(データ!$M19,0,J$1-1)) ->  | K18: =IF(K$1=0,"",OFFSET(データ!$M19,0,K$1-1)) ->  | L18: =IF(L$1=0,"",OFFSET(データ!$M19,0,L$1-1)) ->  | M18: =IF(M$1=0,"",OFFSET(データ!$M19,0,M$1-1)) ->  | N18: =IF(N$1=0,"",OFFSET(データ!$M19,0,N$1-1)) ->  | O18: =IF(O$1=0,"",OFFSET(データ!$M19,0,O$1-1)) ->  | P18: =IF(P$1=0,"",OFFSET(データ!$M19,0,P$1-1)) ->  | Q18: =IF(Q$1=0,"",OFFSET(データ!$M19,0,Q$1-1)) ->  | R18: =IF(R$1=0,"",OFFSET(データ!$M19,0,R$1-1)) ->  | S18: =IF(S$1=0,"",OFFSET(データ!$M19,0,S$1-1)) ->  | T18: =IF(T$1=0,"",OFFSET(データ!$M19,0,T$1-1)) ->  | U18: =IF(U$1=0,"",OFFSET(データ!$M19,0,U$1-1)) ->  | V18: =IF(V$1=0,"",OFFSET(データ!$M19,0,V$1-1)) -> 
B19: 区分 | C19: １．基本行動への意識 | D19: =IF(D$1=0,"",OFFSET(データ!$M20,0,D$1-1)) -> 0 | E19: =IF(E$1=0,"",OFFSET(データ!$M20,0,E$1-1)) ->  | F19: =IF(F$1=0,"",OFFSET(データ!$M20,0,F$1-1)) ->  | G19: =IF(G$1=0,"",OFFSET(データ!$M20,0,G$1-1)) ->  | H19: =IF(H$1=0,"",OFFSET(データ!$M20,0,H$1-1)) ->  | I19: =IF(I$1=0,"",OFFSET(データ!$M20,0,I$1-1)) ->  | J19: =IF(J$1=0,"",OFFSET(データ!$M20,0,J$1-1)) ->  | K19: =IF(K$1=0,"",OFFSET(データ!$M20,0,K$1-1)) ->  | L19: =IF(L$1=0,"",OFFSET(データ!$M20,0,L$1-1)) ->  | M19: =IF(M$1=0,"",OFFSET(データ!$M20,0,M$1-1)) ->  | N19: =IF(N$1=0,"",OFFSET(データ!$M20,0,N$1-1)) ->  | O19: =IF(O$1=0,"",OFFSET(データ!$M20,0,O$1-1)) ->  | P19: =IF(P$1=0,"",OFFSET(データ!$M20,0,P$1-1)) ->  | Q19: =IF(Q$1=0,"",OFFSET(データ!$M20,0,Q$1-1)) ->  | R19: =IF(R$1=0,"",OFFSET(データ!$M20,0,R$1-1)) ->  | S19: =IF(S$1=0,"",OFFSET(データ!$M20,0,S$1-1)) ->  | T19: =IF(T$1=0,"",OFFSET(データ!$M20,0,T$1-1)) ->  | U19: =IF(U$1=0,"",OFFSET(データ!$M20,0,U$1-1)) ->  | V19: =IF(V$1=0,"",OFFSET(データ!$M20,0,V$1-1)) -> 
B20: 区分 | C20: ２．職務への意識 | D20: =IF(D$1=0,"",OFFSET(データ!$M21,0,D$1-1)) -> 0 | E20: =IF(E$1=0,"",OFFSET(データ!$M21,0,E$1-1)) ->  | F20: =IF(F$1=0,"",OFFSET(データ!$M21,0,F$1-1)) ->  | G20: =IF(G$1=0,"",OFFSET(データ!$M21,0,G$1-1)) ->  | H20: =IF(H$1=0,"",OFFSET(データ!$M21,0,H$1-1)) ->  | I20: =IF(I$1=0,"",OFFSET(データ!$M21,0,I$1-1)) ->  | J20: =IF(J$1=0,"",OFFSET(データ!$M21,0,J$1-1)) ->  | K20: =IF(K$1=0,"",OFFSET(データ!$M21,0,K$1-1)) ->  | L20: =IF(L$1=0,"",OFFSET(データ!$M21,0,L$1-1)) ->  | M20: =IF(M$1=0,"",OFFSET(データ!$M21,0,M$1-1)) ->  | N20: =IF(N$1=0,"",OFFSET(データ!$M21,0,N$1-1)) ->  | O20: =IF(O$1=0,"",OFFSET(データ!$M21,0,O$1-1)) ->  | P20: =IF(P$1=0,"",OFFSET(データ!$M21,0,P$1-1)) ->  | Q20: =IF(Q$1=0,"",OFFSET(データ!$M21,0,Q$1-1)) ->  | R20: =IF(R$1=0,"",OFFSET(データ!$M21,0,R$1-1)) ->  | S20: =IF(S$1=0,"",OFFSET(データ!$M21,0,S$1-1)) ->  | T20: =IF(T$1=0,"",OFFSET(データ!$M21,0,T$1-1)) ->  | U20: =IF(U$1=0,"",OFFSET(データ!$M21,0,U$1-1)) ->  | V20: =IF(V$1=0,"",OFFSET(データ!$M21,0,V$1-1)) -> 
B21: 区分 | C21: ３．人間関係への意識 | D21: =IF(D$1=0,"",OFFSET(データ!$M22,0,D$1-1)) -> 0 | E21: =IF(E$1=0,"",OFFSET(データ!$M22,0,E$1-1)) ->  | F21: =IF(F$1=0,"",OFFSET(データ!$M22,0,F$1-1)) ->  | G21: =IF(G$1=0,"",OFFSET(データ!$M22,0,G$1-1)) ->  | H21: =IF(H$1=0,"",OFFSET(データ!$M22,0,H$1-1)) ->  | I21: =IF(I$1=0,"",OFFSET(データ!$M22,0,I$1-1)) ->  | J21: =IF(J$1=0,"",OFFSET(データ!$M22,0,J$1-1)) ->  | K21: =IF(K$1=0,"",OFFSET(データ!$M22,0,K$1-1)) ->  | L21: =IF(L$1=0,"",OFFSET(データ!$M22,0,L$1-1)) ->  | M21: =IF(M$1=0,"",OFFSET(データ!$M22,0,M$1-1)) ->  | N21: =IF(N$1=0,"",OFFSET(データ!$M22,0,N$1-1)) ->  | O21: =IF(O$1=0,"",OFFSET(データ!$M22,0,O$1-1)) ->  | P21: =IF(P$1=0,"",OFFSET(データ!$M22,0,P$1-1)) ->  | Q21: =IF(Q$1=0,"",OFFSET(データ!$M22,0,Q$1-1)) ->  | R21: =IF(R$1=0,"",OFFSET(データ!$M22,0,R$1-1)) ->  | S21: =IF(S$1=0,"",OFFSET(データ!$M22,0,S$1-1)) ->  | T21: =IF(T$1=0,"",OFFSET(データ!$M22,0,T$1-1)) ->  | U21: =IF(U$1=0,"",OFFSET(データ!$M22,0,U$1-1)) ->  | V21: =IF(V$1=0,"",OFFSET(データ!$M22,0,V$1-1)) -> 
B22: 項目 | C22: 経営姿勢への共感 | D22: =IF(D$1=0,"",OFFSET(データ!$M23,0,D$1-1)) -> 0 | E22: =IF(E$1=0,"",OFFSET(データ!$M23,0,E$1-1)) ->  | F22: =IF(F$1=0,"",OFFSET(データ!$M23,0,F$1-1)) ->  | G22: =IF(G$1=0,"",OFFSET(データ!$M23,0,G$1-1)) ->  | H22: =IF(H$1=0,"",OFFSET(データ!$M23,0,H$1-1)) ->  | I22: =IF(I$1=0,"",OFFSET(データ!$M23,0,I$1-1)) ->  | J22: =IF(J$1=0,"",OFFSET(データ!$M23,0,J$1-1)) ->  | K22: =IF(K$1=0,"",OFFSET(データ!$M23,0,K$1-1)) ->  | L22: =IF(L$1=0,"",OFFSET(データ!$M23,0,L$1-1)) ->  | M22: =IF(M$1=0,"",OFFSET(データ!$M23,0,M$1-1)) ->  | N22: =IF(N$1=0,"",OFFSET(データ!$M23,0,N$1-1)) ->  | O22: =IF(O$1=0,"",OFFSET(データ!$M23,0,O$1-1)) ->  | P22: =IF(P$1=0,"",OFFSET(データ!$M23,0,P$1-1)) ->  | Q22: =IF(Q$1=0,"",OFFSET(データ!$M23,0,Q$1-1)) ->  | R22: =IF(R$1=0,"",OFFSET(データ!$M23,0,R$1-1)) ->  | S22: =IF(S$1=0,"",OFFSET(データ!$M23,0,S$1-1)) ->  | T22: =IF(T$1=0,"",OFFSET(データ!$M23,0,T$1-1)) ->  | U22: =IF(U$1=0,"",OFFSET(データ!$M23,0,U$1-1)) ->  | V22: =IF(V$1=0,"",OFFSET(データ!$M23,0,V$1-1)) -> 
B23: 項目 | C23: 安全に関するコンプライアンスの浸透 | D23: =IF(D$1=0,"",OFFSET(データ!$M24,0,D$1-1)) -> 0 | E23: =IF(E$1=0,"",OFFSET(データ!$M24,0,E$1-1)) ->  | F23: =IF(F$1=0,"",OFFSET(データ!$M24,0,F$1-1)) ->  | G23: =IF(G$1=0,"",OFFSET(データ!$M24,0,G$1-1)) ->  | H23: =IF(H$1=0,"",OFFSET(データ!$M24,0,H$1-1)) ->  | I23: =IF(I$1=0,"",OFFSET(データ!$M24,0,I$1-1)) ->  | J23: =IF(J$1=0,"",OFFSET(データ!$M24,0,J$1-1)) ->  | K23: =IF(K$1=0,"",OFFSET(データ!$M24,0,K$1-1)) ->  | L23: =IF(L$1=0,"",OFFSET(データ!$M24,0,L$1-1)) ->  | M23: =IF(M$1=0,"",OFFSET(データ!$M24,0,M$1-1)) ->  | N23: =IF(N$1=0,"",OFFSET(データ!$M24,0,N$1-1)) ->  | O23: =IF(O$1=0,"",OFFSET(データ!$M24,0,O$1-1)) ->  | P23: =IF(P$1=0,"",OFFSET(データ!$M24,0,P$1-1)) ->  | Q23: =IF(Q$1=0,"",OFFSET(データ!$M24,0,Q$1-1)) ->  | R23: =IF(R$1=0,"",OFFSET(データ!$M24,0,R$1-1)) ->  | S23: =IF(S$1=0,"",OFFSET(データ!$M24,0,S$1-1)) ->  | T23: =IF(T$1=0,"",OFFSET(データ!$M24,0,T$1-1)) ->  | U23: =IF(U$1=0,"",OFFSET(データ!$M24,0,U$1-1)) ->  | V23: =IF(V$1=0,"",OFFSET(データ!$M24,0,V$1-1)) -> 
B24: 項目 | C24: 経営執行の監視（コーポレートガバナンス） | D24: =IF(D$1=0,"",OFFSET(データ!$M25,0,D$1-1)) -> 0 | E24: =IF(E$1=0,"",OFFSET(データ!$M25,0,E$1-1)) ->  | F24: =IF(F$1=0,"",OFFSET(データ!$M25,0,F$1-1)) ->  | G24: =IF(G$1=0,"",OFFSET(データ!$M25,0,G$1-1)) ->  | H24: =IF(H$1=0,"",OFFSET(データ!$M25,0,H$1-1)) ->  | I24: =IF(I$1=0,"",OFFSET(データ!$M25,0,I$1-1)) ->  | J24: =IF(J$1=0,"",OFFSET(データ!$M25,0,J$1-1)) ->  | K24: =IF(K$1=0,"",OFFSET(データ!$M25,0,K$1-1)) ->  | L24: =IF(L$1=0,"",OFFSET(データ!$M25,0,L$1-1)) ->  | M24: =IF(M$1=0,"",OFFSET(データ!$M25,0,M$1-1)) ->  | N24: =IF(N$1=0,"",OFFSET(データ!$M25,0,N$1-1)) ->  | O24: =IF(O$1=0,"",OFFSET(データ!$M25,0,O$1-1)) ->  | P24: =IF(P$1=0,"",OFFSET(データ!$M25,0,P$1-1)) ->  | Q24: =IF(Q$1=0,"",OFFSET(データ!$M25,0,Q$1-1)) ->  | R24: =IF(R$1=0,"",OFFSET(データ!$M25,0,R$1-1)) ->  | S24: =IF(S$1=0,"",OFFSET(データ!$M25,0,S$1-1)) ->  | T24: =IF(T$1=0,"",OFFSET(データ!$M25,0,T$1-1)) ->  | U24: =IF(U$1=0,"",OFFSET(データ!$M25,0,U$1-1)) ->  | V24: =IF(V$1=0,"",OFFSET(データ!$M25,0,V$1-1)) -> 
B25: 項目 | C25: 継続的改善 | D25: =IF(D$1=0,"",OFFSET(データ!$M26,0,D$1-1)) -> 0 | E25: =IF(E$1=0,"",OFFSET(データ!$M26,0,E$1-1)) ->  | F25: =IF(F$1=0,"",OFFSET(データ!$M26,0,F$1-1)) ->  | G25: =IF(G$1=0,"",OFFSET(データ!$M26,0,G$1-1)) ->  | H25: =IF(H$1=0,"",OFFSET(データ!$M26,0,H$1-1)) ->  | I25: =IF(I$1=0,"",OFFSET(データ!$M26,0,I$1-1)) ->  | J25: =IF(J$1=0,"",OFFSET(データ!$M26,0,J$1-1)) ->  | K25: =IF(K$1=0,"",OFFSET(データ!$M26,0,K$1-1)) ->  | L25: =IF(L$1=0,"",OFFSET(データ!$M26,0,L$1-1)) ->  | M25: =IF(M$1=0,"",OFFSET(データ!$M26,0,M$1-1)) ->  | N25: =IF(N$1=0,"",OFFSET(データ!$M26,0,N$1-1)) ->  | O25: =IF(O$1=0,"",OFFSET(データ!$M26,0,O$1-1)) ->  | P25: =IF(P$1=0,"",OFFSET(データ!$M26,0,P$1-1)) ->  | Q25: =IF(Q$1=0,"",OFFSET(データ!$M26,0,Q$1-1)) ->  | R25: =IF(R$1=0,"",OFFSET(データ!$M26,0,R$1-1)) ->  | S25: =IF(S$1=0,"",OFFSET(データ!$M26,0,S$1-1)) ->  | T25: =IF(T$1=0,"",OFFSET(データ!$M26,0,T$1-1)) ->  | U25: =IF(U$1=0,"",OFFSET(データ!$M26,0,U$1-1)) ->  | V25: =IF(V$1=0,"",OFFSET(データ!$M26,0,V$1-1)) -> 
B26: 項目 | C26: 管理者育成（人材育成） | D26: =IF(D$1=0,"",OFFSET(データ!$M27,0,D$1-1)) -> 0 | E26: =IF(E$1=0,"",OFFSET(データ!$M27,0,E$1-1)) ->  | F26: =IF(F$1=0,"",OFFSET(データ!$M27,0,F$1-1)) ->  | G26: =IF(G$1=0,"",OFFSET(データ!$M27,0,G$1-1)) ->  | H26: =IF(H$1=0,"",OFFSET(データ!$M27,0,H$1-1)) ->  | I26: =IF(I$1=0,"",OFFSET(データ!$M27,0,I$1-1)) ->  | J26: =IF(J$1=0,"",OFFSET(データ!$M27,0,J$1-1)) ->  | K26: =IF(K$1=0,"",OFFSET(データ!$M27,0,K$1-1)) ->  | L26: =IF(L$1=0,"",OFFSET(データ!$M27,0,L$1-1)) ->  | M26: =IF(M$1=0,"",OFFSET(データ!$M27,0,M$1-1)) ->  | N26: =IF(N$1=0,"",OFFSET(データ!$M27,0,N$1-1)) ->  | O26: =IF(O$1=0,"",OFFSET(データ!$M27,0,O$1-1)) ->  | P26: =IF(P$1=0,"",OFFSET(データ!$M27,0,P$1-1)) ->  | Q26: =IF(Q$1=0,"",OFFSET(データ!$M27,0,Q$1-1)) ->  | R26: =IF(R$1=0,"",OFFSET(データ!$M27,0,R$1-1)) ->  | S26: =IF(S$1=0,"",OFFSET(データ!$M27,0,S$1-1)) ->  | T26: =IF(T$1=0,"",OFFSET(データ!$M27,0,T$1-1)) ->  | U26: =IF(U$1=0,"",OFFSET(データ!$M27,0,U$1-1)) ->  | V26: =IF(V$1=0,"",OFFSET(データ!$M27,0,V$1-1)) -> 
B27: 項目 | C27: 現場情報の活用 | D27: =IF(D$1=0,"",OFFSET(データ!$M28,0,D$1-1)) -> 0 | E27: =IF(E$1=0,"",OFFSET(データ!$M28,0,E$1-1)) ->  | F27: =IF(F$1=0,"",OFFSET(データ!$M28,0,F$1-1)) ->  | G27: =IF(G$1=0,"",OFFSET(データ!$M28,0,G$1-1)) ->  | H27: =IF(H$1=0,"",OFFSET(データ!$M28,0,H$1-1)) ->  | I27: =IF(I$1=0,"",OFFSET(データ!$M28,0,I$1-1)) ->  | J27: =IF(J$1=0,"",OFFSET(データ!$M28,0,J$1-1)) ->  | K27: =IF(K$1=0,"",OFFSET(データ!$M28,0,K$1-1)) ->  | L27: =IF(L$1=0,"",OFFSET(データ!$M28,0,L$1-1)) ->  | M27: =IF(M$1=0,"",OFFSET(データ!$M28,0,M$1-1)) ->  | N27: =IF(N$1=0,"",OFFSET(データ!$M28,0,N$1-1)) ->  | O27: =IF(O$1=0,"",OFFSET(データ!$M28,0,O$1-1)) ->  | P27: =IF(P$1=0,"",OFFSET(データ!$M28,0,P$1-1)) ->  | Q27: =IF(Q$1=0,"",OFFSET(データ!$M28,0,Q$1-1)) ->  | R27: =IF(R$1=0,"",OFFSET(データ!$M28,0,R$1-1)) ->  | S27: =IF(S$1=0,"",OFFSET(データ!$M28,0,S$1-1)) ->  | T27: =IF(T$1=0,"",OFFSET(データ!$M28,0,T$1-1)) ->  | U27: =IF(U$1=0,"",OFFSET(データ!$M28,0,U$1-1)) ->  | V27: =IF(V$1=0,"",OFFSET(データ!$M28,0,V$1-1)) -> 
B28: 項目 | C28: 率先垂範への共感 | D28: =IF(D$1=0,"",OFFSET(データ!$M29,0,D$1-1)) -> 0 | E28: =IF(E$1=0,"",OFFSET(データ!$M29,0,E$1-1)) ->  | F28: =IF(F$1=0,"",OFFSET(データ!$M29,0,F$1-1)) ->  | G28: =IF(G$1=0,"",OFFSET(データ!$M29,0,G$1-1)) ->  | H28: =IF(H$1=0,"",OFFSET(データ!$M29,0,H$1-1)) ->  | I28: =IF(I$1=0,"",OFFSET(データ!$M29,0,I$1-1)) ->  | J28: =IF(J$1=0,"",OFFSET(データ!$M29,0,J$1-1)) ->  | K28: =IF(K$1=0,"",OFFSET(データ!$M29,0,K$1-1)) ->  | L28: =IF(L$1=0,"",OFFSET(データ!$M29,0,L$1-1)) ->  | M28: =IF(M$1=0,"",OFFSET(データ!$M29,0,M$1-1)) ->  | N28: =IF(N$1=0,"",OFFSET(データ!$M29,0,N$1-1)) ->  | O28: =IF(O$1=0,"",OFFSET(データ!$M29,0,O$1-1)) ->  | P28: =IF(P$1=0,"",OFFSET(データ!$M29,0,P$1-1)) ->  | Q28: =IF(Q$1=0,"",OFFSET(データ!$M29,0,Q$1-1)) ->  | R28: =IF(R$1=0,"",OFFSET(データ!$M29,0,R$1-1)) ->  | S28: =IF(S$1=0,"",OFFSET(データ!$M29,0,S$1-1)) ->  | T28: =IF(T$1=0,"",OFFSET(データ!$M29,0,T$1-1)) ->  | U28: =IF(U$1=0,"",OFFSET(データ!$M29,0,U$1-1)) ->  | V28: =IF(V$1=0,"",OFFSET(データ!$M29,0,V$1-1)) -> 
B29: 項目 | C29: 問題解決の意思決定 | D29: =IF(D$1=0,"",OFFSET(データ!$M30,0,D$1-1)) -> 0 | E29: =IF(E$1=0,"",OFFSET(データ!$M30,0,E$1-1)) ->  | F29: =IF(F$1=0,"",OFFSET(データ!$M30,0,F$1-1)) ->  | G29: =IF(G$1=0,"",OFFSET(データ!$M30,0,G$1-1)) ->  | H29: =IF(H$1=0,"",OFFSET(データ!$M30,0,H$1-1)) ->  | I29: =IF(I$1=0,"",OFFSET(データ!$M30,0,I$1-1)) ->  | J29: =IF(J$1=0,"",OFFSET(データ!$M30,0,J$1-1)) ->  | K29: =IF(K$1=0,"",OFFSET(データ!$M30,0,K$1-1)) ->  | L29: =IF(L$1=0,"",OFFSET(データ!$M30,0,L$1-1)) ->  | M29: =IF(M$1=0,"",OFFSET(データ!$M30,0,M$1-1)) ->  | N29: =IF(N$1=0,"",OFFSET(データ!$M30,0,N$1-1)) ->  | O29: =IF(O$1=0,"",OFFSET(データ!$M30,0,O$1-1)) ->  | P29: =IF(P$1=0,"",OFFSET(データ!$M30,0,P$1-1)) ->  | Q29: =IF(Q$1=0,"",OFFSET(データ!$M30,0,Q$1-1)) ->  | R29: =IF(R$1=0,"",OFFSET(データ!$M30,0,R$1-1)) ->  | S29: =IF(S$1=0,"",OFFSET(データ!$M30,0,S$1-1)) ->  | T29: =IF(T$1=0,"",OFFSET(データ!$M30,0,T$1-1)) ->  | U29: =IF(U$1=0,"",OFFSET(データ!$M30,0,U$1-1)) ->  | V29: =IF(V$1=0,"",OFFSET(データ!$M30,0,V$1-1)) -> 
B30: 項目 | C30: 安全理念・方針の浸透 | D30: =IF(D$1=0,"",OFFSET(データ!$M31,0,D$1-1)) -> 0 | E30: =IF(E$1=0,"",OFFSET(データ!$M31,0,E$1-1)) ->  | F30: =IF(F$1=0,"",OFFSET(データ!$M31,0,F$1-1)) ->  | G30: =IF(G$1=0,"",OFFSET(データ!$M31,0,G$1-1)) ->  | H30: =IF(H$1=0,"",OFFSET(データ!$M31,0,H$1-1)) ->  | I30: =IF(I$1=0,"",OFFSET(データ!$M31,0,I$1-1)) ->  | J30: =IF(J$1=0,"",OFFSET(データ!$M31,0,J$1-1)) ->  | K30: =IF(K$1=0,"",OFFSET(データ!$M31,0,K$1-1)) ->  | L30: =IF(L$1=0,"",OFFSET(データ!$M31,0,L$1-1)) ->  | M30: =IF(M$1=0,"",OFFSET(データ!$M31,0,M$1-1)) ->  | N30: =IF(N$1=0,"",OFFSET(データ!$M31,0,N$1-1)) ->  | O30: =IF(O$1=0,"",OFFSET(データ!$M31,0,O$1-1)) ->  | P30: =IF(P$1=0,"",OFFSET(データ!$M31,0,P$1-1)) ->  | Q30: =IF(Q$1=0,"",OFFSET(データ!$M31,0,Q$1-1)) ->  | R30: =IF(R$1=0,"",OFFSET(データ!$M31,0,R$1-1)) ->  | S30: =IF(S$1=0,"",OFFSET(データ!$M31,0,S$1-1)) ->  | T30: =IF(T$1=0,"",OFFSET(データ!$M31,0,T$1-1)) ->  | U30: =IF(U$1=0,"",OFFSET(データ!$M31,0,U$1-1)) ->  | V30: =IF(V$1=0,"",OFFSET(データ!$M31,0,V$1-1)) -> 
B31: 項目 | C31: 経営者による現場コミュニケーション | D31: =IF(D$1=0,"",OFFSET(データ!$M32,0,D$1-1)) -> 0 | E31: =IF(E$1=0,"",OFFSET(データ!$M32,0,E$1-1)) ->  | F31: =IF(F$1=0,"",OFFSET(データ!$M32,0,F$1-1)) ->  | G31: =IF(G$1=0,"",OFFSET(データ!$M32,0,G$1-1)) ->  | H31: =IF(H$1=0,"",OFFSET(データ!$M32,0,H$1-1)) ->  | I31: =IF(I$1=0,"",OFFSET(データ!$M32,0,I$1-1)) ->  | J31: =IF(J$1=0,"",OFFSET(データ!$M32,0,J$1-1)) ->  | K31: =IF(K$1=0,"",OFFSET(データ!$M32,0,K$1-1)) ->  | L31: =IF(L$1=0,"",OFFSET(データ!$M32,0,L$1-1)) ->  | M31: =IF(M$1=0,"",OFFSET(データ!$M32,0,M$1-1)) ->  | N31: =IF(N$1=0,"",OFFSET(データ!$M32,0,N$1-1)) ->  | O31: =IF(O$1=0,"",OFFSET(データ!$M32,0,O$1-1)) ->  | P31: =IF(P$1=0,"",OFFSET(データ!$M32,0,P$1-1)) ->  | Q31: =IF(Q$1=0,"",OFFSET(データ!$M32,0,Q$1-1)) ->  | R31: =IF(R$1=0,"",OFFSET(データ!$M32,0,R$1-1)) ->  | S31: =IF(S$1=0,"",OFFSET(データ!$M32,0,S$1-1)) ->  | T31: =IF(T$1=0,"",OFFSET(データ!$M32,0,T$1-1)) ->  | U31: =IF(U$1=0,"",OFFSET(データ!$M32,0,U$1-1)) ->  | V31: =IF(V$1=0,"",OFFSET(データ!$M32,0,V$1-1)) -> 
B32: 項目 | C32: 安全の理念・方針の理解 | D32: =IF(D$1=0,"",OFFSET(データ!$M33,0,D$1-1)) -> 0 | E32: =IF(E$1=0,"",OFFSET(データ!$M33,0,E$1-1)) ->  | F32: =IF(F$1=0,"",OFFSET(データ!$M33,0,F$1-1)) ->  | G32: =IF(G$1=0,"",OFFSET(データ!$M33,0,G$1-1)) ->  | H32: =IF(H$1=0,"",OFFSET(データ!$M33,0,H$1-1)) ->  | I32: =IF(I$1=0,"",OFFSET(データ!$M33,0,I$1-1)) ->  | J32: =IF(J$1=0,"",OFFSET(データ!$M33,0,J$1-1)) ->  | K32: =IF(K$1=0,"",OFFSET(データ!$M33,0,K$1-1)) ->  | L32: =IF(L$1=0,"",OFFSET(データ!$M33,0,L$1-1)) ->  | M32: =IF(M$1=0,"",OFFSET(データ!$M33,0,M$1-1)) ->  | N32: =IF(N$1=0,"",OFFSET(データ!$M33,0,N$1-1)) ->  | O32: =IF(O$1=0,"",OFFSET(データ!$M33,0,O$1-1)) ->  | P32: =IF(P$1=0,"",OFFSET(データ!$M33,0,P$1-1)) ->  | Q32: =IF(Q$1=0,"",OFFSET(データ!$M33,0,Q$1-1)) ->  | R32: =IF(R$1=0,"",OFFSET(データ!$M33,0,R$1-1)) ->  | S32: =IF(S$1=0,"",OFFSET(データ!$M33,0,S$1-1)) ->  | T32: =IF(T$1=0,"",OFFSET(データ!$M33,0,T$1-1)) ->  | U32: =IF(U$1=0,"",OFFSET(データ!$M33,0,U$1-1)) ->  | V32: =IF(V$1=0,"",OFFSET(データ!$M33,0,V$1-1)) -> 
B33: 項目 | C33: 安全目標の設定 | D33: =IF(D$1=0,"",OFFSET(データ!$M34,0,D$1-1)) -> 0 | E33: =IF(E$1=0,"",OFFSET(データ!$M34,0,E$1-1)) ->  | F33: =IF(F$1=0,"",OFFSET(データ!$M34,0,F$1-1)) ->  | G33: =IF(G$1=0,"",OFFSET(データ!$M34,0,G$1-1)) ->  | H33: =IF(H$1=0,"",OFFSET(データ!$M34,0,H$1-1)) ->  | I33: =IF(I$1=0,"",OFFSET(データ!$M34,0,I$1-1)) ->  | J33: =IF(J$1=0,"",OFFSET(データ!$M34,0,J$1-1)) ->  | K33: =IF(K$1=0,"",OFFSET(データ!$M34,0,K$1-1)) ->  | L33: =IF(L$1=0,"",OFFSET(データ!$M34,0,L$1-1)) ->  | M33: =IF(M$1=0,"",OFFSET(データ!$M34,0,M$1-1)) ->  | N33: =IF(N$1=0,"",OFFSET(データ!$M34,0,N$1-1)) ->  | O33: =IF(O$1=0,"",OFFSET(データ!$M34,0,O$1-1)) ->  | P33: =IF(P$1=0,"",OFFSET(データ!$M34,0,P$1-1)) ->  | Q33: =IF(Q$1=0,"",OFFSET(データ!$M34,0,Q$1-1)) ->  | R33: =IF(R$1=0,"",OFFSET(データ!$M34,0,R$1-1)) ->  | S33: =IF(S$1=0,"",OFFSET(データ!$M34,0,S$1-1)) ->  | T33: =IF(T$1=0,"",OFFSET(データ!$M34,0,T$1-1)) ->  | U33: =IF(U$1=0,"",OFFSET(データ!$M34,0,U$1-1)) ->  | V33: =IF(V$1=0,"",OFFSET(データ!$M34,0,V$1-1)) -> 
B34: 項目 | C34: 取り組み計画の具体化 | D34: =IF(D$1=0,"",OFFSET(データ!$M35,0,D$1-1)) -> 0 | E34: =IF(E$1=0,"",OFFSET(データ!$M35,0,E$1-1)) ->  | F34: =IF(F$1=0,"",OFFSET(データ!$M35,0,F$1-1)) ->  | G34: =IF(G$1=0,"",OFFSET(データ!$M35,0,G$1-1)) ->  | H34: =IF(H$1=0,"",OFFSET(データ!$M35,0,H$1-1)) ->  | I34: =IF(I$1=0,"",OFFSET(データ!$M35,0,I$1-1)) ->  | J34: =IF(J$1=0,"",OFFSET(データ!$M35,0,J$1-1)) ->  | K34: =IF(K$1=0,"",OFFSET(データ!$M35,0,K$1-1)) ->  | L34: =IF(L$1=0,"",OFFSET(データ!$M35,0,L$1-1)) ->  | M34: =IF(M$1=0,"",OFFSET(データ!$M35,0,M$1-1)) ->  | N34: =IF(N$1=0,"",OFFSET(データ!$M35,0,N$1-1)) ->  | O34: =IF(O$1=0,"",OFFSET(データ!$M35,0,O$1-1)) ->  | P34: =IF(P$1=0,"",OFFSET(データ!$M35,0,P$1-1)) ->  | Q34: =IF(Q$1=0,"",OFFSET(データ!$M35,0,Q$1-1)) ->  | R34: =IF(R$1=0,"",OFFSET(データ!$M35,0,R$1-1)) ->  | S34: =IF(S$1=0,"",OFFSET(データ!$M35,0,S$1-1)) ->  | T34: =IF(T$1=0,"",OFFSET(データ!$M35,0,T$1-1)) ->  | U34: =IF(U$1=0,"",OFFSET(データ!$M35,0,U$1-1)) ->  | V34: =IF(V$1=0,"",OFFSET(データ!$M35,0,V$1-1)) -> 
B35: 項目 | C35: 計画の遂行度合 | D35: =IF(D$1=0,"",OFFSET(データ!$M36,0,D$1-1)) -> 0 | E35: =IF(E$1=0,"",OFFSET(データ!$M36,0,E$1-1)) ->  | F35: =IF(F$1=0,"",OFFSET(データ!$M36,0,F$1-1)) ->  | G35: =IF(G$1=0,"",OFFSET(データ!$M36,0,G$1-1)) ->  | H35: =IF(H$1=0,"",OFFSET(データ!$M36,0,H$1-1)) ->  | I35: =IF(I$1=0,"",OFFSET(データ!$M36,0,I$1-1)) ->  | J35: =IF(J$1=0,"",OFFSET(データ!$M36,0,J$1-1)) ->  | K35: =IF(K$1=0,"",OFFSET(データ!$M36,0,K$1-1)) ->  | L35: =IF(L$1=0,"",OFFSET(データ!$M36,0,L$1-1)) ->  | M35: =IF(M$1=0,"",OFFSET(データ!$M36,0,M$1-1)) ->  | N35: =IF(N$1=0,"",OFFSET(データ!$M36,0,N$1-1)) ->  | O35: =IF(O$1=0,"",OFFSET(データ!$M36,0,O$1-1)) ->  | P35: =IF(P$1=0,"",OFFSET(データ!$M36,0,P$1-1)) ->  | Q35: =IF(Q$1=0,"",OFFSET(データ!$M36,0,Q$1-1)) ->  | R35: =IF(R$1=0,"",OFFSET(データ!$M36,0,R$1-1)) ->  | S35: =IF(S$1=0,"",OFFSET(データ!$M36,0,S$1-1)) ->  | T35: =IF(T$1=0,"",OFFSET(データ!$M36,0,T$1-1)) ->  | U35: =IF(U$1=0,"",OFFSET(データ!$M36,0,U$1-1)) ->  | V35: =IF(V$1=0,"",OFFSET(データ!$M36,0,V$1-1)) -> 
B36: 項目 | C36: 改善志向 | D36: =IF(D$1=0,"",OFFSET(データ!$M37,0,D$1-1)) -> 0 | E36: =IF(E$1=0,"",OFFSET(データ!$M37,0,E$1-1)) ->  | F36: =IF(F$1=0,"",OFFSET(データ!$M37,0,F$1-1)) ->  | G36: =IF(G$1=0,"",OFFSET(データ!$M37,0,G$1-1)) ->  | H36: =IF(H$1=0,"",OFFSET(データ!$M37,0,H$1-1)) ->  | I36: =IF(I$1=0,"",OFFSET(データ!$M37,0,I$1-1)) ->  | J36: =IF(J$1=0,"",OFFSET(データ!$M37,0,J$1-1)) ->  | K36: =IF(K$1=0,"",OFFSET(データ!$M37,0,K$1-1)) ->  | L36: =IF(L$1=0,"",OFFSET(データ!$M37,0,L$1-1)) ->  | M36: =IF(M$1=0,"",OFFSET(データ!$M37,0,M$1-1)) ->  | N36: =IF(N$1=0,"",OFFSET(データ!$M37,0,N$1-1)) ->  | O36: =IF(O$1=0,"",OFFSET(データ!$M37,0,O$1-1)) ->  | P36: =IF(P$1=0,"",OFFSET(データ!$M37,0,P$1-1)) ->  | Q36: =IF(Q$1=0,"",OFFSET(データ!$M37,0,Q$1-1)) ->  | R36: =IF(R$1=0,"",OFFSET(データ!$M37,0,R$1-1)) ->  | S36: =IF(S$1=0,"",OFFSET(データ!$M37,0,S$1-1)) ->  | T36: =IF(T$1=0,"",OFFSET(データ!$M37,0,T$1-1)) ->  | U36: =IF(U$1=0,"",OFFSET(データ!$M37,0,U$1-1)) ->  | V36: =IF(V$1=0,"",OFFSET(データ!$M37,0,V$1-1)) -> 
B37: 項目 | C37: 見直しと次へのアクション | D37: =IF(D$1=0,"",OFFSET(データ!$M38,0,D$1-1)) -> 0 | E37: =IF(E$1=0,"",OFFSET(データ!$M38,0,E$1-1)) ->  | F37: =IF(F$1=0,"",OFFSET(データ!$M38,0,F$1-1)) ->  | G37: =IF(G$1=0,"",OFFSET(データ!$M38,0,G$1-1)) ->  | H37: =IF(H$1=0,"",OFFSET(データ!$M38,0,H$1-1)) ->  | I37: =IF(I$1=0,"",OFFSET(データ!$M38,0,I$1-1)) ->  | J37: =IF(J$1=0,"",OFFSET(データ!$M38,0,J$1-1)) ->  | K37: =IF(K$1=0,"",OFFSET(データ!$M38,0,K$1-1)) ->  | L37: =IF(L$1=0,"",OFFSET(データ!$M38,0,L$1-1)) ->  | M37: =IF(M$1=0,"",OFFSET(データ!$M38,0,M$1-1)) ->  | N37: =IF(N$1=0,"",OFFSET(データ!$M38,0,N$1-1)) ->  | O37: =IF(O$1=0,"",OFFSET(データ!$M38,0,O$1-1)) ->  | P37: =IF(P$1=0,"",OFFSET(データ!$M38,0,P$1-1)) ->  | Q37: =IF(Q$1=0,"",OFFSET(データ!$M38,0,Q$1-1)) ->  | R37: =IF(R$1=0,"",OFFSET(データ!$M38,0,R$1-1)) ->  | S37: =IF(S$1=0,"",OFFSET(データ!$M38,0,S$1-1)) ->  | T37: =IF(T$1=0,"",OFFSET(データ!$M38,0,T$1-1)) ->  | U37: =IF(U$1=0,"",OFFSET(データ!$M38,0,U$1-1)) ->  | V37: =IF(V$1=0,"",OFFSET(データ!$M38,0,V$1-1)) -> 
B38: 項目 | C38: 文書・記録の管理・活用 | D38: =IF(D$1=0,"",OFFSET(データ!$M39,0,D$1-1)) -> 0 | E38: =IF(E$1=0,"",OFFSET(データ!$M39,0,E$1-1)) ->  | F38: =IF(F$1=0,"",OFFSET(データ!$M39,0,F$1-1)) ->  | G38: =IF(G$1=0,"",OFFSET(データ!$M39,0,G$1-1)) ->  | H38: =IF(H$1=0,"",OFFSET(データ!$M39,0,H$1-1)) ->  | I38: =IF(I$1=0,"",OFFSET(データ!$M39,0,I$1-1)) ->  | J38: =IF(J$1=0,"",OFFSET(データ!$M39,0,J$1-1)) ->  | K38: =IF(K$1=0,"",OFFSET(データ!$M39,0,K$1-1)) ->  | L38: =IF(L$1=0,"",OFFSET(データ!$M39,0,L$1-1)) ->  | M38: =IF(M$1=0,"",OFFSET(データ!$M39,0,M$1-1)) ->  | N38: =IF(N$1=0,"",OFFSET(データ!$M39,0,N$1-1)) ->  | O38: =IF(O$1=0,"",OFFSET(データ!$M39,0,O$1-1)) ->  | P38: =IF(P$1=0,"",OFFSET(データ!$M39,0,P$1-1)) ->  | Q38: =IF(Q$1=0,"",OFFSET(データ!$M39,0,Q$1-1)) ->  | R38: =IF(R$1=0,"",OFFSET(データ!$M39,0,R$1-1)) ->  | S38: =IF(S$1=0,"",OFFSET(データ!$M39,0,S$1-1)) ->  | T38: =IF(T$1=0,"",OFFSET(データ!$M39,0,T$1-1)) ->  | U38: =IF(U$1=0,"",OFFSET(データ!$M39,0,U$1-1)) ->  | V38: =IF(V$1=0,"",OFFSET(データ!$M39,0,V$1-1)) -> 
B39: 項目 | C39: 職場の風通し | D39: =IF(D$1=0,"",OFFSET(データ!$M40,0,D$1-1)) -> 0 | E39: =IF(E$1=0,"",OFFSET(データ!$M40,0,E$1-1)) ->  | F39: =IF(F$1=0,"",OFFSET(データ!$M40,0,F$1-1)) ->  | G39: =IF(G$1=0,"",OFFSET(データ!$M40,0,G$1-1)) ->  | H39: =IF(H$1=0,"",OFFSET(データ!$M40,0,H$1-1)) ->  | I39: =IF(I$1=0,"",OFFSET(データ!$M40,0,I$1-1)) ->  | J39: =IF(J$1=0,"",OFFSET(データ!$M40,0,J$1-1)) ->  | K39: =IF(K$1=0,"",OFFSET(データ!$M40,0,K$1-1)) ->  | L39: =IF(L$1=0,"",OFFSET(データ!$M40,0,L$1-1)) ->  | M39: =IF(M$1=0,"",OFFSET(データ!$M40,0,M$1-1)) ->  | N39: =IF(N$1=0,"",OFFSET(データ!$M40,0,N$1-1)) ->  | O39: =IF(O$1=0,"",OFFSET(データ!$M40,0,O$1-1)) ->  | P39: =IF(P$1=0,"",OFFSET(データ!$M40,0,P$1-1)) ->  | Q39: =IF(Q$1=0,"",OFFSET(データ!$M40,0,Q$1-1)) ->  | R39: =IF(R$1=0,"",OFFSET(データ!$M40,0,R$1-1)) ->  | S39: =IF(S$1=0,"",OFFSET(データ!$M40,0,S$1-1)) ->  | T39: =IF(T$1=0,"",OFFSET(データ!$M40,0,T$1-1)) ->  | U39: =IF(U$1=0,"",OFFSET(データ!$M40,0,U$1-1)) ->  | V39: =IF(V$1=0,"",OFFSET(データ!$M40,0,V$1-1)) -> 
B40: 項目 | C40: リーダーシップ | D40: =IF(D$1=0,"",OFFSET(データ!$M41,0,D$1-1)) -> 0 | E40: =IF(E$1=0,"",OFFSET(データ!$M41,0,E$1-1)) ->  | F40: =IF(F$1=0,"",OFFSET(データ!$M41,0,F$1-1)) ->  | G40: =IF(G$1=0,"",OFFSET(データ!$M41,0,G$1-1)) ->  | H40: =IF(H$1=0,"",OFFSET(データ!$M41,0,H$1-1)) ->  | I40: =IF(I$1=0,"",OFFSET(データ!$M41,0,I$1-1)) ->  | J40: =IF(J$1=0,"",OFFSET(データ!$M41,0,J$1-1)) ->  | K40: =IF(K$1=0,"",OFFSET(データ!$M41,0,K$1-1)) ->  | L40: =IF(L$1=0,"",OFFSET(データ!$M41,0,L$1-1)) ->  | M40: =IF(M$1=0,"",OFFSET(データ!$M41,0,M$1-1)) ->  | N40: =IF(N$1=0,"",OFFSET(データ!$M41,0,N$1-1)) ->  | O40: =IF(O$1=0,"",OFFSET(データ!$M41,0,O$1-1)) ->  | P40: =IF(P$1=0,"",OFFSET(データ!$M41,0,P$1-1)) ->  | Q40: =IF(Q$1=0,"",OFFSET(データ!$M41,0,Q$1-1)) ->  | R40: =IF(R$1=0,"",OFFSET(データ!$M41,0,R$1-1)) ->  | S40: =IF(S$1=0,"",OFFSET(データ!$M41,0,S$1-1)) ->  | T40: =IF(T$1=0,"",OFFSET(データ!$M41,0,T$1-1)) ->  | U40: =IF(U$1=0,"",OFFSET(データ!$M41,0,U$1-1)) ->  | V40: =IF(V$1=0,"",OFFSET(データ!$M41,0,V$1-1)) -> 
B41: 項目 | C41: 部署間コミュニケーション | D41: =IF(D$1=0,"",OFFSET(データ!$M42,0,D$1-1)) -> 0 | E41: =IF(E$1=0,"",OFFSET(データ!$M42,0,E$1-1)) ->  | F41: =IF(F$1=0,"",OFFSET(データ!$M42,0,F$1-1)) ->  | G41: =IF(G$1=0,"",OFFSET(データ!$M42,0,G$1-1)) ->  | H41: =IF(H$1=0,"",OFFSET(データ!$M42,0,H$1-1)) ->  | I41: =IF(I$1=0,"",OFFSET(データ!$M42,0,I$1-1)) ->  | J41: =IF(J$1=0,"",OFFSET(データ!$M42,0,J$1-1)) ->  | K41: =IF(K$1=0,"",OFFSET(データ!$M42,0,K$1-1)) ->  | L41: =IF(L$1=0,"",OFFSET(データ!$M42,0,L$1-1)) ->  | M41: =IF(M$1=0,"",OFFSET(データ!$M42,0,M$1-1)) ->  | N41: =IF(N$1=0,"",OFFSET(データ!$M42,0,N$1-1)) ->  | O41: =IF(O$1=0,"",OFFSET(データ!$M42,0,O$1-1)) ->  | P41: =IF(P$1=0,"",OFFSET(データ!$M42,0,P$1-1)) ->  | Q41: =IF(Q$1=0,"",OFFSET(データ!$M42,0,Q$1-1)) ->  | R41: =IF(R$1=0,"",OFFSET(データ!$M42,0,R$1-1)) ->  | S41: =IF(S$1=0,"",OFFSET(データ!$M42,0,S$1-1)) ->  | T41: =IF(T$1=0,"",OFFSET(データ!$M42,0,T$1-1)) ->  | U41: =IF(U$1=0,"",OFFSET(データ!$M42,0,U$1-1)) ->  | V41: =IF(V$1=0,"",OFFSET(データ!$M42,0,V$1-1)) -> 
B42: 項目 | C42: 部署間連携 | D42: =IF(D$1=0,"",OFFSET(データ!$M43,0,D$1-1)) -> 0 | E42: =IF(E$1=0,"",OFFSET(データ!$M43,0,E$1-1)) ->  | F42: =IF(F$1=0,"",OFFSET(データ!$M43,0,F$1-1)) ->  | G42: =IF(G$1=0,"",OFFSET(データ!$M43,0,G$1-1)) ->  | H42: =IF(H$1=0,"",OFFSET(データ!$M43,0,H$1-1)) ->  | I42: =IF(I$1=0,"",OFFSET(データ!$M43,0,I$1-1)) ->  | J42: =IF(J$1=0,"",OFFSET(データ!$M43,0,J$1-1)) ->  | K42: =IF(K$1=0,"",OFFSET(データ!$M43,0,K$1-1)) ->  | L42: =IF(L$1=0,"",OFFSET(データ!$M43,0,L$1-1)) ->  | M42: =IF(M$1=0,"",OFFSET(データ!$M43,0,M$1-1)) ->  | N42: =IF(N$1=0,"",OFFSET(データ!$M43,0,N$1-1)) ->  | O42: =IF(O$1=0,"",OFFSET(データ!$M43,0,O$1-1)) ->  | P42: =IF(P$1=0,"",OFFSET(データ!$M43,0,P$1-1)) ->  | Q42: =IF(Q$1=0,"",OFFSET(データ!$M43,0,Q$1-1)) ->  | R42: =IF(R$1=0,"",OFFSET(データ!$M43,0,R$1-1)) ->  | S42: =IF(S$1=0,"",OFFSET(データ!$M43,0,S$1-1)) ->  | T42: =IF(T$1=0,"",OFFSET(データ!$M43,0,T$1-1)) ->  | U42: =IF(U$1=0,"",OFFSET(データ!$M43,0,U$1-1)) ->  | V42: =IF(V$1=0,"",OFFSET(データ!$M43,0,V$1-1)) -> 
B43: 項目 | C43: 報告・連絡・相談の環境作り | D43: =IF(D$1=0,"",OFFSET(データ!$M44,0,D$1-1)) -> 0 | E43: =IF(E$1=0,"",OFFSET(データ!$M44,0,E$1-1)) ->  | F43: =IF(F$1=0,"",OFFSET(データ!$M44,0,F$1-1)) ->  | G43: =IF(G$1=0,"",OFFSET(データ!$M44,0,G$1-1)) ->  | H43: =IF(H$1=0,"",OFFSET(データ!$M44,0,H$1-1)) ->  | I43: =IF(I$1=0,"",OFFSET(データ!$M44,0,I$1-1)) ->  | J43: =IF(J$1=0,"",OFFSET(データ!$M44,0,J$1-1)) ->  | K43: =IF(K$1=0,"",OFFSET(データ!$M44,0,K$1-1)) ->  | L43: =IF(L$1=0,"",OFFSET(データ!$M44,0,L$1-1)) ->  | M43: =IF(M$1=0,"",OFFSET(データ!$M44,0,M$1-1)) ->  | N43: =IF(N$1=0,"",OFFSET(データ!$M44,0,N$1-1)) ->  | O43: =IF(O$1=0,"",OFFSET(データ!$M44,0,O$1-1)) ->  | P43: =IF(P$1=0,"",OFFSET(データ!$M44,0,P$1-1)) ->  | Q43: =IF(Q$1=0,"",OFFSET(データ!$M44,0,Q$1-1)) ->  | R43: =IF(R$1=0,"",OFFSET(データ!$M44,0,R$1-1)) ->  | S43: =IF(S$1=0,"",OFFSET(データ!$M44,0,S$1-1)) ->  | T43: =IF(T$1=0,"",OFFSET(データ!$M44,0,T$1-1)) ->  | U43: =IF(U$1=0,"",OFFSET(データ!$M44,0,U$1-1)) ->  | V43: =IF(V$1=0,"",OFFSET(データ!$M44,0,V$1-1)) -> 
B44: 項目 | C44: 報告・連絡・相談の実践 | D44: =IF(D$1=0,"",OFFSET(データ!$M45,0,D$1-1)) -> 0 | E44: =IF(E$1=0,"",OFFSET(データ!$M45,0,E$1-1)) ->  | F44: =IF(F$1=0,"",OFFSET(データ!$M45,0,F$1-1)) ->  | G44: =IF(G$1=0,"",OFFSET(データ!$M45,0,G$1-1)) ->  | H44: =IF(H$1=0,"",OFFSET(データ!$M45,0,H$1-1)) ->  | I44: =IF(I$1=0,"",OFFSET(データ!$M45,0,I$1-1)) ->  | J44: =IF(J$1=0,"",OFFSET(データ!$M45,0,J$1-1)) ->  | K44: =IF(K$1=0,"",OFFSET(データ!$M45,0,K$1-1)) ->  | L44: =IF(L$1=0,"",OFFSET(データ!$M45,0,L$1-1)) ->  | M44: =IF(M$1=0,"",OFFSET(データ!$M45,0,M$1-1)) ->  | N44: =IF(N$1=0,"",OFFSET(データ!$M45,0,N$1-1)) ->  | O44: =IF(O$1=0,"",OFFSET(データ!$M45,0,O$1-1)) ->  | P44: =IF(P$1=0,"",OFFSET(データ!$M45,0,P$1-1)) ->  | Q44: =IF(Q$1=0,"",OFFSET(データ!$M45,0,Q$1-1)) ->  | R44: =IF(R$1=0,"",OFFSET(データ!$M45,0,R$1-1)) ->  | S44: =IF(S$1=0,"",OFFSET(データ!$M45,0,S$1-1)) ->  | T44: =IF(T$1=0,"",OFFSET(データ!$M45,0,T$1-1)) ->  | U44: =IF(U$1=0,"",OFFSET(データ!$M45,0,U$1-1)) ->  | V44: =IF(V$1=0,"",OFFSET(データ!$M45,0,V$1-1)) -> 
B45: 項目 | C45: 職場環境（仕事面） | D45: =IF(D$1=0,"",OFFSET(データ!$M46,0,D$1-1)) -> 0 | E45: =IF(E$1=0,"",OFFSET(データ!$M46,0,E$1-1)) ->  | F45: =IF(F$1=0,"",OFFSET(データ!$M46,0,F$1-1)) ->  | G45: =IF(G$1=0,"",OFFSET(データ!$M46,0,G$1-1)) ->  | H45: =IF(H$1=0,"",OFFSET(データ!$M46,0,H$1-1)) ->  | I45: =IF(I$1=0,"",OFFSET(データ!$M46,0,I$1-1)) ->  | J45: =IF(J$1=0,"",OFFSET(データ!$M46,0,J$1-1)) ->  | K45: =IF(K$1=0,"",OFFSET(データ!$M46,0,K$1-1)) ->  | L45: =IF(L$1=0,"",OFFSET(データ!$M46,0,L$1-1)) ->  | M45: =IF(M$1=0,"",OFFSET(データ!$M46,0,M$1-1)) ->  | N45: =IF(N$1=0,"",OFFSET(データ!$M46,0,N$1-1)) ->  | O45: =IF(O$1=0,"",OFFSET(データ!$M46,0,O$1-1)) ->  | P45: =IF(P$1=0,"",OFFSET(データ!$M46,0,P$1-1)) ->  | Q45: =IF(Q$1=0,"",OFFSET(データ!$M46,0,Q$1-1)) ->  | R45: =IF(R$1=0,"",OFFSET(データ!$M46,0,R$1-1)) ->  | S45: =IF(S$1=0,"",OFFSET(データ!$M46,0,S$1-1)) ->  | T45: =IF(T$1=0,"",OFFSET(データ!$M46,0,T$1-1)) ->  | U45: =IF(U$1=0,"",OFFSET(データ!$M46,0,U$1-1)) ->  | V45: =IF(V$1=0,"",OFFSET(データ!$M46,0,V$1-1)) -> 
B46: 項目 | C46: 職場環境（健康面） | D46: =IF(D$1=0,"",OFFSET(データ!$M47,0,D$1-1)) -> 0 | E46: =IF(E$1=0,"",OFFSET(データ!$M47,0,E$1-1)) ->  | F46: =IF(F$1=0,"",OFFSET(データ!$M47,0,F$1-1)) ->  | G46: =IF(G$1=0,"",OFFSET(データ!$M47,0,G$1-1)) ->  | H46: =IF(H$1=0,"",OFFSET(データ!$M47,0,H$1-1)) ->  | I46: =IF(I$1=0,"",OFFSET(データ!$M47,0,I$1-1)) ->  | J46: =IF(J$1=0,"",OFFSET(データ!$M47,0,J$1-1)) ->  | K46: =IF(K$1=0,"",OFFSET(データ!$M47,0,K$1-1)) ->  | L46: =IF(L$1=0,"",OFFSET(データ!$M47,0,L$1-1)) ->  | M46: =IF(M$1=0,"",OFFSET(データ!$M47,0,M$1-1)) ->  | N46: =IF(N$1=0,"",OFFSET(データ!$M47,0,N$1-1)) ->  | O46: =IF(O$1=0,"",OFFSET(データ!$M47,0,O$1-1)) ->  | P46: =IF(P$1=0,"",OFFSET(データ!$M47,0,P$1-1)) ->  | Q46: =IF(Q$1=0,"",OFFSET(データ!$M47,0,Q$1-1)) ->  | R46: =IF(R$1=0,"",OFFSET(データ!$M47,0,R$1-1)) ->  | S46: =IF(S$1=0,"",OFFSET(データ!$M47,0,S$1-1)) ->  | T46: =IF(T$1=0,"",OFFSET(データ!$M47,0,T$1-1)) ->  | U46: =IF(U$1=0,"",OFFSET(データ!$M47,0,U$1-1)) ->  | V46: =IF(V$1=0,"",OFFSET(データ!$M47,0,V$1-1)) -> 
B47: 項目 | C47: 職場環境（精神面） | D47: =IF(D$1=0,"",OFFSET(データ!$M48,0,D$1-1)) -> 0 | E47: =IF(E$1=0,"",OFFSET(データ!$M48,0,E$1-1)) ->  | F47: =IF(F$1=0,"",OFFSET(データ!$M48,0,F$1-1)) ->  | G47: =IF(G$1=0,"",OFFSET(データ!$M48,0,G$1-1)) ->  | H47: =IF(H$1=0,"",OFFSET(データ!$M48,0,H$1-1)) ->  | I47: =IF(I$1=0,"",OFFSET(データ!$M48,0,I$1-1)) ->  | J47: =IF(J$1=0,"",OFFSET(データ!$M48,0,J$1-1)) ->  | K47: =IF(K$1=0,"",OFFSET(データ!$M48,0,K$1-1)) ->  | L47: =IF(L$1=0,"",OFFSET(データ!$M48,0,L$1-1)) ->  | M47: =IF(M$1=0,"",OFFSET(データ!$M48,0,M$1-1)) ->  | N47: =IF(N$1=0,"",OFFSET(データ!$M48,0,N$1-1)) ->  | O47: =IF(O$1=0,"",OFFSET(データ!$M48,0,O$1-1)) ->  | P47: =IF(P$1=0,"",OFFSET(データ!$M48,0,P$1-1)) ->  | Q47: =IF(Q$1=0,"",OFFSET(データ!$M48,0,Q$1-1)) ->  | R47: =IF(R$1=0,"",OFFSET(データ!$M48,0,R$1-1)) ->  | S47: =IF(S$1=0,"",OFFSET(データ!$M48,0,S$1-1)) ->  | T47: =IF(T$1=0,"",OFFSET(データ!$M48,0,T$1-1)) ->  | U47: =IF(U$1=0,"",OFFSET(データ!$M48,0,U$1-1)) ->  | V47: =IF(V$1=0,"",OFFSET(データ!$M48,0,V$1-1)) -> 
B48: 項目 | C48: 人材確保 | D48: =IF(D$1=0,"",OFFSET(データ!$M49,0,D$1-1)) -> 0 | E48: =IF(E$1=0,"",OFFSET(データ!$M49,0,E$1-1)) ->  | F48: =IF(F$1=0,"",OFFSET(データ!$M49,0,F$1-1)) ->  | G48: =IF(G$1=0,"",OFFSET(データ!$M49,0,G$1-1)) ->  | H48: =IF(H$1=0,"",OFFSET(データ!$M49,0,H$1-1)) ->  | I48: =IF(I$1=0,"",OFFSET(データ!$M49,0,I$1-1)) ->  | J48: =IF(J$1=0,"",OFFSET(データ!$M49,0,J$1-1)) ->  | K48: =IF(K$1=0,"",OFFSET(データ!$M49,0,K$1-1)) ->  | L48: =IF(L$1=0,"",OFFSET(データ!$M49,0,L$1-1)) ->  | M48: =IF(M$1=0,"",OFFSET(データ!$M49,0,M$1-1)) ->  | N48: =IF(N$1=0,"",OFFSET(データ!$M49,0,N$1-1)) ->  | O48: =IF(O$1=0,"",OFFSET(データ!$M49,0,O$1-1)) ->  | P48: =IF(P$1=0,"",OFFSET(データ!$M49,0,P$1-1)) ->  | Q48: =IF(Q$1=0,"",OFFSET(データ!$M49,0,Q$1-1)) ->  | R48: =IF(R$1=0,"",OFFSET(データ!$M49,0,R$1-1)) ->  | S48: =IF(S$1=0,"",OFFSET(データ!$M49,0,S$1-1)) ->  | T48: =IF(T$1=0,"",OFFSET(データ!$M49,0,T$1-1)) ->  | U48: =IF(U$1=0,"",OFFSET(データ!$M49,0,U$1-1)) ->  | V48: =IF(V$1=0,"",OFFSET(データ!$M49,0,V$1-1)) -> 
B49: 項目 | C49: 採用への経営者の関わり | D49: =IF(D$1=0,"",OFFSET(データ!$M50,0,D$1-1)) -> 0 | E49: =IF(E$1=0,"",OFFSET(データ!$M50,0,E$1-1)) ->  | F49: =IF(F$1=0,"",OFFSET(データ!$M50,0,F$1-1)) ->  | G49: =IF(G$1=0,"",OFFSET(データ!$M50,0,G$1-1)) ->  | H49: =IF(H$1=0,"",OFFSET(データ!$M50,0,H$1-1)) ->  | I49: =IF(I$1=0,"",OFFSET(データ!$M50,0,I$1-1)) ->  | J49: =IF(J$1=0,"",OFFSET(データ!$M50,0,J$1-1)) ->  | K49: =IF(K$1=0,"",OFFSET(データ!$M50,0,K$1-1)) ->  | L49: =IF(L$1=0,"",OFFSET(データ!$M50,0,L$1-1)) ->  | M49: =IF(M$1=0,"",OFFSET(データ!$M50,0,M$1-1)) ->  | N49: =IF(N$1=0,"",OFFSET(データ!$M50,0,N$1-1)) ->  | O49: =IF(O$1=0,"",OFFSET(データ!$M50,0,O$1-1)) ->  | P49: =IF(P$1=0,"",OFFSET(データ!$M50,0,P$1-1)) ->  | Q49: =IF(Q$1=0,"",OFFSET(データ!$M50,0,Q$1-1)) ->  | R49: =IF(R$1=0,"",OFFSET(データ!$M50,0,R$1-1)) ->  | S49: =IF(S$1=0,"",OFFSET(データ!$M50,0,S$1-1)) ->  | T49: =IF(T$1=0,"",OFFSET(データ!$M50,0,T$1-1)) ->  | U49: =IF(U$1=0,"",OFFSET(データ!$M50,0,U$1-1)) ->  | V49: =IF(V$1=0,"",OFFSET(データ!$M50,0,V$1-1)) -> 
B50: 項目 | C50: 新人教育の効果 | D50: =IF(D$1=0,"",OFFSET(データ!$M51,0,D$1-1)) -> 0 | E50: =IF(E$1=0,"",OFFSET(データ!$M51,0,E$1-1)) ->  | F50: =IF(F$1=0,"",OFFSET(データ!$M51,0,F$1-1)) ->  | G50: =IF(G$1=0,"",OFFSET(データ!$M51,0,G$1-1)) ->  | H50: =IF(H$1=0,"",OFFSET(データ!$M51,0,H$1-1)) ->  | I50: =IF(I$1=0,"",OFFSET(データ!$M51,0,I$1-1)) ->  | J50: =IF(J$1=0,"",OFFSET(データ!$M51,0,J$1-1)) ->  | K50: =IF(K$1=0,"",OFFSET(データ!$M51,0,K$1-1)) ->  | L50: =IF(L$1=0,"",OFFSET(データ!$M51,0,L$1-1)) ->  | M50: =IF(M$1=0,"",OFFSET(データ!$M51,0,M$1-1)) ->  | N50: =IF(N$1=0,"",OFFSET(データ!$M51,0,N$1-1)) ->  | O50: =IF(O$1=0,"",OFFSET(データ!$M51,0,O$1-1)) ->  | P50: =IF(P$1=0,"",OFFSET(データ!$M51,0,P$1-1)) ->  | Q50: =IF(Q$1=0,"",OFFSET(データ!$M51,0,Q$1-1)) ->  | R50: =IF(R$1=0,"",OFFSET(データ!$M51,0,R$1-1)) ->  | S50: =IF(S$1=0,"",OFFSET(データ!$M51,0,S$1-1)) ->  | T50: =IF(T$1=0,"",OFFSET(データ!$M51,0,T$1-1)) ->  | U50: =IF(U$1=0,"",OFFSET(データ!$M51,0,U$1-1)) ->  | V50: =IF(V$1=0,"",OFFSET(データ!$M51,0,V$1-1)) -> 
B51: 項目 | C51: 知識・技能教育（定期的教育） | D51: =IF(D$1=0,"",OFFSET(データ!$M52,0,D$1-1)) -> 0 | E51: =IF(E$1=0,"",OFFSET(データ!$M52,0,E$1-1)) ->  | F51: =IF(F$1=0,"",OFFSET(データ!$M52,0,F$1-1)) ->  | G51: =IF(G$1=0,"",OFFSET(データ!$M52,0,G$1-1)) ->  | H51: =IF(H$1=0,"",OFFSET(データ!$M52,0,H$1-1)) ->  | I51: =IF(I$1=0,"",OFFSET(データ!$M52,0,I$1-1)) ->  | J51: =IF(J$1=0,"",OFFSET(データ!$M52,0,J$1-1)) ->  | K51: =IF(K$1=0,"",OFFSET(データ!$M52,0,K$1-1)) ->  | L51: =IF(L$1=0,"",OFFSET(データ!$M52,0,L$1-1)) ->  | M51: =IF(M$1=0,"",OFFSET(データ!$M52,0,M$1-1)) ->  | N51: =IF(N$1=0,"",OFFSET(データ!$M52,0,N$1-1)) ->  | O51: =IF(O$1=0,"",OFFSET(データ!$M52,0,O$1-1)) ->  | P51: =IF(P$1=0,"",OFFSET(データ!$M52,0,P$1-1)) ->  | Q51: =IF(Q$1=0,"",OFFSET(データ!$M52,0,Q$1-1)) ->  | R51: =IF(R$1=0,"",OFFSET(データ!$M52,0,R$1-1)) ->  | S51: =IF(S$1=0,"",OFFSET(データ!$M52,0,S$1-1)) ->  | T51: =IF(T$1=0,"",OFFSET(データ!$M52,0,T$1-1)) ->  | U51: =IF(U$1=0,"",OFFSET(データ!$M52,0,U$1-1)) ->  | V51: =IF(V$1=0,"",OFFSET(データ!$M52,0,V$1-1)) -> 
B52: 項目 | C52: 現場リーダーの育成 | D52: =IF(D$1=0,"",OFFSET(データ!$M53,0,D$1-1)) -> 0 | E52: =IF(E$1=0,"",OFFSET(データ!$M53,0,E$1-1)) ->  | F52: =IF(F$1=0,"",OFFSET(データ!$M53,0,F$1-1)) ->  | G52: =IF(G$1=0,"",OFFSET(データ!$M53,0,G$1-1)) ->  | H52: =IF(H$1=0,"",OFFSET(データ!$M53,0,H$1-1)) ->  | I52: =IF(I$1=0,"",OFFSET(データ!$M53,0,I$1-1)) ->  | J52: =IF(J$1=0,"",OFFSET(データ!$M53,0,J$1-1)) ->  | K52: =IF(K$1=0,"",OFFSET(データ!$M53,0,K$1-1)) ->  | L52: =IF(L$1=0,"",OFFSET(データ!$M53,0,L$1-1)) ->  | M52: =IF(M$1=0,"",OFFSET(データ!$M53,0,M$1-1)) ->  | N52: =IF(N$1=0,"",OFFSET(データ!$M53,0,N$1-1)) ->  | O52: =IF(O$1=0,"",OFFSET(データ!$M53,0,O$1-1)) ->  | P52: =IF(P$1=0,"",OFFSET(データ!$M53,0,P$1-1)) ->  | Q52: =IF(Q$1=0,"",OFFSET(データ!$M53,0,Q$1-1)) ->  | R52: =IF(R$1=0,"",OFFSET(データ!$M53,0,R$1-1)) ->  | S52: =IF(S$1=0,"",OFFSET(データ!$M53,0,S$1-1)) ->  | T52: =IF(T$1=0,"",OFFSET(データ!$M53,0,T$1-1)) ->  | U52: =IF(U$1=0,"",OFFSET(データ!$M53,0,U$1-1)) ->  | V52: =IF(V$1=0,"",OFFSET(データ!$M53,0,V$1-1)) -> 
B53: 項目 | C53: 指導員による指導の効果 | D53: =IF(D$1=0,"",OFFSET(データ!$M54,0,D$1-1)) -> 0 | E53: =IF(E$1=0,"",OFFSET(データ!$M54,0,E$1-1)) ->  | F53: =IF(F$1=0,"",OFFSET(データ!$M54,0,F$1-1)) ->  | G53: =IF(G$1=0,"",OFFSET(データ!$M54,0,G$1-1)) ->  | H53: =IF(H$1=0,"",OFFSET(データ!$M54,0,H$1-1)) ->  | I53: =IF(I$1=0,"",OFFSET(データ!$M54,0,I$1-1)) ->  | J53: =IF(J$1=0,"",OFFSET(データ!$M54,0,J$1-1)) ->  | K53: =IF(K$1=0,"",OFFSET(データ!$M54,0,K$1-1)) ->  | L53: =IF(L$1=0,"",OFFSET(データ!$M54,0,L$1-1)) ->  | M53: =IF(M$1=0,"",OFFSET(データ!$M54,0,M$1-1)) ->  | N53: =IF(N$1=0,"",OFFSET(データ!$M54,0,N$1-1)) ->  | O53: =IF(O$1=0,"",OFFSET(データ!$M54,0,O$1-1)) ->  | P53: =IF(P$1=0,"",OFFSET(データ!$M54,0,P$1-1)) ->  | Q53: =IF(Q$1=0,"",OFFSET(データ!$M54,0,Q$1-1)) ->  | R53: =IF(R$1=0,"",OFFSET(データ!$M54,0,R$1-1)) ->  | S53: =IF(S$1=0,"",OFFSET(データ!$M54,0,S$1-1)) ->  | T53: =IF(T$1=0,"",OFFSET(データ!$M54,0,T$1-1)) ->  | U53: =IF(U$1=0,"",OFFSET(データ!$M54,0,U$1-1)) ->  | V53: =IF(V$1=0,"",OFFSET(データ!$M54,0,V$1-1)) -> 
B54: 項目 | C54: 事故分析と再発防止教育 | D54: =IF(D$1=0,"",OFFSET(データ!$M55,0,D$1-1)) -> 0 | E54: =IF(E$1=0,"",OFFSET(データ!$M55,0,E$1-1)) ->  | F54: =IF(F$1=0,"",OFFSET(データ!$M55,0,F$1-1)) ->  | G54: =IF(G$1=0,"",OFFSET(データ!$M55,0,G$1-1)) ->  | H54: =IF(H$1=0,"",OFFSET(データ!$M55,0,H$1-1)) ->  | I54: =IF(I$1=0,"",OFFSET(データ!$M55,0,I$1-1)) ->  | J54: =IF(J$1=0,"",OFFSET(データ!$M55,0,J$1-1)) ->  | K54: =IF(K$1=0,"",OFFSET(データ!$M55,0,K$1-1)) ->  | L54: =IF(L$1=0,"",OFFSET(データ!$M55,0,L$1-1)) ->  | M54: =IF(M$1=0,"",OFFSET(データ!$M55,0,M$1-1)) ->  | N54: =IF(N$1=0,"",OFFSET(データ!$M55,0,N$1-1)) ->  | O54: =IF(O$1=0,"",OFFSET(データ!$M55,0,O$1-1)) ->  | P54: =IF(P$1=0,"",OFFSET(データ!$M55,0,P$1-1)) ->  | Q54: =IF(Q$1=0,"",OFFSET(データ!$M55,0,Q$1-1)) ->  | R54: =IF(R$1=0,"",OFFSET(データ!$M55,0,R$1-1)) ->  | S54: =IF(S$1=0,"",OFFSET(データ!$M55,0,S$1-1)) ->  | T54: =IF(T$1=0,"",OFFSET(データ!$M55,0,T$1-1)) ->  | U54: =IF(U$1=0,"",OFFSET(データ!$M55,0,U$1-1)) ->  | V54: =IF(V$1=0,"",OFFSET(データ!$M55,0,V$1-1)) -> 
B55: 項目 | C55: ﾋﾔﾘﾊｯﾄ、危険予知訓練の効果 | D55: =IF(D$1=0,"",OFFSET(データ!$M56,0,D$1-1)) -> 0 | E55: =IF(E$1=0,"",OFFSET(データ!$M56,0,E$1-1)) ->  | F55: =IF(F$1=0,"",OFFSET(データ!$M56,0,F$1-1)) ->  | G55: =IF(G$1=0,"",OFFSET(データ!$M56,0,G$1-1)) ->  | H55: =IF(H$1=0,"",OFFSET(データ!$M56,0,H$1-1)) ->  | I55: =IF(I$1=0,"",OFFSET(データ!$M56,0,I$1-1)) ->  | J55: =IF(J$1=0,"",OFFSET(データ!$M56,0,J$1-1)) ->  | K55: =IF(K$1=0,"",OFFSET(データ!$M56,0,K$1-1)) ->  | L55: =IF(L$1=0,"",OFFSET(データ!$M56,0,L$1-1)) ->  | M55: =IF(M$1=0,"",OFFSET(データ!$M56,0,M$1-1)) ->  | N55: =IF(N$1=0,"",OFFSET(データ!$M56,0,N$1-1)) ->  | O55: =IF(O$1=0,"",OFFSET(データ!$M56,0,O$1-1)) ->  | P55: =IF(P$1=0,"",OFFSET(データ!$M56,0,P$1-1)) ->  | Q55: =IF(Q$1=0,"",OFFSET(データ!$M56,0,Q$1-1)) ->  | R55: =IF(R$1=0,"",OFFSET(データ!$M56,0,R$1-1)) ->  | S55: =IF(S$1=0,"",OFFSET(データ!$M56,0,S$1-1)) ->  | T55: =IF(T$1=0,"",OFFSET(データ!$M56,0,T$1-1)) ->  | U55: =IF(U$1=0,"",OFFSET(データ!$M56,0,U$1-1)) ->  | V55: =IF(V$1=0,"",OFFSET(データ!$M56,0,V$1-1)) -> 
B56: 項目 | C56: 事故・災害対応手順の見直し | D56: =IF(D$1=0,"",OFFSET(データ!$M57,0,D$1-1)) -> 0 | E56: =IF(E$1=0,"",OFFSET(データ!$M57,0,E$1-1)) ->  | F56: =IF(F$1=0,"",OFFSET(データ!$M57,0,F$1-1)) ->  | G56: =IF(G$1=0,"",OFFSET(データ!$M57,0,G$1-1)) ->  | H56: =IF(H$1=0,"",OFFSET(データ!$M57,0,H$1-1)) ->  | I56: =IF(I$1=0,"",OFFSET(データ!$M57,0,I$1-1)) ->  | J56: =IF(J$1=0,"",OFFSET(データ!$M57,0,J$1-1)) ->  | K56: =IF(K$1=0,"",OFFSET(データ!$M57,0,K$1-1)) ->  | L56: =IF(L$1=0,"",OFFSET(データ!$M57,0,L$1-1)) ->  | M56: =IF(M$1=0,"",OFFSET(データ!$M57,0,M$1-1)) ->  | N56: =IF(N$1=0,"",OFFSET(データ!$M57,0,N$1-1)) ->  | O56: =IF(O$1=0,"",OFFSET(データ!$M57,0,O$1-1)) ->  | P56: =IF(P$1=0,"",OFFSET(データ!$M57,0,P$1-1)) ->  | Q56: =IF(Q$1=0,"",OFFSET(データ!$M57,0,Q$1-1)) ->  | R56: =IF(R$1=0,"",OFFSET(データ!$M57,0,R$1-1)) ->  | S56: =IF(S$1=0,"",OFFSET(データ!$M57,0,S$1-1)) ->  | T56: =IF(T$1=0,"",OFFSET(データ!$M57,0,T$1-1)) ->  | U56: =IF(U$1=0,"",OFFSET(データ!$M57,0,U$1-1)) ->  | V56: =IF(V$1=0,"",OFFSET(データ!$M57,0,V$1-1)) -> 
B57: 項目 | C57: 親身になった指導 | D57: =IF(D$1=0,"",OFFSET(データ!$M58,0,D$1-1)) -> 0 | E57: =IF(E$1=0,"",OFFSET(データ!$M58,0,E$1-1)) ->  | F57: =IF(F$1=0,"",OFFSET(データ!$M58,0,F$1-1)) ->  | G57: =IF(G$1=0,"",OFFSET(データ!$M58,0,G$1-1)) ->  | H57: =IF(H$1=0,"",OFFSET(データ!$M58,0,H$1-1)) ->  | I57: =IF(I$1=0,"",OFFSET(データ!$M58,0,I$1-1)) ->  | J57: =IF(J$1=0,"",OFFSET(データ!$M58,0,J$1-1)) ->  | K57: =IF(K$1=0,"",OFFSET(データ!$M58,0,K$1-1)) ->  | L57: =IF(L$1=0,"",OFFSET(データ!$M58,0,L$1-1)) ->  | M57: =IF(M$1=0,"",OFFSET(データ!$M58,0,M$1-1)) ->  | N57: =IF(N$1=0,"",OFFSET(データ!$M58,0,N$1-1)) ->  | O57: =IF(O$1=0,"",OFFSET(データ!$M58,0,O$1-1)) ->  | P57: =IF(P$1=0,"",OFFSET(データ!$M58,0,P$1-1)) ->  | Q57: =IF(Q$1=0,"",OFFSET(データ!$M58,0,Q$1-1)) ->  | R57: =IF(R$1=0,"",OFFSET(データ!$M58,0,R$1-1)) ->  | S57: =IF(S$1=0,"",OFFSET(データ!$M58,0,S$1-1)) ->  | T57: =IF(T$1=0,"",OFFSET(データ!$M58,0,T$1-1)) ->  | U57: =IF(U$1=0,"",OFFSET(データ!$M58,0,U$1-1)) ->  | V57: =IF(V$1=0,"",OFFSET(データ!$M58,0,V$1-1)) -> 
B58: 項目 | C58: 積極的な声かけ | D58: =IF(D$1=0,"",OFFSET(データ!$M59,0,D$1-1)) -> 0 | E58: =IF(E$1=0,"",OFFSET(データ!$M59,0,E$1-1)) ->  | F58: =IF(F$1=0,"",OFFSET(データ!$M59,0,F$1-1)) ->  | G58: =IF(G$1=0,"",OFFSET(データ!$M59,0,G$1-1)) ->  | H58: =IF(H$1=0,"",OFFSET(データ!$M59,0,H$1-1)) ->  | I58: =IF(I$1=0,"",OFFSET(データ!$M59,0,I$1-1)) ->  | J58: =IF(J$1=0,"",OFFSET(データ!$M59,0,J$1-1)) ->  | K58: =IF(K$1=0,"",OFFSET(データ!$M59,0,K$1-1)) ->  | L58: =IF(L$1=0,"",OFFSET(データ!$M59,0,L$1-1)) ->  | M58: =IF(M$1=0,"",OFFSET(データ!$M59,0,M$1-1)) ->  | N58: =IF(N$1=0,"",OFFSET(データ!$M59,0,N$1-1)) ->  | O58: =IF(O$1=0,"",OFFSET(データ!$M59,0,O$1-1)) ->  | P58: =IF(P$1=0,"",OFFSET(データ!$M59,0,P$1-1)) ->  | Q58: =IF(Q$1=0,"",OFFSET(データ!$M59,0,Q$1-1)) ->  | R58: =IF(R$1=0,"",OFFSET(データ!$M59,0,R$1-1)) ->  | S58: =IF(S$1=0,"",OFFSET(データ!$M59,0,S$1-1)) ->  | T58: =IF(T$1=0,"",OFFSET(データ!$M59,0,T$1-1)) ->  | U58: =IF(U$1=0,"",OFFSET(データ!$M59,0,U$1-1)) ->  | V58: =IF(V$1=0,"",OFFSET(データ!$M59,0,V$1-1)) -> 
B59: 項目 | C59: 朝礼の活性化 | D59: =IF(D$1=0,"",OFFSET(データ!$M60,0,D$1-1)) -> 0 | E59: =IF(E$1=0,"",OFFSET(データ!$M60,0,E$1-1)) ->  | F59: =IF(F$1=0,"",OFFSET(データ!$M60,0,F$1-1)) ->  | G59: =IF(G$1=0,"",OFFSET(データ!$M60,0,G$1-1)) ->  | H59: =IF(H$1=0,"",OFFSET(データ!$M60,0,H$1-1)) ->  | I59: =IF(I$1=0,"",OFFSET(データ!$M60,0,I$1-1)) ->  | J59: =IF(J$1=0,"",OFFSET(データ!$M60,0,J$1-1)) ->  | K59: =IF(K$1=0,"",OFFSET(データ!$M60,0,K$1-1)) ->  | L59: =IF(L$1=0,"",OFFSET(データ!$M60,0,L$1-1)) ->  | M59: =IF(M$1=0,"",OFFSET(データ!$M60,0,M$1-1)) ->  | N59: =IF(N$1=0,"",OFFSET(データ!$M60,0,N$1-1)) ->  | O59: =IF(O$1=0,"",OFFSET(データ!$M60,0,O$1-1)) ->  | P59: =IF(P$1=0,"",OFFSET(データ!$M60,0,P$1-1)) ->  | Q59: =IF(Q$1=0,"",OFFSET(データ!$M60,0,Q$1-1)) ->  | R59: =IF(R$1=0,"",OFFSET(データ!$M60,0,R$1-1)) ->  | S59: =IF(S$1=0,"",OFFSET(データ!$M60,0,S$1-1)) ->  | T59: =IF(T$1=0,"",OFFSET(データ!$M60,0,T$1-1)) ->  | U59: =IF(U$1=0,"",OFFSET(データ!$M60,0,U$1-1)) ->  | V59: =IF(V$1=0,"",OFFSET(データ!$M60,0,V$1-1)) -> 
B60: 項目 | C60: 基本行動の指導 | D60: =IF(D$1=0,"",OFFSET(データ!$M61,0,D$1-1)) -> 0 | E60: =IF(E$1=0,"",OFFSET(データ!$M61,0,E$1-1)) ->  | F60: =IF(F$1=0,"",OFFSET(データ!$M61,0,F$1-1)) ->  | G60: =IF(G$1=0,"",OFFSET(データ!$M61,0,G$1-1)) ->  | H60: =IF(H$1=0,"",OFFSET(データ!$M61,0,H$1-1)) ->  | I60: =IF(I$1=0,"",OFFSET(データ!$M61,0,I$1-1)) ->  | J60: =IF(J$1=0,"",OFFSET(データ!$M61,0,J$1-1)) ->  | K60: =IF(K$1=0,"",OFFSET(データ!$M61,0,K$1-1)) ->  | L60: =IF(L$1=0,"",OFFSET(データ!$M61,0,L$1-1)) ->  | M60: =IF(M$1=0,"",OFFSET(データ!$M61,0,M$1-1)) ->  | N60: =IF(N$1=0,"",OFFSET(データ!$M61,0,N$1-1)) ->  | O60: =IF(O$1=0,"",OFFSET(データ!$M61,0,O$1-1)) ->  | P60: =IF(P$1=0,"",OFFSET(データ!$M61,0,P$1-1)) ->  | Q60: =IF(Q$1=0,"",OFFSET(データ!$M61,0,Q$1-1)) ->  | R60: =IF(R$1=0,"",OFFSET(データ!$M61,0,R$1-1)) ->  | S60: =IF(S$1=0,"",OFFSET(データ!$M61,0,S$1-1)) ->  | T60: =IF(T$1=0,"",OFFSET(データ!$M61,0,T$1-1)) ->  | U60: =IF(U$1=0,"",OFFSET(データ!$M61,0,U$1-1)) ->  | V60: =IF(V$1=0,"",OFFSET(データ!$M61,0,V$1-1)) -> 
B61: 項目 | C61: 日々の報告と改善活動 | D61: =IF(D$1=0,"",OFFSET(データ!$M62,0,D$1-1)) -> 0 | E61: =IF(E$1=0,"",OFFSET(データ!$M62,0,E$1-1)) ->  | F61: =IF(F$1=0,"",OFFSET(データ!$M62,0,F$1-1)) ->  | G61: =IF(G$1=0,"",OFFSET(データ!$M62,0,G$1-1)) ->  | H61: =IF(H$1=0,"",OFFSET(データ!$M62,0,H$1-1)) ->  | I61: =IF(I$1=0,"",OFFSET(データ!$M62,0,I$1-1)) ->  | J61: =IF(J$1=0,"",OFFSET(データ!$M62,0,J$1-1)) ->  | K61: =IF(K$1=0,"",OFFSET(データ!$M62,0,K$1-1)) ->  | L61: =IF(L$1=0,"",OFFSET(データ!$M62,0,L$1-1)) ->  | M61: =IF(M$1=0,"",OFFSET(データ!$M62,0,M$1-1)) ->  | N61: =IF(N$1=0,"",OFFSET(データ!$M62,0,N$1-1)) ->  | O61: =IF(O$1=0,"",OFFSET(データ!$M62,0,O$1-1)) ->  | P61: =IF(P$1=0,"",OFFSET(データ!$M62,0,P$1-1)) ->  | Q61: =IF(Q$1=0,"",OFFSET(データ!$M62,0,Q$1-1)) ->  | R61: =IF(R$1=0,"",OFFSET(データ!$M62,0,R$1-1)) ->  | S61: =IF(S$1=0,"",OFFSET(データ!$M62,0,S$1-1)) ->  | T61: =IF(T$1=0,"",OFFSET(データ!$M62,0,T$1-1)) ->  | U61: =IF(U$1=0,"",OFFSET(データ!$M62,0,U$1-1)) ->  | V61: =IF(V$1=0,"",OFFSET(データ!$M62,0,V$1-1)) -> 
B62: 項目 | C62: 生活管理・健康管理 | D62: =IF(D$1=0,"",OFFSET(データ!$M63,0,D$1-1)) -> 0 | E62: =IF(E$1=0,"",OFFSET(データ!$M63,0,E$1-1)) ->  | F62: =IF(F$1=0,"",OFFSET(データ!$M63,0,F$1-1)) ->  | G62: =IF(G$1=0,"",OFFSET(データ!$M63,0,G$1-1)) ->  | H62: =IF(H$1=0,"",OFFSET(データ!$M63,0,H$1-1)) ->  | I62: =IF(I$1=0,"",OFFSET(データ!$M63,0,I$1-1)) ->  | J62: =IF(J$1=0,"",OFFSET(データ!$M63,0,J$1-1)) ->  | K62: =IF(K$1=0,"",OFFSET(データ!$M63,0,K$1-1)) ->  | L62: =IF(L$1=0,"",OFFSET(データ!$M63,0,L$1-1)) ->  | M62: =IF(M$1=0,"",OFFSET(データ!$M63,0,M$1-1)) ->  | N62: =IF(N$1=0,"",OFFSET(データ!$M63,0,N$1-1)) ->  | O62: =IF(O$1=0,"",OFFSET(データ!$M63,0,O$1-1)) ->  | P62: =IF(P$1=0,"",OFFSET(データ!$M63,0,P$1-1)) ->  | Q62: =IF(Q$1=0,"",OFFSET(データ!$M63,0,Q$1-1)) ->  | R62: =IF(R$1=0,"",OFFSET(データ!$M63,0,R$1-1)) ->  | S62: =IF(S$1=0,"",OFFSET(データ!$M63,0,S$1-1)) ->  | T62: =IF(T$1=0,"",OFFSET(データ!$M63,0,T$1-1)) ->  | U62: =IF(U$1=0,"",OFFSET(データ!$M63,0,U$1-1)) ->  | V62: =IF(V$1=0,"",OFFSET(データ!$M63,0,V$1-1)) -> 
B63: 項目 | C63: 改善意欲の醸成 | D63: =IF(D$1=0,"",OFFSET(データ!$M64,0,D$1-1)) -> 0 | E63: =IF(E$1=0,"",OFFSET(データ!$M64,0,E$1-1)) ->  | F63: =IF(F$1=0,"",OFFSET(データ!$M64,0,F$1-1)) ->  | G63: =IF(G$1=0,"",OFFSET(データ!$M64,0,G$1-1)) ->  | H63: =IF(H$1=0,"",OFFSET(データ!$M64,0,H$1-1)) ->  | I63: =IF(I$1=0,"",OFFSET(データ!$M64,0,I$1-1)) ->  | J63: =IF(J$1=0,"",OFFSET(データ!$M64,0,J$1-1)) ->  | K63: =IF(K$1=0,"",OFFSET(データ!$M64,0,K$1-1)) ->  | L63: =IF(L$1=0,"",OFFSET(データ!$M64,0,L$1-1)) ->  | M63: =IF(M$1=0,"",OFFSET(データ!$M64,0,M$1-1)) ->  | N63: =IF(N$1=0,"",OFFSET(データ!$M64,0,N$1-1)) ->  | O63: =IF(O$1=0,"",OFFSET(データ!$M64,0,O$1-1)) ->  | P63: =IF(P$1=0,"",OFFSET(データ!$M64,0,P$1-1)) ->  | Q63: =IF(Q$1=0,"",OFFSET(データ!$M64,0,Q$1-1)) ->  | R63: =IF(R$1=0,"",OFFSET(データ!$M64,0,R$1-1)) ->  | S63: =IF(S$1=0,"",OFFSET(データ!$M64,0,S$1-1)) ->  | T63: =IF(T$1=0,"",OFFSET(データ!$M64,0,T$1-1)) ->  | U63: =IF(U$1=0,"",OFFSET(データ!$M64,0,U$1-1)) ->  | V63: =IF(V$1=0,"",OFFSET(データ!$M64,0,V$1-1)) -> 
B64: 項目 | C64: ミーティング（班活動等）の充実 | D64: =IF(D$1=0,"",OFFSET(データ!$M65,0,D$1-1)) -> 0 | E64: =IF(E$1=0,"",OFFSET(データ!$M65,0,E$1-1)) ->  | F64: =IF(F$1=0,"",OFFSET(データ!$M65,0,F$1-1)) ->  | G64: =IF(G$1=0,"",OFFSET(データ!$M65,0,G$1-1)) ->  | H64: =IF(H$1=0,"",OFFSET(データ!$M65,0,H$1-1)) ->  | I64: =IF(I$1=0,"",OFFSET(データ!$M65,0,I$1-1)) ->  | J64: =IF(J$1=0,"",OFFSET(データ!$M65,0,J$1-1)) ->  | K64: =IF(K$1=0,"",OFFSET(データ!$M65,0,K$1-1)) ->  | L64: =IF(L$1=0,"",OFFSET(データ!$M65,0,L$1-1)) ->  | M64: =IF(M$1=0,"",OFFSET(データ!$M65,0,M$1-1)) ->  | N64: =IF(N$1=0,"",OFFSET(データ!$M65,0,N$1-1)) ->  | O64: =IF(O$1=0,"",OFFSET(データ!$M65,0,O$1-1)) ->  | P64: =IF(P$1=0,"",OFFSET(データ!$M65,0,P$1-1)) ->  | Q64: =IF(Q$1=0,"",OFFSET(データ!$M65,0,Q$1-1)) ->  | R64: =IF(R$1=0,"",OFFSET(データ!$M65,0,R$1-1)) ->  | S64: =IF(S$1=0,"",OFFSET(データ!$M65,0,S$1-1)) ->  | T64: =IF(T$1=0,"",OFFSET(データ!$M65,0,T$1-1)) ->  | U64: =IF(U$1=0,"",OFFSET(データ!$M65,0,U$1-1)) ->  | V64: =IF(V$1=0,"",OFFSET(データ!$M65,0,V$1-1)) -> 
B65: 項目 | C65: 現場ﾊﾟﾄﾛｰﾙ・立会の充実 | D65: =IF(D$1=0,"",OFFSET(データ!$M66,0,D$1-1)) -> 0 | E65: =IF(E$1=0,"",OFFSET(データ!$M66,0,E$1-1)) ->  | F65: =IF(F$1=0,"",OFFSET(データ!$M66,0,F$1-1)) ->  | G65: =IF(G$1=0,"",OFFSET(データ!$M66,0,G$1-1)) ->  | H65: =IF(H$1=0,"",OFFSET(データ!$M66,0,H$1-1)) ->  | I65: =IF(I$1=0,"",OFFSET(データ!$M66,0,I$1-1)) ->  | J65: =IF(J$1=0,"",OFFSET(データ!$M66,0,J$1-1)) ->  | K65: =IF(K$1=0,"",OFFSET(データ!$M66,0,K$1-1)) ->  | L65: =IF(L$1=0,"",OFFSET(データ!$M66,0,L$1-1)) ->  | M65: =IF(M$1=0,"",OFFSET(データ!$M66,0,M$1-1)) ->  | N65: =IF(N$1=0,"",OFFSET(データ!$M66,0,N$1-1)) ->  | O65: =IF(O$1=0,"",OFFSET(データ!$M66,0,O$1-1)) ->  | P65: =IF(P$1=0,"",OFFSET(データ!$M66,0,P$1-1)) ->  | Q65: =IF(Q$1=0,"",OFFSET(データ!$M66,0,Q$1-1)) ->  | R65: =IF(R$1=0,"",OFFSET(データ!$M66,0,R$1-1)) ->  | S65: =IF(S$1=0,"",OFFSET(データ!$M66,0,S$1-1)) ->  | T65: =IF(T$1=0,"",OFFSET(データ!$M66,0,T$1-1)) ->  | U65: =IF(U$1=0,"",OFFSET(データ!$M66,0,U$1-1)) ->  | V65: =IF(V$1=0,"",OFFSET(データ!$M66,0,V$1-1)) -> 
B66: 項目 | C66: 健康 | D66: =IF(D$1=0,"",OFFSET(データ!$M67,0,D$1-1)) -> 0 | E66: =IF(E$1=0,"",OFFSET(データ!$M67,0,E$1-1)) ->  | F66: =IF(F$1=0,"",OFFSET(データ!$M67,0,F$1-1)) ->  | G66: =IF(G$1=0,"",OFFSET(データ!$M67,0,G$1-1)) ->  | H66: =IF(H$1=0,"",OFFSET(データ!$M67,0,H$1-1)) ->  | I66: =IF(I$1=0,"",OFFSET(データ!$M67,0,I$1-1)) ->  | J66: =IF(J$1=0,"",OFFSET(データ!$M67,0,J$1-1)) ->  | K66: =IF(K$1=0,"",OFFSET(データ!$M67,0,K$1-1)) ->  | L66: =IF(L$1=0,"",OFFSET(データ!$M67,0,L$1-1)) ->  | M66: =IF(M$1=0,"",OFFSET(データ!$M67,0,M$1-1)) ->  | N66: =IF(N$1=0,"",OFFSET(データ!$M67,0,N$1-1)) ->  | O66: =IF(O$1=0,"",OFFSET(データ!$M67,0,O$1-1)) ->  | P66: =IF(P$1=0,"",OFFSET(データ!$M67,0,P$1-1)) ->  | Q66: =IF(Q$1=0,"",OFFSET(データ!$M67,0,Q$1-1)) ->  | R66: =IF(R$1=0,"",OFFSET(データ!$M67,0,R$1-1)) ->  | S66: =IF(S$1=0,"",OFFSET(データ!$M67,0,S$1-1)) ->  | T66: =IF(T$1=0,"",OFFSET(データ!$M67,0,T$1-1)) ->  | U66: =IF(U$1=0,"",OFFSET(データ!$M67,0,U$1-1)) ->  | V66: =IF(V$1=0,"",OFFSET(データ!$M67,0,V$1-1)) -> 
B67: 項目 | C67: あいさつ | D67: =IF(D$1=0,"",OFFSET(データ!$M68,0,D$1-1)) -> 0 | E67: =IF(E$1=0,"",OFFSET(データ!$M68,0,E$1-1)) ->  | F67: =IF(F$1=0,"",OFFSET(データ!$M68,0,F$1-1)) ->  | G67: =IF(G$1=0,"",OFFSET(データ!$M68,0,G$1-1)) ->  | H67: =IF(H$1=0,"",OFFSET(データ!$M68,0,H$1-1)) ->  | I67: =IF(I$1=0,"",OFFSET(データ!$M68,0,I$1-1)) ->  | J67: =IF(J$1=0,"",OFFSET(データ!$M68,0,J$1-1)) ->  | K67: =IF(K$1=0,"",OFFSET(データ!$M68,0,K$1-1)) ->  | L67: =IF(L$1=0,"",OFFSET(データ!$M68,0,L$1-1)) ->  | M67: =IF(M$1=0,"",OFFSET(データ!$M68,0,M$1-1)) ->  | N67: =IF(N$1=0,"",OFFSET(データ!$M68,0,N$1-1)) ->  | O67: =IF(O$1=0,"",OFFSET(データ!$M68,0,O$1-1)) ->  | P67: =IF(P$1=0,"",OFFSET(データ!$M68,0,P$1-1)) ->  | Q67: =IF(Q$1=0,"",OFFSET(データ!$M68,0,Q$1-1)) ->  | R67: =IF(R$1=0,"",OFFSET(データ!$M68,0,R$1-1)) ->  | S67: =IF(S$1=0,"",OFFSET(データ!$M68,0,S$1-1)) ->  | T67: =IF(T$1=0,"",OFFSET(データ!$M68,0,T$1-1)) ->  | U67: =IF(U$1=0,"",OFFSET(データ!$M68,0,U$1-1)) ->  | V67: =IF(V$1=0,"",OFFSET(データ!$M68,0,V$1-1)) -> 
B68: 項目 | C68: 約束 | D68: =IF(D$1=0,"",OFFSET(データ!$M69,0,D$1-1)) -> 0 | E68: =IF(E$1=0,"",OFFSET(データ!$M69,0,E$1-1)) ->  | F68: =IF(F$1=0,"",OFFSET(データ!$M69,0,F$1-1)) ->  | G68: =IF(G$1=0,"",OFFSET(データ!$M69,0,G$1-1)) ->  | H68: =IF(H$1=0,"",OFFSET(データ!$M69,0,H$1-1)) ->  | I68: =IF(I$1=0,"",OFFSET(データ!$M69,0,I$1-1)) ->  | J68: =IF(J$1=0,"",OFFSET(データ!$M69,0,J$1-1)) ->  | K68: =IF(K$1=0,"",OFFSET(データ!$M69,0,K$1-1)) ->  | L68: =IF(L$1=0,"",OFFSET(データ!$M69,0,L$1-1)) ->  | M68: =IF(M$1=0,"",OFFSET(データ!$M69,0,M$1-1)) ->  | N68: =IF(N$1=0,"",OFFSET(データ!$M69,0,N$1-1)) ->  | O68: =IF(O$1=0,"",OFFSET(データ!$M69,0,O$1-1)) ->  | P68: =IF(P$1=0,"",OFFSET(データ!$M69,0,P$1-1)) ->  | Q68: =IF(Q$1=0,"",OFFSET(データ!$M69,0,Q$1-1)) ->  | R68: =IF(R$1=0,"",OFFSET(データ!$M69,0,R$1-1)) ->  | S68: =IF(S$1=0,"",OFFSET(データ!$M69,0,S$1-1)) ->  | T68: =IF(T$1=0,"",OFFSET(データ!$M69,0,T$1-1)) ->  | U68: =IF(U$1=0,"",OFFSET(データ!$M69,0,U$1-1)) ->  | V68: =IF(V$1=0,"",OFFSET(データ!$M69,0,V$1-1)) -> 
B69: 項目 | C69: 計画 | D69: =IF(D$1=0,"",OFFSET(データ!$M70,0,D$1-1)) -> 0 | E69: =IF(E$1=0,"",OFFSET(データ!$M70,0,E$1-1)) ->  | F69: =IF(F$1=0,"",OFFSET(データ!$M70,0,F$1-1)) ->  | G69: =IF(G$1=0,"",OFFSET(データ!$M70,0,G$1-1)) ->  | H69: =IF(H$1=0,"",OFFSET(データ!$M70,0,H$1-1)) ->  | I69: =IF(I$1=0,"",OFFSET(データ!$M70,0,I$1-1)) ->  | J69: =IF(J$1=0,"",OFFSET(データ!$M70,0,J$1-1)) ->  | K69: =IF(K$1=0,"",OFFSET(データ!$M70,0,K$1-1)) ->  | L69: =IF(L$1=0,"",OFFSET(データ!$M70,0,L$1-1)) ->  | M69: =IF(M$1=0,"",OFFSET(データ!$M70,0,M$1-1)) ->  | N69: =IF(N$1=0,"",OFFSET(データ!$M70,0,N$1-1)) ->  | O69: =IF(O$1=0,"",OFFSET(データ!$M70,0,O$1-1)) ->  | P69: =IF(P$1=0,"",OFFSET(データ!$M70,0,P$1-1)) ->  | Q69: =IF(Q$1=0,"",OFFSET(データ!$M70,0,Q$1-1)) ->  | R69: =IF(R$1=0,"",OFFSET(データ!$M70,0,R$1-1)) ->  | S69: =IF(S$1=0,"",OFFSET(データ!$M70,0,S$1-1)) ->  | T69: =IF(T$1=0,"",OFFSET(データ!$M70,0,T$1-1)) ->  | U69: =IF(U$1=0,"",OFFSET(データ!$M70,0,U$1-1)) ->  | V69: =IF(V$1=0,"",OFFSET(データ!$M70,0,V$1-1)) -> 
B70: 項目 | C70: 報告 | D70: =IF(D$1=0,"",OFFSET(データ!$M71,0,D$1-1)) -> 0 | E70: =IF(E$1=0,"",OFFSET(データ!$M71,0,E$1-1)) ->  | F70: =IF(F$1=0,"",OFFSET(データ!$M71,0,F$1-1)) ->  | G70: =IF(G$1=0,"",OFFSET(データ!$M71,0,G$1-1)) ->  | H70: =IF(H$1=0,"",OFFSET(データ!$M71,0,H$1-1)) ->  | I70: =IF(I$1=0,"",OFFSET(データ!$M71,0,I$1-1)) ->  | J70: =IF(J$1=0,"",OFFSET(データ!$M71,0,J$1-1)) ->  | K70: =IF(K$1=0,"",OFFSET(データ!$M71,0,K$1-1)) ->  | L70: =IF(L$1=0,"",OFFSET(データ!$M71,0,L$1-1)) ->  | M70: =IF(M$1=0,"",OFFSET(データ!$M71,0,M$1-1)) ->  | N70: =IF(N$1=0,"",OFFSET(データ!$M71,0,N$1-1)) ->  | O70: =IF(O$1=0,"",OFFSET(データ!$M71,0,O$1-1)) ->  | P70: =IF(P$1=0,"",OFFSET(データ!$M71,0,P$1-1)) ->  | Q70: =IF(Q$1=0,"",OFFSET(データ!$M71,0,Q$1-1)) ->  | R70: =IF(R$1=0,"",OFFSET(データ!$M71,0,R$1-1)) ->  | S70: =IF(S$1=0,"",OFFSET(データ!$M71,0,S$1-1)) ->  | T70: =IF(T$1=0,"",OFFSET(データ!$M71,0,T$1-1)) ->  | U70: =IF(U$1=0,"",OFFSET(データ!$M71,0,U$1-1)) ->  | V70: =IF(V$1=0,"",OFFSET(データ!$M71,0,V$1-1)) -> 
B71: 項目 | C71: 終業 | D71: =IF(D$1=0,"",OFFSET(データ!$M72,0,D$1-1)) -> 0 | E71: =IF(E$1=0,"",OFFSET(データ!$M72,0,E$1-1)) ->  | F71: =IF(F$1=0,"",OFFSET(データ!$M72,0,F$1-1)) ->  | G71: =IF(G$1=0,"",OFFSET(データ!$M72,0,G$1-1)) ->  | H71: =IF(H$1=0,"",OFFSET(データ!$M72,0,H$1-1)) ->  | I71: =IF(I$1=0,"",OFFSET(データ!$M72,0,I$1-1)) ->  | J71: =IF(J$1=0,"",OFFSET(データ!$M72,0,J$1-1)) ->  | K71: =IF(K$1=0,"",OFFSET(データ!$M72,0,K$1-1)) ->  | L71: =IF(L$1=0,"",OFFSET(データ!$M72,0,L$1-1)) ->  | M71: =IF(M$1=0,"",OFFSET(データ!$M72,0,M$1-1)) ->  | N71: =IF(N$1=0,"",OFFSET(データ!$M72,0,N$1-1)) ->  | O71: =IF(O$1=0,"",OFFSET(データ!$M72,0,O$1-1)) ->  | P71: =IF(P$1=0,"",OFFSET(データ!$M72,0,P$1-1)) ->  | Q71: =IF(Q$1=0,"",OFFSET(データ!$M72,0,Q$1-1)) ->  | R71: =IF(R$1=0,"",OFFSET(データ!$M72,0,R$1-1)) ->  | S71: =IF(S$1=0,"",OFFSET(データ!$M72,0,S$1-1)) ->  | T71: =IF(T$1=0,"",OFFSET(データ!$M72,0,T$1-1)) ->  | U71: =IF(U$1=0,"",OFFSET(データ!$M72,0,U$1-1)) ->  | V71: =IF(V$1=0,"",OFFSET(データ!$M72,0,V$1-1)) -> 
B72: 項目 | C72: 仕事 | D72: =IF(D$1=0,"",OFFSET(データ!$M73,0,D$1-1)) -> 0 | E72: =IF(E$1=0,"",OFFSET(データ!$M73,0,E$1-1)) ->  | F72: =IF(F$1=0,"",OFFSET(データ!$M73,0,F$1-1)) ->  | G72: =IF(G$1=0,"",OFFSET(データ!$M73,0,G$1-1)) ->  | H72: =IF(H$1=0,"",OFFSET(データ!$M73,0,H$1-1)) ->  | I72: =IF(I$1=0,"",OFFSET(データ!$M73,0,I$1-1)) ->  | J72: =IF(J$1=0,"",OFFSET(データ!$M73,0,J$1-1)) ->  | K72: =IF(K$1=0,"",OFFSET(データ!$M73,0,K$1-1)) ->  | L72: =IF(L$1=0,"",OFFSET(データ!$M73,0,L$1-1)) ->  | M72: =IF(M$1=0,"",OFFSET(データ!$M73,0,M$1-1)) ->  | N72: =IF(N$1=0,"",OFFSET(データ!$M73,0,N$1-1)) ->  | O72: =IF(O$1=0,"",OFFSET(データ!$M73,0,O$1-1)) ->  | P72: =IF(P$1=0,"",OFFSET(データ!$M73,0,P$1-1)) ->  | Q72: =IF(Q$1=0,"",OFFSET(データ!$M73,0,Q$1-1)) ->  | R72: =IF(R$1=0,"",OFFSET(データ!$M73,0,R$1-1)) ->  | S72: =IF(S$1=0,"",OFFSET(データ!$M73,0,S$1-1)) ->  | T72: =IF(T$1=0,"",OFFSET(データ!$M73,0,T$1-1)) ->  | U72: =IF(U$1=0,"",OFFSET(データ!$M73,0,U$1-1)) ->  | V72: =IF(V$1=0,"",OFFSET(データ!$M73,0,V$1-1)) -> 
B73: 項目 | C73: 車両・機材・施設 | D73: =IF(D$1=0,"",OFFSET(データ!$M74,0,D$1-1)) -> 0 | E73: =IF(E$1=0,"",OFFSET(データ!$M74,0,E$1-1)) ->  | F73: =IF(F$1=0,"",OFFSET(データ!$M74,0,F$1-1)) ->  | G73: =IF(G$1=0,"",OFFSET(データ!$M74,0,G$1-1)) ->  | H73: =IF(H$1=0,"",OFFSET(データ!$M74,0,H$1-1)) ->  | I73: =IF(I$1=0,"",OFFSET(データ!$M74,0,I$1-1)) ->  | J73: =IF(J$1=0,"",OFFSET(データ!$M74,0,J$1-1)) ->  | K73: =IF(K$1=0,"",OFFSET(データ!$M74,0,K$1-1)) ->  | L73: =IF(L$1=0,"",OFFSET(データ!$M74,0,L$1-1)) ->  | M73: =IF(M$1=0,"",OFFSET(データ!$M74,0,M$1-1)) ->  | N73: =IF(N$1=0,"",OFFSET(データ!$M74,0,N$1-1)) ->  | O73: =IF(O$1=0,"",OFFSET(データ!$M74,0,O$1-1)) ->  | P73: =IF(P$1=0,"",OFFSET(データ!$M74,0,P$1-1)) ->  | Q73: =IF(Q$1=0,"",OFFSET(データ!$M74,0,Q$1-1)) ->  | R73: =IF(R$1=0,"",OFFSET(データ!$M74,0,R$1-1)) ->  | S73: =IF(S$1=0,"",OFFSET(データ!$M74,0,S$1-1)) ->  | T73: =IF(T$1=0,"",OFFSET(データ!$M74,0,T$1-1)) ->  | U73: =IF(U$1=0,"",OFFSET(データ!$M74,0,U$1-1)) ->  | V73: =IF(V$1=0,"",OFFSET(データ!$M74,0,V$1-1)) -> 
B74: 項目 | C74: 会議・会合 | D74: =IF(D$1=0,"",OFFSET(データ!$M75,0,D$1-1)) -> 0 | E74: =IF(E$1=0,"",OFFSET(データ!$M75,0,E$1-1)) ->  | F74: =IF(F$1=0,"",OFFSET(データ!$M75,0,F$1-1)) ->  | G74: =IF(G$1=0,"",OFFSET(データ!$M75,0,G$1-1)) ->  | H74: =IF(H$1=0,"",OFFSET(データ!$M75,0,H$1-1)) ->  | I74: =IF(I$1=0,"",OFFSET(データ!$M75,0,I$1-1)) ->  | J74: =IF(J$1=0,"",OFFSET(データ!$M75,0,J$1-1)) ->  | K74: =IF(K$1=0,"",OFFSET(データ!$M75,0,K$1-1)) ->  | L74: =IF(L$1=0,"",OFFSET(データ!$M75,0,L$1-1)) ->  | M74: =IF(M$1=0,"",OFFSET(データ!$M75,0,M$1-1)) ->  | N74: =IF(N$1=0,"",OFFSET(データ!$M75,0,N$1-1)) ->  | O74: =IF(O$1=0,"",OFFSET(データ!$M75,0,O$1-1)) ->  | P74: =IF(P$1=0,"",OFFSET(データ!$M75,0,P$1-1)) ->  | Q74: =IF(Q$1=0,"",OFFSET(データ!$M75,0,Q$1-1)) ->  | R74: =IF(R$1=0,"",OFFSET(データ!$M75,0,R$1-1)) ->  | S74: =IF(S$1=0,"",OFFSET(データ!$M75,0,S$1-1)) ->  | T74: =IF(T$1=0,"",OFFSET(データ!$M75,0,T$1-1)) ->  | U74: =IF(U$1=0,"",OFFSET(データ!$M75,0,U$1-1)) ->  | V74: =IF(V$1=0,"",OFFSET(データ!$M75,0,V$1-1)) -> 
B75: 項目 | C75: 出勤 | D75: =IF(D$1=0,"",OFFSET(データ!$M76,0,D$1-1)) -> 0 | E75: =IF(E$1=0,"",OFFSET(データ!$M76,0,E$1-1)) ->  | F75: =IF(F$1=0,"",OFFSET(データ!$M76,0,F$1-1)) ->  | G75: =IF(G$1=0,"",OFFSET(データ!$M76,0,G$1-1)) ->  | H75: =IF(H$1=0,"",OFFSET(データ!$M76,0,H$1-1)) ->  | I75: =IF(I$1=0,"",OFFSET(データ!$M76,0,I$1-1)) ->  | J75: =IF(J$1=0,"",OFFSET(データ!$M76,0,J$1-1)) ->  | K75: =IF(K$1=0,"",OFFSET(データ!$M76,0,K$1-1)) ->  | L75: =IF(L$1=0,"",OFFSET(データ!$M76,0,L$1-1)) ->  | M75: =IF(M$1=0,"",OFFSET(データ!$M76,0,M$1-1)) ->  | N75: =IF(N$1=0,"",OFFSET(データ!$M76,0,N$1-1)) ->  | O75: =IF(O$1=0,"",OFFSET(データ!$M76,0,O$1-1)) ->  | P75: =IF(P$1=0,"",OFFSET(データ!$M76,0,P$1-1)) ->  | Q75: =IF(Q$1=0,"",OFFSET(データ!$M76,0,Q$1-1)) ->  | R75: =IF(R$1=0,"",OFFSET(データ!$M76,0,R$1-1)) ->  | S75: =IF(S$1=0,"",OFFSET(データ!$M76,0,S$1-1)) ->  | T75: =IF(T$1=0,"",OFFSET(データ!$M76,0,T$1-1)) ->  | U75: =IF(U$1=0,"",OFFSET(データ!$M76,0,U$1-1)) ->  | V75: =IF(V$1=0,"",OFFSET(データ!$M76,0,V$1-1)) -> 
B76: 項目 | C76: 上役 | D76: =IF(D$1=0,"",OFFSET(データ!$M77,0,D$1-1)) -> 0 | E76: =IF(E$1=0,"",OFFSET(データ!$M77,0,E$1-1)) ->  | F76: =IF(F$1=0,"",OFFSET(データ!$M77,0,F$1-1)) ->  | G76: =IF(G$1=0,"",OFFSET(データ!$M77,0,G$1-1)) ->  | H76: =IF(H$1=0,"",OFFSET(データ!$M77,0,H$1-1)) ->  | I76: =IF(I$1=0,"",OFFSET(データ!$M77,0,I$1-1)) ->  | J76: =IF(J$1=0,"",OFFSET(データ!$M77,0,J$1-1)) ->  | K76: =IF(K$1=0,"",OFFSET(データ!$M77,0,K$1-1)) ->  | L76: =IF(L$1=0,"",OFFSET(データ!$M77,0,L$1-1)) ->  | M76: =IF(M$1=0,"",OFFSET(データ!$M77,0,M$1-1)) ->  | N76: =IF(N$1=0,"",OFFSET(データ!$M77,0,N$1-1)) ->  | O76: =IF(O$1=0,"",OFFSET(データ!$M77,0,O$1-1)) ->  | P76: =IF(P$1=0,"",OFFSET(データ!$M77,0,P$1-1)) ->  | Q76: =IF(Q$1=0,"",OFFSET(データ!$M77,0,Q$1-1)) ->  | R76: =IF(R$1=0,"",OFFSET(データ!$M77,0,R$1-1)) ->  | S76: =IF(S$1=0,"",OFFSET(データ!$M77,0,S$1-1)) ->  | T76: =IF(T$1=0,"",OFFSET(データ!$M77,0,T$1-1)) ->  | U76: =IF(U$1=0,"",OFFSET(データ!$M77,0,U$1-1)) ->  | V76: =IF(V$1=0,"",OFFSET(データ!$M77,0,V$1-1)) -> 
B77: 項目 | C77: 先輩 | D77: =IF(D$1=0,"",OFFSET(データ!$M78,0,D$1-1)) -> 0 | E77: =IF(E$1=0,"",OFFSET(データ!$M78,0,E$1-1)) ->  | F77: =IF(F$1=0,"",OFFSET(データ!$M78,0,F$1-1)) ->  | G77: =IF(G$1=0,"",OFFSET(データ!$M78,0,G$1-1)) ->  | H77: =IF(H$1=0,"",OFFSET(データ!$M78,0,H$1-1)) ->  | I77: =IF(I$1=0,"",OFFSET(データ!$M78,0,I$1-1)) ->  | J77: =IF(J$1=0,"",OFFSET(データ!$M78,0,J$1-1)) ->  | K77: =IF(K$1=0,"",OFFSET(データ!$M78,0,K$1-1)) ->  | L77: =IF(L$1=0,"",OFFSET(データ!$M78,0,L$1-1)) ->  | M77: =IF(M$1=0,"",OFFSET(データ!$M78,0,M$1-1)) ->  | N77: =IF(N$1=0,"",OFFSET(データ!$M78,0,N$1-1)) ->  | O77: =IF(O$1=0,"",OFFSET(データ!$M78,0,O$1-1)) ->  | P77: =IF(P$1=0,"",OFFSET(データ!$M78,0,P$1-1)) ->  | Q77: =IF(Q$1=0,"",OFFSET(データ!$M78,0,Q$1-1)) ->  | R77: =IF(R$1=0,"",OFFSET(データ!$M78,0,R$1-1)) ->  | S77: =IF(S$1=0,"",OFFSET(データ!$M78,0,S$1-1)) ->  | T77: =IF(T$1=0,"",OFFSET(データ!$M78,0,T$1-1)) ->  | U77: =IF(U$1=0,"",OFFSET(データ!$M78,0,U$1-1)) ->  | V77: =IF(V$1=0,"",OFFSET(データ!$M78,0,V$1-1)) -> 
B78: 項目 | C78: 職場仲間 | D78: =IF(D$1=0,"",OFFSET(データ!$M79,0,D$1-1)) -> 0 | E78: =IF(E$1=0,"",OFFSET(データ!$M79,0,E$1-1)) ->  | F78: =IF(F$1=0,"",OFFSET(データ!$M79,0,F$1-1)) ->  | G78: =IF(G$1=0,"",OFFSET(データ!$M79,0,G$1-1)) ->  | H78: =IF(H$1=0,"",OFFSET(データ!$M79,0,H$1-1)) ->  | I78: =IF(I$1=0,"",OFFSET(データ!$M79,0,I$1-1)) ->  | J78: =IF(J$1=0,"",OFFSET(データ!$M79,0,J$1-1)) ->  | K78: =IF(K$1=0,"",OFFSET(データ!$M79,0,K$1-1)) ->  | L78: =IF(L$1=0,"",OFFSET(データ!$M79,0,L$1-1)) ->  | M78: =IF(M$1=0,"",OFFSET(データ!$M79,0,M$1-1)) ->  | N78: =IF(N$1=0,"",OFFSET(データ!$M79,0,N$1-1)) ->  | O78: =IF(O$1=0,"",OFFSET(データ!$M79,0,O$1-1)) ->  | P78: =IF(P$1=0,"",OFFSET(データ!$M79,0,P$1-1)) ->  | Q78: =IF(Q$1=0,"",OFFSET(データ!$M79,0,Q$1-1)) ->  | R78: =IF(R$1=0,"",OFFSET(データ!$M79,0,R$1-1)) ->  | S78: =IF(S$1=0,"",OFFSET(データ!$M79,0,S$1-1)) ->  | T78: =IF(T$1=0,"",OFFSET(データ!$M79,0,T$1-1)) ->  | U78: =IF(U$1=0,"",OFFSET(データ!$M79,0,U$1-1)) ->  | V78: =IF(V$1=0,"",OFFSET(データ!$M79,0,V$1-1)) -> 
B79: 項目 | C79: 部下 | D79: =IF(D$1=0,"",OFFSET(データ!$M80,0,D$1-1)) -> 0 | E79: =IF(E$1=0,"",OFFSET(データ!$M80,0,E$1-1)) ->  | F79: =IF(F$1=0,"",OFFSET(データ!$M80,0,F$1-1)) ->  | G79: =IF(G$1=0,"",OFFSET(データ!$M80,0,G$1-1)) ->  | H79: =IF(H$1=0,"",OFFSET(データ!$M80,0,H$1-1)) ->  | I79: =IF(I$1=0,"",OFFSET(データ!$M80,0,I$1-1)) ->  | J79: =IF(J$1=0,"",OFFSET(データ!$M80,0,J$1-1)) ->  | K79: =IF(K$1=0,"",OFFSET(データ!$M80,0,K$1-1)) ->  | L79: =IF(L$1=0,"",OFFSET(データ!$M80,0,L$1-1)) ->  | M79: =IF(M$1=0,"",OFFSET(データ!$M80,0,M$1-1)) ->  | N79: =IF(N$1=0,"",OFFSET(データ!$M80,0,N$1-1)) ->  | O79: =IF(O$1=0,"",OFFSET(データ!$M80,0,O$1-1)) ->  | P79: =IF(P$1=0,"",OFFSET(データ!$M80,0,P$1-1)) ->  | Q79: =IF(Q$1=0,"",OFFSET(データ!$M80,0,Q$1-1)) ->  | R79: =IF(R$1=0,"",OFFSET(データ!$M80,0,R$1-1)) ->  | S79: =IF(S$1=0,"",OFFSET(データ!$M80,0,S$1-1)) ->  | T79: =IF(T$1=0,"",OFFSET(データ!$M80,0,T$1-1)) ->  | U79: =IF(U$1=0,"",OFFSET(データ!$M80,0,U$1-1)) ->  | V79: =IF(V$1=0,"",OFFSET(データ!$M80,0,V$1-1)) -> 
B80: Ⅴ | C80: 1.2点以上 | D80: =IF(D$1=0,"",OFFSET(データ!$M81,0,D$1-1)) -> 0 | E80: =IF(E$1=0,"",OFFSET(データ!$M81,0,E$1-1)) ->  | F80: =IF(F$1=0,"",OFFSET(データ!$M81,0,F$1-1)) ->  | G80: =IF(G$1=0,"",OFFSET(データ!$M81,0,G$1-1)) ->  | H80: =IF(H$1=0,"",OFFSET(データ!$M81,0,H$1-1)) ->  | I80: =IF(I$1=0,"",OFFSET(データ!$M81,0,I$1-1)) ->  | J80: =IF(J$1=0,"",OFFSET(データ!$M81,0,J$1-1)) ->  | K80: =IF(K$1=0,"",OFFSET(データ!$M81,0,K$1-1)) ->  | L80: =IF(L$1=0,"",OFFSET(データ!$M81,0,L$1-1)) ->  | M80: =IF(M$1=0,"",OFFSET(データ!$M81,0,M$1-1)) ->  | N80: =IF(N$1=0,"",OFFSET(データ!$M81,0,N$1-1)) ->  | O80: =IF(O$1=0,"",OFFSET(データ!$M81,0,O$1-1)) ->  | P80: =IF(P$1=0,"",OFFSET(データ!$M81,0,P$1-1)) ->  | Q80: =IF(Q$1=0,"",OFFSET(データ!$M81,0,Q$1-1)) ->  | R80: =IF(R$1=0,"",OFFSET(データ!$M81,0,R$1-1)) ->  | S80: =IF(S$1=0,"",OFFSET(データ!$M81,0,S$1-1)) ->  | T80: =IF(T$1=0,"",OFFSET(データ!$M81,0,T$1-1)) ->  | U80: =IF(U$1=0,"",OFFSET(データ!$M81,0,U$1-1)) ->  | V80: =IF(V$1=0,"",OFFSET(データ!$M81,0,V$1-1)) -> 
C81: 1.0点以上1.2点未満 | D81: =IF(D$1=0,"",OFFSET(データ!$M82,0,D$1-1)) -> 0 | E81: =IF(E$1=0,"",OFFSET(データ!$M82,0,E$1-1)) ->  | F81: =IF(F$1=0,"",OFFSET(データ!$M82,0,F$1-1)) ->  | G81: =IF(G$1=0,"",OFFSET(データ!$M82,0,G$1-1)) ->  | H81: =IF(H$1=0,"",OFFSET(データ!$M82,0,H$1-1)) ->  | I81: =IF(I$1=0,"",OFFSET(データ!$M82,0,I$1-1)) ->  | J81: =IF(J$1=0,"",OFFSET(データ!$M82,0,J$1-1)) ->  | K81: =IF(K$1=0,"",OFFSET(データ!$M82,0,K$1-1)) ->  | L81: =IF(L$1=0,"",OFFSET(データ!$M82,0,L$1-1)) ->  | M81: =IF(M$1=0,"",OFFSET(データ!$M82,0,M$1-1)) ->  | N81: =IF(N$1=0,"",OFFSET(データ!$M82,0,N$1-1)) ->  | O81: =IF(O$1=0,"",OFFSET(データ!$M82,0,O$1-1)) ->  | P81: =IF(P$1=0,"",OFFSET(データ!$M82,0,P$1-1)) ->  | Q81: =IF(Q$1=0,"",OFFSET(データ!$M82,0,Q$1-1)) ->  | R81: =IF(R$1=0,"",OFFSET(データ!$M82,0,R$1-1)) ->  | S81: =IF(S$1=0,"",OFFSET(データ!$M82,0,S$1-1)) ->  | T81: =IF(T$1=0,"",OFFSET(データ!$M82,0,T$1-1)) ->  | U81: =IF(U$1=0,"",OFFSET(データ!$M82,0,U$1-1)) ->  | V81: =IF(V$1=0,"",OFFSET(データ!$M82,0,V$1-1)) -> 
C82: 0.4点以上1.0点未満 | D82: =IF(D$1=0,"",OFFSET(データ!$M83,0,D$1-1)) -> 0 | E82: =IF(E$1=0,"",OFFSET(データ!$M83,0,E$1-1)) ->  | F82: =IF(F$1=0,"",OFFSET(データ!$M83,0,F$1-1)) ->  | G82: =IF(G$1=0,"",OFFSET(データ!$M83,0,G$1-1)) ->  | H82: =IF(H$1=0,"",OFFSET(データ!$M83,0,H$1-1)) ->  | I82: =IF(I$1=0,"",OFFSET(データ!$M83,0,I$1-1)) ->  | J82: =IF(J$1=0,"",OFFSET(データ!$M83,0,J$1-1)) ->  | K82: =IF(K$1=0,"",OFFSET(データ!$M83,0,K$1-1)) ->  | L82: =IF(L$1=0,"",OFFSET(データ!$M83,0,L$1-1)) ->  | M82: =IF(M$1=0,"",OFFSET(データ!$M83,0,M$1-1)) ->  | N82: =IF(N$1=0,"",OFFSET(データ!$M83,0,N$1-1)) ->  | O82: =IF(O$1=0,"",OFFSET(データ!$M83,0,O$1-1)) ->  | P82: =IF(P$1=0,"",OFFSET(データ!$M83,0,P$1-1)) ->  | Q82: =IF(Q$1=0,"",OFFSET(データ!$M83,0,Q$1-1)) ->  | R82: =IF(R$1=0,"",OFFSET(データ!$M83,0,R$1-1)) ->  | S82: =IF(S$1=0,"",OFFSET(データ!$M83,0,S$1-1)) ->  | T82: =IF(T$1=0,"",OFFSET(データ!$M83,0,T$1-1)) ->  | U82: =IF(U$1=0,"",OFFSET(データ!$M83,0,U$1-1)) ->  | V82: =IF(V$1=0,"",OFFSET(データ!$M83,0,V$1-1)) -> 
C83: 0.4点未満 | D83: =IF(D$1=0,"",OFFSET(データ!$M84,0,D$1-1)) -> 0 | E83: =IF(E$1=0,"",OFFSET(データ!$M84,0,E$1-1)) ->  | F83: =IF(F$1=0,"",OFFSET(データ!$M84,0,F$1-1)) ->  | G83: =IF(G$1=0,"",OFFSET(データ!$M84,0,G$1-1)) ->  | H83: =IF(H$1=0,"",OFFSET(データ!$M84,0,H$1-1)) ->  | I83: =IF(I$1=0,"",OFFSET(データ!$M84,0,I$1-1)) ->  | J83: =IF(J$1=0,"",OFFSET(データ!$M84,0,J$1-1)) ->  | K83: =IF(K$1=0,"",OFFSET(データ!$M84,0,K$1-1)) ->  | L83: =IF(L$1=0,"",OFFSET(データ!$M84,0,L$1-1)) ->  | M83: =IF(M$1=0,"",OFFSET(データ!$M84,0,M$1-1)) ->  | N83: =IF(N$1=0,"",OFFSET(データ!$M84,0,N$1-1)) ->  | O83: =IF(O$1=0,"",OFFSET(データ!$M84,0,O$1-1)) ->  | P83: =IF(P$1=0,"",OFFSET(データ!$M84,0,P$1-1)) ->  | Q83: =IF(Q$1=0,"",OFFSET(データ!$M84,0,Q$1-1)) ->  | R83: =IF(R$1=0,"",OFFSET(データ!$M84,0,R$1-1)) ->  | S83: =IF(S$1=0,"",OFFSET(データ!$M84,0,S$1-1)) ->  | T83: =IF(T$1=0,"",OFFSET(データ!$M84,0,T$1-1)) ->  | U83: =IF(U$1=0,"",OFFSET(データ!$M84,0,U$1-1)) ->  | V83: =IF(V$1=0,"",OFFSET(データ!$M84,0,V$1-1)) -> 
D84: =IF(D$1=0,"",OFFSET(データ!$M85,0,D$1-1)) -> 0 | E84: =IF(E$1=0,"",OFFSET(データ!$M85,0,E$1-1)) ->  | F84: =IF(F$1=0,"",OFFSET(データ!$M85,0,F$1-1)) ->  | G84: =IF(G$1=0,"",OFFSET(データ!$M85,0,G$1-1)) ->  | H84: =IF(H$1=0,"",OFFSET(データ!$M85,0,H$1-1)) ->  | I84: =IF(I$1=0,"",OFFSET(データ!$M85,0,I$1-1)) ->  | J84: =IF(J$1=0,"",OFFSET(データ!$M85,0,J$1-1)) ->  | K84: =IF(K$1=0,"",OFFSET(データ!$M85,0,K$1-1)) ->  | L84: =IF(L$1=0,"",OFFSET(データ!$M85,0,L$1-1)) ->  | M84: =IF(M$1=0,"",OFFSET(データ!$M85,0,M$1-1)) ->  | N84: =IF(N$1=0,"",OFFSET(データ!$M85,0,N$1-1)) ->  | O84: =IF(O$1=0,"",OFFSET(データ!$M85,0,O$1-1)) ->  | P84: =IF(P$1=0,"",OFFSET(データ!$M85,0,P$1-1)) ->  | Q84: =IF(Q$1=0,"",OFFSET(データ!$M85,0,Q$1-1)) ->  | R84: =IF(R$1=0,"",OFFSET(データ!$M85,0,R$1-1)) ->  | S84: =IF(S$1=0,"",OFFSET(データ!$M85,0,S$1-1)) ->  | T84: =IF(T$1=0,"",OFFSET(データ!$M85,0,T$1-1)) ->  | U84: =IF(U$1=0,"",OFFSET(データ!$M85,0,U$1-1)) ->  | V84: =IF(V$1=0,"",OFFSET(データ!$M85,0,V$1-1)) -> 
B86: 【標準偏差】
B87: 領域 | C87: Ⅰ．トップの価値観・行動の充実と浸透 | D87: =IF(D$1=0,"",OFFSET(データ!$M88,0,D$1-1)) -> 0 | E87: =IF(E$1=0,"",OFFSET(データ!$M88,0,E$1-1)) ->  | F87: =IF(F$1=0,"",OFFSET(データ!$M88,0,F$1-1)) ->  | G87: =IF(G$1=0,"",OFFSET(データ!$M88,0,G$1-1)) ->  | H87: =IF(H$1=0,"",OFFSET(データ!$M88,0,H$1-1)) ->  | I87: =IF(I$1=0,"",OFFSET(データ!$M88,0,I$1-1)) ->  | J87: =IF(J$1=0,"",OFFSET(データ!$M88,0,J$1-1)) ->  | K87: =IF(K$1=0,"",OFFSET(データ!$M88,0,K$1-1)) ->  | L87: =IF(L$1=0,"",OFFSET(データ!$M88,0,L$1-1)) ->  | M87: =IF(M$1=0,"",OFFSET(データ!$M88,0,M$1-1)) ->  | N87: =IF(N$1=0,"",OFFSET(データ!$M88,0,N$1-1)) ->  | O87: =IF(O$1=0,"",OFFSET(データ!$M88,0,O$1-1)) ->  | P87: =IF(P$1=0,"",OFFSET(データ!$M88,0,P$1-1)) ->  | Q87: =IF(Q$1=0,"",OFFSET(データ!$M88,0,Q$1-1)) ->  | R87: =IF(R$1=0,"",OFFSET(データ!$M88,0,R$1-1)) ->  | S87: =IF(S$1=0,"",OFFSET(データ!$M88,0,S$1-1)) ->  | T87: =IF(T$1=0,"",OFFSET(データ!$M88,0,T$1-1)) ->  | U87: =IF(U$1=0,"",OFFSET(データ!$M88,0,U$1-1)) ->  | V87: =IF(V$1=0,"",OFFSET(データ!$M88,0,V$1-1)) -> 
B88: 領域 | C88: Ⅱ．マネジメントサイクルの充実と浸透 | D88: =IF(D$1=0,"",OFFSET(データ!$M89,0,D$1-1)) -> 0 | E88: =IF(E$1=0,"",OFFSET(データ!$M89,0,E$1-1)) ->  | F88: =IF(F$1=0,"",OFFSET(データ!$M89,0,F$1-1)) ->  | G88: =IF(G$1=0,"",OFFSET(データ!$M89,0,G$1-1)) ->  | H88: =IF(H$1=0,"",OFFSET(データ!$M89,0,H$1-1)) ->  | I88: =IF(I$1=0,"",OFFSET(データ!$M89,0,I$1-1)) ->  | J88: =IF(J$1=0,"",OFFSET(データ!$M89,0,J$1-1)) ->  | K88: =IF(K$1=0,"",OFFSET(データ!$M89,0,K$1-1)) ->  | L88: =IF(L$1=0,"",OFFSET(データ!$M89,0,L$1-1)) ->  | M88: =IF(M$1=0,"",OFFSET(データ!$M89,0,M$1-1)) ->  | N88: =IF(N$1=0,"",OFFSET(データ!$M89,0,N$1-1)) ->  | O88: =IF(O$1=0,"",OFFSET(データ!$M89,0,O$1-1)) ->  | P88: =IF(P$1=0,"",OFFSET(データ!$M89,0,P$1-1)) ->  | Q88: =IF(Q$1=0,"",OFFSET(データ!$M89,0,Q$1-1)) ->  | R88: =IF(R$1=0,"",OFFSET(データ!$M89,0,R$1-1)) ->  | S88: =IF(S$1=0,"",OFFSET(データ!$M89,0,S$1-1)) ->  | T88: =IF(T$1=0,"",OFFSET(データ!$M89,0,T$1-1)) ->  | U88: =IF(U$1=0,"",OFFSET(データ!$M89,0,U$1-1)) ->  | V88: =IF(V$1=0,"",OFFSET(データ!$M89,0,V$1-1)) -> 
B89: 領域 | C89: Ⅲ．教育訓練の充実 | D89: =IF(D$1=0,"",OFFSET(データ!$M90,0,D$1-1)) -> 0 | E89: =IF(E$1=0,"",OFFSET(データ!$M90,0,E$1-1)) ->  | F89: =IF(F$1=0,"",OFFSET(データ!$M90,0,F$1-1)) ->  | G89: =IF(G$1=0,"",OFFSET(データ!$M90,0,G$1-1)) ->  | H89: =IF(H$1=0,"",OFFSET(データ!$M90,0,H$1-1)) ->  | I89: =IF(I$1=0,"",OFFSET(データ!$M90,0,I$1-1)) ->  | J89: =IF(J$1=0,"",OFFSET(データ!$M90,0,J$1-1)) ->  | K89: =IF(K$1=0,"",OFFSET(データ!$M90,0,K$1-1)) ->  | L89: =IF(L$1=0,"",OFFSET(データ!$M90,0,L$1-1)) ->  | M89: =IF(M$1=0,"",OFFSET(データ!$M90,0,M$1-1)) ->  | N89: =IF(N$1=0,"",OFFSET(データ!$M90,0,N$1-1)) ->  | O89: =IF(O$1=0,"",OFFSET(データ!$M90,0,O$1-1)) ->  | P89: =IF(P$1=0,"",OFFSET(データ!$M90,0,P$1-1)) ->  | Q89: =IF(Q$1=0,"",OFFSET(データ!$M90,0,Q$1-1)) ->  | R89: =IF(R$1=0,"",OFFSET(データ!$M90,0,R$1-1)) ->  | S89: =IF(S$1=0,"",OFFSET(データ!$M90,0,S$1-1)) ->  | T89: =IF(T$1=0,"",OFFSET(データ!$M90,0,T$1-1)) ->  | U89: =IF(U$1=0,"",OFFSET(データ!$M90,0,U$1-1)) ->  | V89: =IF(V$1=0,"",OFFSET(データ!$M90,0,V$1-1)) -> 
B90: 領域 | C90: Ⅳ．現場管理の充実 | D90: =IF(D$1=0,"",OFFSET(データ!$M91,0,D$1-1)) -> 0 | E90: =IF(E$1=0,"",OFFSET(データ!$M91,0,E$1-1)) ->  | F90: =IF(F$1=0,"",OFFSET(データ!$M91,0,F$1-1)) ->  | G90: =IF(G$1=0,"",OFFSET(データ!$M91,0,G$1-1)) ->  | H90: =IF(H$1=0,"",OFFSET(データ!$M91,0,H$1-1)) ->  | I90: =IF(I$1=0,"",OFFSET(データ!$M91,0,I$1-1)) ->  | J90: =IF(J$1=0,"",OFFSET(データ!$M91,0,J$1-1)) ->  | K90: =IF(K$1=0,"",OFFSET(データ!$M91,0,K$1-1)) ->  | L90: =IF(L$1=0,"",OFFSET(データ!$M91,0,L$1-1)) ->  | M90: =IF(M$1=0,"",OFFSET(データ!$M91,0,M$1-1)) ->  | N90: =IF(N$1=0,"",OFFSET(データ!$M91,0,N$1-1)) ->  | O90: =IF(O$1=0,"",OFFSET(データ!$M91,0,O$1-1)) ->  | P90: =IF(P$1=0,"",OFFSET(データ!$M91,0,P$1-1)) ->  | Q90: =IF(Q$1=0,"",OFFSET(データ!$M91,0,Q$1-1)) ->  | R90: =IF(R$1=0,"",OFFSET(データ!$M91,0,R$1-1)) ->  | S90: =IF(S$1=0,"",OFFSET(データ!$M91,0,S$1-1)) ->  | T90: =IF(T$1=0,"",OFFSET(データ!$M91,0,T$1-1)) ->  | U90: =IF(U$1=0,"",OFFSET(データ!$M91,0,U$1-1)) ->  | V90: =IF(V$1=0,"",OFFSET(データ!$M91,0,V$1-1)) -> 
B91: 領域 | C91: Ⅴ．職場メンバーの積極心 | D91: =IF(D$1=0,"",OFFSET(データ!$M92,0,D$1-1)) -> 0 | E91: =IF(E$1=0,"",OFFSET(データ!$M92,0,E$1-1)) ->  | F91: =IF(F$1=0,"",OFFSET(データ!$M92,0,F$1-1)) ->  | G91: =IF(G$1=0,"",OFFSET(データ!$M92,0,G$1-1)) ->  | H91: =IF(H$1=0,"",OFFSET(データ!$M92,0,H$1-1)) ->  | I91: =IF(I$1=0,"",OFFSET(データ!$M92,0,I$1-1)) ->  | J91: =IF(J$1=0,"",OFFSET(データ!$M92,0,J$1-1)) ->  | K91: =IF(K$1=0,"",OFFSET(データ!$M92,0,K$1-1)) ->  | L91: =IF(L$1=0,"",OFFSET(データ!$M92,0,L$1-1)) ->  | M91: =IF(M$1=0,"",OFFSET(データ!$M92,0,M$1-1)) ->  | N91: =IF(N$1=0,"",OFFSET(データ!$M92,0,N$1-1)) ->  | O91: =IF(O$1=0,"",OFFSET(データ!$M92,0,O$1-1)) ->  | P91: =IF(P$1=0,"",OFFSET(データ!$M92,0,P$1-1)) ->  | Q91: =IF(Q$1=0,"",OFFSET(データ!$M92,0,Q$1-1)) ->  | R91: =IF(R$1=0,"",OFFSET(データ!$M92,0,R$1-1)) ->  | S91: =IF(S$1=0,"",OFFSET(データ!$M92,0,S$1-1)) ->  | T91: =IF(T$1=0,"",OFFSET(データ!$M92,0,T$1-1)) ->  | U91: =IF(U$1=0,"",OFFSET(データ!$M92,0,U$1-1)) ->  | V91: =IF(V$1=0,"",OFFSET(データ!$M92,0,V$1-1)) -> 
B92: 区分 | C92: １．経営理念（トップの価値観） | D92: =IF(D$1=0,"",OFFSET(データ!$M93,0,D$1-1)) -> 0 | E92: =IF(E$1=0,"",OFFSET(データ!$M93,0,E$1-1)) ->  | F92: =IF(F$1=0,"",OFFSET(データ!$M93,0,F$1-1)) ->  | G92: =IF(G$1=0,"",OFFSET(データ!$M93,0,G$1-1)) ->  | H92: =IF(H$1=0,"",OFFSET(データ!$M93,0,H$1-1)) ->  | I92: =IF(I$1=0,"",OFFSET(データ!$M93,0,I$1-1)) ->  | J92: =IF(J$1=0,"",OFFSET(データ!$M93,0,J$1-1)) ->  | K92: =IF(K$1=0,"",OFFSET(データ!$M93,0,K$1-1)) ->  | L92: =IF(L$1=0,"",OFFSET(データ!$M93,0,L$1-1)) ->  | M92: =IF(M$1=0,"",OFFSET(データ!$M93,0,M$1-1)) ->  | N92: =IF(N$1=0,"",OFFSET(データ!$M93,0,N$1-1)) ->  | O92: =IF(O$1=0,"",OFFSET(データ!$M93,0,O$1-1)) ->  | P92: =IF(P$1=0,"",OFFSET(データ!$M93,0,P$1-1)) ->  | Q92: =IF(Q$1=0,"",OFFSET(データ!$M93,0,Q$1-1)) ->  | R92: =IF(R$1=0,"",OFFSET(データ!$M93,0,R$1-1)) ->  | S92: =IF(S$1=0,"",OFFSET(データ!$M93,0,S$1-1)) ->  | T92: =IF(T$1=0,"",OFFSET(データ!$M93,0,T$1-1)) ->  | U92: =IF(U$1=0,"",OFFSET(データ!$M93,0,U$1-1)) ->  | V92: =IF(V$1=0,"",OFFSET(データ!$M93,0,V$1-1)) -> 
B93: 区分 | C93: ２．マネジメントシステム | D93: =IF(D$1=0,"",OFFSET(データ!$M94,0,D$1-1)) -> 0 | E93: =IF(E$1=0,"",OFFSET(データ!$M94,0,E$1-1)) ->  | F93: =IF(F$1=0,"",OFFSET(データ!$M94,0,F$1-1)) ->  | G93: =IF(G$1=0,"",OFFSET(データ!$M94,0,G$1-1)) ->  | H93: =IF(H$1=0,"",OFFSET(データ!$M94,0,H$1-1)) ->  | I93: =IF(I$1=0,"",OFFSET(データ!$M94,0,I$1-1)) ->  | J93: =IF(J$1=0,"",OFFSET(データ!$M94,0,J$1-1)) ->  | K93: =IF(K$1=0,"",OFFSET(データ!$M94,0,K$1-1)) ->  | L93: =IF(L$1=0,"",OFFSET(データ!$M94,0,L$1-1)) ->  | M93: =IF(M$1=0,"",OFFSET(データ!$M94,0,M$1-1)) ->  | N93: =IF(N$1=0,"",OFFSET(データ!$M94,0,N$1-1)) ->  | O93: =IF(O$1=0,"",OFFSET(データ!$M94,0,O$1-1)) ->  | P93: =IF(P$1=0,"",OFFSET(データ!$M94,0,P$1-1)) ->  | Q93: =IF(Q$1=0,"",OFFSET(データ!$M94,0,Q$1-1)) ->  | R93: =IF(R$1=0,"",OFFSET(データ!$M94,0,R$1-1)) ->  | S93: =IF(S$1=0,"",OFFSET(データ!$M94,0,S$1-1)) ->  | T93: =IF(T$1=0,"",OFFSET(データ!$M94,0,T$1-1)) ->  | U93: =IF(U$1=0,"",OFFSET(データ!$M94,0,U$1-1)) ->  | V93: =IF(V$1=0,"",OFFSET(データ!$M94,0,V$1-1)) -> 
B94: 区分 | C94: ３．現場重視の行動・姿勢 | D94: =IF(D$1=0,"",OFFSET(データ!$M95,0,D$1-1)) -> 0 | E94: =IF(E$1=0,"",OFFSET(データ!$M95,0,E$1-1)) ->  | F94: =IF(F$1=0,"",OFFSET(データ!$M95,0,F$1-1)) ->  | G94: =IF(G$1=0,"",OFFSET(データ!$M95,0,G$1-1)) ->  | H94: =IF(H$1=0,"",OFFSET(データ!$M95,0,H$1-1)) ->  | I94: =IF(I$1=0,"",OFFSET(データ!$M95,0,I$1-1)) ->  | J94: =IF(J$1=0,"",OFFSET(データ!$M95,0,J$1-1)) ->  | K94: =IF(K$1=0,"",OFFSET(データ!$M95,0,K$1-1)) ->  | L94: =IF(L$1=0,"",OFFSET(データ!$M95,0,L$1-1)) ->  | M94: =IF(M$1=0,"",OFFSET(データ!$M95,0,M$1-1)) ->  | N94: =IF(N$1=0,"",OFFSET(データ!$M95,0,N$1-1)) ->  | O94: =IF(O$1=0,"",OFFSET(データ!$M95,0,O$1-1)) ->  | P94: =IF(P$1=0,"",OFFSET(データ!$M95,0,P$1-1)) ->  | Q94: =IF(Q$1=0,"",OFFSET(データ!$M95,0,Q$1-1)) ->  | R94: =IF(R$1=0,"",OFFSET(データ!$M95,0,R$1-1)) ->  | S94: =IF(S$1=0,"",OFFSET(データ!$M95,0,S$1-1)) ->  | T94: =IF(T$1=0,"",OFFSET(データ!$M95,0,T$1-1)) ->  | U94: =IF(U$1=0,"",OFFSET(データ!$M95,0,U$1-1)) ->  | V94: =IF(V$1=0,"",OFFSET(データ!$M95,0,V$1-1)) -> 
B95: 区分 | C95: １．PDCAの実践 | D95: =IF(D$1=0,"",OFFSET(データ!$M96,0,D$1-1)) -> 0 | E95: =IF(E$1=0,"",OFFSET(データ!$M96,0,E$1-1)) ->  | F95: =IF(F$1=0,"",OFFSET(データ!$M96,0,F$1-1)) ->  | G95: =IF(G$1=0,"",OFFSET(データ!$M96,0,G$1-1)) ->  | H95: =IF(H$1=0,"",OFFSET(データ!$M96,0,H$1-1)) ->  | I95: =IF(I$1=0,"",OFFSET(データ!$M96,0,I$1-1)) ->  | J95: =IF(J$1=0,"",OFFSET(データ!$M96,0,J$1-1)) ->  | K95: =IF(K$1=0,"",OFFSET(データ!$M96,0,K$1-1)) ->  | L95: =IF(L$1=0,"",OFFSET(データ!$M96,0,L$1-1)) ->  | M95: =IF(M$1=0,"",OFFSET(データ!$M96,0,M$1-1)) ->  | N95: =IF(N$1=0,"",OFFSET(データ!$M96,0,N$1-1)) ->  | O95: =IF(O$1=0,"",OFFSET(データ!$M96,0,O$1-1)) ->  | P95: =IF(P$1=0,"",OFFSET(データ!$M96,0,P$1-1)) ->  | Q95: =IF(Q$1=0,"",OFFSET(データ!$M96,0,Q$1-1)) ->  | R95: =IF(R$1=0,"",OFFSET(データ!$M96,0,R$1-1)) ->  | S95: =IF(S$1=0,"",OFFSET(データ!$M96,0,S$1-1)) ->  | T95: =IF(T$1=0,"",OFFSET(データ!$M96,0,T$1-1)) ->  | U95: =IF(U$1=0,"",OFFSET(データ!$M96,0,U$1-1)) ->  | V95: =IF(V$1=0,"",OFFSET(データ!$M96,0,V$1-1)) -> 
B96: 区分 | C96: ２．コミュニケーションの実践 | D96: =IF(D$1=0,"",OFFSET(データ!$M97,0,D$1-1)) -> 0 | E96: =IF(E$1=0,"",OFFSET(データ!$M97,0,E$1-1)) ->  | F96: =IF(F$1=0,"",OFFSET(データ!$M97,0,F$1-1)) ->  | G96: =IF(G$1=0,"",OFFSET(データ!$M97,0,G$1-1)) ->  | H96: =IF(H$1=0,"",OFFSET(データ!$M97,0,H$1-1)) ->  | I96: =IF(I$1=0,"",OFFSET(データ!$M97,0,I$1-1)) ->  | J96: =IF(J$1=0,"",OFFSET(データ!$M97,0,J$1-1)) ->  | K96: =IF(K$1=0,"",OFFSET(データ!$M97,0,K$1-1)) ->  | L96: =IF(L$1=0,"",OFFSET(データ!$M97,0,L$1-1)) ->  | M96: =IF(M$1=0,"",OFFSET(データ!$M97,0,M$1-1)) ->  | N96: =IF(N$1=0,"",OFFSET(データ!$M97,0,N$1-1)) ->  | O96: =IF(O$1=0,"",OFFSET(データ!$M97,0,O$1-1)) ->  | P96: =IF(P$1=0,"",OFFSET(データ!$M97,0,P$1-1)) ->  | Q96: =IF(Q$1=0,"",OFFSET(データ!$M97,0,Q$1-1)) ->  | R96: =IF(R$1=0,"",OFFSET(データ!$M97,0,R$1-1)) ->  | S96: =IF(S$1=0,"",OFFSET(データ!$M97,0,S$1-1)) ->  | T96: =IF(T$1=0,"",OFFSET(データ!$M97,0,T$1-1)) ->  | U96: =IF(U$1=0,"",OFFSET(データ!$M97,0,U$1-1)) ->  | V96: =IF(V$1=0,"",OFFSET(データ!$M97,0,V$1-1)) -> 
B97: 区分 | C97: １．採用・教育の充実 | D97: =IF(D$1=0,"",OFFSET(データ!$M98,0,D$1-1)) -> 0 | E97: =IF(E$1=0,"",OFFSET(データ!$M98,0,E$1-1)) ->  | F97: =IF(F$1=0,"",OFFSET(データ!$M98,0,F$1-1)) ->  | G97: =IF(G$1=0,"",OFFSET(データ!$M98,0,G$1-1)) ->  | H97: =IF(H$1=0,"",OFFSET(データ!$M98,0,H$1-1)) ->  | I97: =IF(I$1=0,"",OFFSET(データ!$M98,0,I$1-1)) ->  | J97: =IF(J$1=0,"",OFFSET(データ!$M98,0,J$1-1)) ->  | K97: =IF(K$1=0,"",OFFSET(データ!$M98,0,K$1-1)) ->  | L97: =IF(L$1=0,"",OFFSET(データ!$M98,0,L$1-1)) ->  | M97: =IF(M$1=0,"",OFFSET(データ!$M98,0,M$1-1)) ->  | N97: =IF(N$1=0,"",OFFSET(データ!$M98,0,N$1-1)) ->  | O97: =IF(O$1=0,"",OFFSET(データ!$M98,0,O$1-1)) ->  | P97: =IF(P$1=0,"",OFFSET(データ!$M98,0,P$1-1)) ->  | Q97: =IF(Q$1=0,"",OFFSET(データ!$M98,0,Q$1-1)) ->  | R97: =IF(R$1=0,"",OFFSET(データ!$M98,0,R$1-1)) ->  | S97: =IF(S$1=0,"",OFFSET(データ!$M98,0,S$1-1)) ->  | T97: =IF(T$1=0,"",OFFSET(データ!$M98,0,T$1-1)) ->  | U97: =IF(U$1=0,"",OFFSET(データ!$M98,0,U$1-1)) ->  | V97: =IF(V$1=0,"",OFFSET(データ!$M98,0,V$1-1)) -> 
B98: 区分 | C98: ２．リーダー教育の充実 | D98: =IF(D$1=0,"",OFFSET(データ!$M99,0,D$1-1)) -> 0 | E98: =IF(E$1=0,"",OFFSET(データ!$M99,0,E$1-1)) ->  | F98: =IF(F$1=0,"",OFFSET(データ!$M99,0,F$1-1)) ->  | G98: =IF(G$1=0,"",OFFSET(データ!$M99,0,G$1-1)) ->  | H98: =IF(H$1=0,"",OFFSET(データ!$M99,0,H$1-1)) ->  | I98: =IF(I$1=0,"",OFFSET(データ!$M99,0,I$1-1)) ->  | J98: =IF(J$1=0,"",OFFSET(データ!$M99,0,J$1-1)) ->  | K98: =IF(K$1=0,"",OFFSET(データ!$M99,0,K$1-1)) ->  | L98: =IF(L$1=0,"",OFFSET(データ!$M99,0,L$1-1)) ->  | M98: =IF(M$1=0,"",OFFSET(データ!$M99,0,M$1-1)) ->  | N98: =IF(N$1=0,"",OFFSET(データ!$M99,0,N$1-1)) ->  | O98: =IF(O$1=0,"",OFFSET(データ!$M99,0,O$1-1)) ->  | P98: =IF(P$1=0,"",OFFSET(データ!$M99,0,P$1-1)) ->  | Q98: =IF(Q$1=0,"",OFFSET(データ!$M99,0,Q$1-1)) ->  | R98: =IF(R$1=0,"",OFFSET(データ!$M99,0,R$1-1)) ->  | S98: =IF(S$1=0,"",OFFSET(データ!$M99,0,S$1-1)) ->  | T98: =IF(T$1=0,"",OFFSET(データ!$M99,0,T$1-1)) ->  | U98: =IF(U$1=0,"",OFFSET(データ!$M99,0,U$1-1)) ->  | V98: =IF(V$1=0,"",OFFSET(データ!$M99,0,V$1-1)) -> 
B99: 区分 | C99: ３．安全教育の充実 | D99: =IF(D$1=0,"",OFFSET(データ!$M100,0,D$1-1)) -> 0 | E99: =IF(E$1=0,"",OFFSET(データ!$M100,0,E$1-1)) ->  | F99: =IF(F$1=0,"",OFFSET(データ!$M100,0,F$1-1)) ->  | G99: =IF(G$1=0,"",OFFSET(データ!$M100,0,G$1-1)) ->  | H99: =IF(H$1=0,"",OFFSET(データ!$M100,0,H$1-1)) ->  | I99: =IF(I$1=0,"",OFFSET(データ!$M100,0,I$1-1)) ->  | J99: =IF(J$1=0,"",OFFSET(データ!$M100,0,J$1-1)) ->  | K99: =IF(K$1=0,"",OFFSET(データ!$M100,0,K$1-1)) ->  | L99: =IF(L$1=0,"",OFFSET(データ!$M100,0,L$1-1)) ->  | M99: =IF(M$1=0,"",OFFSET(データ!$M100,0,M$1-1)) ->  | N99: =IF(N$1=0,"",OFFSET(データ!$M100,0,N$1-1)) ->  | O99: =IF(O$1=0,"",OFFSET(データ!$M100,0,O$1-1)) ->  | P99: =IF(P$1=0,"",OFFSET(データ!$M100,0,P$1-1)) ->  | Q99: =IF(Q$1=0,"",OFFSET(データ!$M100,0,Q$1-1)) ->  | R99: =IF(R$1=0,"",OFFSET(データ!$M100,0,R$1-1)) ->  | S99: =IF(S$1=0,"",OFFSET(データ!$M100,0,S$1-1)) ->  | T99: =IF(T$1=0,"",OFFSET(データ!$M100,0,T$1-1)) ->  | U99: =IF(U$1=0,"",OFFSET(データ!$M100,0,U$1-1)) ->  | V99: =IF(V$1=0,"",OFFSET(データ!$M100,0,V$1-1)) -> 
B100: 区分 | C100: １．現場コミュニケーション | D100: =IF(D$1=0,"",OFFSET(データ!$M101,0,D$1-1)) -> 0 | E100: =IF(E$1=0,"",OFFSET(データ!$M101,0,E$1-1)) ->  | F100: =IF(F$1=0,"",OFFSET(データ!$M101,0,F$1-1)) ->  | G100: =IF(G$1=0,"",OFFSET(データ!$M101,0,G$1-1)) ->  | H100: =IF(H$1=0,"",OFFSET(データ!$M101,0,H$1-1)) ->  | I100: =IF(I$1=0,"",OFFSET(データ!$M101,0,I$1-1)) ->  | J100: =IF(J$1=0,"",OFFSET(データ!$M101,0,J$1-1)) ->  | K100: =IF(K$1=0,"",OFFSET(データ!$M101,0,K$1-1)) ->  | L100: =IF(L$1=0,"",OFFSET(データ!$M101,0,L$1-1)) ->  | M100: =IF(M$1=0,"",OFFSET(データ!$M101,0,M$1-1)) ->  | N100: =IF(N$1=0,"",OFFSET(データ!$M101,0,N$1-1)) ->  | O100: =IF(O$1=0,"",OFFSET(データ!$M101,0,O$1-1)) ->  | P100: =IF(P$1=0,"",OFFSET(データ!$M101,0,P$1-1)) ->  | Q100: =IF(Q$1=0,"",OFFSET(データ!$M101,0,Q$1-1)) ->  | R100: =IF(R$1=0,"",OFFSET(データ!$M101,0,R$1-1)) ->  | S100: =IF(S$1=0,"",OFFSET(データ!$M101,0,S$1-1)) ->  | T100: =IF(T$1=0,"",OFFSET(データ!$M101,0,T$1-1)) ->  | U100: =IF(U$1=0,"",OFFSET(データ!$M101,0,U$1-1)) ->  | V100: =IF(V$1=0,"",OFFSET(データ!$M101,0,V$1-1)) -> 
B101: 区分 | C101: ２．日常管理の充実 | D101: =IF(D$1=0,"",OFFSET(データ!$M102,0,D$1-1)) -> 0 | E101: =IF(E$1=0,"",OFFSET(データ!$M102,0,E$1-1)) ->  | F101: =IF(F$1=0,"",OFFSET(データ!$M102,0,F$1-1)) ->  | G101: =IF(G$1=0,"",OFFSET(データ!$M102,0,G$1-1)) ->  | H101: =IF(H$1=0,"",OFFSET(データ!$M102,0,H$1-1)) ->  | I101: =IF(I$1=0,"",OFFSET(データ!$M102,0,I$1-1)) ->  | J101: =IF(J$1=0,"",OFFSET(データ!$M102,0,J$1-1)) ->  | K101: =IF(K$1=0,"",OFFSET(データ!$M102,0,K$1-1)) ->  | L101: =IF(L$1=0,"",OFFSET(データ!$M102,0,L$1-1)) ->  | M101: =IF(M$1=0,"",OFFSET(データ!$M102,0,M$1-1)) ->  | N101: =IF(N$1=0,"",OFFSET(データ!$M102,0,N$1-1)) ->  | O101: =IF(O$1=0,"",OFFSET(データ!$M102,0,O$1-1)) ->  | P101: =IF(P$1=0,"",OFFSET(データ!$M102,0,P$1-1)) ->  | Q101: =IF(Q$1=0,"",OFFSET(データ!$M102,0,Q$1-1)) ->  | R101: =IF(R$1=0,"",OFFSET(データ!$M102,0,R$1-1)) ->  | S101: =IF(S$1=0,"",OFFSET(データ!$M102,0,S$1-1)) ->  | T101: =IF(T$1=0,"",OFFSET(データ!$M102,0,T$1-1)) ->  | U101: =IF(U$1=0,"",OFFSET(データ!$M102,0,U$1-1)) ->  | V101: =IF(V$1=0,"",OFFSET(データ!$M102,0,V$1-1)) -> 
B102: 区分 | C102: ３．現場管理施策の充実 | D102: =IF(D$1=0,"",OFFSET(データ!$M103,0,D$1-1)) -> 0 | E102: =IF(E$1=0,"",OFFSET(データ!$M103,0,E$1-1)) ->  | F102: =IF(F$1=0,"",OFFSET(データ!$M103,0,F$1-1)) ->  | G102: =IF(G$1=0,"",OFFSET(データ!$M103,0,G$1-1)) ->  | H102: =IF(H$1=0,"",OFFSET(データ!$M103,0,H$1-1)) ->  | I102: =IF(I$1=0,"",OFFSET(データ!$M103,0,I$1-1)) ->  | J102: =IF(J$1=0,"",OFFSET(データ!$M103,0,J$1-1)) ->  | K102: =IF(K$1=0,"",OFFSET(データ!$M103,0,K$1-1)) ->  | L102: =IF(L$1=0,"",OFFSET(データ!$M103,0,L$1-1)) ->  | M102: =IF(M$1=0,"",OFFSET(データ!$M103,0,M$1-1)) ->  | N102: =IF(N$1=0,"",OFFSET(データ!$M103,0,N$1-1)) ->  | O102: =IF(O$1=0,"",OFFSET(データ!$M103,0,O$1-1)) ->  | P102: =IF(P$1=0,"",OFFSET(データ!$M103,0,P$1-1)) ->  | Q102: =IF(Q$1=0,"",OFFSET(データ!$M103,0,Q$1-1)) ->  | R102: =IF(R$1=0,"",OFFSET(データ!$M103,0,R$1-1)) ->  | S102: =IF(S$1=0,"",OFFSET(データ!$M103,0,S$1-1)) ->  | T102: =IF(T$1=0,"",OFFSET(データ!$M103,0,T$1-1)) ->  | U102: =IF(U$1=0,"",OFFSET(データ!$M103,0,U$1-1)) ->  | V102: =IF(V$1=0,"",OFFSET(データ!$M103,0,V$1-1)) -> 
B103: 区分 | C103: １．基本行動への意識 | D103: =IF(D$1=0,"",OFFSET(データ!$M104,0,D$1-1)) -> 0 | E103: =IF(E$1=0,"",OFFSET(データ!$M104,0,E$1-1)) ->  | F103: =IF(F$1=0,"",OFFSET(データ!$M104,0,F$1-1)) ->  | G103: =IF(G$1=0,"",OFFSET(データ!$M104,0,G$1-1)) ->  | H103: =IF(H$1=0,"",OFFSET(データ!$M104,0,H$1-1)) ->  | I103: =IF(I$1=0,"",OFFSET(データ!$M104,0,I$1-1)) ->  | J103: =IF(J$1=0,"",OFFSET(データ!$M104,0,J$1-1)) ->  | K103: =IF(K$1=0,"",OFFSET(データ!$M104,0,K$1-1)) ->  | L103: =IF(L$1=0,"",OFFSET(データ!$M104,0,L$1-1)) ->  | M103: =IF(M$1=0,"",OFFSET(データ!$M104,0,M$1-1)) ->  | N103: =IF(N$1=0,"",OFFSET(データ!$M104,0,N$1-1)) ->  | O103: =IF(O$1=0,"",OFFSET(データ!$M104,0,O$1-1)) ->  | P103: =IF(P$1=0,"",OFFSET(データ!$M104,0,P$1-1)) ->  | Q103: =IF(Q$1=0,"",OFFSET(データ!$M104,0,Q$1-1)) ->  | R103: =IF(R$1=0,"",OFFSET(データ!$M104,0,R$1-1)) ->  | S103: =IF(S$1=0,"",OFFSET(データ!$M104,0,S$1-1)) ->  | T103: =IF(T$1=0,"",OFFSET(データ!$M104,0,T$1-1)) ->  | U103: =IF(U$1=0,"",OFFSET(データ!$M104,0,U$1-1)) ->  | V103: =IF(V$1=0,"",OFFSET(データ!$M104,0,V$1-1)) -> 
B104: 区分 | C104: ２．職務への意識 | D104: =IF(D$1=0,"",OFFSET(データ!$M105,0,D$1-1)) -> 0 | E104: =IF(E$1=0,"",OFFSET(データ!$M105,0,E$1-1)) ->  | F104: =IF(F$1=0,"",OFFSET(データ!$M105,0,F$1-1)) ->  | G104: =IF(G$1=0,"",OFFSET(データ!$M105,0,G$1-1)) ->  | H104: =IF(H$1=0,"",OFFSET(データ!$M105,0,H$1-1)) ->  | I104: =IF(I$1=0,"",OFFSET(データ!$M105,0,I$1-1)) ->  | J104: =IF(J$1=0,"",OFFSET(データ!$M105,0,J$1-1)) ->  | K104: =IF(K$1=0,"",OFFSET(データ!$M105,0,K$1-1)) ->  | L104: =IF(L$1=0,"",OFFSET(データ!$M105,0,L$1-1)) ->  | M104: =IF(M$1=0,"",OFFSET(データ!$M105,0,M$1-1)) ->  | N104: =IF(N$1=0,"",OFFSET(データ!$M105,0,N$1-1)) ->  | O104: =IF(O$1=0,"",OFFSET(データ!$M105,0,O$1-1)) ->  | P104: =IF(P$1=0,"",OFFSET(データ!$M105,0,P$1-1)) ->  | Q104: =IF(Q$1=0,"",OFFSET(データ!$M105,0,Q$1-1)) ->  | R104: =IF(R$1=0,"",OFFSET(データ!$M105,0,R$1-1)) ->  | S104: =IF(S$1=0,"",OFFSET(データ!$M105,0,S$1-1)) ->  | T104: =IF(T$1=0,"",OFFSET(データ!$M105,0,T$1-1)) ->  | U104: =IF(U$1=0,"",OFFSET(データ!$M105,0,U$1-1)) ->  | V104: =IF(V$1=0,"",OFFSET(データ!$M105,0,V$1-1)) -> 
B105: 区分 | C105: ３．人間関係への意識 | D105: =IF(D$1=0,"",OFFSET(データ!$M106,0,D$1-1)) -> 0 | E105: =IF(E$1=0,"",OFFSET(データ!$M106,0,E$1-1)) ->  | F105: =IF(F$1=0,"",OFFSET(データ!$M106,0,F$1-1)) ->  | G105: =IF(G$1=0,"",OFFSET(データ!$M106,0,G$1-1)) ->  | H105: =IF(H$1=0,"",OFFSET(データ!$M106,0,H$1-1)) ->  | I105: =IF(I$1=0,"",OFFSET(データ!$M106,0,I$1-1)) ->  | J105: =IF(J$1=0,"",OFFSET(データ!$M106,0,J$1-1)) ->  | K105: =IF(K$1=0,"",OFFSET(データ!$M106,0,K$1-1)) ->  | L105: =IF(L$1=0,"",OFFSET(データ!$M106,0,L$1-1)) ->  | M105: =IF(M$1=0,"",OFFSET(データ!$M106,0,M$1-1)) ->  | N105: =IF(N$1=0,"",OFFSET(データ!$M106,0,N$1-1)) ->  | O105: =IF(O$1=0,"",OFFSET(データ!$M106,0,O$1-1)) ->  | P105: =IF(P$1=0,"",OFFSET(データ!$M106,0,P$1-1)) ->  | Q105: =IF(Q$1=0,"",OFFSET(データ!$M106,0,Q$1-1)) ->  | R105: =IF(R$1=0,"",OFFSET(データ!$M106,0,R$1-1)) ->  | S105: =IF(S$1=0,"",OFFSET(データ!$M106,0,S$1-1)) ->  | T105: =IF(T$1=0,"",OFFSET(データ!$M106,0,T$1-1)) ->  | U105: =IF(U$1=0,"",OFFSET(データ!$M106,0,U$1-1)) ->  | V105: =IF(V$1=0,"",OFFSET(データ!$M106,0,V$1-1)) -> 
B106: 項目 | C106: 経営姿勢への共感 | D106: =IF(D$1=0,"",OFFSET(データ!$M107,0,D$1-1)) -> 0 | E106: =IF(E$1=0,"",OFFSET(データ!$M107,0,E$1-1)) ->  | F106: =IF(F$1=0,"",OFFSET(データ!$M107,0,F$1-1)) ->  | G106: =IF(G$1=0,"",OFFSET(データ!$M107,0,G$1-1)) ->  | H106: =IF(H$1=0,"",OFFSET(データ!$M107,0,H$1-1)) ->  | I106: =IF(I$1=0,"",OFFSET(データ!$M107,0,I$1-1)) ->  | J106: =IF(J$1=0,"",OFFSET(データ!$M107,0,J$1-1)) ->  | K106: =IF(K$1=0,"",OFFSET(データ!$M107,0,K$1-1)) ->  | L106: =IF(L$1=0,"",OFFSET(データ!$M107,0,L$1-1)) ->  | M106: =IF(M$1=0,"",OFFSET(データ!$M107,0,M$1-1)) ->  | N106: =IF(N$1=0,"",OFFSET(データ!$M107,0,N$1-1)) ->  | O106: =IF(O$1=0,"",OFFSET(データ!$M107,0,O$1-1)) ->  | P106: =IF(P$1=0,"",OFFSET(データ!$M107,0,P$1-1)) ->  | Q106: =IF(Q$1=0,"",OFFSET(データ!$M107,0,Q$1-1)) ->  | R106: =IF(R$1=0,"",OFFSET(データ!$M107,0,R$1-1)) ->  | S106: =IF(S$1=0,"",OFFSET(データ!$M107,0,S$1-1)) ->  | T106: =IF(T$1=0,"",OFFSET(データ!$M107,0,T$1-1)) ->  | U106: =IF(U$1=0,"",OFFSET(データ!$M107,0,U$1-1)) ->  | V106: =IF(V$1=0,"",OFFSET(データ!$M107,0,V$1-1)) -> 
B107: 項目 | C107: 安全に関するコンプライアンスの浸透 | D107: =IF(D$1=0,"",OFFSET(データ!$M108,0,D$1-1)) -> 0 | E107: =IF(E$1=0,"",OFFSET(データ!$M108,0,E$1-1)) ->  | F107: =IF(F$1=0,"",OFFSET(データ!$M108,0,F$1-1)) ->  | G107: =IF(G$1=0,"",OFFSET(データ!$M108,0,G$1-1)) ->  | H107: =IF(H$1=0,"",OFFSET(データ!$M108,0,H$1-1)) ->  | I107: =IF(I$1=0,"",OFFSET(データ!$M108,0,I$1-1)) ->  | J107: =IF(J$1=0,"",OFFSET(データ!$M108,0,J$1-1)) ->  | K107: =IF(K$1=0,"",OFFSET(データ!$M108,0,K$1-1)) ->  | L107: =IF(L$1=0,"",OFFSET(データ!$M108,0,L$1-1)) ->  | M107: =IF(M$1=0,"",OFFSET(データ!$M108,0,M$1-1)) ->  | N107: =IF(N$1=0,"",OFFSET(データ!$M108,0,N$1-1)) ->  | O107: =IF(O$1=0,"",OFFSET(データ!$M108,0,O$1-1)) ->  | P107: =IF(P$1=0,"",OFFSET(データ!$M108,0,P$1-1)) ->  | Q107: =IF(Q$1=0,"",OFFSET(データ!$M108,0,Q$1-1)) ->  | R107: =IF(R$1=0,"",OFFSET(データ!$M108,0,R$1-1)) ->  | S107: =IF(S$1=0,"",OFFSET(データ!$M108,0,S$1-1)) ->  | T107: =IF(T$1=0,"",OFFSET(データ!$M108,0,T$1-1)) ->  | U107: =IF(U$1=0,"",OFFSET(データ!$M108,0,U$1-1)) ->  | V107: =IF(V$1=0,"",OFFSET(データ!$M108,0,V$1-1)) -> 
B108: 項目 | C108: 経営執行の監視（コーポレートガバナンス） | D108: =IF(D$1=0,"",OFFSET(データ!$M109,0,D$1-1)) -> 0 | E108: =IF(E$1=0,"",OFFSET(データ!$M109,0,E$1-1)) ->  | F108: =IF(F$1=0,"",OFFSET(データ!$M109,0,F$1-1)) ->  | G108: =IF(G$1=0,"",OFFSET(データ!$M109,0,G$1-1)) ->  | H108: =IF(H$1=0,"",OFFSET(データ!$M109,0,H$1-1)) ->  | I108: =IF(I$1=0,"",OFFSET(データ!$M109,0,I$1-1)) ->  | J108: =IF(J$1=0,"",OFFSET(データ!$M109,0,J$1-1)) ->  | K108: =IF(K$1=0,"",OFFSET(データ!$M109,0,K$1-1)) ->  | L108: =IF(L$1=0,"",OFFSET(データ!$M109,0,L$1-1)) ->  | M108: =IF(M$1=0,"",OFFSET(データ!$M109,0,M$1-1)) ->  | N108: =IF(N$1=0,"",OFFSET(データ!$M109,0,N$1-1)) ->  | O108: =IF(O$1=0,"",OFFSET(データ!$M109,0,O$1-1)) ->  | P108: =IF(P$1=0,"",OFFSET(データ!$M109,0,P$1-1)) ->  | Q108: =IF(Q$1=0,"",OFFSET(データ!$M109,0,Q$1-1)) ->  | R108: =IF(R$1=0,"",OFFSET(データ!$M109,0,R$1-1)) ->  | S108: =IF(S$1=0,"",OFFSET(データ!$M109,0,S$1-1)) ->  | T108: =IF(T$1=0,"",OFFSET(データ!$M109,0,T$1-1)) ->  | U108: =IF(U$1=0,"",OFFSET(データ!$M109,0,U$1-1)) ->  | V108: =IF(V$1=0,"",OFFSET(データ!$M109,0,V$1-1)) -> 
B109: 項目 | C109: 継続的改善 | D109: =IF(D$1=0,"",OFFSET(データ!$M110,0,D$1-1)) -> 0 | E109: =IF(E$1=0,"",OFFSET(データ!$M110,0,E$1-1)) ->  | F109: =IF(F$1=0,"",OFFSET(データ!$M110,0,F$1-1)) ->  | G109: =IF(G$1=0,"",OFFSET(データ!$M110,0,G$1-1)) ->  | H109: =IF(H$1=0,"",OFFSET(データ!$M110,0,H$1-1)) ->  | I109: =IF(I$1=0,"",OFFSET(データ!$M110,0,I$1-1)) ->  | J109: =IF(J$1=0,"",OFFSET(データ!$M110,0,J$1-1)) ->  | K109: =IF(K$1=0,"",OFFSET(データ!$M110,0,K$1-1)) ->  | L109: =IF(L$1=0,"",OFFSET(データ!$M110,0,L$1-1)) ->  | M109: =IF(M$1=0,"",OFFSET(データ!$M110,0,M$1-1)) ->  | N109: =IF(N$1=0,"",OFFSET(データ!$M110,0,N$1-1)) ->  | O109: =IF(O$1=0,"",OFFSET(データ!$M110,0,O$1-1)) ->  | P109: =IF(P$1=0,"",OFFSET(データ!$M110,0,P$1-1)) ->  | Q109: =IF(Q$1=0,"",OFFSET(データ!$M110,0,Q$1-1)) ->  | R109: =IF(R$1=0,"",OFFSET(データ!$M110,0,R$1-1)) ->  | S109: =IF(S$1=0,"",OFFSET(データ!$M110,0,S$1-1)) ->  | T109: =IF(T$1=0,"",OFFSET(データ!$M110,0,T$1-1)) ->  | U109: =IF(U$1=0,"",OFFSET(データ!$M110,0,U$1-1)) ->  | V109: =IF(V$1=0,"",OFFSET(データ!$M110,0,V$1-1)) -> 
B110: 項目 | C110: 管理者育成（人材育成） | D110: =IF(D$1=0,"",OFFSET(データ!$M111,0,D$1-1)) -> 0 | E110: =IF(E$1=0,"",OFFSET(データ!$M111,0,E$1-1)) ->  | F110: =IF(F$1=0,"",OFFSET(データ!$M111,0,F$1-1)) ->  | G110: =IF(G$1=0,"",OFFSET(データ!$M111,0,G$1-1)) ->  | H110: =IF(H$1=0,"",OFFSET(データ!$M111,0,H$1-1)) ->  | I110: =IF(I$1=0,"",OFFSET(データ!$M111,0,I$1-1)) ->  | J110: =IF(J$1=0,"",OFFSET(データ!$M111,0,J$1-1)) ->  | K110: =IF(K$1=0,"",OFFSET(データ!$M111,0,K$1-1)) ->  | L110: =IF(L$1=0,"",OFFSET(データ!$M111,0,L$1-1)) ->  | M110: =IF(M$1=0,"",OFFSET(データ!$M111,0,M$1-1)) ->  | N110: =IF(N$1=0,"",OFFSET(データ!$M111,0,N$1-1)) ->  | O110: =IF(O$1=0,"",OFFSET(データ!$M111,0,O$1-1)) ->  | P110: =IF(P$1=0,"",OFFSET(データ!$M111,0,P$1-1)) ->  | Q110: =IF(Q$1=0,"",OFFSET(データ!$M111,0,Q$1-1)) ->  | R110: =IF(R$1=0,"",OFFSET(データ!$M111,0,R$1-1)) ->  | S110: =IF(S$1=0,"",OFFSET(データ!$M111,0,S$1-1)) ->  | T110: =IF(T$1=0,"",OFFSET(データ!$M111,0,T$1-1)) ->  | U110: =IF(U$1=0,"",OFFSET(データ!$M111,0,U$1-1)) ->  | V110: =IF(V$1=0,"",OFFSET(データ!$M111,0,V$1-1)) -> 
B111: 項目 | C111: 現場情報の活用 | D111: =IF(D$1=0,"",OFFSET(データ!$M112,0,D$1-1)) -> 0 | E111: =IF(E$1=0,"",OFFSET(データ!$M112,0,E$1-1)) ->  | F111: =IF(F$1=0,"",OFFSET(データ!$M112,0,F$1-1)) ->  | G111: =IF(G$1=0,"",OFFSET(データ!$M112,0,G$1-1)) ->  | H111: =IF(H$1=0,"",OFFSET(データ!$M112,0,H$1-1)) ->  | I111: =IF(I$1=0,"",OFFSET(データ!$M112,0,I$1-1)) ->  | J111: =IF(J$1=0,"",OFFSET(データ!$M112,0,J$1-1)) ->  | K111: =IF(K$1=0,"",OFFSET(データ!$M112,0,K$1-1)) ->  | L111: =IF(L$1=0,"",OFFSET(データ!$M112,0,L$1-1)) ->  | M111: =IF(M$1=0,"",OFFSET(データ!$M112,0,M$1-1)) ->  | N111: =IF(N$1=0,"",OFFSET(データ!$M112,0,N$1-1)) ->  | O111: =IF(O$1=0,"",OFFSET(データ!$M112,0,O$1-1)) ->  | P111: =IF(P$1=0,"",OFFSET(データ!$M112,0,P$1-1)) ->  | Q111: =IF(Q$1=0,"",OFFSET(データ!$M112,0,Q$1-1)) ->  | R111: =IF(R$1=0,"",OFFSET(データ!$M112,0,R$1-1)) ->  | S111: =IF(S$1=0,"",OFFSET(データ!$M112,0,S$1-1)) ->  | T111: =IF(T$1=0,"",OFFSET(データ!$M112,0,T$1-1)) ->  | U111: =IF(U$1=0,"",OFFSET(データ!$M112,0,U$1-1)) ->  | V111: =IF(V$1=0,"",OFFSET(データ!$M112,0,V$1-1)) -> 
B112: 項目 | C112: 率先垂範への共感 | D112: =IF(D$1=0,"",OFFSET(データ!$M113,0,D$1-1)) -> 0 | E112: =IF(E$1=0,"",OFFSET(データ!$M113,0,E$1-1)) ->  | F112: =IF(F$1=0,"",OFFSET(データ!$M113,0,F$1-1)) ->  | G112: =IF(G$1=0,"",OFFSET(データ!$M113,0,G$1-1)) ->  | H112: =IF(H$1=0,"",OFFSET(データ!$M113,0,H$1-1)) ->  | I112: =IF(I$1=0,"",OFFSET(データ!$M113,0,I$1-1)) ->  | J112: =IF(J$1=0,"",OFFSET(データ!$M113,0,J$1-1)) ->  | K112: =IF(K$1=0,"",OFFSET(データ!$M113,0,K$1-1)) ->  | L112: =IF(L$1=0,"",OFFSET(データ!$M113,0,L$1-1)) ->  | M112: =IF(M$1=0,"",OFFSET(データ!$M113,0,M$1-1)) ->  | N112: =IF(N$1=0,"",OFFSET(データ!$M113,0,N$1-1)) ->  | O112: =IF(O$1=0,"",OFFSET(データ!$M113,0,O$1-1)) ->  | P112: =IF(P$1=0,"",OFFSET(データ!$M113,0,P$1-1)) ->  | Q112: =IF(Q$1=0,"",OFFSET(データ!$M113,0,Q$1-1)) ->  | R112: =IF(R$1=0,"",OFFSET(データ!$M113,0,R$1-1)) ->  | S112: =IF(S$1=0,"",OFFSET(データ!$M113,0,S$1-1)) ->  | T112: =IF(T$1=0,"",OFFSET(データ!$M113,0,T$1-1)) ->  | U112: =IF(U$1=0,"",OFFSET(データ!$M113,0,U$1-1)) ->  | V112: =IF(V$1=0,"",OFFSET(データ!$M113,0,V$1-1)) -> 
B113: 項目 | C113: 問題解決の意思決定 | D113: =IF(D$1=0,"",OFFSET(データ!$M114,0,D$1-1)) -> 0 | E113: =IF(E$1=0,"",OFFSET(データ!$M114,0,E$1-1)) ->  | F113: =IF(F$1=0,"",OFFSET(データ!$M114,0,F$1-1)) ->  | G113: =IF(G$1=0,"",OFFSET(データ!$M114,0,G$1-1)) ->  | H113: =IF(H$1=0,"",OFFSET(データ!$M114,0,H$1-1)) ->  | I113: =IF(I$1=0,"",OFFSET(データ!$M114,0,I$1-1)) ->  | J113: =IF(J$1=0,"",OFFSET(データ!$M114,0,J$1-1)) ->  | K113: =IF(K$1=0,"",OFFSET(データ!$M114,0,K$1-1)) ->  | L113: =IF(L$1=0,"",OFFSET(データ!$M114,0,L$1-1)) ->  | M113: =IF(M$1=0,"",OFFSET(データ!$M114,0,M$1-1)) ->  | N113: =IF(N$1=0,"",OFFSET(データ!$M114,0,N$1-1)) ->  | O113: =IF(O$1=0,"",OFFSET(データ!$M114,0,O$1-1)) ->  | P113: =IF(P$1=0,"",OFFSET(データ!$M114,0,P$1-1)) ->  | Q113: =IF(Q$1=0,"",OFFSET(データ!$M114,0,Q$1-1)) ->  | R113: =IF(R$1=0,"",OFFSET(データ!$M114,0,R$1-1)) ->  | S113: =IF(S$1=0,"",OFFSET(データ!$M114,0,S$1-1)) ->  | T113: =IF(T$1=0,"",OFFSET(データ!$M114,0,T$1-1)) ->  | U113: =IF(U$1=0,"",OFFSET(データ!$M114,0,U$1-1)) ->  | V113: =IF(V$1=0,"",OFFSET(データ!$M114,0,V$1-1)) -> 
B114: 項目 | C114: 安全理念・方針の浸透 | D114: =IF(D$1=0,"",OFFSET(データ!$M115,0,D$1-1)) -> 0 | E114: =IF(E$1=0,"",OFFSET(データ!$M115,0,E$1-1)) ->  | F114: =IF(F$1=0,"",OFFSET(データ!$M115,0,F$1-1)) ->  | G114: =IF(G$1=0,"",OFFSET(データ!$M115,0,G$1-1)) ->  | H114: =IF(H$1=0,"",OFFSET(データ!$M115,0,H$1-1)) ->  | I114: =IF(I$1=0,"",OFFSET(データ!$M115,0,I$1-1)) ->  | J114: =IF(J$1=0,"",OFFSET(データ!$M115,0,J$1-1)) ->  | K114: =IF(K$1=0,"",OFFSET(データ!$M115,0,K$1-1)) ->  | L114: =IF(L$1=0,"",OFFSET(データ!$M115,0,L$1-1)) ->  | M114: =IF(M$1=0,"",OFFSET(データ!$M115,0,M$1-1)) ->  | N114: =IF(N$1=0,"",OFFSET(データ!$M115,0,N$1-1)) ->  | O114: =IF(O$1=0,"",OFFSET(データ!$M115,0,O$1-1)) ->  | P114: =IF(P$1=0,"",OFFSET(データ!$M115,0,P$1-1)) ->  | Q114: =IF(Q$1=0,"",OFFSET(データ!$M115,0,Q$1-1)) ->  | R114: =IF(R$1=0,"",OFFSET(データ!$M115,0,R$1-1)) ->  | S114: =IF(S$1=0,"",OFFSET(データ!$M115,0,S$1-1)) ->  | T114: =IF(T$1=0,"",OFFSET(データ!$M115,0,T$1-1)) ->  | U114: =IF(U$1=0,"",OFFSET(データ!$M115,0,U$1-1)) ->  | V114: =IF(V$1=0,"",OFFSET(データ!$M115,0,V$1-1)) -> 
B115: 項目 | C115: 経営者による現場コミュニケーション | D115: =IF(D$1=0,"",OFFSET(データ!$M116,0,D$1-1)) -> 0 | E115: =IF(E$1=0,"",OFFSET(データ!$M116,0,E$1-1)) ->  | F115: =IF(F$1=0,"",OFFSET(データ!$M116,0,F$1-1)) ->  | G115: =IF(G$1=0,"",OFFSET(データ!$M116,0,G$1-1)) ->  | H115: =IF(H$1=0,"",OFFSET(データ!$M116,0,H$1-1)) ->  | I115: =IF(I$1=0,"",OFFSET(データ!$M116,0,I$1-1)) ->  | J115: =IF(J$1=0,"",OFFSET(データ!$M116,0,J$1-1)) ->  | K115: =IF(K$1=0,"",OFFSET(データ!$M116,0,K$1-1)) ->  | L115: =IF(L$1=0,"",OFFSET(データ!$M116,0,L$1-1)) ->  | M115: =IF(M$1=0,"",OFFSET(データ!$M116,0,M$1-1)) ->  | N115: =IF(N$1=0,"",OFFSET(データ!$M116,0,N$1-1)) ->  | O115: =IF(O$1=0,"",OFFSET(データ!$M116,0,O$1-1)) ->  | P115: =IF(P$1=0,"",OFFSET(データ!$M116,0,P$1-1)) ->  | Q115: =IF(Q$1=0,"",OFFSET(データ!$M116,0,Q$1-1)) ->  | R115: =IF(R$1=0,"",OFFSET(データ!$M116,0,R$1-1)) ->  | S115: =IF(S$1=0,"",OFFSET(データ!$M116,0,S$1-1)) ->  | T115: =IF(T$1=0,"",OFFSET(データ!$M116,0,T$1-1)) ->  | U115: =IF(U$1=0,"",OFFSET(データ!$M116,0,U$1-1)) ->  | V115: =IF(V$1=0,"",OFFSET(データ!$M116,0,V$1-1)) -> 
B116: 項目 | C116: 安全の理念・方針の理解 | D116: =IF(D$1=0,"",OFFSET(データ!$M117,0,D$1-1)) -> 0 | E116: =IF(E$1=0,"",OFFSET(データ!$M117,0,E$1-1)) ->  | F116: =IF(F$1=0,"",OFFSET(データ!$M117,0,F$1-1)) ->  | G116: =IF(G$1=0,"",OFFSET(データ!$M117,0,G$1-1)) ->  | H116: =IF(H$1=0,"",OFFSET(データ!$M117,0,H$1-1)) ->  | I116: =IF(I$1=0,"",OFFSET(データ!$M117,0,I$1-1)) ->  | J116: =IF(J$1=0,"",OFFSET(データ!$M117,0,J$1-1)) ->  | K116: =IF(K$1=0,"",OFFSET(データ!$M117,0,K$1-1)) ->  | L116: =IF(L$1=0,"",OFFSET(データ!$M117,0,L$1-1)) ->  | M116: =IF(M$1=0,"",OFFSET(データ!$M117,0,M$1-1)) ->  | N116: =IF(N$1=0,"",OFFSET(データ!$M117,0,N$1-1)) ->  | O116: =IF(O$1=0,"",OFFSET(データ!$M117,0,O$1-1)) ->  | P116: =IF(P$1=0,"",OFFSET(データ!$M117,0,P$1-1)) ->  | Q116: =IF(Q$1=0,"",OFFSET(データ!$M117,0,Q$1-1)) ->  | R116: =IF(R$1=0,"",OFFSET(データ!$M117,0,R$1-1)) ->  | S116: =IF(S$1=0,"",OFFSET(データ!$M117,0,S$1-1)) ->  | T116: =IF(T$1=0,"",OFFSET(データ!$M117,0,T$1-1)) ->  | U116: =IF(U$1=0,"",OFFSET(データ!$M117,0,U$1-1)) ->  | V116: =IF(V$1=0,"",OFFSET(データ!$M117,0,V$1-1)) -> 
B117: 項目 | C117: 安全目標の設定 | D117: =IF(D$1=0,"",OFFSET(データ!$M118,0,D$1-1)) -> 0 | E117: =IF(E$1=0,"",OFFSET(データ!$M118,0,E$1-1)) ->  | F117: =IF(F$1=0,"",OFFSET(データ!$M118,0,F$1-1)) ->  | G117: =IF(G$1=0,"",OFFSET(データ!$M118,0,G$1-1)) ->  | H117: =IF(H$1=0,"",OFFSET(データ!$M118,0,H$1-1)) ->  | I117: =IF(I$1=0,"",OFFSET(データ!$M118,0,I$1-1)) ->  | J117: =IF(J$1=0,"",OFFSET(データ!$M118,0,J$1-1)) ->  | K117: =IF(K$1=0,"",OFFSET(データ!$M118,0,K$1-1)) ->  | L117: =IF(L$1=0,"",OFFSET(データ!$M118,0,L$1-1)) ->  | M117: =IF(M$1=0,"",OFFSET(データ!$M118,0,M$1-1)) ->  | N117: =IF(N$1=0,"",OFFSET(データ!$M118,0,N$1-1)) ->  | O117: =IF(O$1=0,"",OFFSET(データ!$M118,0,O$1-1)) ->  | P117: =IF(P$1=0,"",OFFSET(データ!$M118,0,P$1-1)) ->  | Q117: =IF(Q$1=0,"",OFFSET(データ!$M118,0,Q$1-1)) ->  | R117: =IF(R$1=0,"",OFFSET(データ!$M118,0,R$1-1)) ->  | S117: =IF(S$1=0,"",OFFSET(データ!$M118,0,S$1-1)) ->  | T117: =IF(T$1=0,"",OFFSET(データ!$M118,0,T$1-1)) ->  | U117: =IF(U$1=0,"",OFFSET(データ!$M118,0,U$1-1)) ->  | V117: =IF(V$1=0,"",OFFSET(データ!$M118,0,V$1-1)) -> 
B118: 項目 | C118: 取り組み計画の具体化 | D118: =IF(D$1=0,"",OFFSET(データ!$M119,0,D$1-1)) -> 0 | E118: =IF(E$1=0,"",OFFSET(データ!$M119,0,E$1-1)) ->  | F118: =IF(F$1=0,"",OFFSET(データ!$M119,0,F$1-1)) ->  | G118: =IF(G$1=0,"",OFFSET(データ!$M119,0,G$1-1)) ->  | H118: =IF(H$1=0,"",OFFSET(データ!$M119,0,H$1-1)) ->  | I118: =IF(I$1=0,"",OFFSET(データ!$M119,0,I$1-1)) ->  | J118: =IF(J$1=0,"",OFFSET(データ!$M119,0,J$1-1)) ->  | K118: =IF(K$1=0,"",OFFSET(データ!$M119,0,K$1-1)) ->  | L118: =IF(L$1=0,"",OFFSET(データ!$M119,0,L$1-1)) ->  | M118: =IF(M$1=0,"",OFFSET(データ!$M119,0,M$1-1)) ->  | N118: =IF(N$1=0,"",OFFSET(データ!$M119,0,N$1-1)) ->  | O118: =IF(O$1=0,"",OFFSET(データ!$M119,0,O$1-1)) ->  | P118: =IF(P$1=0,"",OFFSET(データ!$M119,0,P$1-1)) ->  | Q118: =IF(Q$1=0,"",OFFSET(データ!$M119,0,Q$1-1)) ->  | R118: =IF(R$1=0,"",OFFSET(データ!$M119,0,R$1-1)) ->  | S118: =IF(S$1=0,"",OFFSET(データ!$M119,0,S$1-1)) ->  | T118: =IF(T$1=0,"",OFFSET(データ!$M119,0,T$1-1)) ->  | U118: =IF(U$1=0,"",OFFSET(データ!$M119,0,U$1-1)) ->  | V118: =IF(V$1=0,"",OFFSET(データ!$M119,0,V$1-1)) -> 
B119: 項目 | C119: 計画の遂行度合 | D119: =IF(D$1=0,"",OFFSET(データ!$M120,0,D$1-1)) -> 0 | E119: =IF(E$1=0,"",OFFSET(データ!$M120,0,E$1-1)) ->  | F119: =IF(F$1=0,"",OFFSET(データ!$M120,0,F$1-1)) ->  | G119: =IF(G$1=0,"",OFFSET(データ!$M120,0,G$1-1)) ->  | H119: =IF(H$1=0,"",OFFSET(データ!$M120,0,H$1-1)) ->  | I119: =IF(I$1=0,"",OFFSET(データ!$M120,0,I$1-1)) ->  | J119: =IF(J$1=0,"",OFFSET(データ!$M120,0,J$1-1)) ->  | K119: =IF(K$1=0,"",OFFSET(データ!$M120,0,K$1-1)) ->  | L119: =IF(L$1=0,"",OFFSET(データ!$M120,0,L$1-1)) ->  | M119: =IF(M$1=0,"",OFFSET(データ!$M120,0,M$1-1)) ->  | N119: =IF(N$1=0,"",OFFSET(データ!$M120,0,N$1-1)) ->  | O119: =IF(O$1=0,"",OFFSET(データ!$M120,0,O$1-1)) ->  | P119: =IF(P$1=0,"",OFFSET(データ!$M120,0,P$1-1)) ->  | Q119: =IF(Q$1=0,"",OFFSET(データ!$M120,0,Q$1-1)) ->  | R119: =IF(R$1=0,"",OFFSET(データ!$M120,0,R$1-1)) ->  | S119: =IF(S$1=0,"",OFFSET(データ!$M120,0,S$1-1)) ->  | T119: =IF(T$1=0,"",OFFSET(データ!$M120,0,T$1-1)) ->  | U119: =IF(U$1=0,"",OFFSET(データ!$M120,0,U$1-1)) ->  | V119: =IF(V$1=0,"",OFFSET(データ!$M120,0,V$1-1)) -> 
B120: 項目 | C120: 改善志向 | D120: =IF(D$1=0,"",OFFSET(データ!$M121,0,D$1-1)) -> 0 | E120: =IF(E$1=0,"",OFFSET(データ!$M121,0,E$1-1)) ->  | F120: =IF(F$1=0,"",OFFSET(データ!$M121,0,F$1-1)) ->  | G120: =IF(G$1=0,"",OFFSET(データ!$M121,0,G$1-1)) ->  | H120: =IF(H$1=0,"",OFFSET(データ!$M121,0,H$1-1)) ->  | I120: =IF(I$1=0,"",OFFSET(データ!$M121,0,I$1-1)) ->  | J120: =IF(J$1=0,"",OFFSET(データ!$M121,0,J$1-1)) ->  | K120: =IF(K$1=0,"",OFFSET(データ!$M121,0,K$1-1)) ->  | L120: =IF(L$1=0,"",OFFSET(データ!$M121,0,L$1-1)) ->  | M120: =IF(M$1=0,"",OFFSET(データ!$M121,0,M$1-1)) ->  | N120: =IF(N$1=0,"",OFFSET(データ!$M121,0,N$1-1)) ->  | O120: =IF(O$1=0,"",OFFSET(データ!$M121,0,O$1-1)) ->  | P120: =IF(P$1=0,"",OFFSET(データ!$M121,0,P$1-1)) ->  | Q120: =IF(Q$1=0,"",OFFSET(データ!$M121,0,Q$1-1)) ->  | R120: =IF(R$1=0,"",OFFSET(データ!$M121,0,R$1-1)) ->  | S120: =IF(S$1=0,"",OFFSET(データ!$M121,0,S$1-1)) ->  | T120: =IF(T$1=0,"",OFFSET(データ!$M121,0,T$1-1)) ->  | U120: =IF(U$1=0,"",OFFSET(データ!$M121,0,U$1-1)) ->  | V120: =IF(V$1=0,"",OFFSET(データ!$M121,0,V$1-1)) -> 
B121: 項目 | C121: 見直しと次へのアクション | D121: =IF(D$1=0,"",OFFSET(データ!$M122,0,D$1-1)) -> 0 | E121: =IF(E$1=0,"",OFFSET(データ!$M122,0,E$1-1)) ->  | F121: =IF(F$1=0,"",OFFSET(データ!$M122,0,F$1-1)) ->  | G121: =IF(G$1=0,"",OFFSET(データ!$M122,0,G$1-1)) ->  | H121: =IF(H$1=0,"",OFFSET(データ!$M122,0,H$1-1)) ->  | I121: =IF(I$1=0,"",OFFSET(データ!$M122,0,I$1-1)) ->  | J121: =IF(J$1=0,"",OFFSET(データ!$M122,0,J$1-1)) ->  | K121: =IF(K$1=0,"",OFFSET(データ!$M122,0,K$1-1)) ->  | L121: =IF(L$1=0,"",OFFSET(データ!$M122,0,L$1-1)) ->  | M121: =IF(M$1=0,"",OFFSET(データ!$M122,0,M$1-1)) ->  | N121: =IF(N$1=0,"",OFFSET(データ!$M122,0,N$1-1)) ->  | O121: =IF(O$1=0,"",OFFSET(データ!$M122,0,O$1-1)) ->  | P121: =IF(P$1=0,"",OFFSET(データ!$M122,0,P$1-1)) ->  | Q121: =IF(Q$1=0,"",OFFSET(データ!$M122,0,Q$1-1)) ->  | R121: =IF(R$1=0,"",OFFSET(データ!$M122,0,R$1-1)) ->  | S121: =IF(S$1=0,"",OFFSET(データ!$M122,0,S$1-1)) ->  | T121: =IF(T$1=0,"",OFFSET(データ!$M122,0,T$1-1)) ->  | U121: =IF(U$1=0,"",OFFSET(データ!$M122,0,U$1-1)) ->  | V121: =IF(V$1=0,"",OFFSET(データ!$M122,0,V$1-1)) -> 
B122: 項目 | C122: 文書・記録の管理・活用 | D122: =IF(D$1=0,"",OFFSET(データ!$M123,0,D$1-1)) -> 0 | E122: =IF(E$1=0,"",OFFSET(データ!$M123,0,E$1-1)) ->  | F122: =IF(F$1=0,"",OFFSET(データ!$M123,0,F$1-1)) ->  | G122: =IF(G$1=0,"",OFFSET(データ!$M123,0,G$1-1)) ->  | H122: =IF(H$1=0,"",OFFSET(データ!$M123,0,H$1-1)) ->  | I122: =IF(I$1=0,"",OFFSET(データ!$M123,0,I$1-1)) ->  | J122: =IF(J$1=0,"",OFFSET(データ!$M123,0,J$1-1)) ->  | K122: =IF(K$1=0,"",OFFSET(データ!$M123,0,K$1-1)) ->  | L122: =IF(L$1=0,"",OFFSET(データ!$M123,0,L$1-1)) ->  | M122: =IF(M$1=0,"",OFFSET(データ!$M123,0,M$1-1)) ->  | N122: =IF(N$1=0,"",OFFSET(データ!$M123,0,N$1-1)) ->  | O122: =IF(O$1=0,"",OFFSET(データ!$M123,0,O$1-1)) ->  | P122: =IF(P$1=0,"",OFFSET(データ!$M123,0,P$1-1)) ->  | Q122: =IF(Q$1=0,"",OFFSET(データ!$M123,0,Q$1-1)) ->  | R122: =IF(R$1=0,"",OFFSET(データ!$M123,0,R$1-1)) ->  | S122: =IF(S$1=0,"",OFFSET(データ!$M123,0,S$1-1)) ->  | T122: =IF(T$1=0,"",OFFSET(データ!$M123,0,T$1-1)) ->  | U122: =IF(U$1=0,"",OFFSET(データ!$M123,0,U$1-1)) ->  | V122: =IF(V$1=0,"",OFFSET(データ!$M123,0,V$1-1)) -> 
B123: 項目 | C123: 職場の風通し | D123: =IF(D$1=0,"",OFFSET(データ!$M124,0,D$1-1)) -> 0 | E123: =IF(E$1=0,"",OFFSET(データ!$M124,0,E$1-1)) ->  | F123: =IF(F$1=0,"",OFFSET(データ!$M124,0,F$1-1)) ->  | G123: =IF(G$1=0,"",OFFSET(データ!$M124,0,G$1-1)) ->  | H123: =IF(H$1=0,"",OFFSET(データ!$M124,0,H$1-1)) ->  | I123: =IF(I$1=0,"",OFFSET(データ!$M124,0,I$1-1)) ->  | J123: =IF(J$1=0,"",OFFSET(データ!$M124,0,J$1-1)) ->  | K123: =IF(K$1=0,"",OFFSET(データ!$M124,0,K$1-1)) ->  | L123: =IF(L$1=0,"",OFFSET(データ!$M124,0,L$1-1)) ->  | M123: =IF(M$1=0,"",OFFSET(データ!$M124,0,M$1-1)) ->  | N123: =IF(N$1=0,"",OFFSET(データ!$M124,0,N$1-1)) ->  | O123: =IF(O$1=0,"",OFFSET(データ!$M124,0,O$1-1)) ->  | P123: =IF(P$1=0,"",OFFSET(データ!$M124,0,P$1-1)) ->  | Q123: =IF(Q$1=0,"",OFFSET(データ!$M124,0,Q$1-1)) ->  | R123: =IF(R$1=0,"",OFFSET(データ!$M124,0,R$1-1)) ->  | S123: =IF(S$1=0,"",OFFSET(データ!$M124,0,S$1-1)) ->  | T123: =IF(T$1=0,"",OFFSET(データ!$M124,0,T$1-1)) ->  | U123: =IF(U$1=0,"",OFFSET(データ!$M124,0,U$1-1)) ->  | V123: =IF(V$1=0,"",OFFSET(データ!$M124,0,V$1-1)) -> 
B124: 項目 | C124: リーダーシップ | D124: =IF(D$1=0,"",OFFSET(データ!$M125,0,D$1-1)) -> 0 | E124: =IF(E$1=0,"",OFFSET(データ!$M125,0,E$1-1)) ->  | F124: =IF(F$1=0,"",OFFSET(データ!$M125,0,F$1-1)) ->  | G124: =IF(G$1=0,"",OFFSET(データ!$M125,0,G$1-1)) ->  | H124: =IF(H$1=0,"",OFFSET(データ!$M125,0,H$1-1)) ->  | I124: =IF(I$1=0,"",OFFSET(データ!$M125,0,I$1-1)) ->  | J124: =IF(J$1=0,"",OFFSET(データ!$M125,0,J$1-1)) ->  | K124: =IF(K$1=0,"",OFFSET(データ!$M125,0,K$1-1)) ->  | L124: =IF(L$1=0,"",OFFSET(データ!$M125,0,L$1-1)) ->  | M124: =IF(M$1=0,"",OFFSET(データ!$M125,0,M$1-1)) ->  | N124: =IF(N$1=0,"",OFFSET(データ!$M125,0,N$1-1)) ->  | O124: =IF(O$1=0,"",OFFSET(データ!$M125,0,O$1-1)) ->  | P124: =IF(P$1=0,"",OFFSET(データ!$M125,0,P$1-1)) ->  | Q124: =IF(Q$1=0,"",OFFSET(データ!$M125,0,Q$1-1)) ->  | R124: =IF(R$1=0,"",OFFSET(データ!$M125,0,R$1-1)) ->  | S124: =IF(S$1=0,"",OFFSET(データ!$M125,0,S$1-1)) ->  | T124: =IF(T$1=0,"",OFFSET(データ!$M125,0,T$1-1)) ->  | U124: =IF(U$1=0,"",OFFSET(データ!$M125,0,U$1-1)) ->  | V124: =IF(V$1=0,"",OFFSET(データ!$M125,0,V$1-1)) -> 
B125: 項目 | C125: 部署間コミュニケーション | D125: =IF(D$1=0,"",OFFSET(データ!$M126,0,D$1-1)) -> 0 | E125: =IF(E$1=0,"",OFFSET(データ!$M126,0,E$1-1)) ->  | F125: =IF(F$1=0,"",OFFSET(データ!$M126,0,F$1-1)) ->  | G125: =IF(G$1=0,"",OFFSET(データ!$M126,0,G$1-1)) ->  | H125: =IF(H$1=0,"",OFFSET(データ!$M126,0,H$1-1)) ->  | I125: =IF(I$1=0,"",OFFSET(データ!$M126,0,I$1-1)) ->  | J125: =IF(J$1=0,"",OFFSET(データ!$M126,0,J$1-1)) ->  | K125: =IF(K$1=0,"",OFFSET(データ!$M126,0,K$1-1)) ->  | L125: =IF(L$1=0,"",OFFSET(データ!$M126,0,L$1-1)) ->  | M125: =IF(M$1=0,"",OFFSET(データ!$M126,0,M$1-1)) ->  | N125: =IF(N$1=0,"",OFFSET(データ!$M126,0,N$1-1)) ->  | O125: =IF(O$1=0,"",OFFSET(データ!$M126,0,O$1-1)) ->  | P125: =IF(P$1=0,"",OFFSET(データ!$M126,0,P$1-1)) ->  | Q125: =IF(Q$1=0,"",OFFSET(データ!$M126,0,Q$1-1)) ->  | R125: =IF(R$1=0,"",OFFSET(データ!$M126,0,R$1-1)) ->  | S125: =IF(S$1=0,"",OFFSET(データ!$M126,0,S$1-1)) ->  | T125: =IF(T$1=0,"",OFFSET(データ!$M126,0,T$1-1)) ->  | U125: =IF(U$1=0,"",OFFSET(データ!$M126,0,U$1-1)) ->  | V125: =IF(V$1=0,"",OFFSET(データ!$M126,0,V$1-1)) -> 
B126: 項目 | C126: 部署間連携 | D126: =IF(D$1=0,"",OFFSET(データ!$M127,0,D$1-1)) -> 0 | E126: =IF(E$1=0,"",OFFSET(データ!$M127,0,E$1-1)) ->  | F126: =IF(F$1=0,"",OFFSET(データ!$M127,0,F$1-1)) ->  | G126: =IF(G$1=0,"",OFFSET(データ!$M127,0,G$1-1)) ->  | H126: =IF(H$1=0,"",OFFSET(データ!$M127,0,H$1-1)) ->  | I126: =IF(I$1=0,"",OFFSET(データ!$M127,0,I$1-1)) ->  | J126: =IF(J$1=0,"",OFFSET(データ!$M127,0,J$1-1)) ->  | K126: =IF(K$1=0,"",OFFSET(データ!$M127,0,K$1-1)) ->  | L126: =IF(L$1=0,"",OFFSET(データ!$M127,0,L$1-1)) ->  | M126: =IF(M$1=0,"",OFFSET(データ!$M127,0,M$1-1)) ->  | N126: =IF(N$1=0,"",OFFSET(データ!$M127,0,N$1-1)) ->  | O126: =IF(O$1=0,"",OFFSET(データ!$M127,0,O$1-1)) ->  | P126: =IF(P$1=0,"",OFFSET(データ!$M127,0,P$1-1)) ->  | Q126: =IF(Q$1=0,"",OFFSET(データ!$M127,0,Q$1-1)) ->  | R126: =IF(R$1=0,"",OFFSET(データ!$M127,0,R$1-1)) ->  | S126: =IF(S$1=0,"",OFFSET(データ!$M127,0,S$1-1)) ->  | T126: =IF(T$1=0,"",OFFSET(データ!$M127,0,T$1-1)) ->  | U126: =IF(U$1=0,"",OFFSET(データ!$M127,0,U$1-1)) ->  | V126: =IF(V$1=0,"",OFFSET(データ!$M127,0,V$1-1)) -> 
B127: 項目 | C127: 報告・連絡・相談の環境作り | D127: =IF(D$1=0,"",OFFSET(データ!$M128,0,D$1-1)) -> 0 | E127: =IF(E$1=0,"",OFFSET(データ!$M128,0,E$1-1)) ->  | F127: =IF(F$1=0,"",OFFSET(データ!$M128,0,F$1-1)) ->  | G127: =IF(G$1=0,"",OFFSET(データ!$M128,0,G$1-1)) ->  | H127: =IF(H$1=0,"",OFFSET(データ!$M128,0,H$1-1)) ->  | I127: =IF(I$1=0,"",OFFSET(データ!$M128,0,I$1-1)) ->  | J127: =IF(J$1=0,"",OFFSET(データ!$M128,0,J$1-1)) ->  | K127: =IF(K$1=0,"",OFFSET(データ!$M128,0,K$1-1)) ->  | L127: =IF(L$1=0,"",OFFSET(データ!$M128,0,L$1-1)) ->  | M127: =IF(M$1=0,"",OFFSET(データ!$M128,0,M$1-1)) ->  | N127: =IF(N$1=0,"",OFFSET(データ!$M128,0,N$1-1)) ->  | O127: =IF(O$1=0,"",OFFSET(データ!$M128,0,O$1-1)) ->  | P127: =IF(P$1=0,"",OFFSET(データ!$M128,0,P$1-1)) ->  | Q127: =IF(Q$1=0,"",OFFSET(データ!$M128,0,Q$1-1)) ->  | R127: =IF(R$1=0,"",OFFSET(データ!$M128,0,R$1-1)) ->  | S127: =IF(S$1=0,"",OFFSET(データ!$M128,0,S$1-1)) ->  | T127: =IF(T$1=0,"",OFFSET(データ!$M128,0,T$1-1)) ->  | U127: =IF(U$1=0,"",OFFSET(データ!$M128,0,U$1-1)) ->  | V127: =IF(V$1=0,"",OFFSET(データ!$M128,0,V$1-1)) -> 
B128: 項目 | C128: 報告・連絡・相談の実践 | D128: =IF(D$1=0,"",OFFSET(データ!$M129,0,D$1-1)) -> 0 | E128: =IF(E$1=0,"",OFFSET(データ!$M129,0,E$1-1)) ->  | F128: =IF(F$1=0,"",OFFSET(データ!$M129,0,F$1-1)) ->  | G128: =IF(G$1=0,"",OFFSET(データ!$M129,0,G$1-1)) ->  | H128: =IF(H$1=0,"",OFFSET(データ!$M129,0,H$1-1)) ->  | I128: =IF(I$1=0,"",OFFSET(データ!$M129,0,I$1-1)) ->  | J128: =IF(J$1=0,"",OFFSET(データ!$M129,0,J$1-1)) ->  | K128: =IF(K$1=0,"",OFFSET(データ!$M129,0,K$1-1)) ->  | L128: =IF(L$1=0,"",OFFSET(データ!$M129,0,L$1-1)) ->  | M128: =IF(M$1=0,"",OFFSET(データ!$M129,0,M$1-1)) ->  | N128: =IF(N$1=0,"",OFFSET(データ!$M129,0,N$1-1)) ->  | O128: =IF(O$1=0,"",OFFSET(データ!$M129,0,O$1-1)) ->  | P128: =IF(P$1=0,"",OFFSET(データ!$M129,0,P$1-1)) ->  | Q128: =IF(Q$1=0,"",OFFSET(データ!$M129,0,Q$1-1)) ->  | R128: =IF(R$1=0,"",OFFSET(データ!$M129,0,R$1-1)) ->  | S128: =IF(S$1=0,"",OFFSET(データ!$M129,0,S$1-1)) ->  | T128: =IF(T$1=0,"",OFFSET(データ!$M129,0,T$1-1)) ->  | U128: =IF(U$1=0,"",OFFSET(データ!$M129,0,U$1-1)) ->  | V128: =IF(V$1=0,"",OFFSET(データ!$M129,0,V$1-1)) -> 
B129: 項目 | C129: 職場環境（仕事面） | D129: =IF(D$1=0,"",OFFSET(データ!$M130,0,D$1-1)) -> 0 | E129: =IF(E$1=0,"",OFFSET(データ!$M130,0,E$1-1)) ->  | F129: =IF(F$1=0,"",OFFSET(データ!$M130,0,F$1-1)) ->  | G129: =IF(G$1=0,"",OFFSET(データ!$M130,0,G$1-1)) ->  | H129: =IF(H$1=0,"",OFFSET(データ!$M130,0,H$1-1)) ->  | I129: =IF(I$1=0,"",OFFSET(データ!$M130,0,I$1-1)) ->  | J129: =IF(J$1=0,"",OFFSET(データ!$M130,0,J$1-1)) ->  | K129: =IF(K$1=0,"",OFFSET(データ!$M130,0,K$1-1)) ->  | L129: =IF(L$1=0,"",OFFSET(データ!$M130,0,L$1-1)) ->  | M129: =IF(M$1=0,"",OFFSET(データ!$M130,0,M$1-1)) ->  | N129: =IF(N$1=0,"",OFFSET(データ!$M130,0,N$1-1)) ->  | O129: =IF(O$1=0,"",OFFSET(データ!$M130,0,O$1-1)) ->  | P129: =IF(P$1=0,"",OFFSET(データ!$M130,0,P$1-1)) ->  | Q129: =IF(Q$1=0,"",OFFSET(データ!$M130,0,Q$1-1)) ->  | R129: =IF(R$1=0,"",OFFSET(データ!$M130,0,R$1-1)) ->  | S129: =IF(S$1=0,"",OFFSET(データ!$M130,0,S$1-1)) ->  | T129: =IF(T$1=0,"",OFFSET(データ!$M130,0,T$1-1)) ->  | U129: =IF(U$1=0,"",OFFSET(データ!$M130,0,U$1-1)) ->  | V129: =IF(V$1=0,"",OFFSET(データ!$M130,0,V$1-1)) -> 
B130: 項目 | C130: 職場環境（健康面） | D130: =IF(D$1=0,"",OFFSET(データ!$M131,0,D$1-1)) -> 0 | E130: =IF(E$1=0,"",OFFSET(データ!$M131,0,E$1-1)) ->  | F130: =IF(F$1=0,"",OFFSET(データ!$M131,0,F$1-1)) ->  | G130: =IF(G$1=0,"",OFFSET(データ!$M131,0,G$1-1)) ->  | H130: =IF(H$1=0,"",OFFSET(データ!$M131,0,H$1-1)) ->  | I130: =IF(I$1=0,"",OFFSET(データ!$M131,0,I$1-1)) ->  | J130: =IF(J$1=0,"",OFFSET(データ!$M131,0,J$1-1)) ->  | K130: =IF(K$1=0,"",OFFSET(データ!$M131,0,K$1-1)) ->  | L130: =IF(L$1=0,"",OFFSET(データ!$M131,0,L$1-1)) ->  | M130: =IF(M$1=0,"",OFFSET(データ!$M131,0,M$1-1)) ->  | N130: =IF(N$1=0,"",OFFSET(データ!$M131,0,N$1-1)) ->  | O130: =IF(O$1=0,"",OFFSET(データ!$M131,0,O$1-1)) ->  | P130: =IF(P$1=0,"",OFFSET(データ!$M131,0,P$1-1)) ->  | Q130: =IF(Q$1=0,"",OFFSET(データ!$M131,0,Q$1-1)) ->  | R130: =IF(R$1=0,"",OFFSET(データ!$M131,0,R$1-1)) ->  | S130: =IF(S$1=0,"",OFFSET(データ!$M131,0,S$1-1)) ->  | T130: =IF(T$1=0,"",OFFSET(データ!$M131,0,T$1-1)) ->  | U130: =IF(U$1=0,"",OFFSET(データ!$M131,0,U$1-1)) ->  | V130: =IF(V$1=0,"",OFFSET(データ!$M131,0,V$1-1)) -> 
B131: 項目 | C131: 職場環境（精神面） | D131: =IF(D$1=0,"",OFFSET(データ!$M132,0,D$1-1)) -> 0 | E131: =IF(E$1=0,"",OFFSET(データ!$M132,0,E$1-1)) ->  | F131: =IF(F$1=0,"",OFFSET(データ!$M132,0,F$1-1)) ->  | G131: =IF(G$1=0,"",OFFSET(データ!$M132,0,G$1-1)) ->  | H131: =IF(H$1=0,"",OFFSET(データ!$M132,0,H$1-1)) ->  | I131: =IF(I$1=0,"",OFFSET(データ!$M132,0,I$1-1)) ->  | J131: =IF(J$1=0,"",OFFSET(データ!$M132,0,J$1-1)) ->  | K131: =IF(K$1=0,"",OFFSET(データ!$M132,0,K$1-1)) ->  | L131: =IF(L$1=0,"",OFFSET(データ!$M132,0,L$1-1)) ->  | M131: =IF(M$1=0,"",OFFSET(データ!$M132,0,M$1-1)) ->  | N131: =IF(N$1=0,"",OFFSET(データ!$M132,0,N$1-1)) ->  | O131: =IF(O$1=0,"",OFFSET(データ!$M132,0,O$1-1)) ->  | P131: =IF(P$1=0,"",OFFSET(データ!$M132,0,P$1-1)) ->  | Q131: =IF(Q$1=0,"",OFFSET(データ!$M132,0,Q$1-1)) ->  | R131: =IF(R$1=0,"",OFFSET(データ!$M132,0,R$1-1)) ->  | S131: =IF(S$1=0,"",OFFSET(データ!$M132,0,S$1-1)) ->  | T131: =IF(T$1=0,"",OFFSET(データ!$M132,0,T$1-1)) ->  | U131: =IF(U$1=0,"",OFFSET(データ!$M132,0,U$1-1)) ->  | V131: =IF(V$1=0,"",OFFSET(データ!$M132,0,V$1-1)) -> 
B132: 項目 | C132: 人材確保 | D132: =IF(D$1=0,"",OFFSET(データ!$M133,0,D$1-1)) -> 0 | E132: =IF(E$1=0,"",OFFSET(データ!$M133,0,E$1-1)) ->  | F132: =IF(F$1=0,"",OFFSET(データ!$M133,0,F$1-1)) ->  | G132: =IF(G$1=0,"",OFFSET(データ!$M133,0,G$1-1)) ->  | H132: =IF(H$1=0,"",OFFSET(データ!$M133,0,H$1-1)) ->  | I132: =IF(I$1=0,"",OFFSET(データ!$M133,0,I$1-1)) ->  | J132: =IF(J$1=0,"",OFFSET(データ!$M133,0,J$1-1)) ->  | K132: =IF(K$1=0,"",OFFSET(データ!$M133,0,K$1-1)) ->  | L132: =IF(L$1=0,"",OFFSET(データ!$M133,0,L$1-1)) ->  | M132: =IF(M$1=0,"",OFFSET(データ!$M133,0,M$1-1)) ->  | N132: =IF(N$1=0,"",OFFSET(データ!$M133,0,N$1-1)) ->  | O132: =IF(O$1=0,"",OFFSET(データ!$M133,0,O$1-1)) ->  | P132: =IF(P$1=0,"",OFFSET(データ!$M133,0,P$1-1)) ->  | Q132: =IF(Q$1=0,"",OFFSET(データ!$M133,0,Q$1-1)) ->  | R132: =IF(R$1=0,"",OFFSET(データ!$M133,0,R$1-1)) ->  | S132: =IF(S$1=0,"",OFFSET(データ!$M133,0,S$1-1)) ->  | T132: =IF(T$1=0,"",OFFSET(データ!$M133,0,T$1-1)) ->  | U132: =IF(U$1=0,"",OFFSET(データ!$M133,0,U$1-1)) ->  | V132: =IF(V$1=0,"",OFFSET(データ!$M133,0,V$1-1)) -> 
B133: 項目 | C133: 採用への経営者の関わり | D133: =IF(D$1=0,"",OFFSET(データ!$M134,0,D$1-1)) -> 0 | E133: =IF(E$1=0,"",OFFSET(データ!$M134,0,E$1-1)) ->  | F133: =IF(F$1=0,"",OFFSET(データ!$M134,0,F$1-1)) ->  | G133: =IF(G$1=0,"",OFFSET(データ!$M134,0,G$1-1)) ->  | H133: =IF(H$1=0,"",OFFSET(データ!$M134,0,H$1-1)) ->  | I133: =IF(I$1=0,"",OFFSET(データ!$M134,0,I$1-1)) ->  | J133: =IF(J$1=0,"",OFFSET(データ!$M134,0,J$1-1)) ->  | K133: =IF(K$1=0,"",OFFSET(データ!$M134,0,K$1-1)) ->  | L133: =IF(L$1=0,"",OFFSET(データ!$M134,0,L$1-1)) ->  | M133: =IF(M$1=0,"",OFFSET(データ!$M134,0,M$1-1)) ->  | N133: =IF(N$1=0,"",OFFSET(データ!$M134,0,N$1-1)) ->  | O133: =IF(O$1=0,"",OFFSET(データ!$M134,0,O$1-1)) ->  | P133: =IF(P$1=0,"",OFFSET(データ!$M134,0,P$1-1)) ->  | Q133: =IF(Q$1=0,"",OFFSET(データ!$M134,0,Q$1-1)) ->  | R133: =IF(R$1=0,"",OFFSET(データ!$M134,0,R$1-1)) ->  | S133: =IF(S$1=0,"",OFFSET(データ!$M134,0,S$1-1)) ->  | T133: =IF(T$1=0,"",OFFSET(データ!$M134,0,T$1-1)) ->  | U133: =IF(U$1=0,"",OFFSET(データ!$M134,0,U$1-1)) ->  | V133: =IF(V$1=0,"",OFFSET(データ!$M134,0,V$1-1)) -> 
B134: 項目 | C134: 新人教育の効果 | D134: =IF(D$1=0,"",OFFSET(データ!$M135,0,D$1-1)) -> 0 | E134: =IF(E$1=0,"",OFFSET(データ!$M135,0,E$1-1)) ->  | F134: =IF(F$1=0,"",OFFSET(データ!$M135,0,F$1-1)) ->  | G134: =IF(G$1=0,"",OFFSET(データ!$M135,0,G$1-1)) ->  | H134: =IF(H$1=0,"",OFFSET(データ!$M135,0,H$1-1)) ->  | I134: =IF(I$1=0,"",OFFSET(データ!$M135,0,I$1-1)) ->  | J134: =IF(J$1=0,"",OFFSET(データ!$M135,0,J$1-1)) ->  | K134: =IF(K$1=0,"",OFFSET(データ!$M135,0,K$1-1)) ->  | L134: =IF(L$1=0,"",OFFSET(データ!$M135,0,L$1-1)) ->  | M134: =IF(M$1=0,"",OFFSET(データ!$M135,0,M$1-1)) ->  | N134: =IF(N$1=0,"",OFFSET(データ!$M135,0,N$1-1)) ->  | O134: =IF(O$1=0,"",OFFSET(データ!$M135,0,O$1-1)) ->  | P134: =IF(P$1=0,"",OFFSET(データ!$M135,0,P$1-1)) ->  | Q134: =IF(Q$1=0,"",OFFSET(データ!$M135,0,Q$1-1)) ->  | R134: =IF(R$1=0,"",OFFSET(データ!$M135,0,R$1-1)) ->  | S134: =IF(S$1=0,"",OFFSET(データ!$M135,0,S$1-1)) ->  | T134: =IF(T$1=0,"",OFFSET(データ!$M135,0,T$1-1)) ->  | U134: =IF(U$1=0,"",OFFSET(データ!$M135,0,U$1-1)) ->  | V134: =IF(V$1=0,"",OFFSET(データ!$M135,0,V$1-1)) -> 
B135: 項目 | C135: 知識・技能教育（定期的教育） | D135: =IF(D$1=0,"",OFFSET(データ!$M136,0,D$1-1)) -> 0 | E135: =IF(E$1=0,"",OFFSET(データ!$M136,0,E$1-1)) ->  | F135: =IF(F$1=0,"",OFFSET(データ!$M136,0,F$1-1)) ->  | G135: =IF(G$1=0,"",OFFSET(データ!$M136,0,G$1-1)) ->  | H135: =IF(H$1=0,"",OFFSET(データ!$M136,0,H$1-1)) ->  | I135: =IF(I$1=0,"",OFFSET(データ!$M136,0,I$1-1)) ->  | J135: =IF(J$1=0,"",OFFSET(データ!$M136,0,J$1-1)) ->  | K135: =IF(K$1=0,"",OFFSET(データ!$M136,0,K$1-1)) ->  | L135: =IF(L$1=0,"",OFFSET(データ!$M136,0,L$1-1)) ->  | M135: =IF(M$1=0,"",OFFSET(データ!$M136,0,M$1-1)) ->  | N135: =IF(N$1=0,"",OFFSET(データ!$M136,0,N$1-1)) ->  | O135: =IF(O$1=0,"",OFFSET(データ!$M136,0,O$1-1)) ->  | P135: =IF(P$1=0,"",OFFSET(データ!$M136,0,P$1-1)) ->  | Q135: =IF(Q$1=0,"",OFFSET(データ!$M136,0,Q$1-1)) ->  | R135: =IF(R$1=0,"",OFFSET(データ!$M136,0,R$1-1)) ->  | S135: =IF(S$1=0,"",OFFSET(データ!$M136,0,S$1-1)) ->  | T135: =IF(T$1=0,"",OFFSET(データ!$M136,0,T$1-1)) ->  | U135: =IF(U$1=0,"",OFFSET(データ!$M136,0,U$1-1)) ->  | V135: =IF(V$1=0,"",OFFSET(データ!$M136,0,V$1-1)) -> 
B136: 項目 | C136: 現場リーダーの育成 | D136: =IF(D$1=0,"",OFFSET(データ!$M137,0,D$1-1)) -> 0 | E136: =IF(E$1=0,"",OFFSET(データ!$M137,0,E$1-1)) ->  | F136: =IF(F$1=0,"",OFFSET(データ!$M137,0,F$1-1)) ->  | G136: =IF(G$1=0,"",OFFSET(データ!$M137,0,G$1-1)) ->  | H136: =IF(H$1=0,"",OFFSET(データ!$M137,0,H$1-1)) ->  | I136: =IF(I$1=0,"",OFFSET(データ!$M137,0,I$1-1)) ->  | J136: =IF(J$1=0,"",OFFSET(データ!$M137,0,J$1-1)) ->  | K136: =IF(K$1=0,"",OFFSET(データ!$M137,0,K$1-1)) ->  | L136: =IF(L$1=0,"",OFFSET(データ!$M137,0,L$1-1)) ->  | M136: =IF(M$1=0,"",OFFSET(データ!$M137,0,M$1-1)) ->  | N136: =IF(N$1=0,"",OFFSET(データ!$M137,0,N$1-1)) ->  | O136: =IF(O$1=0,"",OFFSET(データ!$M137,0,O$1-1)) ->  | P136: =IF(P$1=0,"",OFFSET(データ!$M137,0,P$1-1)) ->  | Q136: =IF(Q$1=0,"",OFFSET(データ!$M137,0,Q$1-1)) ->  | R136: =IF(R$1=0,"",OFFSET(データ!$M137,0,R$1-1)) ->  | S136: =IF(S$1=0,"",OFFSET(データ!$M137,0,S$1-1)) ->  | T136: =IF(T$1=0,"",OFFSET(データ!$M137,0,T$1-1)) ->  | U136: =IF(U$1=0,"",OFFSET(データ!$M137,0,U$1-1)) ->  | V136: =IF(V$1=0,"",OFFSET(データ!$M137,0,V$1-1)) -> 
B137: 項目 | C137: 指導員による指導の効果 | D137: =IF(D$1=0,"",OFFSET(データ!$M138,0,D$1-1)) -> 0 | E137: =IF(E$1=0,"",OFFSET(データ!$M138,0,E$1-1)) ->  | F137: =IF(F$1=0,"",OFFSET(データ!$M138,0,F$1-1)) ->  | G137: =IF(G$1=0,"",OFFSET(データ!$M138,0,G$1-1)) ->  | H137: =IF(H$1=0,"",OFFSET(データ!$M138,0,H$1-1)) ->  | I137: =IF(I$1=0,"",OFFSET(データ!$M138,0,I$1-1)) ->  | J137: =IF(J$1=0,"",OFFSET(データ!$M138,0,J$1-1)) ->  | K137: =IF(K$1=0,"",OFFSET(データ!$M138,0,K$1-1)) ->  | L137: =IF(L$1=0,"",OFFSET(データ!$M138,0,L$1-1)) ->  | M137: =IF(M$1=0,"",OFFSET(データ!$M138,0,M$1-1)) ->  | N137: =IF(N$1=0,"",OFFSET(データ!$M138,0,N$1-1)) ->  | O137: =IF(O$1=0,"",OFFSET(データ!$M138,0,O$1-1)) ->  | P137: =IF(P$1=0,"",OFFSET(データ!$M138,0,P$1-1)) ->  | Q137: =IF(Q$1=0,"",OFFSET(データ!$M138,0,Q$1-1)) ->  | R137: =IF(R$1=0,"",OFFSET(データ!$M138,0,R$1-1)) ->  | S137: =IF(S$1=0,"",OFFSET(データ!$M138,0,S$1-1)) ->  | T137: =IF(T$1=0,"",OFFSET(データ!$M138,0,T$1-1)) ->  | U137: =IF(U$1=0,"",OFFSET(データ!$M138,0,U$1-1)) ->  | V137: =IF(V$1=0,"",OFFSET(データ!$M138,0,V$1-1)) -> 
B138: 項目 | C138: 事故分析と再発防止教育 | D138: =IF(D$1=0,"",OFFSET(データ!$M139,0,D$1-1)) -> 0 | E138: =IF(E$1=0,"",OFFSET(データ!$M139,0,E$1-1)) ->  | F138: =IF(F$1=0,"",OFFSET(データ!$M139,0,F$1-1)) ->  | G138: =IF(G$1=0,"",OFFSET(データ!$M139,0,G$1-1)) ->  | H138: =IF(H$1=0,"",OFFSET(データ!$M139,0,H$1-1)) ->  | I138: =IF(I$1=0,"",OFFSET(データ!$M139,0,I$1-1)) ->  | J138: =IF(J$1=0,"",OFFSET(データ!$M139,0,J$1-1)) ->  | K138: =IF(K$1=0,"",OFFSET(データ!$M139,0,K$1-1)) ->  | L138: =IF(L$1=0,"",OFFSET(データ!$M139,0,L$1-1)) ->  | M138: =IF(M$1=0,"",OFFSET(データ!$M139,0,M$1-1)) ->  | N138: =IF(N$1=0,"",OFFSET(データ!$M139,0,N$1-1)) ->  | O138: =IF(O$1=0,"",OFFSET(データ!$M139,0,O$1-1)) ->  | P138: =IF(P$1=0,"",OFFSET(データ!$M139,0,P$1-1)) ->  | Q138: =IF(Q$1=0,"",OFFSET(データ!$M139,0,Q$1-1)) ->  | R138: =IF(R$1=0,"",OFFSET(データ!$M139,0,R$1-1)) ->  | S138: =IF(S$1=0,"",OFFSET(データ!$M139,0,S$1-1)) ->  | T138: =IF(T$1=0,"",OFFSET(データ!$M139,0,T$1-1)) ->  | U138: =IF(U$1=0,"",OFFSET(データ!$M139,0,U$1-1)) ->  | V138: =IF(V$1=0,"",OFFSET(データ!$M139,0,V$1-1)) -> 
B139: 項目 | C139: ﾋﾔﾘﾊｯﾄ、危険予知訓練の効果 | D139: =IF(D$1=0,"",OFFSET(データ!$M140,0,D$1-1)) -> 0 | E139: =IF(E$1=0,"",OFFSET(データ!$M140,0,E$1-1)) ->  | F139: =IF(F$1=0,"",OFFSET(データ!$M140,0,F$1-1)) ->  | G139: =IF(G$1=0,"",OFFSET(データ!$M140,0,G$1-1)) ->  | H139: =IF(H$1=0,"",OFFSET(データ!$M140,0,H$1-1)) ->  | I139: =IF(I$1=0,"",OFFSET(データ!$M140,0,I$1-1)) ->  | J139: =IF(J$1=0,"",OFFSET(データ!$M140,0,J$1-1)) ->  | K139: =IF(K$1=0,"",OFFSET(データ!$M140,0,K$1-1)) ->  | L139: =IF(L$1=0,"",OFFSET(データ!$M140,0,L$1-1)) ->  | M139: =IF(M$1=0,"",OFFSET(データ!$M140,0,M$1-1)) ->  | N139: =IF(N$1=0,"",OFFSET(データ!$M140,0,N$1-1)) ->  | O139: =IF(O$1=0,"",OFFSET(データ!$M140,0,O$1-1)) ->  | P139: =IF(P$1=0,"",OFFSET(データ!$M140,0,P$1-1)) ->  | Q139: =IF(Q$1=0,"",OFFSET(データ!$M140,0,Q$1-1)) ->  | R139: =IF(R$1=0,"",OFFSET(データ!$M140,0,R$1-1)) ->  | S139: =IF(S$1=0,"",OFFSET(データ!$M140,0,S$1-1)) ->  | T139: =IF(T$1=0,"",OFFSET(データ!$M140,0,T$1-1)) ->  | U139: =IF(U$1=0,"",OFFSET(データ!$M140,0,U$1-1)) ->  | V139: =IF(V$1=0,"",OFFSET(データ!$M140,0,V$1-1)) -> 
B140: 項目 | C140: 事故・災害対応手順の見直し | D140: =IF(D$1=0,"",OFFSET(データ!$M141,0,D$1-1)) -> 0 | E140: =IF(E$1=0,"",OFFSET(データ!$M141,0,E$1-1)) ->  | F140: =IF(F$1=0,"",OFFSET(データ!$M141,0,F$1-1)) ->  | G140: =IF(G$1=0,"",OFFSET(データ!$M141,0,G$1-1)) ->  | H140: =IF(H$1=0,"",OFFSET(データ!$M141,0,H$1-1)) ->  | I140: =IF(I$1=0,"",OFFSET(データ!$M141,0,I$1-1)) ->  | J140: =IF(J$1=0,"",OFFSET(データ!$M141,0,J$1-1)) ->  | K140: =IF(K$1=0,"",OFFSET(データ!$M141,0,K$1-1)) ->  | L140: =IF(L$1=0,"",OFFSET(データ!$M141,0,L$1-1)) ->  | M140: =IF(M$1=0,"",OFFSET(データ!$M141,0,M$1-1)) ->  | N140: =IF(N$1=0,"",OFFSET(データ!$M141,0,N$1-1)) ->  | O140: =IF(O$1=0,"",OFFSET(データ!$M141,0,O$1-1)) ->  | P140: =IF(P$1=0,"",OFFSET(データ!$M141,0,P$1-1)) ->  | Q140: =IF(Q$1=0,"",OFFSET(データ!$M141,0,Q$1-1)) ->  | R140: =IF(R$1=0,"",OFFSET(データ!$M141,0,R$1-1)) ->  | S140: =IF(S$1=0,"",OFFSET(データ!$M141,0,S$1-1)) ->  | T140: =IF(T$1=0,"",OFFSET(データ!$M141,0,T$1-1)) ->  | U140: =IF(U$1=0,"",OFFSET(データ!$M141,0,U$1-1)) ->  | V140: =IF(V$1=0,"",OFFSET(データ!$M141,0,V$1-1)) -> 
B141: 項目 | C141: 親身になった指導 | D141: =IF(D$1=0,"",OFFSET(データ!$M142,0,D$1-1)) -> 0 | E141: =IF(E$1=0,"",OFFSET(データ!$M142,0,E$1-1)) ->  | F141: =IF(F$1=0,"",OFFSET(データ!$M142,0,F$1-1)) ->  | G141: =IF(G$1=0,"",OFFSET(データ!$M142,0,G$1-1)) ->  | H141: =IF(H$1=0,"",OFFSET(データ!$M142,0,H$1-1)) ->  | I141: =IF(I$1=0,"",OFFSET(データ!$M142,0,I$1-1)) ->  | J141: =IF(J$1=0,"",OFFSET(データ!$M142,0,J$1-1)) ->  | K141: =IF(K$1=0,"",OFFSET(データ!$M142,0,K$1-1)) ->  | L141: =IF(L$1=0,"",OFFSET(データ!$M142,0,L$1-1)) ->  | M141: =IF(M$1=0,"",OFFSET(データ!$M142,0,M$1-1)) ->  | N141: =IF(N$1=0,"",OFFSET(データ!$M142,0,N$1-1)) ->  | O141: =IF(O$1=0,"",OFFSET(データ!$M142,0,O$1-1)) ->  | P141: =IF(P$1=0,"",OFFSET(データ!$M142,0,P$1-1)) ->  | Q141: =IF(Q$1=0,"",OFFSET(データ!$M142,0,Q$1-1)) ->  | R141: =IF(R$1=0,"",OFFSET(データ!$M142,0,R$1-1)) ->  | S141: =IF(S$1=0,"",OFFSET(データ!$M142,0,S$1-1)) ->  | T141: =IF(T$1=0,"",OFFSET(データ!$M142,0,T$1-1)) ->  | U141: =IF(U$1=0,"",OFFSET(データ!$M142,0,U$1-1)) ->  | V141: =IF(V$1=0,"",OFFSET(データ!$M142,0,V$1-1)) -> 
B142: 項目 | C142: 積極的な声かけ | D142: =IF(D$1=0,"",OFFSET(データ!$M143,0,D$1-1)) -> 0 | E142: =IF(E$1=0,"",OFFSET(データ!$M143,0,E$1-1)) ->  | F142: =IF(F$1=0,"",OFFSET(データ!$M143,0,F$1-1)) ->  | G142: =IF(G$1=0,"",OFFSET(データ!$M143,0,G$1-1)) ->  | H142: =IF(H$1=0,"",OFFSET(データ!$M143,0,H$1-1)) ->  | I142: =IF(I$1=0,"",OFFSET(データ!$M143,0,I$1-1)) ->  | J142: =IF(J$1=0,"",OFFSET(データ!$M143,0,J$1-1)) ->  | K142: =IF(K$1=0,"",OFFSET(データ!$M143,0,K$1-1)) ->  | L142: =IF(L$1=0,"",OFFSET(データ!$M143,0,L$1-1)) ->  | M142: =IF(M$1=0,"",OFFSET(データ!$M143,0,M$1-1)) ->  | N142: =IF(N$1=0,"",OFFSET(データ!$M143,0,N$1-1)) ->  | O142: =IF(O$1=0,"",OFFSET(データ!$M143,0,O$1-1)) ->  | P142: =IF(P$1=0,"",OFFSET(データ!$M143,0,P$1-1)) ->  | Q142: =IF(Q$1=0,"",OFFSET(データ!$M143,0,Q$1-1)) ->  | R142: =IF(R$1=0,"",OFFSET(データ!$M143,0,R$1-1)) ->  | S142: =IF(S$1=0,"",OFFSET(データ!$M143,0,S$1-1)) ->  | T142: =IF(T$1=0,"",OFFSET(データ!$M143,0,T$1-1)) ->  | U142: =IF(U$1=0,"",OFFSET(データ!$M143,0,U$1-1)) ->  | V142: =IF(V$1=0,"",OFFSET(データ!$M143,0,V$1-1)) -> 
B143: 項目 | C143: 朝礼の活性化 | D143: =IF(D$1=0,"",OFFSET(データ!$M144,0,D$1-1)) -> 0 | E143: =IF(E$1=0,"",OFFSET(データ!$M144,0,E$1-1)) ->  | F143: =IF(F$1=0,"",OFFSET(データ!$M144,0,F$1-1)) ->  | G143: =IF(G$1=0,"",OFFSET(データ!$M144,0,G$1-1)) ->  | H143: =IF(H$1=0,"",OFFSET(データ!$M144,0,H$1-1)) ->  | I143: =IF(I$1=0,"",OFFSET(データ!$M144,0,I$1-1)) ->  | J143: =IF(J$1=0,"",OFFSET(データ!$M144,0,J$1-1)) ->  | K143: =IF(K$1=0,"",OFFSET(データ!$M144,0,K$1-1)) ->  | L143: =IF(L$1=0,"",OFFSET(データ!$M144,0,L$1-1)) ->  | M143: =IF(M$1=0,"",OFFSET(データ!$M144,0,M$1-1)) ->  | N143: =IF(N$1=0,"",OFFSET(データ!$M144,0,N$1-1)) ->  | O143: =IF(O$1=0,"",OFFSET(データ!$M144,0,O$1-1)) ->  | P143: =IF(P$1=0,"",OFFSET(データ!$M144,0,P$1-1)) ->  | Q143: =IF(Q$1=0,"",OFFSET(データ!$M144,0,Q$1-1)) ->  | R143: =IF(R$1=0,"",OFFSET(データ!$M144,0,R$1-1)) ->  | S143: =IF(S$1=0,"",OFFSET(データ!$M144,0,S$1-1)) ->  | T143: =IF(T$1=0,"",OFFSET(データ!$M144,0,T$1-1)) ->  | U143: =IF(U$1=0,"",OFFSET(データ!$M144,0,U$1-1)) ->  | V143: =IF(V$1=0,"",OFFSET(データ!$M144,0,V$1-1)) -> 
B144: 項目 | C144: 基本行動の指導 | D144: =IF(D$1=0,"",OFFSET(データ!$M145,0,D$1-1)) -> 0 | E144: =IF(E$1=0,"",OFFSET(データ!$M145,0,E$1-1)) ->  | F144: =IF(F$1=0,"",OFFSET(データ!$M145,0,F$1-1)) ->  | G144: =IF(G$1=0,"",OFFSET(データ!$M145,0,G$1-1)) ->  | H144: =IF(H$1=0,"",OFFSET(データ!$M145,0,H$1-1)) ->  | I144: =IF(I$1=0,"",OFFSET(データ!$M145,0,I$1-1)) ->  | J144: =IF(J$1=0,"",OFFSET(データ!$M145,0,J$1-1)) ->  | K144: =IF(K$1=0,"",OFFSET(データ!$M145,0,K$1-1)) ->  | L144: =IF(L$1=0,"",OFFSET(データ!$M145,0,L$1-1)) ->  | M144: =IF(M$1=0,"",OFFSET(データ!$M145,0,M$1-1)) ->  | N144: =IF(N$1=0,"",OFFSET(データ!$M145,0,N$1-1)) ->  | O144: =IF(O$1=0,"",OFFSET(データ!$M145,0,O$1-1)) ->  | P144: =IF(P$1=0,"",OFFSET(データ!$M145,0,P$1-1)) ->  | Q144: =IF(Q$1=0,"",OFFSET(データ!$M145,0,Q$1-1)) ->  | R144: =IF(R$1=0,"",OFFSET(データ!$M145,0,R$1-1)) ->  | S144: =IF(S$1=0,"",OFFSET(データ!$M145,0,S$1-1)) ->  | T144: =IF(T$1=0,"",OFFSET(データ!$M145,0,T$1-1)) ->  | U144: =IF(U$1=0,"",OFFSET(データ!$M145,0,U$1-1)) ->  | V144: =IF(V$1=0,"",OFFSET(データ!$M145,0,V$1-1)) -> 
B145: 項目 | C145: 日々の報告と改善活動 | D145: =IF(D$1=0,"",OFFSET(データ!$M146,0,D$1-1)) -> 0 | E145: =IF(E$1=0,"",OFFSET(データ!$M146,0,E$1-1)) ->  | F145: =IF(F$1=0,"",OFFSET(データ!$M146,0,F$1-1)) ->  | G145: =IF(G$1=0,"",OFFSET(データ!$M146,0,G$1-1)) ->  | H145: =IF(H$1=0,"",OFFSET(データ!$M146,0,H$1-1)) ->  | I145: =IF(I$1=0,"",OFFSET(データ!$M146,0,I$1-1)) ->  | J145: =IF(J$1=0,"",OFFSET(データ!$M146,0,J$1-1)) ->  | K145: =IF(K$1=0,"",OFFSET(データ!$M146,0,K$1-1)) ->  | L145: =IF(L$1=0,"",OFFSET(データ!$M146,0,L$1-1)) ->  | M145: =IF(M$1=0,"",OFFSET(データ!$M146,0,M$1-1)) ->  | N145: =IF(N$1=0,"",OFFSET(データ!$M146,0,N$1-1)) ->  | O145: =IF(O$1=0,"",OFFSET(データ!$M146,0,O$1-1)) ->  | P145: =IF(P$1=0,"",OFFSET(データ!$M146,0,P$1-1)) ->  | Q145: =IF(Q$1=0,"",OFFSET(データ!$M146,0,Q$1-1)) ->  | R145: =IF(R$1=0,"",OFFSET(データ!$M146,0,R$1-1)) ->  | S145: =IF(S$1=0,"",OFFSET(データ!$M146,0,S$1-1)) ->  | T145: =IF(T$1=0,"",OFFSET(データ!$M146,0,T$1-1)) ->  | U145: =IF(U$1=0,"",OFFSET(データ!$M146,0,U$1-1)) ->  | V145: =IF(V$1=0,"",OFFSET(データ!$M146,0,V$1-1)) -> 
B146: 項目 | C146: 生活管理・健康管理 | D146: =IF(D$1=0,"",OFFSET(データ!$M147,0,D$1-1)) -> 0 | E146: =IF(E$1=0,"",OFFSET(データ!$M147,0,E$1-1)) ->  | F146: =IF(F$1=0,"",OFFSET(データ!$M147,0,F$1-1)) ->  | G146: =IF(G$1=0,"",OFFSET(データ!$M147,0,G$1-1)) ->  | H146: =IF(H$1=0,"",OFFSET(データ!$M147,0,H$1-1)) ->  | I146: =IF(I$1=0,"",OFFSET(データ!$M147,0,I$1-1)) ->  | J146: =IF(J$1=0,"",OFFSET(データ!$M147,0,J$1-1)) ->  | K146: =IF(K$1=0,"",OFFSET(データ!$M147,0,K$1-1)) ->  | L146: =IF(L$1=0,"",OFFSET(データ!$M147,0,L$1-1)) ->  | M146: =IF(M$1=0,"",OFFSET(データ!$M147,0,M$1-1)) ->  | N146: =IF(N$1=0,"",OFFSET(データ!$M147,0,N$1-1)) ->  | O146: =IF(O$1=0,"",OFFSET(データ!$M147,0,O$1-1)) ->  | P146: =IF(P$1=0,"",OFFSET(データ!$M147,0,P$1-1)) ->  | Q146: =IF(Q$1=0,"",OFFSET(データ!$M147,0,Q$1-1)) ->  | R146: =IF(R$1=0,"",OFFSET(データ!$M147,0,R$1-1)) ->  | S146: =IF(S$1=0,"",OFFSET(データ!$M147,0,S$1-1)) ->  | T146: =IF(T$1=0,"",OFFSET(データ!$M147,0,T$1-1)) ->  | U146: =IF(U$1=0,"",OFFSET(データ!$M147,0,U$1-1)) ->  | V146: =IF(V$1=0,"",OFFSET(データ!$M147,0,V$1-1)) -> 
B147: 項目 | C147: 改善意欲の醸成 | D147: =IF(D$1=0,"",OFFSET(データ!$M148,0,D$1-1)) -> 0 | E147: =IF(E$1=0,"",OFFSET(データ!$M148,0,E$1-1)) ->  | F147: =IF(F$1=0,"",OFFSET(データ!$M148,0,F$1-1)) ->  | G147: =IF(G$1=0,"",OFFSET(データ!$M148,0,G$1-1)) ->  | H147: =IF(H$1=0,"",OFFSET(データ!$M148,0,H$1-1)) ->  | I147: =IF(I$1=0,"",OFFSET(データ!$M148,0,I$1-1)) ->  | J147: =IF(J$1=0,"",OFFSET(データ!$M148,0,J$1-1)) ->  | K147: =IF(K$1=0,"",OFFSET(データ!$M148,0,K$1-1)) ->  | L147: =IF(L$1=0,"",OFFSET(データ!$M148,0,L$1-1)) ->  | M147: =IF(M$1=0,"",OFFSET(データ!$M148,0,M$1-1)) ->  | N147: =IF(N$1=0,"",OFFSET(データ!$M148,0,N$1-1)) ->  | O147: =IF(O$1=0,"",OFFSET(データ!$M148,0,O$1-1)) ->  | P147: =IF(P$1=0,"",OFFSET(データ!$M148,0,P$1-1)) ->  | Q147: =IF(Q$1=0,"",OFFSET(データ!$M148,0,Q$1-1)) ->  | R147: =IF(R$1=0,"",OFFSET(データ!$M148,0,R$1-1)) ->  | S147: =IF(S$1=0,"",OFFSET(データ!$M148,0,S$1-1)) ->  | T147: =IF(T$1=0,"",OFFSET(データ!$M148,0,T$1-1)) ->  | U147: =IF(U$1=0,"",OFFSET(データ!$M148,0,U$1-1)) ->  | V147: =IF(V$1=0,"",OFFSET(データ!$M148,0,V$1-1)) -> 
B148: 項目 | C148: ミーティング（班活動等）の充実 | D148: =IF(D$1=0,"",OFFSET(データ!$M149,0,D$1-1)) -> 0 | E148: =IF(E$1=0,"",OFFSET(データ!$M149,0,E$1-1)) ->  | F148: =IF(F$1=0,"",OFFSET(データ!$M149,0,F$1-1)) ->  | G148: =IF(G$1=0,"",OFFSET(データ!$M149,0,G$1-1)) ->  | H148: =IF(H$1=0,"",OFFSET(データ!$M149,0,H$1-1)) ->  | I148: =IF(I$1=0,"",OFFSET(データ!$M149,0,I$1-1)) ->  | J148: =IF(J$1=0,"",OFFSET(データ!$M149,0,J$1-1)) ->  | K148: =IF(K$1=0,"",OFFSET(データ!$M149,0,K$1-1)) ->  | L148: =IF(L$1=0,"",OFFSET(データ!$M149,0,L$1-1)) ->  | M148: =IF(M$1=0,"",OFFSET(データ!$M149,0,M$1-1)) ->  | N148: =IF(N$1=0,"",OFFSET(データ!$M149,0,N$1-1)) ->  | O148: =IF(O$1=0,"",OFFSET(データ!$M149,0,O$1-1)) ->  | P148: =IF(P$1=0,"",OFFSET(データ!$M149,0,P$1-1)) ->  | Q148: =IF(Q$1=0,"",OFFSET(データ!$M149,0,Q$1-1)) ->  | R148: =IF(R$1=0,"",OFFSET(データ!$M149,0,R$1-1)) ->  | S148: =IF(S$1=0,"",OFFSET(データ!$M149,0,S$1-1)) ->  | T148: =IF(T$1=0,"",OFFSET(データ!$M149,0,T$1-1)) ->  | U148: =IF(U$1=0,"",OFFSET(データ!$M149,0,U$1-1)) ->  | V148: =IF(V$1=0,"",OFFSET(データ!$M149,0,V$1-1)) -> 
B149: 項目 | C149: 現場ﾊﾟﾄﾛｰﾙ・立会の充実 | D149: =IF(D$1=0,"",OFFSET(データ!$M150,0,D$1-1)) -> 0 | E149: =IF(E$1=0,"",OFFSET(データ!$M150,0,E$1-1)) ->  | F149: =IF(F$1=0,"",OFFSET(データ!$M150,0,F$1-1)) ->  | G149: =IF(G$1=0,"",OFFSET(データ!$M150,0,G$1-1)) ->  | H149: =IF(H$1=0,"",OFFSET(データ!$M150,0,H$1-1)) ->  | I149: =IF(I$1=0,"",OFFSET(データ!$M150,0,I$1-1)) ->  | J149: =IF(J$1=0,"",OFFSET(データ!$M150,0,J$1-1)) ->  | K149: =IF(K$1=0,"",OFFSET(データ!$M150,0,K$1-1)) ->  | L149: =IF(L$1=0,"",OFFSET(データ!$M150,0,L$1-1)) ->  | M149: =IF(M$1=0,"",OFFSET(データ!$M150,0,M$1-1)) ->  | N149: =IF(N$1=0,"",OFFSET(データ!$M150,0,N$1-1)) ->  | O149: =IF(O$1=0,"",OFFSET(データ!$M150,0,O$1-1)) ->  | P149: =IF(P$1=0,"",OFFSET(データ!$M150,0,P$1-1)) ->  | Q149: =IF(Q$1=0,"",OFFSET(データ!$M150,0,Q$1-1)) ->  | R149: =IF(R$1=0,"",OFFSET(データ!$M150,0,R$1-1)) ->  | S149: =IF(S$1=0,"",OFFSET(データ!$M150,0,S$1-1)) ->  | T149: =IF(T$1=0,"",OFFSET(データ!$M150,0,T$1-1)) ->  | U149: =IF(U$1=0,"",OFFSET(データ!$M150,0,U$1-1)) ->  | V149: =IF(V$1=0,"",OFFSET(データ!$M150,0,V$1-1)) -> 
B150: 項目 | C150: 健康 | D150: =IF(D$1=0,"",OFFSET(データ!$M151,0,D$1-1)) -> 0 | E150: =IF(E$1=0,"",OFFSET(データ!$M151,0,E$1-1)) ->  | F150: =IF(F$1=0,"",OFFSET(データ!$M151,0,F$1-1)) ->  | G150: =IF(G$1=0,"",OFFSET(データ!$M151,0,G$1-1)) ->  | H150: =IF(H$1=0,"",OFFSET(データ!$M151,0,H$1-1)) ->  | I150: =IF(I$1=0,"",OFFSET(データ!$M151,0,I$1-1)) ->  | J150: =IF(J$1=0,"",OFFSET(データ!$M151,0,J$1-1)) ->  | K150: =IF(K$1=0,"",OFFSET(データ!$M151,0,K$1-1)) ->  | L150: =IF(L$1=0,"",OFFSET(データ!$M151,0,L$1-1)) ->  | M150: =IF(M$1=0,"",OFFSET(データ!$M151,0,M$1-1)) ->  | N150: =IF(N$1=0,"",OFFSET(データ!$M151,0,N$1-1)) ->  | O150: =IF(O$1=0,"",OFFSET(データ!$M151,0,O$1-1)) ->  | P150: =IF(P$1=0,"",OFFSET(データ!$M151,0,P$1-1)) ->  | Q150: =IF(Q$1=0,"",OFFSET(データ!$M151,0,Q$1-1)) ->  | R150: =IF(R$1=0,"",OFFSET(データ!$M151,0,R$1-1)) ->  | S150: =IF(S$1=0,"",OFFSET(データ!$M151,0,S$1-1)) ->  | T150: =IF(T$1=0,"",OFFSET(データ!$M151,0,T$1-1)) ->  | U150: =IF(U$1=0,"",OFFSET(データ!$M151,0,U$1-1)) ->  | V150: =IF(V$1=0,"",OFFSET(データ!$M151,0,V$1-1)) -> 
B151: 項目 | C151: あいさつ | D151: =IF(D$1=0,"",OFFSET(データ!$M152,0,D$1-1)) -> 0 | E151: =IF(E$1=0,"",OFFSET(データ!$M152,0,E$1-1)) ->  | F151: =IF(F$1=0,"",OFFSET(データ!$M152,0,F$1-1)) ->  | G151: =IF(G$1=0,"",OFFSET(データ!$M152,0,G$1-1)) ->  | H151: =IF(H$1=0,"",OFFSET(データ!$M152,0,H$1-1)) ->  | I151: =IF(I$1=0,"",OFFSET(データ!$M152,0,I$1-1)) ->  | J151: =IF(J$1=0,"",OFFSET(データ!$M152,0,J$1-1)) ->  | K151: =IF(K$1=0,"",OFFSET(データ!$M152,0,K$1-1)) ->  | L151: =IF(L$1=0,"",OFFSET(データ!$M152,0,L$1-1)) ->  | M151: =IF(M$1=0,"",OFFSET(データ!$M152,0,M$1-1)) ->  | N151: =IF(N$1=0,"",OFFSET(データ!$M152,0,N$1-1)) ->  | O151: =IF(O$1=0,"",OFFSET(データ!$M152,0,O$1-1)) ->  | P151: =IF(P$1=0,"",OFFSET(データ!$M152,0,P$1-1)) ->  | Q151: =IF(Q$1=0,"",OFFSET(データ!$M152,0,Q$1-1)) ->  | R151: =IF(R$1=0,"",OFFSET(データ!$M152,0,R$1-1)) ->  | S151: =IF(S$1=0,"",OFFSET(データ!$M152,0,S$1-1)) ->  | T151: =IF(T$1=0,"",OFFSET(データ!$M152,0,T$1-1)) ->  | U151: =IF(U$1=0,"",OFFSET(データ!$M152,0,U$1-1)) ->  | V151: =IF(V$1=0,"",OFFSET(データ!$M152,0,V$1-1)) -> 
B152: 項目 | C152: 約束 | D152: =IF(D$1=0,"",OFFSET(データ!$M153,0,D$1-1)) -> 0 | E152: =IF(E$1=0,"",OFFSET(データ!$M153,0,E$1-1)) ->  | F152: =IF(F$1=0,"",OFFSET(データ!$M153,0,F$1-1)) ->  | G152: =IF(G$1=0,"",OFFSET(データ!$M153,0,G$1-1)) ->  | H152: =IF(H$1=0,"",OFFSET(データ!$M153,0,H$1-1)) ->  | I152: =IF(I$1=0,"",OFFSET(データ!$M153,0,I$1-1)) ->  | J152: =IF(J$1=0,"",OFFSET(データ!$M153,0,J$1-1)) ->  | K152: =IF(K$1=0,"",OFFSET(データ!$M153,0,K$1-1)) ->  | L152: =IF(L$1=0,"",OFFSET(データ!$M153,0,L$1-1)) ->  | M152: =IF(M$1=0,"",OFFSET(データ!$M153,0,M$1-1)) ->  | N152: =IF(N$1=0,"",OFFSET(データ!$M153,0,N$1-1)) ->  | O152: =IF(O$1=0,"",OFFSET(データ!$M153,0,O$1-1)) ->  | P152: =IF(P$1=0,"",OFFSET(データ!$M153,0,P$1-1)) ->  | Q152: =IF(Q$1=0,"",OFFSET(データ!$M153,0,Q$1-1)) ->  | R152: =IF(R$1=0,"",OFFSET(データ!$M153,0,R$1-1)) ->  | S152: =IF(S$1=0,"",OFFSET(データ!$M153,0,S$1-1)) ->  | T152: =IF(T$1=0,"",OFFSET(データ!$M153,0,T$1-1)) ->  | U152: =IF(U$1=0,"",OFFSET(データ!$M153,0,U$1-1)) ->  | V152: =IF(V$1=0,"",OFFSET(データ!$M153,0,V$1-1)) -> 
B153: 項目 | C153: 計画 | D153: =IF(D$1=0,"",OFFSET(データ!$M154,0,D$1-1)) -> 0 | E153: =IF(E$1=0,"",OFFSET(データ!$M154,0,E$1-1)) ->  | F153: =IF(F$1=0,"",OFFSET(データ!$M154,0,F$1-1)) ->  | G153: =IF(G$1=0,"",OFFSET(データ!$M154,0,G$1-1)) ->  | H153: =IF(H$1=0,"",OFFSET(データ!$M154,0,H$1-1)) ->  | I153: =IF(I$1=0,"",OFFSET(データ!$M154,0,I$1-1)) ->  | J153: =IF(J$1=0,"",OFFSET(データ!$M154,0,J$1-1)) ->  | K153: =IF(K$1=0,"",OFFSET(データ!$M154,0,K$1-1)) ->  | L153: =IF(L$1=0,"",OFFSET(データ!$M154,0,L$1-1)) ->  | M153: =IF(M$1=0,"",OFFSET(データ!$M154,0,M$1-1)) ->  | N153: =IF(N$1=0,"",OFFSET(データ!$M154,0,N$1-1)) ->  | O153: =IF(O$1=0,"",OFFSET(データ!$M154,0,O$1-1)) ->  | P153: =IF(P$1=0,"",OFFSET(データ!$M154,0,P$1-1)) ->  | Q153: =IF(Q$1=0,"",OFFSET(データ!$M154,0,Q$1-1)) ->  | R153: =IF(R$1=0,"",OFFSET(データ!$M154,0,R$1-1)) ->  | S153: =IF(S$1=0,"",OFFSET(データ!$M154,0,S$1-1)) ->  | T153: =IF(T$1=0,"",OFFSET(データ!$M154,0,T$1-1)) ->  | U153: =IF(U$1=0,"",OFFSET(データ!$M154,0,U$1-1)) ->  | V153: =IF(V$1=0,"",OFFSET(データ!$M154,0,V$1-1)) -> 
B154: 項目 | C154: 報告 | D154: =IF(D$1=0,"",OFFSET(データ!$M155,0,D$1-1)) -> 0 | E154: =IF(E$1=0,"",OFFSET(データ!$M155,0,E$1-1)) ->  | F154: =IF(F$1=0,"",OFFSET(データ!$M155,0,F$1-1)) ->  | G154: =IF(G$1=0,"",OFFSET(データ!$M155,0,G$1-1)) ->  | H154: =IF(H$1=0,"",OFFSET(データ!$M155,0,H$1-1)) ->  | I154: =IF(I$1=0,"",OFFSET(データ!$M155,0,I$1-1)) ->  | J154: =IF(J$1=0,"",OFFSET(データ!$M155,0,J$1-1)) ->  | K154: =IF(K$1=0,"",OFFSET(データ!$M155,0,K$1-1)) ->  | L154: =IF(L$1=0,"",OFFSET(データ!$M155,0,L$1-1)) ->  | M154: =IF(M$1=0,"",OFFSET(データ!$M155,0,M$1-1)) ->  | N154: =IF(N$1=0,"",OFFSET(データ!$M155,0,N$1-1)) ->  | O154: =IF(O$1=0,"",OFFSET(データ!$M155,0,O$1-1)) ->  | P154: =IF(P$1=0,"",OFFSET(データ!$M155,0,P$1-1)) ->  | Q154: =IF(Q$1=0,"",OFFSET(データ!$M155,0,Q$1-1)) ->  | R154: =IF(R$1=0,"",OFFSET(データ!$M155,0,R$1-1)) ->  | S154: =IF(S$1=0,"",OFFSET(データ!$M155,0,S$1-1)) ->  | T154: =IF(T$1=0,"",OFFSET(データ!$M155,0,T$1-1)) ->  | U154: =IF(U$1=0,"",OFFSET(データ!$M155,0,U$1-1)) ->  | V154: =IF(V$1=0,"",OFFSET(データ!$M155,0,V$1-1)) -> 
B155: 項目 | C155: 終業 | D155: =IF(D$1=0,"",OFFSET(データ!$M156,0,D$1-1)) -> 0 | E155: =IF(E$1=0,"",OFFSET(データ!$M156,0,E$1-1)) ->  | F155: =IF(F$1=0,"",OFFSET(データ!$M156,0,F$1-1)) ->  | G155: =IF(G$1=0,"",OFFSET(データ!$M156,0,G$1-1)) ->  | H155: =IF(H$1=0,"",OFFSET(データ!$M156,0,H$1-1)) ->  | I155: =IF(I$1=0,"",OFFSET(データ!$M156,0,I$1-1)) ->  | J155: =IF(J$1=0,"",OFFSET(データ!$M156,0,J$1-1)) ->  | K155: =IF(K$1=0,"",OFFSET(データ!$M156,0,K$1-1)) ->  | L155: =IF(L$1=0,"",OFFSET(データ!$M156,0,L$1-1)) ->  | M155: =IF(M$1=0,"",OFFSET(データ!$M156,0,M$1-1)) ->  | N155: =IF(N$1=0,"",OFFSET(データ!$M156,0,N$1-1)) ->  | O155: =IF(O$1=0,"",OFFSET(データ!$M156,0,O$1-1)) ->  | P155: =IF(P$1=0,"",OFFSET(データ!$M156,0,P$1-1)) ->  | Q155: =IF(Q$1=0,"",OFFSET(データ!$M156,0,Q$1-1)) ->  | R155: =IF(R$1=0,"",OFFSET(データ!$M156,0,R$1-1)) ->  | S155: =IF(S$1=0,"",OFFSET(データ!$M156,0,S$1-1)) ->  | T155: =IF(T$1=0,"",OFFSET(データ!$M156,0,T$1-1)) ->  | U155: =IF(U$1=0,"",OFFSET(データ!$M156,0,U$1-1)) ->  | V155: =IF(V$1=0,"",OFFSET(データ!$M156,0,V$1-1)) -> 
B156: 項目 | C156: 仕事 | D156: =IF(D$1=0,"",OFFSET(データ!$M157,0,D$1-1)) -> 0 | E156: =IF(E$1=0,"",OFFSET(データ!$M157,0,E$1-1)) ->  | F156: =IF(F$1=0,"",OFFSET(データ!$M157,0,F$1-1)) ->  | G156: =IF(G$1=0,"",OFFSET(データ!$M157,0,G$1-1)) ->  | H156: =IF(H$1=0,"",OFFSET(データ!$M157,0,H$1-1)) ->  | I156: =IF(I$1=0,"",OFFSET(データ!$M157,0,I$1-1)) ->  | J156: =IF(J$1=0,"",OFFSET(データ!$M157,0,J$1-1)) ->  | K156: =IF(K$1=0,"",OFFSET(データ!$M157,0,K$1-1)) ->  | L156: =IF(L$1=0,"",OFFSET(データ!$M157,0,L$1-1)) ->  | M156: =IF(M$1=0,"",OFFSET(データ!$M157,0,M$1-1)) ->  | N156: =IF(N$1=0,"",OFFSET(データ!$M157,0,N$1-1)) ->  | O156: =IF(O$1=0,"",OFFSET(データ!$M157,0,O$1-1)) ->  | P156: =IF(P$1=0,"",OFFSET(データ!$M157,0,P$1-1)) ->  | Q156: =IF(Q$1=0,"",OFFSET(データ!$M157,0,Q$1-1)) ->  | R156: =IF(R$1=0,"",OFFSET(データ!$M157,0,R$1-1)) ->  | S156: =IF(S$1=0,"",OFFSET(データ!$M157,0,S$1-1)) ->  | T156: =IF(T$1=0,"",OFFSET(データ!$M157,0,T$1-1)) ->  | U156: =IF(U$1=0,"",OFFSET(データ!$M157,0,U$1-1)) ->  | V156: =IF(V$1=0,"",OFFSET(データ!$M157,0,V$1-1)) -> 
B157: 項目 | C157: 車両・機材・施設 | D157: =IF(D$1=0,"",OFFSET(データ!$M158,0,D$1-1)) -> 0 | E157: =IF(E$1=0,"",OFFSET(データ!$M158,0,E$1-1)) ->  | F157: =IF(F$1=0,"",OFFSET(データ!$M158,0,F$1-1)) ->  | G157: =IF(G$1=0,"",OFFSET(データ!$M158,0,G$1-1)) ->  | H157: =IF(H$1=0,"",OFFSET(データ!$M158,0,H$1-1)) ->  | I157: =IF(I$1=0,"",OFFSET(データ!$M158,0,I$1-1)) ->  | J157: =IF(J$1=0,"",OFFSET(データ!$M158,0,J$1-1)) ->  | K157: =IF(K$1=0,"",OFFSET(データ!$M158,0,K$1-1)) ->  | L157: =IF(L$1=0,"",OFFSET(データ!$M158,0,L$1-1)) ->  | M157: =IF(M$1=0,"",OFFSET(データ!$M158,0,M$1-1)) ->  | N157: =IF(N$1=0,"",OFFSET(データ!$M158,0,N$1-1)) ->  | O157: =IF(O$1=0,"",OFFSET(データ!$M158,0,O$1-1)) ->  | P157: =IF(P$1=0,"",OFFSET(データ!$M158,0,P$1-1)) ->  | Q157: =IF(Q$1=0,"",OFFSET(データ!$M158,0,Q$1-1)) ->  | R157: =IF(R$1=0,"",OFFSET(データ!$M158,0,R$1-1)) ->  | S157: =IF(S$1=0,"",OFFSET(データ!$M158,0,S$1-1)) ->  | T157: =IF(T$1=0,"",OFFSET(データ!$M158,0,T$1-1)) ->  | U157: =IF(U$1=0,"",OFFSET(データ!$M158,0,U$1-1)) ->  | V157: =IF(V$1=0,"",OFFSET(データ!$M158,0,V$1-1)) -> 
B158: 項目 | C158: 会議・会合 | D158: =IF(D$1=0,"",OFFSET(データ!$M159,0,D$1-1)) -> 0 | E158: =IF(E$1=0,"",OFFSET(データ!$M159,0,E$1-1)) ->  | F158: =IF(F$1=0,"",OFFSET(データ!$M159,0,F$1-1)) ->  | G158: =IF(G$1=0,"",OFFSET(データ!$M159,0,G$1-1)) ->  | H158: =IF(H$1=0,"",OFFSET(データ!$M159,0,H$1-1)) ->  | I158: =IF(I$1=0,"",OFFSET(データ!$M159,0,I$1-1)) ->  | J158: =IF(J$1=0,"",OFFSET(データ!$M159,0,J$1-1)) ->  | K158: =IF(K$1=0,"",OFFSET(データ!$M159,0,K$1-1)) ->  | L158: =IF(L$1=0,"",OFFSET(データ!$M159,0,L$1-1)) ->  | M158: =IF(M$1=0,"",OFFSET(データ!$M159,0,M$1-1)) ->  | N158: =IF(N$1=0,"",OFFSET(データ!$M159,0,N$1-1)) ->  | O158: =IF(O$1=0,"",OFFSET(データ!$M159,0,O$1-1)) ->  | P158: =IF(P$1=0,"",OFFSET(データ!$M159,0,P$1-1)) ->  | Q158: =IF(Q$1=0,"",OFFSET(データ!$M159,0,Q$1-1)) ->  | R158: =IF(R$1=0,"",OFFSET(データ!$M159,0,R$1-1)) ->  | S158: =IF(S$1=0,"",OFFSET(データ!$M159,0,S$1-1)) ->  | T158: =IF(T$1=0,"",OFFSET(データ!$M159,0,T$1-1)) ->  | U158: =IF(U$1=0,"",OFFSET(データ!$M159,0,U$1-1)) ->  | V158: =IF(V$1=0,"",OFFSET(データ!$M159,0,V$1-1)) -> 
B159: 項目 | C159: 出勤 | D159: =IF(D$1=0,"",OFFSET(データ!$M160,0,D$1-1)) -> 0 | E159: =IF(E$1=0,"",OFFSET(データ!$M160,0,E$1-1)) ->  | F159: =IF(F$1=0,"",OFFSET(データ!$M160,0,F$1-1)) ->  | G159: =IF(G$1=0,"",OFFSET(データ!$M160,0,G$1-1)) ->  | H159: =IF(H$1=0,"",OFFSET(データ!$M160,0,H$1-1)) ->  | I159: =IF(I$1=0,"",OFFSET(データ!$M160,0,I$1-1)) ->  | J159: =IF(J$1=0,"",OFFSET(データ!$M160,0,J$1-1)) ->  | K159: =IF(K$1=0,"",OFFSET(データ!$M160,0,K$1-1)) ->  | L159: =IF(L$1=0,"",OFFSET(データ!$M160,0,L$1-1)) ->  | M159: =IF(M$1=0,"",OFFSET(データ!$M160,0,M$1-1)) ->  | N159: =IF(N$1=0,"",OFFSET(データ!$M160,0,N$1-1)) ->  | O159: =IF(O$1=0,"",OFFSET(データ!$M160,0,O$1-1)) ->  | P159: =IF(P$1=0,"",OFFSET(データ!$M160,0,P$1-1)) ->  | Q159: =IF(Q$1=0,"",OFFSET(データ!$M160,0,Q$1-1)) ->  | R159: =IF(R$1=0,"",OFFSET(データ!$M160,0,R$1-1)) ->  | S159: =IF(S$1=0,"",OFFSET(データ!$M160,0,S$1-1)) ->  | T159: =IF(T$1=0,"",OFFSET(データ!$M160,0,T$1-1)) ->  | U159: =IF(U$1=0,"",OFFSET(データ!$M160,0,U$1-1)) ->  | V159: =IF(V$1=0,"",OFFSET(データ!$M160,0,V$1-1)) -> 
B160: 項目 | C160: 上役 | D160: =IF(D$1=0,"",OFFSET(データ!$M161,0,D$1-1)) -> 0 | E160: =IF(E$1=0,"",OFFSET(データ!$M161,0,E$1-1)) ->  | F160: =IF(F$1=0,"",OFFSET(データ!$M161,0,F$1-1)) ->  | G160: =IF(G$1=0,"",OFFSET(データ!$M161,0,G$1-1)) ->  | H160: =IF(H$1=0,"",OFFSET(データ!$M161,0,H$1-1)) ->  | I160: =IF(I$1=0,"",OFFSET(データ!$M161,0,I$1-1)) ->  | J160: =IF(J$1=0,"",OFFSET(データ!$M161,0,J$1-1)) ->  | K160: =IF(K$1=0,"",OFFSET(データ!$M161,0,K$1-1)) ->  | L160: =IF(L$1=0,"",OFFSET(データ!$M161,0,L$1-1)) ->  | M160: =IF(M$1=0,"",OFFSET(データ!$M161,0,M$1-1)) ->  | N160: =IF(N$1=0,"",OFFSET(データ!$M161,0,N$1-1)) ->  | O160: =IF(O$1=0,"",OFFSET(データ!$M161,0,O$1-1)) ->  | P160: =IF(P$1=0,"",OFFSET(データ!$M161,0,P$1-1)) ->  | Q160: =IF(Q$1=0,"",OFFSET(データ!$M161,0,Q$1-1)) ->  | R160: =IF(R$1=0,"",OFFSET(データ!$M161,0,R$1-1)) ->  | S160: =IF(S$1=0,"",OFFSET(データ!$M161,0,S$1-1)) ->  | T160: =IF(T$1=0,"",OFFSET(データ!$M161,0,T$1-1)) ->  | U160: =IF(U$1=0,"",OFFSET(データ!$M161,0,U$1-1)) ->  | V160: =IF(V$1=0,"",OFFSET(データ!$M161,0,V$1-1)) -> 
B161: 項目 | C161: 先輩 | D161: =IF(D$1=0,"",OFFSET(データ!$M162,0,D$1-1)) -> 0 | E161: =IF(E$1=0,"",OFFSET(データ!$M162,0,E$1-1)) ->  | F161: =IF(F$1=0,"",OFFSET(データ!$M162,0,F$1-1)) ->  | G161: =IF(G$1=0,"",OFFSET(データ!$M162,0,G$1-1)) ->  | H161: =IF(H$1=0,"",OFFSET(データ!$M162,0,H$1-1)) ->  | I161: =IF(I$1=0,"",OFFSET(データ!$M162,0,I$1-1)) ->  | J161: =IF(J$1=0,"",OFFSET(データ!$M162,0,J$1-1)) ->  | K161: =IF(K$1=0,"",OFFSET(データ!$M162,0,K$1-1)) ->  | L161: =IF(L$1=0,"",OFFSET(データ!$M162,0,L$1-1)) ->  | M161: =IF(M$1=0,"",OFFSET(データ!$M162,0,M$1-1)) ->  | N161: =IF(N$1=0,"",OFFSET(データ!$M162,0,N$1-1)) ->  | O161: =IF(O$1=0,"",OFFSET(データ!$M162,0,O$1-1)) ->  | P161: =IF(P$1=0,"",OFFSET(データ!$M162,0,P$1-1)) ->  | Q161: =IF(Q$1=0,"",OFFSET(データ!$M162,0,Q$1-1)) ->  | R161: =IF(R$1=0,"",OFFSET(データ!$M162,0,R$1-1)) ->  | S161: =IF(S$1=0,"",OFFSET(データ!$M162,0,S$1-1)) ->  | T161: =IF(T$1=0,"",OFFSET(データ!$M162,0,T$1-1)) ->  | U161: =IF(U$1=0,"",OFFSET(データ!$M162,0,U$1-1)) ->  | V161: =IF(V$1=0,"",OFFSET(データ!$M162,0,V$1-1)) -> 
B162: 項目 | C162: 職場仲間 | D162: =IF(D$1=0,"",OFFSET(データ!$M163,0,D$1-1)) -> 0 | E162: =IF(E$1=0,"",OFFSET(データ!$M163,0,E$1-1)) ->  | F162: =IF(F$1=0,"",OFFSET(データ!$M163,0,F$1-1)) ->  | G162: =IF(G$1=0,"",OFFSET(データ!$M163,0,G$1-1)) ->  | H162: =IF(H$1=0,"",OFFSET(データ!$M163,0,H$1-1)) ->  | I162: =IF(I$1=0,"",OFFSET(データ!$M163,0,I$1-1)) ->  | J162: =IF(J$1=0,"",OFFSET(データ!$M163,0,J$1-1)) ->  | K162: =IF(K$1=0,"",OFFSET(データ!$M163,0,K$1-1)) ->  | L162: =IF(L$1=0,"",OFFSET(データ!$M163,0,L$1-1)) ->  | M162: =IF(M$1=0,"",OFFSET(データ!$M163,0,M$1-1)) ->  | N162: =IF(N$1=0,"",OFFSET(データ!$M163,0,N$1-1)) ->  | O162: =IF(O$1=0,"",OFFSET(データ!$M163,0,O$1-1)) ->  | P162: =IF(P$1=0,"",OFFSET(データ!$M163,0,P$1-1)) ->  | Q162: =IF(Q$1=0,"",OFFSET(データ!$M163,0,Q$1-1)) ->  | R162: =IF(R$1=0,"",OFFSET(データ!$M163,0,R$1-1)) ->  | S162: =IF(S$1=0,"",OFFSET(データ!$M163,0,S$1-1)) ->  | T162: =IF(T$1=0,"",OFFSET(データ!$M163,0,T$1-1)) ->  | U162: =IF(U$1=0,"",OFFSET(データ!$M163,0,U$1-1)) ->  | V162: =IF(V$1=0,"",OFFSET(データ!$M163,0,V$1-1)) -> 
B163: 項目 | C163: 部下 | D163: =IF(D$1=0,"",OFFSET(データ!$M164,0,D$1-1)) -> 0 | E163: =IF(E$1=0,"",OFFSET(データ!$M164,0,E$1-1)) ->  | F163: =IF(F$1=0,"",OFFSET(データ!$M164,0,F$1-1)) ->  | G163: =IF(G$1=0,"",OFFSET(データ!$M164,0,G$1-1)) ->  | H163: =IF(H$1=0,"",OFFSET(データ!$M164,0,H$1-1)) ->  | I163: =IF(I$1=0,"",OFFSET(データ!$M164,0,I$1-1)) ->  | J163: =IF(J$1=0,"",OFFSET(データ!$M164,0,J$1-1)) ->  | K163: =IF(K$1=0,"",OFFSET(データ!$M164,0,K$1-1)) ->  | L163: =IF(L$1=0,"",OFFSET(データ!$M164,0,L$1-1)) ->  | M163: =IF(M$1=0,"",OFFSET(データ!$M164,0,M$1-1)) ->  | N163: =IF(N$1=0,"",OFFSET(データ!$M164,0,N$1-1)) ->  | O163: =IF(O$1=0,"",OFFSET(データ!$M164,0,O$1-1)) ->  | P163: =IF(P$1=0,"",OFFSET(データ!$M164,0,P$1-1)) ->  | Q163: =IF(Q$1=0,"",OFFSET(データ!$M164,0,Q$1-1)) ->  | R163: =IF(R$1=0,"",OFFSET(データ!$M164,0,R$1-1)) ->  | S163: =IF(S$1=0,"",OFFSET(データ!$M164,0,S$1-1)) ->  | T163: =IF(T$1=0,"",OFFSET(データ!$M164,0,T$1-1)) ->  | U163: =IF(U$1=0,"",OFFSET(データ!$M164,0,U$1-1)) ->  | V163: =IF(V$1=0,"",OFFSET(データ!$M164,0,V$1-1)) -> 
B164: Ⅴ | C164: 1.2点以上 | D164: =IF(D$1=0,"",OFFSET(データ!$M165,0,D$1-1)) -> 0 | E164: =IF(E$1=0,"",OFFSET(データ!$M165,0,E$1-1)) ->  | F164: =IF(F$1=0,"",OFFSET(データ!$M165,0,F$1-1)) ->  | G164: =IF(G$1=0,"",OFFSET(データ!$M165,0,G$1-1)) ->  | H164: =IF(H$1=0,"",OFFSET(データ!$M165,0,H$1-1)) ->  | I164: =IF(I$1=0,"",OFFSET(データ!$M165,0,I$1-1)) ->  | J164: =IF(J$1=0,"",OFFSET(データ!$M165,0,J$1-1)) ->  | K164: =IF(K$1=0,"",OFFSET(データ!$M165,0,K$1-1)) ->  | L164: =IF(L$1=0,"",OFFSET(データ!$M165,0,L$1-1)) ->  | M164: =IF(M$1=0,"",OFFSET(データ!$M165,0,M$1-1)) ->  | N164: =IF(N$1=0,"",OFFSET(データ!$M165,0,N$1-1)) ->  | O164: =IF(O$1=0,"",OFFSET(データ!$M165,0,O$1-1)) ->  | P164: =IF(P$1=0,"",OFFSET(データ!$M165,0,P$1-1)) ->  | Q164: =IF(Q$1=0,"",OFFSET(データ!$M165,0,Q$1-1)) ->  | R164: =IF(R$1=0,"",OFFSET(データ!$M165,0,R$1-1)) ->  | S164: =IF(S$1=0,"",OFFSET(データ!$M165,0,S$1-1)) ->  | T164: =IF(T$1=0,"",OFFSET(データ!$M165,0,T$1-1)) ->  | U164: =IF(U$1=0,"",OFFSET(データ!$M165,0,U$1-1)) ->  | V164: =IF(V$1=0,"",OFFSET(データ!$M165,0,V$1-1)) -> 
C165: 1.0点以上1.2点未満 | D165: =IF(D$1=0,"",OFFSET(データ!$M166,0,D$1-1)) -> 0 | E165: =IF(E$1=0,"",OFFSET(データ!$M166,0,E$1-1)) ->  | F165: =IF(F$1=0,"",OFFSET(データ!$M166,0,F$1-1)) ->  | G165: =IF(G$1=0,"",OFFSET(データ!$M166,0,G$1-1)) ->  | H165: =IF(H$1=0,"",OFFSET(データ!$M166,0,H$1-1)) ->  | I165: =IF(I$1=0,"",OFFSET(データ!$M166,0,I$1-1)) ->  | J165: =IF(J$1=0,"",OFFSET(データ!$M166,0,J$1-1)) ->  | K165: =IF(K$1=0,"",OFFSET(データ!$M166,0,K$1-1)) ->  | L165: =IF(L$1=0,"",OFFSET(データ!$M166,0,L$1-1)) ->  | M165: =IF(M$1=0,"",OFFSET(データ!$M166,0,M$1-1)) ->  | N165: =IF(N$1=0,"",OFFSET(データ!$M166,0,N$1-1)) ->  | O165: =IF(O$1=0,"",OFFSET(データ!$M166,0,O$1-1)) ->  | P165: =IF(P$1=0,"",OFFSET(データ!$M166,0,P$1-1)) ->  | Q165: =IF(Q$1=0,"",OFFSET(データ!$M166,0,Q$1-1)) ->  | R165: =IF(R$1=0,"",OFFSET(データ!$M166,0,R$1-1)) ->  | S165: =IF(S$1=0,"",OFFSET(データ!$M166,0,S$1-1)) ->  | T165: =IF(T$1=0,"",OFFSET(データ!$M166,0,T$1-1)) ->  | U165: =IF(U$1=0,"",OFFSET(データ!$M166,0,U$1-1)) ->  | V165: =IF(V$1=0,"",OFFSET(データ!$M166,0,V$1-1)) -> 
C166: 0.4点以上1.0点未満 | D166: =IF(D$1=0,"",OFFSET(データ!$M167,0,D$1-1)) -> 0 | E166: =IF(E$1=0,"",OFFSET(データ!$M167,0,E$1-1)) ->  | F166: =IF(F$1=0,"",OFFSET(データ!$M167,0,F$1-1)) ->  | G166: =IF(G$1=0,"",OFFSET(データ!$M167,0,G$1-1)) ->  | H166: =IF(H$1=0,"",OFFSET(データ!$M167,0,H$1-1)) ->  | I166: =IF(I$1=0,"",OFFSET(データ!$M167,0,I$1-1)) ->  | J166: =IF(J$1=0,"",OFFSET(データ!$M167,0,J$1-1)) ->  | K166: =IF(K$1=0,"",OFFSET(データ!$M167,0,K$1-1)) ->  | L166: =IF(L$1=0,"",OFFSET(データ!$M167,0,L$1-1)) ->  | M166: =IF(M$1=0,"",OFFSET(データ!$M167,0,M$1-1)) ->  | N166: =IF(N$1=0,"",OFFSET(データ!$M167,0,N$1-1)) ->  | O166: =IF(O$1=0,"",OFFSET(データ!$M167,0,O$1-1)) ->  | P166: =IF(P$1=0,"",OFFSET(データ!$M167,0,P$1-1)) ->  | Q166: =IF(Q$1=0,"",OFFSET(データ!$M167,0,Q$1-1)) ->  | R166: =IF(R$1=0,"",OFFSET(データ!$M167,0,R$1-1)) ->  | S166: =IF(S$1=0,"",OFFSET(データ!$M167,0,S$1-1)) ->  | T166: =IF(T$1=0,"",OFFSET(データ!$M167,0,T$1-1)) ->  | U166: =IF(U$1=0,"",OFFSET(データ!$M167,0,U$1-1)) ->  | V166: =IF(V$1=0,"",OFFSET(データ!$M167,0,V$1-1)) -> 
C167: 0.4点未満 | D167: =IF(D$1=0,"",OFFSET(データ!$M168,0,D$1-1)) -> 0 | E167: =IF(E$1=0,"",OFFSET(データ!$M168,0,E$1-1)) ->  | F167: =IF(F$1=0,"",OFFSET(データ!$M168,0,F$1-1)) ->  | G167: =IF(G$1=0,"",OFFSET(データ!$M168,0,G$1-1)) ->  | H167: =IF(H$1=0,"",OFFSET(データ!$M168,0,H$1-1)) ->  | I167: =IF(I$1=0,"",OFFSET(データ!$M168,0,I$1-1)) ->  | J167: =IF(J$1=0,"",OFFSET(データ!$M168,0,J$1-1)) ->  | K167: =IF(K$1=0,"",OFFSET(データ!$M168,0,K$1-1)) ->  | L167: =IF(L$1=0,"",OFFSET(データ!$M168,0,L$1-1)) ->  | M167: =IF(M$1=0,"",OFFSET(データ!$M168,0,M$1-1)) ->  | N167: =IF(N$1=0,"",OFFSET(データ!$M168,0,N$1-1)) ->  | O167: =IF(O$1=0,"",OFFSET(データ!$M168,0,O$1-1)) ->  | P167: =IF(P$1=0,"",OFFSET(データ!$M168,0,P$1-1)) ->  | Q167: =IF(Q$1=0,"",OFFSET(データ!$M168,0,Q$1-1)) ->  | R167: =IF(R$1=0,"",OFFSET(データ!$M168,0,R$1-1)) ->  | S167: =IF(S$1=0,"",OFFSET(データ!$M168,0,S$1-1)) ->  | T167: =IF(T$1=0,"",OFFSET(データ!$M168,0,T$1-1)) ->  | U167: =IF(U$1=0,"",OFFSET(データ!$M168,0,U$1-1)) ->  | V167: =IF(V$1=0,"",OFFSET(データ!$M168,0,V$1-1)) -> 
D168: =IF(D$1=0,"",OFFSET(データ!$M169,0,D$1-1)) -> 0 | E168: =IF(E$1=0,"",OFFSET(データ!$M169,0,E$1-1)) ->  | F168: =IF(F$1=0,"",OFFSET(データ!$M169,0,F$1-1)) ->  | G168: =IF(G$1=0,"",OFFSET(データ!$M169,0,G$1-1)) ->  | H168: =IF(H$1=0,"",OFFSET(データ!$M169,0,H$1-1)) ->  | I168: =IF(I$1=0,"",OFFSET(データ!$M169,0,I$1-1)) ->  | J168: =IF(J$1=0,"",OFFSET(データ!$M169,0,J$1-1)) ->  | K168: =IF(K$1=0,"",OFFSET(データ!$M169,0,K$1-1)) ->  | L168: =IF(L$1=0,"",OFFSET(データ!$M169,0,L$1-1)) ->  | M168: =IF(M$1=0,"",OFFSET(データ!$M169,0,M$1-1)) ->  | N168: =IF(N$1=0,"",OFFSET(データ!$M169,0,N$1-1)) ->  | O168: =IF(O$1=0,"",OFFSET(データ!$M169,0,O$1-1)) ->  | P168: =IF(P$1=0,"",OFFSET(データ!$M169,0,P$1-1)) ->  | Q168: =IF(Q$1=0,"",OFFSET(データ!$M169,0,Q$1-1)) ->  | R168: =IF(R$1=0,"",OFFSET(データ!$M169,0,R$1-1)) ->  | S168: =IF(S$1=0,"",OFFSET(データ!$M169,0,S$1-1)) ->  | T168: =IF(T$1=0,"",OFFSET(データ!$M169,0,T$1-1)) ->  | U168: =IF(U$1=0,"",OFFSET(データ!$M169,0,U$1-1)) ->  | V168: =IF(V$1=0,"",OFFSET(データ!$M169,0,V$1-1)) -> 
B170: 【標準誤差】
B171: 領域 | C171: Ⅰ．トップの価値観・行動の充実と浸透 | D171: =IF(D$1=0,"",OFFSET(データ!$M172,0,D$1-1)) -> 0 | E171: =IF(E$1=0,"",OFFSET(データ!$M172,0,E$1-1)) ->  | F171: =IF(F$1=0,"",OFFSET(データ!$M172,0,F$1-1)) ->  | G171: =IF(G$1=0,"",OFFSET(データ!$M172,0,G$1-1)) ->  | H171: =IF(H$1=0,"",OFFSET(データ!$M172,0,H$1-1)) ->  | I171: =IF(I$1=0,"",OFFSET(データ!$M172,0,I$1-1)) ->  | J171: =IF(J$1=0,"",OFFSET(データ!$M172,0,J$1-1)) ->  | K171: =IF(K$1=0,"",OFFSET(データ!$M172,0,K$1-1)) ->  | L171: =IF(L$1=0,"",OFFSET(データ!$M172,0,L$1-1)) ->  | M171: =IF(M$1=0,"",OFFSET(データ!$M172,0,M$1-1)) ->  | N171: =IF(N$1=0,"",OFFSET(データ!$M172,0,N$1-1)) ->  | O171: =IF(O$1=0,"",OFFSET(データ!$M172,0,O$1-1)) ->  | P171: =IF(P$1=0,"",OFFSET(データ!$M172,0,P$1-1)) ->  | Q171: =IF(Q$1=0,"",OFFSET(データ!$M172,0,Q$1-1)) ->  | R171: =IF(R$1=0,"",OFFSET(データ!$M172,0,R$1-1)) ->  | S171: =IF(S$1=0,"",OFFSET(データ!$M172,0,S$1-1)) ->  | T171: =IF(T$1=0,"",OFFSET(データ!$M172,0,T$1-1)) ->  | U171: =IF(U$1=0,"",OFFSET(データ!$M172,0,U$1-1)) ->  | V171: =IF(V$1=0,"",OFFSET(データ!$M172,0,V$1-1)) -> 
B172: 領域 | C172: Ⅱ．マネジメントサイクルの充実と浸透 | D172: =IF(D$1=0,"",OFFSET(データ!$M173,0,D$1-1)) -> 0 | E172: =IF(E$1=0,"",OFFSET(データ!$M173,0,E$1-1)) ->  | F172: =IF(F$1=0,"",OFFSET(データ!$M173,0,F$1-1)) ->  | G172: =IF(G$1=0,"",OFFSET(データ!$M173,0,G$1-1)) ->  | H172: =IF(H$1=0,"",OFFSET(データ!$M173,0,H$1-1)) ->  | I172: =IF(I$1=0,"",OFFSET(データ!$M173,0,I$1-1)) ->  | J172: =IF(J$1=0,"",OFFSET(データ!$M173,0,J$1-1)) ->  | K172: =IF(K$1=0,"",OFFSET(データ!$M173,0,K$1-1)) ->  | L172: =IF(L$1=0,"",OFFSET(データ!$M173,0,L$1-1)) ->  | M172: =IF(M$1=0,"",OFFSET(データ!$M173,0,M$1-1)) ->  | N172: =IF(N$1=0,"",OFFSET(データ!$M173,0,N$1-1)) ->  | O172: =IF(O$1=0,"",OFFSET(データ!$M173,0,O$1-1)) ->  | P172: =IF(P$1=0,"",OFFSET(データ!$M173,0,P$1-1)) ->  | Q172: =IF(Q$1=0,"",OFFSET(データ!$M173,0,Q$1-1)) ->  | R172: =IF(R$1=0,"",OFFSET(データ!$M173,0,R$1-1)) ->  | S172: =IF(S$1=0,"",OFFSET(データ!$M173,0,S$1-1)) ->  | T172: =IF(T$1=0,"",OFFSET(データ!$M173,0,T$1-1)) ->  | U172: =IF(U$1=0,"",OFFSET(データ!$M173,0,U$1-1)) ->  | V172: =IF(V$1=0,"",OFFSET(データ!$M173,0,V$1-1)) -> 
B173: 領域 | C173: Ⅲ．教育訓練の充実 | D173: =IF(D$1=0,"",OFFSET(データ!$M174,0,D$1-1)) -> 0 | E173: =IF(E$1=0,"",OFFSET(データ!$M174,0,E$1-1)) ->  | F173: =IF(F$1=0,"",OFFSET(データ!$M174,0,F$1-1)) ->  | G173: =IF(G$1=0,"",OFFSET(データ!$M174,0,G$1-1)) ->  | H173: =IF(H$1=0,"",OFFSET(データ!$M174,0,H$1-1)) ->  | I173: =IF(I$1=0,"",OFFSET(データ!$M174,0,I$1-1)) ->  | J173: =IF(J$1=0,"",OFFSET(データ!$M174,0,J$1-1)) ->  | K173: =IF(K$1=0,"",OFFSET(データ!$M174,0,K$1-1)) ->  | L173: =IF(L$1=0,"",OFFSET(データ!$M174,0,L$1-1)) ->  | M173: =IF(M$1=0,"",OFFSET(データ!$M174,0,M$1-1)) ->  | N173: =IF(N$1=0,"",OFFSET(データ!$M174,0,N$1-1)) ->  | O173: =IF(O$1=0,"",OFFSET(データ!$M174,0,O$1-1)) ->  | P173: =IF(P$1=0,"",OFFSET(データ!$M174,0,P$1-1)) ->  | Q173: =IF(Q$1=0,"",OFFSET(データ!$M174,0,Q$1-1)) ->  | R173: =IF(R$1=0,"",OFFSET(データ!$M174,0,R$1-1)) ->  | S173: =IF(S$1=0,"",OFFSET(データ!$M174,0,S$1-1)) ->  | T173: =IF(T$1=0,"",OFFSET(データ!$M174,0,T$1-1)) ->  | U173: =IF(U$1=0,"",OFFSET(データ!$M174,0,U$1-1)) ->  | V173: =IF(V$1=0,"",OFFSET(データ!$M174,0,V$1-1)) -> 
B174: 領域 | C174: Ⅳ．現場管理の充実 | D174: =IF(D$1=0,"",OFFSET(データ!$M175,0,D$1-1)) -> 0 | E174: =IF(E$1=0,"",OFFSET(データ!$M175,0,E$1-1)) ->  | F174: =IF(F$1=0,"",OFFSET(データ!$M175,0,F$1-1)) ->  | G174: =IF(G$1=0,"",OFFSET(データ!$M175,0,G$1-1)) ->  | H174: =IF(H$1=0,"",OFFSET(データ!$M175,0,H$1-1)) ->  | I174: =IF(I$1=0,"",OFFSET(データ!$M175,0,I$1-1)) ->  | J174: =IF(J$1=0,"",OFFSET(データ!$M175,0,J$1-1)) ->  | K174: =IF(K$1=0,"",OFFSET(データ!$M175,0,K$1-1)) ->  | L174: =IF(L$1=0,"",OFFSET(データ!$M175,0,L$1-1)) ->  | M174: =IF(M$1=0,"",OFFSET(データ!$M175,0,M$1-1)) ->  | N174: =IF(N$1=0,"",OFFSET(データ!$M175,0,N$1-1)) ->  | O174: =IF(O$1=0,"",OFFSET(データ!$M175,0,O$1-1)) ->  | P174: =IF(P$1=0,"",OFFSET(データ!$M175,0,P$1-1)) ->  | Q174: =IF(Q$1=0,"",OFFSET(データ!$M175,0,Q$1-1)) ->  | R174: =IF(R$1=0,"",OFFSET(データ!$M175,0,R$1-1)) ->  | S174: =IF(S$1=0,"",OFFSET(データ!$M175,0,S$1-1)) ->  | T174: =IF(T$1=0,"",OFFSET(データ!$M175,0,T$1-1)) ->  | U174: =IF(U$1=0,"",OFFSET(データ!$M175,0,U$1-1)) ->  | V174: =IF(V$1=0,"",OFFSET(データ!$M175,0,V$1-1)) -> 
B175: 領域 | C175: Ⅴ．職場メンバーの積極心 | D175: =IF(D$1=0,"",OFFSET(データ!$M176,0,D$1-1)) -> 0 | E175: =IF(E$1=0,"",OFFSET(データ!$M176,0,E$1-1)) ->  | F175: =IF(F$1=0,"",OFFSET(データ!$M176,0,F$1-1)) ->  | G175: =IF(G$1=0,"",OFFSET(データ!$M176,0,G$1-1)) ->  | H175: =IF(H$1=0,"",OFFSET(データ!$M176,0,H$1-1)) ->  | I175: =IF(I$1=0,"",OFFSET(データ!$M176,0,I$1-1)) ->  | J175: =IF(J$1=0,"",OFFSET(データ!$M176,0,J$1-1)) ->  | K175: =IF(K$1=0,"",OFFSET(データ!$M176,0,K$1-1)) ->  | L175: =IF(L$1=0,"",OFFSET(データ!$M176,0,L$1-1)) ->  | M175: =IF(M$1=0,"",OFFSET(データ!$M176,0,M$1-1)) ->  | N175: =IF(N$1=0,"",OFFSET(データ!$M176,0,N$1-1)) ->  | O175: =IF(O$1=0,"",OFFSET(データ!$M176,0,O$1-1)) ->  | P175: =IF(P$1=0,"",OFFSET(データ!$M176,0,P$1-1)) ->  | Q175: =IF(Q$1=0,"",OFFSET(データ!$M176,0,Q$1-1)) ->  | R175: =IF(R$1=0,"",OFFSET(データ!$M176,0,R$1-1)) ->  | S175: =IF(S$1=0,"",OFFSET(データ!$M176,0,S$1-1)) ->  | T175: =IF(T$1=0,"",OFFSET(データ!$M176,0,T$1-1)) ->  | U175: =IF(U$1=0,"",OFFSET(データ!$M176,0,U$1-1)) ->  | V175: =IF(V$1=0,"",OFFSET(データ!$M176,0,V$1-1)) -> 
B176: 区分 | C176: １．経営理念（トップの価値観） | D176: =IF(D$1=0,"",OFFSET(データ!$M177,0,D$1-1)) -> 0 | E176: =IF(E$1=0,"",OFFSET(データ!$M177,0,E$1-1)) ->  | F176: =IF(F$1=0,"",OFFSET(データ!$M177,0,F$1-1)) ->  | G176: =IF(G$1=0,"",OFFSET(データ!$M177,0,G$1-1)) ->  | H176: =IF(H$1=0,"",OFFSET(データ!$M177,0,H$1-1)) ->  | I176: =IF(I$1=0,"",OFFSET(データ!$M177,0,I$1-1)) ->  | J176: =IF(J$1=0,"",OFFSET(データ!$M177,0,J$1-1)) ->  | K176: =IF(K$1=0,"",OFFSET(データ!$M177,0,K$1-1)) ->  | L176: =IF(L$1=0,"",OFFSET(データ!$M177,0,L$1-1)) ->  | M176: =IF(M$1=0,"",OFFSET(データ!$M177,0,M$1-1)) ->  | N176: =IF(N$1=0,"",OFFSET(データ!$M177,0,N$1-1)) ->  | O176: =IF(O$1=0,"",OFFSET(データ!$M177,0,O$1-1)) ->  | P176: =IF(P$1=0,"",OFFSET(データ!$M177,0,P$1-1)) ->  | Q176: =IF(Q$1=0,"",OFFSET(データ!$M177,0,Q$1-1)) ->  | R176: =IF(R$1=0,"",OFFSET(データ!$M177,0,R$1-1)) ->  | S176: =IF(S$1=0,"",OFFSET(データ!$M177,0,S$1-1)) ->  | T176: =IF(T$1=0,"",OFFSET(データ!$M177,0,T$1-1)) ->  | U176: =IF(U$1=0,"",OFFSET(データ!$M177,0,U$1-1)) ->  | V176: =IF(V$1=0,"",OFFSET(データ!$M177,0,V$1-1)) -> 
B177: 区分 | C177: ２．マネジメントシステム | D177: =IF(D$1=0,"",OFFSET(データ!$M178,0,D$1-1)) -> 0 | E177: =IF(E$1=0,"",OFFSET(データ!$M178,0,E$1-1)) ->  | F177: =IF(F$1=0,"",OFFSET(データ!$M178,0,F$1-1)) ->  | G177: =IF(G$1=0,"",OFFSET(データ!$M178,0,G$1-1)) ->  | H177: =IF(H$1=0,"",OFFSET(データ!$M178,0,H$1-1)) ->  | I177: =IF(I$1=0,"",OFFSET(データ!$M178,0,I$1-1)) ->  | J177: =IF(J$1=0,"",OFFSET(データ!$M178,0,J$1-1)) ->  | K177: =IF(K$1=0,"",OFFSET(データ!$M178,0,K$1-1)) ->  | L177: =IF(L$1=0,"",OFFSET(データ!$M178,0,L$1-1)) ->  | M177: =IF(M$1=0,"",OFFSET(データ!$M178,0,M$1-1)) ->  | N177: =IF(N$1=0,"",OFFSET(データ!$M178,0,N$1-1)) ->  | O177: =IF(O$1=0,"",OFFSET(データ!$M178,0,O$1-1)) ->  | P177: =IF(P$1=0,"",OFFSET(データ!$M178,0,P$1-1)) ->  | Q177: =IF(Q$1=0,"",OFFSET(データ!$M178,0,Q$1-1)) ->  | R177: =IF(R$1=0,"",OFFSET(データ!$M178,0,R$1-1)) ->  | S177: =IF(S$1=0,"",OFFSET(データ!$M178,0,S$1-1)) ->  | T177: =IF(T$1=0,"",OFFSET(データ!$M178,0,T$1-1)) ->  | U177: =IF(U$1=0,"",OFFSET(データ!$M178,0,U$1-1)) ->  | V177: =IF(V$1=0,"",OFFSET(データ!$M178,0,V$1-1)) -> 
B178: 区分 | C178: ３．現場重視の行動・姿勢 | D178: =IF(D$1=0,"",OFFSET(データ!$M179,0,D$1-1)) -> 0 | E178: =IF(E$1=0,"",OFFSET(データ!$M179,0,E$1-1)) ->  | F178: =IF(F$1=0,"",OFFSET(データ!$M179,0,F$1-1)) ->  | G178: =IF(G$1=0,"",OFFSET(データ!$M179,0,G$1-1)) ->  | H178: =IF(H$1=0,"",OFFSET(データ!$M179,0,H$1-1)) ->  | I178: =IF(I$1=0,"",OFFSET(データ!$M179,0,I$1-1)) ->  | J178: =IF(J$1=0,"",OFFSET(データ!$M179,0,J$1-1)) ->  | K178: =IF(K$1=0,"",OFFSET(データ!$M179,0,K$1-1)) ->  | L178: =IF(L$1=0,"",OFFSET(データ!$M179,0,L$1-1)) ->  | M178: =IF(M$1=0,"",OFFSET(データ!$M179,0,M$1-1)) ->  | N178: =IF(N$1=0,"",OFFSET(データ!$M179,0,N$1-1)) ->  | O178: =IF(O$1=0,"",OFFSET(データ!$M179,0,O$1-1)) ->  | P178: =IF(P$1=0,"",OFFSET(データ!$M179,0,P$1-1)) ->  | Q178: =IF(Q$1=0,"",OFFSET(データ!$M179,0,Q$1-1)) ->  | R178: =IF(R$1=0,"",OFFSET(データ!$M179,0,R$1-1)) ->  | S178: =IF(S$1=0,"",OFFSET(データ!$M179,0,S$1-1)) ->  | T178: =IF(T$1=0,"",OFFSET(データ!$M179,0,T$1-1)) ->  | U178: =IF(U$1=0,"",OFFSET(データ!$M179,0,U$1-1)) ->  | V178: =IF(V$1=0,"",OFFSET(データ!$M179,0,V$1-1)) -> 
B179: 区分 | C179: １．PDCAの実践 | D179: =IF(D$1=0,"",OFFSET(データ!$M180,0,D$1-1)) -> 0 | E179: =IF(E$1=0,"",OFFSET(データ!$M180,0,E$1-1)) ->  | F179: =IF(F$1=0,"",OFFSET(データ!$M180,0,F$1-1)) ->  | G179: =IF(G$1=0,"",OFFSET(データ!$M180,0,G$1-1)) ->  | H179: =IF(H$1=0,"",OFFSET(データ!$M180,0,H$1-1)) ->  | I179: =IF(I$1=0,"",OFFSET(データ!$M180,0,I$1-1)) ->  | J179: =IF(J$1=0,"",OFFSET(データ!$M180,0,J$1-1)) ->  | K179: =IF(K$1=0,"",OFFSET(データ!$M180,0,K$1-1)) ->  | L179: =IF(L$1=0,"",OFFSET(データ!$M180,0,L$1-1)) ->  | M179: =IF(M$1=0,"",OFFSET(データ!$M180,0,M$1-1)) ->  | N179: =IF(N$1=0,"",OFFSET(データ!$M180,0,N$1-1)) ->  | O179: =IF(O$1=0,"",OFFSET(データ!$M180,0,O$1-1)) ->  | P179: =IF(P$1=0,"",OFFSET(データ!$M180,0,P$1-1)) ->  | Q179: =IF(Q$1=0,"",OFFSET(データ!$M180,0,Q$1-1)) ->  | R179: =IF(R$1=0,"",OFFSET(データ!$M180,0,R$1-1)) ->  | S179: =IF(S$1=0,"",OFFSET(データ!$M180,0,S$1-1)) ->  | T179: =IF(T$1=0,"",OFFSET(データ!$M180,0,T$1-1)) ->  | U179: =IF(U$1=0,"",OFFSET(データ!$M180,0,U$1-1)) ->  | V179: =IF(V$1=0,"",OFFSET(データ!$M180,0,V$1-1)) -> 
B180: 区分 | C180: ２．コミュニケーションの実践 | D180: =IF(D$1=0,"",OFFSET(データ!$M181,0,D$1-1)) -> 0 | E180: =IF(E$1=0,"",OFFSET(データ!$M181,0,E$1-1)) ->  | F180: =IF(F$1=0,"",OFFSET(データ!$M181,0,F$1-1)) ->  | G180: =IF(G$1=0,"",OFFSET(データ!$M181,0,G$1-1)) ->  | H180: =IF(H$1=0,"",OFFSET(データ!$M181,0,H$1-1)) ->  | I180: =IF(I$1=0,"",OFFSET(データ!$M181,0,I$1-1)) ->  | J180: =IF(J$1=0,"",OFFSET(データ!$M181,0,J$1-1)) ->  | K180: =IF(K$1=0,"",OFFSET(データ!$M181,0,K$1-1)) ->  | L180: =IF(L$1=0,"",OFFSET(データ!$M181,0,L$1-1)) ->  | M180: =IF(M$1=0,"",OFFSET(データ!$M181,0,M$1-1)) ->  | N180: =IF(N$1=0,"",OFFSET(データ!$M181,0,N$1-1)) ->  | O180: =IF(O$1=0,"",OFFSET(データ!$M181,0,O$1-1)) ->  | P180: =IF(P$1=0,"",OFFSET(データ!$M181,0,P$1-1)) ->  | Q180: =IF(Q$1=0,"",OFFSET(データ!$M181,0,Q$1-1)) ->  | R180: =IF(R$1=0,"",OFFSET(データ!$M181,0,R$1-1)) ->  | S180: =IF(S$1=0,"",OFFSET(データ!$M181,0,S$1-1)) ->  | T180: =IF(T$1=0,"",OFFSET(データ!$M181,0,T$1-1)) ->  | U180: =IF(U$1=0,"",OFFSET(データ!$M181,0,U$1-1)) ->  | V180: =IF(V$1=0,"",OFFSET(データ!$M181,0,V$1-1)) -> 
B181: 区分 | C181: １．採用・教育の充実 | D181: =IF(D$1=0,"",OFFSET(データ!$M182,0,D$1-1)) -> 0 | E181: =IF(E$1=0,"",OFFSET(データ!$M182,0,E$1-1)) ->  | F181: =IF(F$1=0,"",OFFSET(データ!$M182,0,F$1-1)) ->  | G181: =IF(G$1=0,"",OFFSET(データ!$M182,0,G$1-1)) ->  | H181: =IF(H$1=0,"",OFFSET(データ!$M182,0,H$1-1)) ->  | I181: =IF(I$1=0,"",OFFSET(データ!$M182,0,I$1-1)) ->  | J181: =IF(J$1=0,"",OFFSET(データ!$M182,0,J$1-1)) ->  | K181: =IF(K$1=0,"",OFFSET(データ!$M182,0,K$1-1)) ->  | L181: =IF(L$1=0,"",OFFSET(データ!$M182,0,L$1-1)) ->  | M181: =IF(M$1=0,"",OFFSET(データ!$M182,0,M$1-1)) ->  | N181: =IF(N$1=0,"",OFFSET(データ!$M182,0,N$1-1)) ->  | O181: =IF(O$1=0,"",OFFSET(データ!$M182,0,O$1-1)) ->  | P181: =IF(P$1=0,"",OFFSET(データ!$M182,0,P$1-1)) ->  | Q181: =IF(Q$1=0,"",OFFSET(データ!$M182,0,Q$1-1)) ->  | R181: =IF(R$1=0,"",OFFSET(データ!$M182,0,R$1-1)) ->  | S181: =IF(S$1=0,"",OFFSET(データ!$M182,0,S$1-1)) ->  | T181: =IF(T$1=0,"",OFFSET(データ!$M182,0,T$1-1)) ->  | U181: =IF(U$1=0,"",OFFSET(データ!$M182,0,U$1-1)) ->  | V181: =IF(V$1=0,"",OFFSET(データ!$M182,0,V$1-1)) -> 
B182: 区分 | C182: ２．リーダー教育の充実 | D182: =IF(D$1=0,"",OFFSET(データ!$M183,0,D$1-1)) -> 0 | E182: =IF(E$1=0,"",OFFSET(データ!$M183,0,E$1-1)) ->  | F182: =IF(F$1=0,"",OFFSET(データ!$M183,0,F$1-1)) ->  | G182: =IF(G$1=0,"",OFFSET(データ!$M183,0,G$1-1)) ->  | H182: =IF(H$1=0,"",OFFSET(データ!$M183,0,H$1-1)) ->  | I182: =IF(I$1=0,"",OFFSET(データ!$M183,0,I$1-1)) ->  | J182: =IF(J$1=0,"",OFFSET(データ!$M183,0,J$1-1)) ->  | K182: =IF(K$1=0,"",OFFSET(データ!$M183,0,K$1-1)) ->  | L182: =IF(L$1=0,"",OFFSET(データ!$M183,0,L$1-1)) ->  | M182: =IF(M$1=0,"",OFFSET(データ!$M183,0,M$1-1)) ->  | N182: =IF(N$1=0,"",OFFSET(データ!$M183,0,N$1-1)) ->  | O182: =IF(O$1=0,"",OFFSET(データ!$M183,0,O$1-1)) ->  | P182: =IF(P$1=0,"",OFFSET(データ!$M183,0,P$1-1)) ->  | Q182: =IF(Q$1=0,"",OFFSET(データ!$M183,0,Q$1-1)) ->  | R182: =IF(R$1=0,"",OFFSET(データ!$M183,0,R$1-1)) ->  | S182: =IF(S$1=0,"",OFFSET(データ!$M183,0,S$1-1)) ->  | T182: =IF(T$1=0,"",OFFSET(データ!$M183,0,T$1-1)) ->  | U182: =IF(U$1=0,"",OFFSET(データ!$M183,0,U$1-1)) ->  | V182: =IF(V$1=0,"",OFFSET(データ!$M183,0,V$1-1)) -> 
B183: 区分 | C183: ３．安全教育の充実 | D183: =IF(D$1=0,"",OFFSET(データ!$M184,0,D$1-1)) -> 0 | E183: =IF(E$1=0,"",OFFSET(データ!$M184,0,E$1-1)) ->  | F183: =IF(F$1=0,"",OFFSET(データ!$M184,0,F$1-1)) ->  | G183: =IF(G$1=0,"",OFFSET(データ!$M184,0,G$1-1)) ->  | H183: =IF(H$1=0,"",OFFSET(データ!$M184,0,H$1-1)) ->  | I183: =IF(I$1=0,"",OFFSET(データ!$M184,0,I$1-1)) ->  | J183: =IF(J$1=0,"",OFFSET(データ!$M184,0,J$1-1)) ->  | K183: =IF(K$1=0,"",OFFSET(データ!$M184,0,K$1-1)) ->  | L183: =IF(L$1=0,"",OFFSET(データ!$M184,0,L$1-1)) ->  | M183: =IF(M$1=0,"",OFFSET(データ!$M184,0,M$1-1)) ->  | N183: =IF(N$1=0,"",OFFSET(データ!$M184,0,N$1-1)) ->  | O183: =IF(O$1=0,"",OFFSET(データ!$M184,0,O$1-1)) ->  | P183: =IF(P$1=0,"",OFFSET(データ!$M184,0,P$1-1)) ->  | Q183: =IF(Q$1=0,"",OFFSET(データ!$M184,0,Q$1-1)) ->  | R183: =IF(R$1=0,"",OFFSET(データ!$M184,0,R$1-1)) ->  | S183: =IF(S$1=0,"",OFFSET(データ!$M184,0,S$1-1)) ->  | T183: =IF(T$1=0,"",OFFSET(データ!$M184,0,T$1-1)) ->  | U183: =IF(U$1=0,"",OFFSET(データ!$M184,0,U$1-1)) ->  | V183: =IF(V$1=0,"",OFFSET(データ!$M184,0,V$1-1)) -> 
B184: 区分 | C184: １．現場コミュニケーション | D184: =IF(D$1=0,"",OFFSET(データ!$M185,0,D$1-1)) -> 0 | E184: =IF(E$1=0,"",OFFSET(データ!$M185,0,E$1-1)) ->  | F184: =IF(F$1=0,"",OFFSET(データ!$M185,0,F$1-1)) ->  | G184: =IF(G$1=0,"",OFFSET(データ!$M185,0,G$1-1)) ->  | H184: =IF(H$1=0,"",OFFSET(データ!$M185,0,H$1-1)) ->  | I184: =IF(I$1=0,"",OFFSET(データ!$M185,0,I$1-1)) ->  | J184: =IF(J$1=0,"",OFFSET(データ!$M185,0,J$1-1)) ->  | K184: =IF(K$1=0,"",OFFSET(データ!$M185,0,K$1-1)) ->  | L184: =IF(L$1=0,"",OFFSET(データ!$M185,0,L$1-1)) ->  | M184: =IF(M$1=0,"",OFFSET(データ!$M185,0,M$1-1)) ->  | N184: =IF(N$1=0,"",OFFSET(データ!$M185,0,N$1-1)) ->  | O184: =IF(O$1=0,"",OFFSET(データ!$M185,0,O$1-1)) ->  | P184: =IF(P$1=0,"",OFFSET(データ!$M185,0,P$1-1)) ->  | Q184: =IF(Q$1=0,"",OFFSET(データ!$M185,0,Q$1-1)) ->  | R184: =IF(R$1=0,"",OFFSET(データ!$M185,0,R$1-1)) ->  | S184: =IF(S$1=0,"",OFFSET(データ!$M185,0,S$1-1)) ->  | T184: =IF(T$1=0,"",OFFSET(データ!$M185,0,T$1-1)) ->  | U184: =IF(U$1=0,"",OFFSET(データ!$M185,0,U$1-1)) ->  | V184: =IF(V$1=0,"",OFFSET(データ!$M185,0,V$1-1)) -> 
B185: 区分 | C185: ２．日常管理の充実 | D185: =IF(D$1=0,"",OFFSET(データ!$M186,0,D$1-1)) -> 0 | E185: =IF(E$1=0,"",OFFSET(データ!$M186,0,E$1-1)) ->  | F185: =IF(F$1=0,"",OFFSET(データ!$M186,0,F$1-1)) ->  | G185: =IF(G$1=0,"",OFFSET(データ!$M186,0,G$1-1)) ->  | H185: =IF(H$1=0,"",OFFSET(データ!$M186,0,H$1-1)) ->  | I185: =IF(I$1=0,"",OFFSET(データ!$M186,0,I$1-1)) ->  | J185: =IF(J$1=0,"",OFFSET(データ!$M186,0,J$1-1)) ->  | K185: =IF(K$1=0,"",OFFSET(データ!$M186,0,K$1-1)) ->  | L185: =IF(L$1=0,"",OFFSET(データ!$M186,0,L$1-1)) ->  | M185: =IF(M$1=0,"",OFFSET(データ!$M186,0,M$1-1)) ->  | N185: =IF(N$1=0,"",OFFSET(データ!$M186,0,N$1-1)) ->  | O185: =IF(O$1=0,"",OFFSET(データ!$M186,0,O$1-1)) ->  | P185: =IF(P$1=0,"",OFFSET(データ!$M186,0,P$1-1)) ->  | Q185: =IF(Q$1=0,"",OFFSET(データ!$M186,0,Q$1-1)) ->  | R185: =IF(R$1=0,"",OFFSET(データ!$M186,0,R$1-1)) ->  | S185: =IF(S$1=0,"",OFFSET(データ!$M186,0,S$1-1)) ->  | T185: =IF(T$1=0,"",OFFSET(データ!$M186,0,T$1-1)) ->  | U185: =IF(U$1=0,"",OFFSET(データ!$M186,0,U$1-1)) ->  | V185: =IF(V$1=0,"",OFFSET(データ!$M186,0,V$1-1)) -> 
B186: 区分 | C186: ３．現場管理施策の充実 | D186: =IF(D$1=0,"",OFFSET(データ!$M187,0,D$1-1)) -> 0 | E186: =IF(E$1=0,"",OFFSET(データ!$M187,0,E$1-1)) ->  | F186: =IF(F$1=0,"",OFFSET(データ!$M187,0,F$1-1)) ->  | G186: =IF(G$1=0,"",OFFSET(データ!$M187,0,G$1-1)) ->  | H186: =IF(H$1=0,"",OFFSET(データ!$M187,0,H$1-1)) ->  | I186: =IF(I$1=0,"",OFFSET(データ!$M187,0,I$1-1)) ->  | J186: =IF(J$1=0,"",OFFSET(データ!$M187,0,J$1-1)) ->  | K186: =IF(K$1=0,"",OFFSET(データ!$M187,0,K$1-1)) ->  | L186: =IF(L$1=0,"",OFFSET(データ!$M187,0,L$1-1)) ->  | M186: =IF(M$1=0,"",OFFSET(データ!$M187,0,M$1-1)) ->  | N186: =IF(N$1=0,"",OFFSET(データ!$M187,0,N$1-1)) ->  | O186: =IF(O$1=0,"",OFFSET(データ!$M187,0,O$1-1)) ->  | P186: =IF(P$1=0,"",OFFSET(データ!$M187,0,P$1-1)) ->  | Q186: =IF(Q$1=0,"",OFFSET(データ!$M187,0,Q$1-1)) ->  | R186: =IF(R$1=0,"",OFFSET(データ!$M187,0,R$1-1)) ->  | S186: =IF(S$1=0,"",OFFSET(データ!$M187,0,S$1-1)) ->  | T186: =IF(T$1=0,"",OFFSET(データ!$M187,0,T$1-1)) ->  | U186: =IF(U$1=0,"",OFFSET(データ!$M187,0,U$1-1)) ->  | V186: =IF(V$1=0,"",OFFSET(データ!$M187,0,V$1-1)) -> 
B187: 区分 | C187: １．基本行動への意識 | D187: =IF(D$1=0,"",OFFSET(データ!$M188,0,D$1-1)) -> 0 | E187: =IF(E$1=0,"",OFFSET(データ!$M188,0,E$1-1)) ->  | F187: =IF(F$1=0,"",OFFSET(データ!$M188,0,F$1-1)) ->  | G187: =IF(G$1=0,"",OFFSET(データ!$M188,0,G$1-1)) ->  | H187: =IF(H$1=0,"",OFFSET(データ!$M188,0,H$1-1)) ->  | I187: =IF(I$1=0,"",OFFSET(データ!$M188,0,I$1-1)) ->  | J187: =IF(J$1=0,"",OFFSET(データ!$M188,0,J$1-1)) ->  | K187: =IF(K$1=0,"",OFFSET(データ!$M188,0,K$1-1)) ->  | L187: =IF(L$1=0,"",OFFSET(データ!$M188,0,L$1-1)) ->  | M187: =IF(M$1=0,"",OFFSET(データ!$M188,0,M$1-1)) ->  | N187: =IF(N$1=0,"",OFFSET(データ!$M188,0,N$1-1)) ->  | O187: =IF(O$1=0,"",OFFSET(データ!$M188,0,O$1-1)) ->  | P187: =IF(P$1=0,"",OFFSET(データ!$M188,0,P$1-1)) ->  | Q187: =IF(Q$1=0,"",OFFSET(データ!$M188,0,Q$1-1)) ->  | R187: =IF(R$1=0,"",OFFSET(データ!$M188,0,R$1-1)) ->  | S187: =IF(S$1=0,"",OFFSET(データ!$M188,0,S$1-1)) ->  | T187: =IF(T$1=0,"",OFFSET(データ!$M188,0,T$1-1)) ->  | U187: =IF(U$1=0,"",OFFSET(データ!$M188,0,U$1-1)) ->  | V187: =IF(V$1=0,"",OFFSET(データ!$M188,0,V$1-1)) -> 
B188: 区分 | C188: ２．職務への意識 | D188: =IF(D$1=0,"",OFFSET(データ!$M189,0,D$1-1)) -> 0 | E188: =IF(E$1=0,"",OFFSET(データ!$M189,0,E$1-1)) ->  | F188: =IF(F$1=0,"",OFFSET(データ!$M189,0,F$1-1)) ->  | G188: =IF(G$1=0,"",OFFSET(データ!$M189,0,G$1-1)) ->  | H188: =IF(H$1=0,"",OFFSET(データ!$M189,0,H$1-1)) ->  | I188: =IF(I$1=0,"",OFFSET(データ!$M189,0,I$1-1)) ->  | J188: =IF(J$1=0,"",OFFSET(データ!$M189,0,J$1-1)) ->  | K188: =IF(K$1=0,"",OFFSET(データ!$M189,0,K$1-1)) ->  | L188: =IF(L$1=0,"",OFFSET(データ!$M189,0,L$1-1)) ->  | M188: =IF(M$1=0,"",OFFSET(データ!$M189,0,M$1-1)) ->  | N188: =IF(N$1=0,"",OFFSET(データ!$M189,0,N$1-1)) ->  | O188: =IF(O$1=0,"",OFFSET(データ!$M189,0,O$1-1)) ->  | P188: =IF(P$1=0,"",OFFSET(データ!$M189,0,P$1-1)) ->  | Q188: =IF(Q$1=0,"",OFFSET(データ!$M189,0,Q$1-1)) ->  | R188: =IF(R$1=0,"",OFFSET(データ!$M189,0,R$1-1)) ->  | S188: =IF(S$1=0,"",OFFSET(データ!$M189,0,S$1-1)) ->  | T188: =IF(T$1=0,"",OFFSET(データ!$M189,0,T$1-1)) ->  | U188: =IF(U$1=0,"",OFFSET(データ!$M189,0,U$1-1)) ->  | V188: =IF(V$1=0,"",OFFSET(データ!$M189,0,V$1-1)) -> 
B189: 区分 | C189: ３．人間関係への意識 | D189: =IF(D$1=0,"",OFFSET(データ!$M190,0,D$1-1)) -> 0 | E189: =IF(E$1=0,"",OFFSET(データ!$M190,0,E$1-1)) ->  | F189: =IF(F$1=0,"",OFFSET(データ!$M190,0,F$1-1)) ->  | G189: =IF(G$1=0,"",OFFSET(データ!$M190,0,G$1-1)) ->  | H189: =IF(H$1=0,"",OFFSET(データ!$M190,0,H$1-1)) ->  | I189: =IF(I$1=0,"",OFFSET(データ!$M190,0,I$1-1)) ->  | J189: =IF(J$1=0,"",OFFSET(データ!$M190,0,J$1-1)) ->  | K189: =IF(K$1=0,"",OFFSET(データ!$M190,0,K$1-1)) ->  | L189: =IF(L$1=0,"",OFFSET(データ!$M190,0,L$1-1)) ->  | M189: =IF(M$1=0,"",OFFSET(データ!$M190,0,M$1-1)) ->  | N189: =IF(N$1=0,"",OFFSET(データ!$M190,0,N$1-1)) ->  | O189: =IF(O$1=0,"",OFFSET(データ!$M190,0,O$1-1)) ->  | P189: =IF(P$1=0,"",OFFSET(データ!$M190,0,P$1-1)) ->  | Q189: =IF(Q$1=0,"",OFFSET(データ!$M190,0,Q$1-1)) ->  | R189: =IF(R$1=0,"",OFFSET(データ!$M190,0,R$1-1)) ->  | S189: =IF(S$1=0,"",OFFSET(データ!$M190,0,S$1-1)) ->  | T189: =IF(T$1=0,"",OFFSET(データ!$M190,0,T$1-1)) ->  | U189: =IF(U$1=0,"",OFFSET(データ!$M190,0,U$1-1)) ->  | V189: =IF(V$1=0,"",OFFSET(データ!$M190,0,V$1-1)) -> 
B190: 項目 | C190: 経営姿勢への共感 | D190: =IF(D$1=0,"",OFFSET(データ!$M191,0,D$1-1)) -> 0 | E190: =IF(E$1=0,"",OFFSET(データ!$M191,0,E$1-1)) ->  | F190: =IF(F$1=0,"",OFFSET(データ!$M191,0,F$1-1)) ->  | G190: =IF(G$1=0,"",OFFSET(データ!$M191,0,G$1-1)) ->  | H190: =IF(H$1=0,"",OFFSET(データ!$M191,0,H$1-1)) ->  | I190: =IF(I$1=0,"",OFFSET(データ!$M191,0,I$1-1)) ->  | J190: =IF(J$1=0,"",OFFSET(データ!$M191,0,J$1-1)) ->  | K190: =IF(K$1=0,"",OFFSET(データ!$M191,0,K$1-1)) ->  | L190: =IF(L$1=0,"",OFFSET(データ!$M191,0,L$1-1)) ->  | M190: =IF(M$1=0,"",OFFSET(データ!$M191,0,M$1-1)) ->  | N190: =IF(N$1=0,"",OFFSET(データ!$M191,0,N$1-1)) ->  | O190: =IF(O$1=0,"",OFFSET(データ!$M191,0,O$1-1)) ->  | P190: =IF(P$1=0,"",OFFSET(データ!$M191,0,P$1-1)) ->  | Q190: =IF(Q$1=0,"",OFFSET(データ!$M191,0,Q$1-1)) ->  | R190: =IF(R$1=0,"",OFFSET(データ!$M191,0,R$1-1)) ->  | S190: =IF(S$1=0,"",OFFSET(データ!$M191,0,S$1-1)) ->  | T190: =IF(T$1=0,"",OFFSET(データ!$M191,0,T$1-1)) ->  | U190: =IF(U$1=0,"",OFFSET(データ!$M191,0,U$1-1)) ->  | V190: =IF(V$1=0,"",OFFSET(データ!$M191,0,V$1-1)) -> 
B191: 項目 | C191: 安全に関するコンプライアンスの浸透 | D191: =IF(D$1=0,"",OFFSET(データ!$M192,0,D$1-1)) -> 0 | E191: =IF(E$1=0,"",OFFSET(データ!$M192,0,E$1-1)) ->  | F191: =IF(F$1=0,"",OFFSET(データ!$M192,0,F$1-1)) ->  | G191: =IF(G$1=0,"",OFFSET(データ!$M192,0,G$1-1)) ->  | H191: =IF(H$1=0,"",OFFSET(データ!$M192,0,H$1-1)) ->  | I191: =IF(I$1=0,"",OFFSET(データ!$M192,0,I$1-1)) ->  | J191: =IF(J$1=0,"",OFFSET(データ!$M192,0,J$1-1)) ->  | K191: =IF(K$1=0,"",OFFSET(データ!$M192,0,K$1-1)) ->  | L191: =IF(L$1=0,"",OFFSET(データ!$M192,0,L$1-1)) ->  | M191: =IF(M$1=0,"",OFFSET(データ!$M192,0,M$1-1)) ->  | N191: =IF(N$1=0,"",OFFSET(データ!$M192,0,N$1-1)) ->  | O191: =IF(O$1=0,"",OFFSET(データ!$M192,0,O$1-1)) ->  | P191: =IF(P$1=0,"",OFFSET(データ!$M192,0,P$1-1)) ->  | Q191: =IF(Q$1=0,"",OFFSET(データ!$M192,0,Q$1-1)) ->  | R191: =IF(R$1=0,"",OFFSET(データ!$M192,0,R$1-1)) ->  | S191: =IF(S$1=0,"",OFFSET(データ!$M192,0,S$1-1)) ->  | T191: =IF(T$1=0,"",OFFSET(データ!$M192,0,T$1-1)) ->  | U191: =IF(U$1=0,"",OFFSET(データ!$M192,0,U$1-1)) ->  | V191: =IF(V$1=0,"",OFFSET(データ!$M192,0,V$1-1)) -> 
B192: 項目 | C192: 経営執行の監視（コーポレートガバナンス） | D192: =IF(D$1=0,"",OFFSET(データ!$M193,0,D$1-1)) -> 0 | E192: =IF(E$1=0,"",OFFSET(データ!$M193,0,E$1-1)) ->  | F192: =IF(F$1=0,"",OFFSET(データ!$M193,0,F$1-1)) ->  | G192: =IF(G$1=0,"",OFFSET(データ!$M193,0,G$1-1)) ->  | H192: =IF(H$1=0,"",OFFSET(データ!$M193,0,H$1-1)) ->  | I192: =IF(I$1=0,"",OFFSET(データ!$M193,0,I$1-1)) ->  | J192: =IF(J$1=0,"",OFFSET(データ!$M193,0,J$1-1)) ->  | K192: =IF(K$1=0,"",OFFSET(データ!$M193,0,K$1-1)) ->  | L192: =IF(L$1=0,"",OFFSET(データ!$M193,0,L$1-1)) ->  | M192: =IF(M$1=0,"",OFFSET(データ!$M193,0,M$1-1)) ->  | N192: =IF(N$1=0,"",OFFSET(データ!$M193,0,N$1-1)) ->  | O192: =IF(O$1=0,"",OFFSET(データ!$M193,0,O$1-1)) ->  | P192: =IF(P$1=0,"",OFFSET(データ!$M193,0,P$1-1)) ->  | Q192: =IF(Q$1=0,"",OFFSET(データ!$M193,0,Q$1-1)) ->  | R192: =IF(R$1=0,"",OFFSET(データ!$M193,0,R$1-1)) ->  | S192: =IF(S$1=0,"",OFFSET(データ!$M193,0,S$1-1)) ->  | T192: =IF(T$1=0,"",OFFSET(データ!$M193,0,T$1-1)) ->  | U192: =IF(U$1=0,"",OFFSET(データ!$M193,0,U$1-1)) ->  | V192: =IF(V$1=0,"",OFFSET(データ!$M193,0,V$1-1)) -> 
B193: 項目 | C193: 継続的改善 | D193: =IF(D$1=0,"",OFFSET(データ!$M194,0,D$1-1)) -> 0 | E193: =IF(E$1=0,"",OFFSET(データ!$M194,0,E$1-1)) ->  | F193: =IF(F$1=0,"",OFFSET(データ!$M194,0,F$1-1)) ->  | G193: =IF(G$1=0,"",OFFSET(データ!$M194,0,G$1-1)) ->  | H193: =IF(H$1=0,"",OFFSET(データ!$M194,0,H$1-1)) ->  | I193: =IF(I$1=0,"",OFFSET(データ!$M194,0,I$1-1)) ->  | J193: =IF(J$1=0,"",OFFSET(データ!$M194,0,J$1-1)) ->  | K193: =IF(K$1=0,"",OFFSET(データ!$M194,0,K$1-1)) ->  | L193: =IF(L$1=0,"",OFFSET(データ!$M194,0,L$1-1)) ->  | M193: =IF(M$1=0,"",OFFSET(データ!$M194,0,M$1-1)) ->  | N193: =IF(N$1=0,"",OFFSET(データ!$M194,0,N$1-1)) ->  | O193: =IF(O$1=0,"",OFFSET(データ!$M194,0,O$1-1)) ->  | P193: =IF(P$1=0,"",OFFSET(データ!$M194,0,P$1-1)) ->  | Q193: =IF(Q$1=0,"",OFFSET(データ!$M194,0,Q$1-1)) ->  | R193: =IF(R$1=0,"",OFFSET(データ!$M194,0,R$1-1)) ->  | S193: =IF(S$1=0,"",OFFSET(データ!$M194,0,S$1-1)) ->  | T193: =IF(T$1=0,"",OFFSET(データ!$M194,0,T$1-1)) ->  | U193: =IF(U$1=0,"",OFFSET(データ!$M194,0,U$1-1)) ->  | V193: =IF(V$1=0,"",OFFSET(データ!$M194,0,V$1-1)) -> 
B194: 項目 | C194: 管理者育成（人材育成） | D194: =IF(D$1=0,"",OFFSET(データ!$M195,0,D$1-1)) -> 0 | E194: =IF(E$1=0,"",OFFSET(データ!$M195,0,E$1-1)) ->  | F194: =IF(F$1=0,"",OFFSET(データ!$M195,0,F$1-1)) ->  | G194: =IF(G$1=0,"",OFFSET(データ!$M195,0,G$1-1)) ->  | H194: =IF(H$1=0,"",OFFSET(データ!$M195,0,H$1-1)) ->  | I194: =IF(I$1=0,"",OFFSET(データ!$M195,0,I$1-1)) ->  | J194: =IF(J$1=0,"",OFFSET(データ!$M195,0,J$1-1)) ->  | K194: =IF(K$1=0,"",OFFSET(データ!$M195,0,K$1-1)) ->  | L194: =IF(L$1=0,"",OFFSET(データ!$M195,0,L$1-1)) ->  | M194: =IF(M$1=0,"",OFFSET(データ!$M195,0,M$1-1)) ->  | N194: =IF(N$1=0,"",OFFSET(データ!$M195,0,N$1-1)) ->  | O194: =IF(O$1=0,"",OFFSET(データ!$M195,0,O$1-1)) ->  | P194: =IF(P$1=0,"",OFFSET(データ!$M195,0,P$1-1)) ->  | Q194: =IF(Q$1=0,"",OFFSET(データ!$M195,0,Q$1-1)) ->  | R194: =IF(R$1=0,"",OFFSET(データ!$M195,0,R$1-1)) ->  | S194: =IF(S$1=0,"",OFFSET(データ!$M195,0,S$1-1)) ->  | T194: =IF(T$1=0,"",OFFSET(データ!$M195,0,T$1-1)) ->  | U194: =IF(U$1=0,"",OFFSET(データ!$M195,0,U$1-1)) ->  | V194: =IF(V$1=0,"",OFFSET(データ!$M195,0,V$1-1)) -> 
B195: 項目 | C195: 現場情報の活用 | D195: =IF(D$1=0,"",OFFSET(データ!$M196,0,D$1-1)) -> 0 | E195: =IF(E$1=0,"",OFFSET(データ!$M196,0,E$1-1)) ->  | F195: =IF(F$1=0,"",OFFSET(データ!$M196,0,F$1-1)) ->  | G195: =IF(G$1=0,"",OFFSET(データ!$M196,0,G$1-1)) ->  | H195: =IF(H$1=0,"",OFFSET(データ!$M196,0,H$1-1)) ->  | I195: =IF(I$1=0,"",OFFSET(データ!$M196,0,I$1-1)) ->  | J195: =IF(J$1=0,"",OFFSET(データ!$M196,0,J$1-1)) ->  | K195: =IF(K$1=0,"",OFFSET(データ!$M196,0,K$1-1)) ->  | L195: =IF(L$1=0,"",OFFSET(データ!$M196,0,L$1-1)) ->  | M195: =IF(M$1=0,"",OFFSET(データ!$M196,0,M$1-1)) ->  | N195: =IF(N$1=0,"",OFFSET(データ!$M196,0,N$1-1)) ->  | O195: =IF(O$1=0,"",OFFSET(データ!$M196,0,O$1-1)) ->  | P195: =IF(P$1=0,"",OFFSET(データ!$M196,0,P$1-1)) ->  | Q195: =IF(Q$1=0,"",OFFSET(データ!$M196,0,Q$1-1)) ->  | R195: =IF(R$1=0,"",OFFSET(データ!$M196,0,R$1-1)) ->  | S195: =IF(S$1=0,"",OFFSET(データ!$M196,0,S$1-1)) ->  | T195: =IF(T$1=0,"",OFFSET(データ!$M196,0,T$1-1)) ->  | U195: =IF(U$1=0,"",OFFSET(データ!$M196,0,U$1-1)) ->  | V195: =IF(V$1=0,"",OFFSET(データ!$M196,0,V$1-1)) -> 
B196: 項目 | C196: 率先垂範への共感 | D196: =IF(D$1=0,"",OFFSET(データ!$M197,0,D$1-1)) -> 0 | E196: =IF(E$1=0,"",OFFSET(データ!$M197,0,E$1-1)) ->  | F196: =IF(F$1=0,"",OFFSET(データ!$M197,0,F$1-1)) ->  | G196: =IF(G$1=0,"",OFFSET(データ!$M197,0,G$1-1)) ->  | H196: =IF(H$1=0,"",OFFSET(データ!$M197,0,H$1-1)) ->  | I196: =IF(I$1=0,"",OFFSET(データ!$M197,0,I$1-1)) ->  | J196: =IF(J$1=0,"",OFFSET(データ!$M197,0,J$1-1)) ->  | K196: =IF(K$1=0,"",OFFSET(データ!$M197,0,K$1-1)) ->  | L196: =IF(L$1=0,"",OFFSET(データ!$M197,0,L$1-1)) ->  | M196: =IF(M$1=0,"",OFFSET(データ!$M197,0,M$1-1)) ->  | N196: =IF(N$1=0,"",OFFSET(データ!$M197,0,N$1-1)) ->  | O196: =IF(O$1=0,"",OFFSET(データ!$M197,0,O$1-1)) ->  | P196: =IF(P$1=0,"",OFFSET(データ!$M197,0,P$1-1)) ->  | Q196: =IF(Q$1=0,"",OFFSET(データ!$M197,0,Q$1-1)) ->  | R196: =IF(R$1=0,"",OFFSET(データ!$M197,0,R$1-1)) ->  | S196: =IF(S$1=0,"",OFFSET(データ!$M197,0,S$1-1)) ->  | T196: =IF(T$1=0,"",OFFSET(データ!$M197,0,T$1-1)) ->  | U196: =IF(U$1=0,"",OFFSET(データ!$M197,0,U$1-1)) ->  | V196: =IF(V$1=0,"",OFFSET(データ!$M197,0,V$1-1)) -> 
B197: 項目 | C197: 問題解決の意思決定 | D197: =IF(D$1=0,"",OFFSET(データ!$M198,0,D$1-1)) -> 0 | E197: =IF(E$1=0,"",OFFSET(データ!$M198,0,E$1-1)) ->  | F197: =IF(F$1=0,"",OFFSET(データ!$M198,0,F$1-1)) ->  | G197: =IF(G$1=0,"",OFFSET(データ!$M198,0,G$1-1)) ->  | H197: =IF(H$1=0,"",OFFSET(データ!$M198,0,H$1-1)) ->  | I197: =IF(I$1=0,"",OFFSET(データ!$M198,0,I$1-1)) ->  | J197: =IF(J$1=0,"",OFFSET(データ!$M198,0,J$1-1)) ->  | K197: =IF(K$1=0,"",OFFSET(データ!$M198,0,K$1-1)) ->  | L197: =IF(L$1=0,"",OFFSET(データ!$M198,0,L$1-1)) ->  | M197: =IF(M$1=0,"",OFFSET(データ!$M198,0,M$1-1)) ->  | N197: =IF(N$1=0,"",OFFSET(データ!$M198,0,N$1-1)) ->  | O197: =IF(O$1=0,"",OFFSET(データ!$M198,0,O$1-1)) ->  | P197: =IF(P$1=0,"",OFFSET(データ!$M198,0,P$1-1)) ->  | Q197: =IF(Q$1=0,"",OFFSET(データ!$M198,0,Q$1-1)) ->  | R197: =IF(R$1=0,"",OFFSET(データ!$M198,0,R$1-1)) ->  | S197: =IF(S$1=0,"",OFFSET(データ!$M198,0,S$1-1)) ->  | T197: =IF(T$1=0,"",OFFSET(データ!$M198,0,T$1-1)) ->  | U197: =IF(U$1=0,"",OFFSET(データ!$M198,0,U$1-1)) ->  | V197: =IF(V$1=0,"",OFFSET(データ!$M198,0,V$1-1)) -> 
B198: 項目 | C198: 安全理念・方針の浸透 | D198: =IF(D$1=0,"",OFFSET(データ!$M199,0,D$1-1)) -> 0 | E198: =IF(E$1=0,"",OFFSET(データ!$M199,0,E$1-1)) ->  | F198: =IF(F$1=0,"",OFFSET(データ!$M199,0,F$1-1)) ->  | G198: =IF(G$1=0,"",OFFSET(データ!$M199,0,G$1-1)) ->  | H198: =IF(H$1=0,"",OFFSET(データ!$M199,0,H$1-1)) ->  | I198: =IF(I$1=0,"",OFFSET(データ!$M199,0,I$1-1)) ->  | J198: =IF(J$1=0,"",OFFSET(データ!$M199,0,J$1-1)) ->  | K198: =IF(K$1=0,"",OFFSET(データ!$M199,0,K$1-1)) ->  | L198: =IF(L$1=0,"",OFFSET(データ!$M199,0,L$1-1)) ->  | M198: =IF(M$1=0,"",OFFSET(データ!$M199,0,M$1-1)) ->  | N198: =IF(N$1=0,"",OFFSET(データ!$M199,0,N$1-1)) ->  | O198: =IF(O$1=0,"",OFFSET(データ!$M199,0,O$1-1)) ->  | P198: =IF(P$1=0,"",OFFSET(データ!$M199,0,P$1-1)) ->  | Q198: =IF(Q$1=0,"",OFFSET(データ!$M199,0,Q$1-1)) ->  | R198: =IF(R$1=0,"",OFFSET(データ!$M199,0,R$1-1)) ->  | S198: =IF(S$1=0,"",OFFSET(データ!$M199,0,S$1-1)) ->  | T198: =IF(T$1=0,"",OFFSET(データ!$M199,0,T$1-1)) ->  | U198: =IF(U$1=0,"",OFFSET(データ!$M199,0,U$1-1)) ->  | V198: =IF(V$1=0,"",OFFSET(データ!$M199,0,V$1-1)) -> 
B199: 項目 | C199: 経営者による現場コミュニケーション | D199: =IF(D$1=0,"",OFFSET(データ!$M200,0,D$1-1)) -> 0 | E199: =IF(E$1=0,"",OFFSET(データ!$M200,0,E$1-1)) ->  | F199: =IF(F$1=0,"",OFFSET(データ!$M200,0,F$1-1)) ->  | G199: =IF(G$1=0,"",OFFSET(データ!$M200,0,G$1-1)) ->  | H199: =IF(H$1=0,"",OFFSET(データ!$M200,0,H$1-1)) ->  | I199: =IF(I$1=0,"",OFFSET(データ!$M200,0,I$1-1)) ->  | J199: =IF(J$1=0,"",OFFSET(データ!$M200,0,J$1-1)) ->  | K199: =IF(K$1=0,"",OFFSET(データ!$M200,0,K$1-1)) ->  | L199: =IF(L$1=0,"",OFFSET(データ!$M200,0,L$1-1)) ->  | M199: =IF(M$1=0,"",OFFSET(データ!$M200,0,M$1-1)) ->  | N199: =IF(N$1=0,"",OFFSET(データ!$M200,0,N$1-1)) ->  | O199: =IF(O$1=0,"",OFFSET(データ!$M200,0,O$1-1)) ->  | P199: =IF(P$1=0,"",OFFSET(データ!$M200,0,P$1-1)) ->  | Q199: =IF(Q$1=0,"",OFFSET(データ!$M200,0,Q$1-1)) ->  | R199: =IF(R$1=0,"",OFFSET(データ!$M200,0,R$1-1)) ->  | S199: =IF(S$1=0,"",OFFSET(データ!$M200,0,S$1-1)) ->  | T199: =IF(T$1=0,"",OFFSET(データ!$M200,0,T$1-1)) ->  | U199: =IF(U$1=0,"",OFFSET(データ!$M200,0,U$1-1)) ->  | V199: =IF(V$1=0,"",OFFSET(データ!$M200,0,V$1-1)) -> 
B200: 項目 | C200: 安全の理念・方針の理解 | D200: =IF(D$1=0,"",OFFSET(データ!$M201,0,D$1-1)) -> 0 | E200: =IF(E$1=0,"",OFFSET(データ!$M201,0,E$1-1)) ->  | F200: =IF(F$1=0,"",OFFSET(データ!$M201,0,F$1-1)) ->  | G200: =IF(G$1=0,"",OFFSET(データ!$M201,0,G$1-1)) ->  | H200: =IF(H$1=0,"",OFFSET(データ!$M201,0,H$1-1)) ->  | I200: =IF(I$1=0,"",OFFSET(データ!$M201,0,I$1-1)) ->  | J200: =IF(J$1=0,"",OFFSET(データ!$M201,0,J$1-1)) ->  | K200: =IF(K$1=0,"",OFFSET(データ!$M201,0,K$1-1)) ->  | L200: =IF(L$1=0,"",OFFSET(データ!$M201,0,L$1-1)) ->  | M200: =IF(M$1=0,"",OFFSET(データ!$M201,0,M$1-1)) ->  | N200: =IF(N$1=0,"",OFFSET(データ!$M201,0,N$1-1)) ->  | O200: =IF(O$1=0,"",OFFSET(データ!$M201,0,O$1-1)) ->  | P200: =IF(P$1=0,"",OFFSET(データ!$M201,0,P$1-1)) ->  | Q200: =IF(Q$1=0,"",OFFSET(データ!$M201,0,Q$1-1)) ->  | R200: =IF(R$1=0,"",OFFSET(データ!$M201,0,R$1-1)) ->  | S200: =IF(S$1=0,"",OFFSET(データ!$M201,0,S$1-1)) ->  | T200: =IF(T$1=0,"",OFFSET(データ!$M201,0,T$1-1)) ->  | U200: =IF(U$1=0,"",OFFSET(データ!$M201,0,U$1-1)) ->  | V200: =IF(V$1=0,"",OFFSET(データ!$M201,0,V$1-1)) -> 
B201: 項目 | C201: 安全目標の設定 | D201: =IF(D$1=0,"",OFFSET(データ!$M202,0,D$1-1)) -> 0 | E201: =IF(E$1=0,"",OFFSET(データ!$M202,0,E$1-1)) ->  | F201: =IF(F$1=0,"",OFFSET(データ!$M202,0,F$1-1)) ->  | G201: =IF(G$1=0,"",OFFSET(データ!$M202,0,G$1-1)) ->  | H201: =IF(H$1=0,"",OFFSET(データ!$M202,0,H$1-1)) ->  | I201: =IF(I$1=0,"",OFFSET(データ!$M202,0,I$1-1)) ->  | J201: =IF(J$1=0,"",OFFSET(データ!$M202,0,J$1-1)) ->  | K201: =IF(K$1=0,"",OFFSET(データ!$M202,0,K$1-1)) ->  | L201: =IF(L$1=0,"",OFFSET(データ!$M202,0,L$1-1)) ->  | M201: =IF(M$1=0,"",OFFSET(データ!$M202,0,M$1-1)) ->  | N201: =IF(N$1=0,"",OFFSET(データ!$M202,0,N$1-1)) ->  | O201: =IF(O$1=0,"",OFFSET(データ!$M202,0,O$1-1)) ->  | P201: =IF(P$1=0,"",OFFSET(データ!$M202,0,P$1-1)) ->  | Q201: =IF(Q$1=0,"",OFFSET(データ!$M202,0,Q$1-1)) ->  | R201: =IF(R$1=0,"",OFFSET(データ!$M202,0,R$1-1)) ->  | S201: =IF(S$1=0,"",OFFSET(データ!$M202,0,S$1-1)) ->  | T201: =IF(T$1=0,"",OFFSET(データ!$M202,0,T$1-1)) ->  | U201: =IF(U$1=0,"",OFFSET(データ!$M202,0,U$1-1)) ->  | V201: =IF(V$1=0,"",OFFSET(データ!$M202,0,V$1-1)) -> 
B202: 項目 | C202: 取り組み計画の具体化 | D202: =IF(D$1=0,"",OFFSET(データ!$M203,0,D$1-1)) -> 0 | E202: =IF(E$1=0,"",OFFSET(データ!$M203,0,E$1-1)) ->  | F202: =IF(F$1=0,"",OFFSET(データ!$M203,0,F$1-1)) ->  | G202: =IF(G$1=0,"",OFFSET(データ!$M203,0,G$1-1)) ->  | H202: =IF(H$1=0,"",OFFSET(データ!$M203,0,H$1-1)) ->  | I202: =IF(I$1=0,"",OFFSET(データ!$M203,0,I$1-1)) ->  | J202: =IF(J$1=0,"",OFFSET(データ!$M203,0,J$1-1)) ->  | K202: =IF(K$1=0,"",OFFSET(データ!$M203,0,K$1-1)) ->  | L202: =IF(L$1=0,"",OFFSET(データ!$M203,0,L$1-1)) ->  | M202: =IF(M$1=0,"",OFFSET(データ!$M203,0,M$1-1)) ->  | N202: =IF(N$1=0,"",OFFSET(データ!$M203,0,N$1-1)) ->  | O202: =IF(O$1=0,"",OFFSET(データ!$M203,0,O$1-1)) ->  | P202: =IF(P$1=0,"",OFFSET(データ!$M203,0,P$1-1)) ->  | Q202: =IF(Q$1=0,"",OFFSET(データ!$M203,0,Q$1-1)) ->  | R202: =IF(R$1=0,"",OFFSET(データ!$M203,0,R$1-1)) ->  | S202: =IF(S$1=0,"",OFFSET(データ!$M203,0,S$1-1)) ->  | T202: =IF(T$1=0,"",OFFSET(データ!$M203,0,T$1-1)) ->  | U202: =IF(U$1=0,"",OFFSET(データ!$M203,0,U$1-1)) ->  | V202: =IF(V$1=0,"",OFFSET(データ!$M203,0,V$1-1)) -> 
... 50 more rows

Sheet ■表紙
C10: ■ 内容
C12: １．安全に関するアンケート調査 要約
C13: （１）全体の特徴
C14: （２）領域別の特徴
C15: （３）職場メンバーの積極心（構成比）
C16: （４）項目別にみる長所と課題
C18: ２．前回実施結果との比較
C19: （１）全体の特徴
C20: （２）領域別の特徴
C21: （３）職場メンバーの積極心（構成比）
C22: （４）項目別前回との比較
C24: ３．階層別の特徴
C25: （１）階層別のギャップ（全体）
C26: （２）階層別のギャップ（区分別）
C27: （３）階層別にみる職場メンバーの積極心
C28: （４）階層別領域別分析
C30: ４．運輸安全マネジメント効果把握 分析表
C32: ５．まとめ
D33: =Control!D3 -> 事例企業 株式会社
D36: =TODAY() -> 2021-02-26

Sheet ■総括表
X1: =Control!D3 -> 事例企業 株式会社

Sheet ■比較表
B2: （４）項目別にみる長所と課題 | BQ2: =Control!D3 -> 事例企業 株式会社
T4: 9 | U4: 1 | AE4: 長所 | AL4: 課題
AH5: 比較対象との差異 | AO5: 比較対象との差異
J6: ‐‐ | L6: ‐ | N6: + | P6: ++ | T6: =OFFSET(データ!D3,0,データ位置１) -> 0 | U6: =OFFSET(データ!D3,0,データ位置２) -> 他社平均 | X6: 差異 | Z6: 長所 | AA6: 課題 | AC6: =略称 -> 事例企業 | AE6: 順位（降順） | AF6: 上位値 | AG6: 0.5超 | AH6: 0.2超 | AI6: 0.1超 | AJ6: 0超 | AL6: 順位（昇順） | AM6: 下位値 | AN6: -以下 | AO6: -0.2未満 | AP6: -0.1未満 | AQ6: -0未満 | AR6: 上位20％ | AS6: 上位10％ | BC6: ‐‐ | BE6: ‐ | BG6: + | BI6: ++ | BM6: =T6 -> 0 | BN6: =U6 -> 他社平均 | BQ6: 差異 | CK6: =AR6 -> 上位20％ | CL6: =AS6 -> 上位10％
G7: 評価 | I7: =Ⅰ表示下限 -> -0.5 | K7: =Ⅰ低い -> 0 | M7: =Ⅰどちらでもない -> 0.5 | O7: =Ⅰ高い -> 1 | Q7: =Ⅰ表示上限 -> 1.5 | AZ7: 評価 | BB7: =Ⅳ表示下限 -> -0.5 | BD7: =Ⅳ低い -> 0 | BF7: =Ⅳどちらでもない -> 0.5 | BH7: =Ⅳ高い -> 1 | BJ7: =Ⅳ表示上限 -> 1.5
B8: Ⅰ．トップの価値観と行動の充実と浸透 | I8: =IF(AND($V8=0,$W8=0,$T8>=$U8),"|●",IF(AND($V8=0,$W8=0,$T8<$U8),"●|",IF($V8=0,"●",IF($W8=0,"|","")))) ->  | J8: =IF(AND($V8=1,$W8=1,$T8>=$U8),"|●",IF(AND($V8=1,$W8=1,$T8<$U8),"●|",IF($V8=1,"●",IF($W8=1,"|","")))) ->  | K8: =IF(AND($V8=2,$W8=2,$T8>=$U8),"|●",IF(AND($V8=2,$W8=2,$T8<$U8),"●|",IF($V8=2,"●",IF($W8=2,"|","")))) ->  | L8: =IF(AND($V8=3,$W8=3,$T8>=$U8),"|●",IF(AND($V8=3,$W8=3,$T8<$U8),"●|",IF($V8=3,"●",IF($W8=3,"|","")))) -> ● | M8: =IF(AND($V8=4,$W8=4,$T8>=$U8),"|●",IF(AND($V8=4,$W8=4,$T8<$U8),"●|",IF($V8=4,"●",IF($W8=4,"|","")))) -> | | N8: =IF(AND($V8=5,$W8=5,$T8>=$U8),"|●",IF(AND($V8=5,$W8=5,$T8<$U8),"●|",IF($V8=5,"●",IF($W8=5,"|","")))) ->  | O8: =IF(AND($V8=6,$W8=6,$T8>=$U8),"|●",IF(AND($V8=6,$W8=6,$T8<$U8),"●|",IF($V8=6,"●",IF($W8=6,"|","")))) ->  | P8: =IF(AND($V8=7,$W8=7,$T8>=$U8),"|●",IF(AND($V8=7,$W8=7,$T8<$U8),"●|",IF($V8=7,"●",IF($W8=7,"|","")))) ->  | Q8: =IF(AND($V8=8,$W8=8,$T8>=$U8),"|●",IF(AND($V8=8,$W8=8,$T8<$U8),"●|",IF($V8=8,"●",IF($W8=8,"|","")))) ->  | R8: =IF(AND($V8=9,$W8=9,$T8>=$U8),"|●",IF(AND($V8=9,$W8=9,$T8<$U8),"●|",IF($V8=9,"●",IF($W8=9,"|","")))) ->  | T8: =OFFSET(データ!$D$4,0,データ位置１) -> 0 | U8: =OFFSET(データ!$D$4,0,データ位置２) -> 0.3106480378 | V8: =VLOOKUP(T8,Ⅰ評価,2) -> 3 | W8: =VLOOKUP(U8,Ⅰ評価,2) -> 4 | X8: =T8-U8 -> -0.3106480378 | AR8: =OFFSET(データ!$D$4,0,データ位置１６) -> 0.5475578388 | AS8: =OFFSET(データ!$D$4,0,データ位置１７) -> 0.6713947897 | AU8: Ⅳ．現場管理の充実 | BB8: =IF(AND($BO8=0,$BP8=0,$BM8>=$BN8),"|●",IF(AND($BO8=0,$BP8=0,$BM8<$BN8),"●|",IF($BO8=0,"●",IF($BP8=0,"|","")))) ->  | BC8: =IF(AND($BO8=1,$BP8=1,$BM8>=$BN8),"|●",IF(AND($BO8=1,$BP8=1,$BM8<$BN8),"●|",IF($BO8=1,"●",IF($BP8=1,"|","")))) ->  | BD8: =IF(AND($BO8=2,$BP8=2,$BM8>=$BN8),"|●",IF(AND($BO8=2,$BP8=2,$BM8<$BN8),"●|",IF($BO8=2,"●",IF($BP8=2,"|","")))) ->  | BE8: =IF(AND($BO8=3,$BP8=3,$BM8>=$BN8),"|●",IF(AND($BO8=3,$BP8=3,$BM8<$BN8),"●|",IF($BO8=3,"●",IF($BP8=3,"|","")))) -> ● | BF8: =IF(AND($BO8=4,$BP8=4,$BM8>=$BN8),"|●",IF(AND($BO8=4,$BP8=4,$BM8<$BN8),"●|",IF($BO8=4,"●",IF($BP8=4,"|","")))) -> | | BG8: =IF(AND($BO8=5,$BP8=5,$BM8>=$BN8),"|●",IF(AND($BO8=5,$BP8=5,$BM8<$BN8),"●|",IF($BO8=5,"●",IF($BP8=5,"|","")))) ->  | BH8: =IF(AND($BO8=6,$BP8=6,$BM8>=$BN8),"|●",IF(AND($BO8=6,$BP8=6,$BM8<$BN8),"●|",IF($BO8=6,"●",IF($BP8=6,"|","")))) ->  | BI8: =IF(AND($BO8=7,$BP8=7,$BM8>=$BN8),"|●",IF(AND($BO8=7,$BP8=7,$BM8<$BN8),"●|",IF($BO8=7,"●",IF($BP8=7,"|","")))) ->  | BJ8: =IF(AND($BO8=8,$BP8=8,$BM8>=$BN8),"|●",IF(AND($BO8=8,$BP8=8,$BM8<$BN8),"●|",IF($BO8=8,"●",IF($BP8=8,"|","")))) ->  | BK8: =IF(AND($BO8=9,$BP8=9,$BM8>=$BN8),"|●",IF(AND($BO8=9,$BP8=9,$BM8<$BN8),"●|",IF($BO8=9,"●",IF($BP8=9,"|","")))) ->  | BM8: =OFFSET(データ!$D7,0,データ位置１) -> 0 | BN8: =OFFSET(データ!$D7,0,データ位置２) -> 0.4625536168 | BO8: =VLOOKUP(BM8,Ⅳ評価,2) -> 3 | BP8: =VLOOKUP(BN8,Ⅳ評価,2) -> 4 | BQ8: =BM8-BN8 -> -0.4625536168 | CK8: =OFFSET(データ!$D7,0,データ位置１６) -> 0.6842263665 | CL8: =OFFSET(データ!$D7,0,データ位置１７) -> 0.8000986406
C9: １．経営理念（トップの価値観） | L9: ● | M9: | | T9: =OFFSET(データ!$D$9,0,データ位置１) -> 0 | U9: =OFFSET(データ!$D$9,0,データ位置２) -> 0.3137859315 | V9: 3 | W9: 4 | X9: -0.3137859315 | AR9: =OFFSET(データ!$D$9,0,データ位置１６) -> 0.5470122536 | AS9: =OFFSET(データ!$D$9,0,データ位置１７) -> 0.6689237848 | AV9: １．現場コミュニケーション | BE9: ● | BF9: | | BM9: =OFFSET(データ!$D17,0,データ位置１) -> 0 | BN9: =OFFSET(データ!$D17,0,データ位置２) -> 0.4989274695 | BO9: 3 | BP9: 4 | BQ9: -0.4989274695 | CK9: =OFFSET(データ!$D17,0,データ位置１６) -> 0.7456066408 | CL9: =OFFSET(データ!$D17,0,データ位置１７) -> 0.8745502147
C10: 問49 | D10: 経営姿勢への共感 | G10: =IF(Z10<>"","○",IF(AA10<>"","×","")) ->  | L10: ●| | T10: =OFFSET(データ!$D23,0,データ位置１) -> 0 | U10: =OFFSET(データ!$D23,0,データ位置２) -> 0.07052689005 | V10: 3 | W10: 3 | X10: -0.07052689005 | Z10: =IF(AH10<>"",AH10,IF(AND(AI10<>"",$AI$22<=3),AI10,IF($AJ$22<=3,AJ10,""))) ->  | AA10: =IF(AO10<>"",AO10,IF(AND(AP10<>"",$AP$22<=3),AP10,IF($AQ$22<=3,AQ10,""))) ->  | AC10: =T10 -> 0 | AE10: =IF(ISERROR(RANK(AC10,$AC$10:$AC$21,0)),"",RANK(AC10,$AC$10:$AC$21,0)) -> 1 | AF10: =IF(AE10<5,AC10,"") -> 0 | AG10: =IF(AC10>Ⅰどちらでもない,AF10,"") ->  | AH10: =IF(X10>0.2,AG10,"") ->  | AI10: =IF(X10>0.1,AG10,"") ->  | AJ10: =IF(X10>0,AG10,"") ->  | AL10: =IF(ISERROR(RANK(AC10,$AC$10:$AC$21,1)),"",RANK(AC10,$AC$10:$AC$21,1)) -> 1 | AM10: =IF(AL10<5,AC10,"") -> 0 | AN10: =IF(AM10<Ⅰどちらでもない,AM10,"") -> 0 | AO10: =IF(X10<-0.2,AN10,"") ->  | AP10: =IF(X10<-0.1,AN10,"") ->  | AQ10: =IF(X10<0,AN10,"") -> 0 | AR10: =OFFSET(データ!$D23,0,データ位置１６) -> 0.3450366001 | AS10: =OFFSET(データ!$D23,0,データ位置１７) -> 0.4885276898 | AV10: 問3 | AW10: 親身になった指導 | AZ10: =IF(BS10<>"","○",IF(BT10<>"","×","")) -> × | BE10: ● | BG10: | | BM10: =OFFSET(データ!$D58,0,データ位置１) -> 0 | BN10: =OFFSET(データ!$D58,0,データ位置２) -> 0.5820241474 | BO10: 3 | BP10: 5 | BQ10: -0.5820241474 | BS10: =IF(CA10<>"",CA10,IF(AND(CB10<>"",$CB$21<=3),CB10,IF($CC$21<=3,CC10,""))) ->  | BT10: =IF(CH10<>"",CH10,IF(AND(CI10<>"",$CI$21<=3),CI10,IF($CJ$21<=3,CJ10,""))) -> 0 | BV10: =BM10 -> 0 | BX10: =IF(ISERROR(RANK(BV10,$BV$10:$BV$20,0)),"",RANK(BV10,$BV$10:$BV$20,0)) -> 1 | BY10: =IF(BX10<4.5,BV10,"") -> 0 | BZ10: =IF(BV10>Ⅳどちらでもない,BY10,"") ->  | CA10: =IF(BQ10>0.2,BZ10,"") ->  | CB10: =IF(BQ10>0.1,BZ10,"") ->  | CC10: =IF(BQ10>0,BZ10,"") ->  | CE10: =IF(ISERROR(RANK(BV10,$BV$10:$BV$20,1)),"",RANK(BV10,$BV$10:$BV$20,1)) -> 1 | CF10: =IF(CE10<4.5,BV10,"") -> 0 | CG10: =IF(CF10<Ⅳどちらでもない,CF10,"") -> 0 | CH10: =IF(BQ10<-0.2,CG10,"") -> 0 | CI10: =IF(BQ10<-0.1,CG10,"") -> 0 | CJ10: =IF(BQ10<0,CG10,"") -> 0 | CK10: =OFFSET(データ!$D58,0,データ位置１６) -> 0.835854807 | CL10: =OFFSET(データ!$D58,0,データ位置１７) -> 0.9685365906
C11: 50 | D11: コンプライアンスの浸透 | G11: =IF(Z11<>"","○",IF(AA11<>"","×","")) -> × | L11: ● | N11: | | T11: =OFFSET(データ!$D24,0,データ位置１) -> 0 | U11: =OFFSET(データ!$D24,0,データ位置２) -> 0.5702137624 | V11: 3 | W11: 5 | X11: -0.5702137624 | Z11: =IF(AH11<>"",AH11,IF(AND(AI11<>"",$AI$22<=3),AI11,IF($AJ$22<=3,AJ11,""))) ->  | AA11: =IF(AO11<>"",AO11,IF(AND(AP11<>"",$AP$22<=3),AP11,IF($AQ$22<=3,AQ11,""))) -> 0 | AC11: =T11 -> 0 | AE11: =IF(ISERROR(RANK(AC11,$AC$10:$AC$21,0)),"",RANK(AC11,$AC$10:$AC$21,0)) -> 1 | AF11: =IF(AE11<5,AC11,"") -> 0 | AH11: =IF(X11>0.2,AG11,"") ->  | AI11: =IF(X11>0.1,AG11,"") ->  | AJ11: =IF(X11>0,AG11,"") ->  | AL11: =IF(ISERROR(RANK(AC11,$AC$10:$AC$21,1)),"",RANK(AC11,$AC$10:$AC$21,1)) -> 1 | AM11: =IF(AL11<5,AC11,"") -> 0 | AN11: =IF(AM11<Ⅰどちらでもない,AM11,"") -> 0 | AO11: =IF(X11<-0.2,AN11,"") -> 0 | AP11: =IF(X11<-0.1,AN11,"") -> 0 | AQ11: =IF(X11<0,AN11,"") -> 0 | AR11: =OFFSET(データ!$D24,0,データ位置１６) -> 0.8436748304 | AS11: =OFFSET(データ!$D24,0,データ位置１７) -> 0.9866177763 | AV11: 4 | AW11: 積極的な声かけ | AZ11: =IF(BS11<>"","○",IF(BT11<>"","×","")) -> × | BE11: ● | BG11: | | BM11: =OFFSET(データ!$D59,0,データ位置１) -> 0 | BN11: =OFFSET(データ!$D59,0,データ位置２) -> 0.5317274883 | BO11: 3 | BP11: 5 | BQ11: -0.5317274883 | BS11: =IF(CA11<>"",CA11,IF(AND(CB11<>"",$CB$21<=3),CB11,IF($CC$21<=3,CC11,""))) ->  | BT11: =IF(CH11<>"",CH11,IF(AND(CI11<>"",$CI$21<=3),CI11,IF($CJ$21<=3,CJ11,""))) -> 0 | BV11: =BM11 -> 0 | BX11: =IF(ISERROR(RANK(BV11,$BV$10:$BV$20,0)),"",RANK(BV11,$BV$10:$BV$20,0)) -> 1 | BY11: =IF(BX11<4.5,BV11,"") -> 0 | BZ11: =IF(BV11>Ⅳどちらでもない,BY11,"") ->  | CA11: =IF(BQ11>0.2,BZ11,"") ->  | CB11: =IF(BQ11>0.1,BZ11,"") ->  | CC11: =IF(BQ11>0,BZ11,"") ->  | CE11: =IF(ISERROR(RANK(BV11,$BV$10:$BV$20,1)),"",RANK(BV11,$BV$10:$BV$20,1)) -> 1 | CF11: =IF(CE11<4.5,BV11,"") -> 0 | CG11: =IF(CF11<Ⅳどちらでもない,CF11,"") -> 0 | CH11: =IF(BQ11<-0.2,CG11,"") -> 0 | CI11: =IF(BQ11<-0.1,CG11,"") -> 0 | CJ11: =IF(BQ11<0,CG11,"") -> 0 | CK11: =OFFSET(データ!$D59,0,データ位置１６) -> 0.7754989989 | CL11: =OFFSET(データ!$D59,0,データ位置１７) -> 0.9029226871
C12: 56 | D12: 経営執行の監視 | G12: =IF(Z12<>"","○",IF(AA12<>"","×","")) -> × | L12: ● | M12: | | T12: =OFFSET(データ!$D25,0,データ位置１) -> 0 | U12: =OFFSET(データ!$D25,0,データ位置２) -> 0.300617142 | V12: 3 | W12: 4 | X12: -0.300617142 | Z12: =IF(AH12<>"",AH12,IF(AND(AI12<>"",$AI$22<=3),AI12,IF($AJ$22<=3,AJ12,""))) ->  | AA12: =IF(AO12<>"",AO12,IF(AND(AP12<>"",$AP$22<=3),AP12,IF($AQ$22<=3,AQ12,""))) -> 0 | AC12: =T12 -> 0 | AE12: =IF(ISERROR(RANK(AC12,$AC$10:$AC$21,0)),"",RANK(AC12,$AC$10:$AC$21,0)) -> 1 | AF12: =IF(AE12<5,AC12,"") -> 0 | AH12: =IF(X12>0.2,AG12,"") ->  | AI12: =IF(X12>0.1,AG12,"") ->  | AJ12: =IF(X12>0,AG12,"") ->  | AL12: =IF(ISERROR(RANK(AC12,$AC$10:$AC$21,1)),"",RANK(AC12,$AC$10:$AC$21,1)) -> 1 | AM12: =IF(AL12<5,AC12,"") -> 0 | AN12: =IF(AM12<Ⅰどちらでもない,AM12,"") -> 0 | AO12: =IF(X12<-0.2,AN12,"") -> 0 | AP12: =IF(X12<-0.1,AN12,"") -> 0 | AQ12: =IF(X12<0,AN12,"") -> 0 | AR12: =OFFSET(データ!$D25,0,データ位置１６) -> 0.5467116755 | AS12: =OFFSET(データ!$D25,0,データ位置１７) -> 0.6753496489 | AV12: 5 | AW12: 朝礼の活性化 | AZ12: =IF(BS12<>"","○",IF(BT12<>"","×","")) -> × | BE12: ● | BF12: | | BM12: =OFFSET(データ!$D60,0,データ位置１) -> 0 | BN12: =OFFSET(データ!$D60,0,データ位置２) -> 0.3830307728 | BO12: 3 | BP12: 4 | BQ12: -0.3830307728 | BS12: =IF(CA12<>"",CA12,IF(AND(CB12<>"",$CB$21<=3),CB12,IF($CC$21<=3,CC12,""))) ->  | BT12: =IF(CH12<>"",CH12,IF(AND(CI12<>"",$CI$21<=3),CI12,IF($CJ$21<=3,CJ12,""))) -> 0 | BV12: =BM12 -> 0 | BX12: =IF(ISERROR(RANK(BV12,$BV$10:$BV$20,0)),"",RANK(BV12,$BV$10:$BV$20,0)) -> 1 | BY12: =IF(BX12<4.5,BV12,"") -> 0 | BZ12: =IF(BV12>Ⅳどちらでもない,BY12,"") ->  | CA12: =IF(BQ12>0.2,BZ12,"") ->  | CB12: =IF(BQ12>0.1,BZ12,"") ->  | CC12: =IF(BQ12>0,BZ12,"") ->  | CE12: =IF(ISERROR(RANK(BV12,$BV$10:$BV$20,1)),"",RANK(BV12,$BV$10:$BV$20,1)) -> 1 | CF12: =IF(CE12<4.5,BV12,"") -> 0 | CG12: =IF(CF12<Ⅳどちらでもない,CF12,"") -> 0 | CH12: =IF(BQ12<-0.2,CG12,"") -> 0 | CI12: =IF(BQ12<-0.1,CG12,"") -> 0 | CJ12: =IF(BQ12<0,CG12,"") -> 0 | CK12: =OFFSET(データ!$D60,0,データ位置１６) -> 0.7187046749 | CL12: =OFFSET(データ!$D60,0,データ位置１７) -> 0.8941673715
C13: ２．マネジメントシステム | L13: ● | M13: | | T13: =OFFSET(データ!$D10,0,データ位置１) -> 0 | U13: =OFFSET(データ!$D10,0,データ位置２) -> 0.2919647556 | V13: 3 | W13: 4 | X13: -0.2919647556 | AR13: =OFFSET(データ!$D10,0,データ位置１６) -> 0.5248938045 | AS13: =OFFSET(データ!$D10,0,データ位置１７) -> 0.6466499458 | AV13: ２．日常管理の充実 | BE13: ● | BG13: | | BM13: =OFFSET(データ!$D18,0,データ位置１) -> 0 | BN13: =OFFSET(データ!$D18,0,データ位置２) -> 0.5704387244 | BO13: 3 | BP13: 5 | BQ13: -0.5704387244 | CK13: =OFFSET(データ!$D18,0,データ位置１６) -> 0.7951570647 | CL13: =OFFSET(データ!$D18,0,データ位置１７) -> 0.9126213231
C14: 53 | D14: 継続的改善 | G14: =IF(Z14<>"","○",IF(AA14<>"","×","")) -> × | L14: ● | M14: | | T14: =OFFSET(データ!$D26,0,データ位置１) -> 0 | U14: =OFFSET(データ!$D26,0,データ位置２) -> 0.3154543244 | V14: 3 | W14: 4 | X14: -0.3154543244 | Z14: =IF(AH14<>"",AH14,IF(AND(AI14<>"",$AI$22<=3),AI14,IF($AJ$22<=3,AJ14,""))) ->  | AA14: =IF(AO14<>"",AO14,IF(AND(AP14<>"",$AP$22<=3),AP14,IF($AQ$22<=3,AQ14,""))) -> 0 | AC14: =T14 -> 0 | AE14: =IF(ISERROR(RANK(AC14,$AC$10:$AC$21,0)),"",RANK(AC14,$AC$10:$AC$21,0)) -> 1 | AF14: =IF(AE14<5,AC14,"") -> 0 | AH14: =IF(X14>0.2,AG14,"") ->  | AI14: =IF(X14>0.1,AG14,"") ->  | AJ14: =IF(X14>0,AG14,"") ->  | AL14: =IF(ISERROR(RANK(AC14,$AC$10:$AC$21,1)),"",RANK(AC14,$AC$10:$AC$21,1)) -> 1 | AM14: =IF(AL14<5,AC14,"") -> 0 | AN14: =IF(AM14<Ⅰどちらでもない,AM14,"") -> 0 | AO14: =IF(X14<-0.2,AN14,"") -> 0 | AP14: =IF(X14<-0.1,AN14,"") -> 0 | AQ14: =IF(X14<0,AN14,"") -> 0 | AR14: =OFFSET(データ!$D26,0,データ位置１６) -> 0.5428012501 | AS14: =OFFSET(データ!$D26,0,データ位置１７) -> 0.6616395167 | AV14: 1 | AW14: 基本行動の指導 | AZ14: =IF(BS14<>"","○",IF(BT14<>"","×","")) -> × | BE14: ● | BG14: | | BM14: =OFFSET(データ!$D61,0,データ位置１) -> 0 | BN14: =OFFSET(データ!$D61,0,データ位置２) -> 0.7295840215 | BO14: 3 | BP14: 5 | BQ14: -0.7295840215 | BS14: =IF(CA14<>"",CA14,IF(AND(CB14<>"",$CB$21<=3),CB14,IF($CC$21<=3,CC14,""))) ->  | BT14: =IF(CH14<>"",CH14,IF(AND(CI14<>"",$CI$21<=3),CI14,IF($CJ$21<=3,CJ14,""))) -> 0 | BV14: =BM14 -> 0 | BX14: =IF(ISERROR(RANK(BV14,$BV$10:$BV$20,0)),"",RANK(BV14,$BV$10:$BV$20,0)) -> 1 | BY14: =IF(BX14<4.5,BV14,"") -> 0 | BZ14: =IF(BV14>Ⅳどちらでもない,BY14,"") ->  | CA14: =IF(BQ14>0.2,BZ14,"") ->  | CB14: =IF(BQ14>0.1,BZ14,"") ->  | CC14: =IF(BQ14>0,BZ14,"") ->  | CE14: =IF(ISERROR(RANK(BV14,$BV$10:$BV$20,1)),"",RANK(BV14,$BV$10:$BV$20,1)) -> 1 | CF14: =IF(CE14<4.5,BV14,"") -> 0 | CG14: =IF(CF14<Ⅳどちらでもない,CF14,"") -> 0 | CH14: =IF(BQ14<-0.2,CG14,"") -> 0 | CI14: =IF(BQ14<-0.1,CG14,"") -> 0 | CJ14: =IF(BQ14<0,CG14,"") -> 0 | CK14: =OFFSET(データ!$D61,0,データ位置１６) -> 1.039373066 | CL14: =OFFSET(データ!$D61,0,データ位置１７) -> 1.201305289
C15: 54 | D15: 管理者育成（人材育成） | G15: =IF(Z15<>"","○",IF(AA15<>"","×","")) ->  | L15: ●| | T15: =OFFSET(データ!$D27,0,データ位置１) -> 0 | U15: =OFFSET(データ!$D27,0,データ位置２) -> 0.1788032183 | V15: 3 | W15: 3 | X15: -0.1788032183 | Z15: =IF(AH15<>"",AH15,IF(AND(AI15<>"",$AI$22<=3),AI15,IF($AJ$22<=3,AJ15,""))) ->  | AA15: =IF(AO15<>"",AO15,IF(AND(AP15<>"",$AP$22<=3),AP15,IF($AQ$22<=3,AQ15,""))) ->  | AC15: =T15 -> 0 | AE15: =IF(ISERROR(RANK(AC15,$AC$10:$AC$21,0)),"",RANK(AC15,$AC$10:$AC$21,0)) -> 1 | AF15: =IF(AE15<5,AC15,"") -> 0 | AH15: =IF(X15>0.2,AG15,"") ->  | AI15: =IF(X15>0.1,AG15,"") ->  | AJ15: =IF(X15>0,AG15,"") ->  | AL15: =IF(ISERROR(RANK(AC15,$AC$10:$AC$21,1)),"",RANK(AC15,$AC$10:$AC$21,1)) -> 1 | AM15: =IF(AL15<5,AC15,"") -> 0 | AN15: =IF(AM15<Ⅰどちらでもない,AM15,"") -> 0 | AO15: =IF(X15<-0.2,AN15,"") ->  | AP15: =IF(X15<-0.1,AN15,"") -> 0 | AQ15: =IF(X15<0,AN15,"") -> 0 | AR15: =OFFSET(データ!$D27,0,データ位置１６) -> 0.4341657719 | AS15: =OFFSET(データ!$D27,0,データ位置１７) -> 0.5676483036 | AV15: 2 | AW15: 日々の報告と改善活動 | AZ15: =IF(BS15<>"","○",IF(BT15<>"","×","")) -> × | BE15: ● | BH15: | | BM15: =OFFSET(データ!$D62,0,データ位置１) -> 0 | BN15: =OFFSET(データ!$D62,0,データ位置２) -> 0.7596797755 | BO15: 3 | BP15: 6 | BQ15: -0.7596797755 | BS15: =IF(CA15<>"",CA15,IF(AND(CB15<>"",$CB$21<=3),CB15,IF($CC$21<=3,CC15,""))) ->  | BT15: =IF(CH15<>"",CH15,IF(AND(CI15<>"",$CI$21<=3),CI15,IF($CJ$21<=3,CJ15,""))) -> 0 | BV15: =BM15 -> 0 | BX15: =IF(ISERROR(RANK(BV15,$BV$10:$BV$20,0)),"",RANK(BV15,$BV$10:$BV$20,0)) -> 1 | BY15: =IF(BX15<4.5,BV15,"") -> 0 | BZ15: =IF(BV15>Ⅳどちらでもない,BY15,"") ->  | CA15: =IF(BQ15>0.2,BZ15,"") ->  | CB15: =IF(BQ15>0.1,BZ15,"") ->  | CC15: =IF(BQ15>0,BZ15,"") ->  | CE15: =IF(ISERROR(RANK(BV15,$BV$10:$BV$20,1)),"",RANK(BV15,$BV$10:$BV$20,1)) -> 1 | CF15: =IF(CE15<4.5,BV15,"") -> 0 | CG15: =IF(CF15<Ⅳどちらでもない,CF15,"") -> 0 | CH15: =IF(BQ15<-0.2,CG15,"") -> 0 | CI15: =IF(BQ15<-0.1,CG15,"") -> 0 | CJ15: =IF(BQ15<0,CG15,"") -> 0 | CK15: =OFFSET(データ!$D62,0,データ位置１６) -> 0.9797750619 | CL15: =OFFSET(データ!$D62,0,データ位置１７) -> 1.094822768
C16: 55 | D16: 現場情報の活用 | G16: =IF(Z16<>"","○",IF(AA16<>"","×","")) -> × | L16: ● | M16: | | T16: =OFFSET(データ!$D28,0,データ位置１) -> 0 | U16: =OFFSET(データ!$D28,0,データ位置２) -> 0.381636724 | V16: 3 | W16: 4 | X16: -0.381636724 | Z16: =IF(AH16<>"",AH16,IF(AND(AI16<>"",$AI$22<=3),AI16,IF($AJ$22<=3,AJ16,""))) ->  | AA16: =IF(AO16<>"",AO16,IF(AND(AP16<>"",$AP$22<=3),AP16,IF($AQ$22<=3,AQ16,""))) -> 0 | AC16: =T16 -> 0 | AE16: =IF(ISERROR(RANK(AC16,$AC$10:$AC$21,0)),"",RANK(AC16,$AC$10:$AC$21,0)) -> 1 | AF16: =IF(AE16<5,AC16,"") -> 0 | AH16: =IF(X16>0.2,AG16,"") ->  | AI16: =IF(X16>0.1,AG16,"") ->  | AJ16: =IF(X16>0,AG16,"") ->  | AL16: =IF(ISERROR(RANK(AC16,$AC$10:$AC$21,1)),"",RANK(AC16,$AC$10:$AC$21,1)) -> 1 | AM16: =IF(AL16<5,AC16,"") -> 0 | AN16: =IF(AM16<Ⅰどちらでもない,AM16,"") -> 0 | AO16: =IF(X16<-0.2,AN16,"") -> 0 | AP16: =IF(X16<-0.1,AN16,"") -> 0 | AQ16: =IF(X16<0,AN16,"") -> 0 | AR16: =OFFSET(データ!$D28,0,データ位置１６) -> 0.648553022 | AS16: =OFFSET(データ!$D28,0,データ位置１７) -> 0.7880749006 | AV16: 6 | AW16: 生活管理・健康管理 | AZ16: =IF(BS16<>"","○",IF(BT16<>"","×","")) -> × | BE16: ●| | BM16: =OFFSET(データ!$D63,0,データ位置１) -> 0 | BN16: =OFFSET(データ!$D63,0,データ位置２) -> 0.2220523762 | BO16: 3 | BP16: 3 | BQ16: -0.2220523762 | BS16: =IF(CA16<>"",CA16,IF(AND(CB16<>"",$CB$21<=3),CB16,IF($CC$21<=3,CC16,""))) ->  | BT16: =IF(CH16<>"",CH16,IF(AND(CI16<>"",$CI$21<=3),CI16,IF($CJ$21<=3,CJ16,""))) -> 0 | BV16: =BM16 -> 0 | BX16: =IF(ISERROR(RANK(BV16,$BV$10:$BV$20,0)),"",RANK(BV16,$BV$10:$BV$20,0)) -> 1 | BY16: =IF(BX16<4.5,BV16,"") -> 0 | BZ16: =IF(BV16>Ⅳどちらでもない,BY16,"") ->  | CA16: =IF(BQ16>0.2,BZ16,"") ->  | CB16: =IF(BQ16>0.1,BZ16,"") ->  | CC16: =IF(BQ16>0,BZ16,"") ->  | CE16: =IF(ISERROR(RANK(BV16,$BV$10:$BV$20,1)),"",RANK(BV16,$BV$10:$BV$20,1)) -> 1 | CF16: =IF(CE16<4.5,BV16,"") -> 0 | CG16: =IF(CF16<Ⅳどちらでもない,CF16,"") -> 0 | CH16: =IF(BQ16<-0.2,CG16,"") -> 0 | CI16: =IF(BQ16<-0.1,CG16,"") -> 0 | CJ16: =IF(BQ16<0,CG16,"") -> 0 | CK16: =OFFSET(データ!$D63,0,データ位置１６) -> 0.4810656602 | CL16: =OFFSET(データ!$D63,0,データ位置１７) -> 0.6164564933
C17: ３．現場重視の行動・姿勢 | L17: ● | M17: | | T17: =OFFSET(データ!$D11,0,データ位置１) -> 0 | U17: =OFFSET(データ!$D11,0,データ位置２) -> 0.3223070793 | V17: 3 | W17: 4 | X17: -0.3223070793 | AR17: =OFFSET(データ!$D11,0,データ位置１６) -> 0.5911311148 | AS17: =OFFSET(データ!$D11,0,データ位置１７) -> 0.7316502016 | AV17: ３．現場管理施策の充実 | BE17: ● | BF17: | | BM17: =OFFSET(データ!$D19,0,データ位置１) -> 0 | BN17: =OFFSET(データ!$D19,0,データ位置２) -> 0.3182946566 | BO17: 3 | BP17: 4 | BQ17: -0.3182946566 | CK17: =OFFSET(データ!$D19,0,データ位置１６) -> 0.5663488294 | CL17: =OFFSET(データ!$D19,0,データ位置１７) -> 0.696011141
C18: 51 | D18: 率先垂範への共感 | G18: =IF(Z18<>"","○",IF(AA18<>"","×","")) -> × | L18: ● | M18: | | T18: =OFFSET(データ!$D29,0,データ位置１) -> 0 | U18: =OFFSET(データ!$D29,0,データ位置２) -> 0.3463440119 | V18: 3 | W18: 4 | X18: -0.3463440119 | Z18: =IF(AH18<>"",AH18,IF(AND(AI18<>"",$AI$22<=3),AI18,IF($AJ$22<=3,AJ18,""))) ->  | AA18: =IF(AO18<>"",AO18,IF(AND(AP18<>"",$AP$22<=3),AP18,IF($AQ$22<=3,AQ18,""))) -> 0 | AC18: =T18 -> 0 | AE18: =IF(ISERROR(RANK(AC18,$AC$10:$AC$21,0)),"",RANK(AC18,$AC$10:$AC$21,0)) -> 1 | AF18: =IF(AE18<5,AC18,"") -> 0 | AH18: =IF(X18>0.2,AG18,"") ->  | AI18: =IF(X18>0.1,AG18,"") ->  | AJ18: =IF(X18>0,AG18,"") ->  | AL18: =IF(ISERROR(RANK(AC18,$AC$10:$AC$21,1)),"",RANK(AC18,$AC$10:$AC$21,1)) -> 1 | AM18: =IF(AL18<5,AC18,"") -> 0 | AN18: =IF(AM18<Ⅰどちらでもない,AM18,"") -> 0 | AO18: =IF(X18<-0.2,AN18,"") -> 0 | AP18: =IF(X18<-0.1,AN18,"") -> 0 | AQ18: =IF(X18<0,AN18,"") -> 0 | AR18: =OFFSET(データ!$D29,0,データ位置１６) -> 0.6486726624 | AS18: =OFFSET(データ!$D29,0,データ位置１７) -> 0.8067052051 | AV18: 7 | AW18: 改善意欲の醸成 | AZ18: =IF(BS18<>"","○",IF(BT18<>"","×","")) -> × | BE18: ● | BF18: | | BM18: =OFFSET(データ!$D64,0,データ位置１) -> 0 | BN18: =OFFSET(データ!$D64,0,データ位置２) -> 0.267749966 | BO18: 3 | BP18: 4 | BQ18: -0.267749966 | BS18: =IF(CA18<>"",CA18,IF(AND(CB18<>"",$CB$21<=3),CB18,IF($CC$21<=3,CC18,""))) ->  | BT18: =IF(CH18<>"",CH18,IF(AND(CI18<>"",$CI$21<=3),CI18,IF($CJ$21<=3,CJ18,""))) -> 0 | BV18: =BM18 -> 0 | BX18: =IF(ISERROR(RANK(BV18,$BV$10:$BV$20,0)),"",RANK(BV18,$BV$10:$BV$20,0)) -> 1 | BY18: =IF(BX18<4.5,BV18,"") -> 0 | BZ18: =IF(BV18>Ⅳどちらでもない,BY18,"") ->  | CA18: =IF(BQ18>0.2,BZ18,"") ->  | CB18: =IF(BQ18>0.1,BZ18,"") ->  | CC18: =IF(BQ18>0,BZ18,"") ->  | CE18: =IF(ISERROR(RANK(BV18,$BV$10:$BV$20,1)),"",RANK(BV18,$BV$10:$BV$20,1)) -> 1 | CF18: =IF(CE18<4.5,BV18,"") -> 0 | CG18: =IF(CF18<Ⅳどちらでもない,CF18,"") -> 0 | CH18: =IF(BQ18<-0.2,CG18,"") -> 0 | CI18: =IF(BQ18<-0.1,CG18,"") -> 0 | CJ18: =IF(BQ18<0,CG18,"") -> 0 | CK18: =OFFSET(データ!$D64,0,データ位置１６) -> 0.5318416935 | CL18: =OFFSET(データ!$D64,0,データ位置１７) -> 0.6698871191
C19: 52 | D19: 問題解決の意思決定 | G19: =IF(Z19<>"","○",IF(AA19<>"","×","")) -> × | L19: ● | M19: | | T19: =OFFSET(データ!$D30,0,データ位置１) -> 0 | U19: =OFFSET(データ!$D30,0,データ位置２) -> 0.3682143246 | V19: 3 | W19: 4 | X19: -0.3682143246 | Z19: =IF(AH19<>"",AH19,IF(AND(AI19<>"",$AI$22<=3),AI19,IF($AJ$22<=3,AJ19,""))) ->  | AA19: =IF(AO19<>"",AO19,IF(AND(AP19<>"",$AP$22<=3),AP19,IF($AQ$22<=3,AQ19,""))) -> 0 | AC19: =T19 -> 0 | AE19: =IF(ISERROR(RANK(AC19,$AC$10:$AC$21,0)),"",RANK(AC19,$AC$10:$AC$21,0)) -> 1 | AF19: =IF(AE19<5,AC19,"") -> 0 | AH19: =IF(X19>0.2,AG19,"") ->  | AI19: =IF(X19>0.1,AG19,"") ->  | AJ19: =IF(X19>0,AG19,"") ->  | AL19: =IF(ISERROR(RANK(AC19,$AC$10:$AC$21,1)),"",RANK(AC19,$AC$10:$AC$21,1)) -> 1 | AM19: =IF(AL19<5,AC19,"") -> 0 | AN19: =IF(AM19<Ⅰどちらでもない,AM19,"") -> 0 | AO19: =IF(X19<-0.2,AN19,"") -> 0 | AP19: =IF(X19<-0.1,AN19,"") -> 0 | AQ19: =IF(X19<0,AN19,"") -> 0 | AR19: =OFFSET(データ!$D30,0,データ位置１６) -> 0.653903036 | AS19: =OFFSET(データ!$D30,0,データ位置１７) -> 0.8032375877 | AV19: 8 | AW19: ﾐｰﾃｨﾝｸﾞ（班活動等）の充実 | AZ19: =IF(BS19<>"","○",IF(BT19<>"","×","")) -> × | BE19: ● | BF19: | | BM19: =OFFSET(データ!$D65,0,データ位置１) -> 0 | BN19: =OFFSET(データ!$D65,0,データ位置２) -> 0.3724838451 | BO19: 3 | BP19: 4 | BQ19: -0.3724838451 | BS19: =IF(CA19<>"",CA19,IF(AND(CB19<>"",$CB$21<=3),CB19,IF($CC$21<=3,CC19,""))) ->  | BT19: =IF(CH19<>"",CH19,IF(AND(CI19<>"",$CI$21<=3),CI19,IF($CJ$21<=3,CJ19,""))) -> 0 | BV19: =BM19 -> 0 | BX19: =IF(ISERROR(RANK(BV19,$BV$10:$BV$20,0)),"",RANK(BV19,$BV$10:$BV$20,0)) -> 1 | BY19: =IF(BX19<4.5,BV19,"") -> 0 | BZ19: =IF(BV19>Ⅳどちらでもない,BY19,"") ->  | CA19: =IF(BQ19>0.2,BZ19,"") ->  | CB19: =IF(BQ19>0.1,BZ19,"") ->  | CC19: =IF(BQ19>0,BZ19,"") ->  | CE19: =IF(ISERROR(RANK(BV19,$BV$10:$BV$20,1)),"",RANK(BV19,$BV$10:$BV$20,1)) -> 1 | CF19: =IF(CE19<4.5,BV19,"") -> 0 | CG19: =IF(CF19<Ⅳどちらでもない,CF19,"") -> 0 | CH19: =IF(BQ19<-0.2,CG19,"") -> 0 | CI19: =IF(BQ19<-0.1,CG19,"") -> 0 | CJ19: =IF(BQ19<0,CG19,"") -> 0 | CK19: =OFFSET(データ!$D65,0,データ位置１６) -> 0.6643849306 | CL19: =OFFSET(データ!$D65,0,データ位置１７) -> 0.8169668003
C20: 57 | D20: 安全理念・方針の浸透 | G20: =IF(Z20<>"","○",IF(AA20<>"","×","")) -> × | L20: ● | M20: | | T20: =OFFSET(データ!$D31,0,データ位置１) -> 0 | U20: =OFFSET(データ!$D31,0,データ位置２) -> 0.356261421 | V20: 3 | W20: 4 | X20: -0.356261421 | Z20: =IF(AH20<>"",AH20,IF(AND(AI20<>"",$AI$22<=3),AI20,IF($AJ$22<=3,AJ20,""))) ->  | AA20: =IF(AO20<>"",AO20,IF(AND(AP20<>"",$AP$22<=3),AP20,IF($AQ$22<=3,AQ20,""))) -> 0 | AC20: =T20 -> 0 | AE20: =IF(ISERROR(RANK(AC20,$AC$10:$AC$21,0)),"",RANK(AC20,$AC$10:$AC$21,0)) -> 1 | AF20: =IF(AE20<5,AC20,"") -> 0 | AH20: =IF(X20>0.2,AG20,"") ->  | AI20: =IF(X20>0.1,AG20,"") ->  | AJ20: =IF(X20>0,AG20,"") ->  | AL20: =IF(ISERROR(RANK(AC20,$AC$10:$AC$21,1)),"",RANK(AC20,$AC$10:$AC$21,1)) -> 1 | AM20: =IF(AL20<5,AC20,"") -> 0 | AN20: =IF(AM20<Ⅰどちらでもない,AM20,"") -> 0 | AO20: =IF(X20<-0.2,AN20,"") -> 0 | AP20: =IF(X20<-0.1,AN20,"") -> 0 | AQ20: =IF(X20<0,AN20,"") -> 0 | AR20: =OFFSET(データ!$D31,0,データ位置１６) -> 0.6390502274 | AS20: =OFFSET(データ!$D31,0,データ位置１７) -> 0.7868689473 | AV20: 9 | AW20: 現場ﾊﾟﾄﾛｰﾙ・立会の充実 | AZ20: =IF(BS20<>"","○",IF(BT20<>"","×","")) -> × | BE20: ● | BF20: | | BM20: =OFFSET(データ!$D66,0,データ位置１) -> 0 | BN20: =OFFSET(データ!$D66,0,データ位置２) -> 0.3146501587 | BO20: 3 | BP20: 4 | BQ20: -0.3146501587 | BS20: =IF(CA20<>"",CA20,IF(AND(CB20<>"",$CB$21<=3),CB20,IF($CC$21<=3,CC20,""))) ->  | BT20: =IF(CH20<>"",CH20,IF(AND(CI20<>"",$CI$21<=3),CI20,IF($CJ$21<=3,CJ20,""))) -> 0 | BV20: =BM20 -> 0 | BX20: =IF(ISERROR(RANK(BV20,$BV$10:$BV$20,0)),"",RANK(BV20,$BV$10:$BV$20,0)) -> 1 | BY20: =IF(BX20<4.5,BV20,"") -> 0 | BZ20: =IF(BV20>Ⅳどちらでもない,BY20,"") ->  | CA20: =IF(BQ20>0.2,BZ20,"") ->  | CB20: =IF(BQ20>0.1,BZ20,"") ->  | CC20: =IF(BQ20>0,BZ20,"") ->  | CE20: =IF(ISERROR(RANK(BV20,$BV$10:$BV$20,1)),"",RANK(BV20,$BV$10:$BV$20,1)) -> 1 | CF20: =IF(CE20<4.5,BV20,"") -> 0 | CG20: =IF(CF20<Ⅳどちらでもない,CF20,"") -> 0 | CH20: =IF(BQ20<-0.2,CG20,"") -> 0 | CI20: =IF(BQ20<-0.1,CG20,"") -> 0 | CJ20: =IF(BQ20<0,CG20,"") -> 0 | CK20: =OFFSET(データ!$D66,0,データ位置１６) -> 0.6790307058 | CL20: =OFFSET(データ!$D66,0,データ位置１７) -> 0.8694988744
C21: 58 | D21: 経営者による現場ｺﾐｭﾆｹｰｼｮﾝ | G21: =IF(Z21<>"","○",IF(AA21<>"","×","")) -> × | L21: ●| | M21: =IF(AND($V21=4,$W21=4,$T21>=$U21),"|●",IF(AND($V21=4,$W21=4,$T21<$U21),"●|",IF($V21=4,"●",IF($W21=4,"|","")))) ->  | T21: =OFFSET(データ!$D32,0,データ位置１) -> 0 | U21: =OFFSET(データ!$D32,0,データ位置２) -> 0.2184085597 | V21: 3 | W21: 3 | X21: =T21-U21 -> -0.2184085597 | Z21: =IF(AH21<>"",AH21,IF(AND(AI21<>"",$AI$22<=3),AI21,IF($AJ$22<=3,AJ21,""))) ->  | AA21: =IF(AO21<>"",AO21,IF(AND(AP21<>"",$AP$22<=3),AP21,IF($AQ$22<=3,AQ21,""))) -> 0 | AC21: =T21 -> 0 | AE21: =IF(ISERROR(RANK(AC21,$AC$10:$AC$21,0)),"",RANK(AC21,$AC$10:$AC$21,0)) -> 1 | AF21: =IF(AE21<5,AC21,"") -> 0 | AH21: =IF(X21>0.2,AG21,"") ->  | AI21: =IF(X21>0.1,AG21,"") ->  | AJ21: =IF(X21>0,AG21,"") ->  | AL21: =IF(ISERROR(RANK(AC21,$AC$10:$AC$21,1)),"",RANK(AC21,$AC$10:$AC$21,1)) -> 1 | AM21: =IF(AL21<5,AC21,"") -> 0 | AN21: =IF(AM21<Ⅰどちらでもない,AM21,"") -> 0 | AO21: =IF(X21<-0.2,AN21,"") -> 0 | AP21: =IF(X21<-0.1,AN21,"") -> 0 | AQ21: =IF(X21<0,AN21,"") -> 0 | AR21: =OFFSET(データ!$D32,0,データ位置１６) -> 0.5124210333 | AS21: =OFFSET(データ!$D32,0,データ位置１７) -> 0.666106563 | BF21: ="○："&$T$6 -> ○：0 | BI21: ="| ："&$U$6 -> | ：他社平均 | CA21: =COUNT(CA10:CA20) -> 0 | CB21: =COUNT(CB10:CB20) -> 0 | CC21: =COUNT(CC10:CC20) -> 0 | CH21: =COUNT(CH10:CH20) -> 9 | CI21: =COUNT(CI10:CI20) -> 9 | CJ21: =COUNT(CJ10:CJ20) -> 9
M22: ="○："&$T$6 -> ○：0 | P22: ="| ："&$U$6 -> | ：他社平均 | AH22: =COUNT(AH10:AH21) -> 0 | AI22: =COUNT(AI10:AI21) -> 0 | AJ22: =COUNT(AJ10:AJ21) -> 0 | AO22: =COUNT(AO10:AO21) -> 8 | AP22: =COUNT(AP10:AP21) -> 9 | AQ22: =COUNT(AQ10:AQ21) -> 10
BC24: ‐‐ | BE24: ‐ | BG24: + | BI24: ++ | BM24: =T6 -> 0 | BN24: =U6 -> 他社平均 | BQ24: 差異 | CK24: =AR6 -> 上位20％ | CL24: =AS6 -> 上位10％
J25: ‐‐ | L25: ‐ | N25: + | P25: ++ | T25: =T6 -> 0 | U25: =U6 -> 他社平均 | X25: 差異 | AR25: =AR6 -> 上位20％ | AS25: =AS6 -> 上位10％ | AZ25: 評価 | BB25: =Ⅴ表示下限 -> -0.5 | BD25: =Ⅴ低い -> 0 | BF25: =Ⅴどちらでもない -> 0.5 | BH25: =Ⅴ高い -> 1 | BJ25: =Ⅴ表示上限 -> 1.5
G26: 評価 | I26: =Ⅱ表示下限 -> -0.5 | K26: =Ⅱ低い -> 0 | M26: =Ⅱどちらでもない -> 0.5 | O26: =Ⅱ高い -> 1 | Q26: =Ⅱ表示上限 -> 1.5 | AU26: Ⅴ．職場メンバーの積極心 | BB26: =IF(AND($BO26=0,$BP26=0,$BM26>=$BN26),"|●",IF(AND($BO26=0,$BP26=0,$BM26<$BN26),"●|",IF($BO26=0,"●",IF($BP26=0,"|","")))) ->  | BC26: =IF(AND($BO26=1,$BP26=1,$BM26>=$BN26),"|●",IF(AND($BO26=1,$BP26=1,$BM26<$BN26),"●|",IF($BO26=1,"●",IF($BP26=1,"|","")))) ->  | BD26: =IF(AND($BO26=2,$BP26=2,$BM26>=$BN26),"|●",IF(AND($BO26=2,$BP26=2,$BM26<$BN26),"●|",IF($BO26=2,"●",IF($BP26=2,"|","")))) ->  | BE26: =IF(AND($BO26=3,$BP26=3,$BM26>=$BN26),"|●",IF(AND($BO26=3,$BP26=3,$BM26<$BN26),"●|",IF($BO26=3,"●",IF($BP26=3,"|","")))) -> ● | BF26: =IF(AND($BO26=4,$BP26=4,$BM26>=$BN26),"|●",IF(AND($BO26=4,$BP26=4,$BM26<$BN26),"●|",IF($BO26=4,"●",IF($BP26=4,"|","")))) ->  | BG26: =IF(AND($BO26=5,$BP26=5,$BM26>=$BN26),"|●",IF(AND($BO26=5,$BP26=5,$BM26<$BN26),"●|",IF($BO26=5,"●",IF($BP26=5,"|","")))) -> | | BH26: =IF(AND($BO26=6,$BP26=6,$BM26>=$BN26),"|●",IF(AND($BO26=6,$BP26=6,$BM26<$BN26),"●|",IF($BO26=6,"●",IF($BP26=6,"|","")))) ->  | BI26: =IF(AND($BO26=7,$BP26=7,$BM26>=$BN26),"|●",IF(AND($BO26=7,$BP26=7,$BM26<$BN26),"●|",IF($BO26=7,"●",IF($BP26=7,"|","")))) ->  | BJ26: =IF(AND($BO26=8,$BP26=8,$BM26>=$BN26),"|●",IF(AND($BO26=8,$BP26=8,$BM26<$BN26),"●|",IF($BO26=8,"●",IF($BP26=8,"|","")))) ->  | BK26: =IF(AND($BO26=9,$BP26=9,$BM26>=$BN26),"|●",IF(AND($BO26=9,$BP26=9,$BM26<$BN26),"●|",IF($BO26=9,"●",IF($BP26=9,"|","")))) ->  | BM26: =OFFSET(データ!$D8,0,データ位置１) -> 0 | BN26: =OFFSET(データ!$D8,0,データ位置２) -> 0.6480561493 | BO26: =VLOOKUP(BM26,Ⅴ評価,2) -> 3 | BP26: =VLOOKUP(BN26,Ⅴ評価,2) -> 5 | BQ26: =BM26-BN26 -> -0.6480561493 | CK26: =OFFSET(データ!$D8,0,データ位置１６) -> 0.7405153024 | CL26: =OFFSET(データ!$D8,0,データ位置１７) -> 0.78884534
B27: Ⅱ．マネジメントサイクルの充実と浸透 | I27: =IF(AND($V27=0,$W27=0,$T27>=$U27),"|●",IF(AND($V27=0,$W27=0,$T27<$U27),"●|",IF($V27=0,"●",IF($W27=0,"|","")))) ->  | J27: =IF(AND($V27=1,$W27=1,$T27>=$U27),"|●",IF(AND($V27=1,$W27=1,$T27<$U27),"●|",IF($V27=1,"●",IF($W27=1,"|","")))) ->  | K27: =IF(AND($V27=2,$W27=2,$T27>=$U27),"|●",IF(AND($V27=2,$W27=2,$T27<$U27),"●|",IF($V27=2,"●",IF($W27=2,"|","")))) ->  | L27: =IF(AND($V27=3,$W27=3,$T27>=$U27),"|●",IF(AND($V27=3,$W27=3,$T27<$U27),"●|",IF($V27=3,"●",IF($W27=3,"|","")))) -> ● | M27: =IF(AND($V27=4,$W27=4,$T27>=$U27),"|●",IF(AND($V27=4,$W27=4,$T27<$U27),"●|",IF($V27=4,"●",IF($W27=4,"|","")))) -> | | N27: =IF(AND($V27=5,$W27=5,$T27>=$U27),"|●",IF(AND($V27=5,$W27=5,$T27<$U27),"●|",IF($V27=5,"●",IF($W27=5,"|","")))) ->  | O27: =IF(AND($V27=6,$W27=6,$T27>=$U27),"|●",IF(AND($V27=6,$W27=6,$T27<$U27),"●|",IF($V27=6,"●",IF($W27=6,"|","")))) ->  | P27: =IF(AND($V27=7,$W27=7,$T27>=$U27),"|●",IF(AND($V27=7,$W27=7,$T27<$U27),"●|",IF($V27=7,"●",IF($W27=7,"|","")))) ->  | Q27: =IF(AND($V27=8,$W27=8,$T27>=$U27),"|●",IF(AND($V27=8,$W27=8,$T27<$U27),"●|",IF($V27=8,"●",IF($W27=8,"|","")))) ->  | R27: =IF(AND($V27=9,$W27=9,$T27>=$U27),"|●",IF(AND($V27=9,$W27=9,$T27<$U27),"●|",IF($V27=9,"●",IF($W27=9,"|","")))) ->  | T27: =OFFSET(データ!$D5,0,データ位置１) -> 0 | U27: =OFFSET(データ!$D5,0,データ位置２) -> 0.4480961816 | V27: =VLOOKUP(T27,Ⅱ評価,2) -> 3 | W27: =VLOOKUP(U27,Ⅱ評価,2) -> 4 | X27: =T27-U27 -> -0.4480961816 | AR27: =OFFSET(データ!$D5,0,データ位置１６) -> 0.5934450593 | AS27: =OFFSET(データ!$D5,0,データ位置１７) -> 0.6694214931 | AV27: １．基本行動への意識 | BE27: ● | BG27: | | BM27: =OFFSET(データ!$D20,0,データ位置１) -> 0 | BN27: =OFFSET(データ!$D20,0,データ位置２) -> 0.6203952731 | BO27: 3 | BP27: 5 | BQ27: -0.6203952731 | CK27: =OFFSET(データ!$D20,0,データ位置１６) -> 0.7202188908 | CL27: =OFFSET(データ!$D20,0,データ位置１７) -> 0.7723984646
C28: １．PDCAの実践 | L28: ● | N28: | | T28: =OFFSET(データ!$D12,0,データ位置１) -> 0 | U28: =OFFSET(データ!$D12,0,データ位置２) -> 0.5557036941 | V28: 3 | W28: 5 | X28: -0.5557036941 | AR28: =OFFSET(データ!$D12,0,データ位置１６) -> 0.69731638 | AS28: =OFFSET(データ!$D12,0,データ位置１７) -> 0.7713398403 | AV28: 問26 | AW28: 健康 | AZ28: =IF(BS28<>"","○",IF(BT28<>"","×","")) -> × | BE28: ● | BG28: | | BM28: =OFFSET(データ!$D67,0,データ位置１) -> 0 | BN28: =OFFSET(データ!$D67,0,データ位置２) -> 0.5718293584 | BO28: 3 | BP28: 5 | BQ28: -0.5718293584 | BS28: =IF(CA28<>"",CA28,IF(AND(CB28<>"",$CB$44<=3),CB28,IF($CC$44<=3,CC28,""))) ->  | BT28: =IF(CH28<>"",CH28,IF(AND(CI28<>"",$CI$44<=3),CI28,IF($CJ$44<=3,CJ28,""))) -> 0 | BV28: =BM28 -> 0 | BX28: =IF(ISERROR(RANK(BV28,$BV$28:$BV$43,0)),"",RANK(BV28,$BV$28:$BV$43,0)) -> 1 | BY28: =IF(BX28<7,BV28,"") -> 0 | BZ28: =IF(BV28>Ⅴどちらでもない,BY28,"") ->  | CA28: =IF(BQ28>0.2,BZ28,"") ->  | CB28: =IF(BQ28>0.1,BZ28,"") ->  | CC28: =IF(BQ28>0,BZ28,"") ->  | CE28: =IF(ISERROR(RANK(BV28,$BV$28:$BV$43,1)),"",RANK(BV28,$BV$28:$BV$43,1)) -> 1 | CF28: =IF(CE28<7,BV28,"") -> 0 | CG28: =IF(CF28<Ⅴどちらでもない,CF28,"") -> 0 | CH28: =IF(BQ28<-0.2,CG28,"") -> 0 | CI28: =IF(BQ28<-0.1,CG28,"") -> 0 | CJ28: =IF(BQ28<0,CG28,"") -> 0 | CK28: =OFFSET(データ!$D67,0,データ位置１６) -> 0.7356528477 | CL28: =OFFSET(データ!$D67,0,データ位置１７) -> 0.8212862884
C29: 問10 | D29: 安全理念・方針の理解 | G29: =IF(Z29<>"","○",IF(AA29<>"","×","")) -> × | L29: ● | N29: | | T29: =OFFSET(データ!$D33,0,データ位置１) -> 0 | U29: =OFFSET(データ!$D33,0,データ位置２) -> 0.5222969547 | V29: 3 | W29: 5 | X29: -0.5222969547 | Z29: =IF(AH29<>"",AH29,IF(AND(AI29<>"",$AI$46<=3),AI29,IF($AJ$46<=3,AJ29,""))) ->  | AA29: =IF(AO29<>"",AO29,IF(AND(AP29<>"",$AP$46<=3),AP29,IF($AQ$46<=3,AQ29,""))) -> 0 | AC29: =T29 -> 0 | AE29: =IF(ISERROR(RANK(AC29,$AC$29:$AC$45,0)),"",RANK(AC29,$AC$29:$AC$45,0)) -> 1 | AF29: =IF(AE29<8,AC29,"") -> 0 | AG29: =IF(AC29>Ⅱどちらでもない,AF29,"") ->  | AH29: =IF(X29>0.2,AG29,"") ->  | AI29: =IF(X29>0.1,AG29,"") ->  | AJ29: =IF(X29>0,AG29,"") ->  | AL29: =IF(ISERROR(RANK(AC29,$AC$29:$AC$45,1)),"",RANK(AC29,$AC$29:$AC$45,1)) -> 1 | AM29: =IF(AL29<8,AC29,"") -> 0 | AN29: =IF(AM29<Ⅱどちらでもない,AM29,"") -> 0 | AO29: =IF(X29<-0.2,AN29,"") -> 0 | AP29: =IF(X29<-0.1,AN29,"") -> 0 | AQ29: =IF(X29<0,AN29,"") -> 0 | AR29: =OFFSET(データ!$D33,0,データ位置１６) -> 0.6966632828 | AS29: =OFFSET(データ!$D33,0,データ位置１７) -> 0.7878076522 | AV29: 27 | AW29: あいさつ | AZ29: × | BE29: ● | BF29: | | BM29: =OFFSET(データ!$D68,0,データ位置１) -> 0 | BN29: =OFFSET(データ!$D68,0,データ位置２) -> 0.2718428969 | BO29: 3 | BP29: 4 | BQ29: -0.2718428969 | BS29: =IF(CA29<>"",CA29,IF(AND(CB29<>"",$CB$44<=3),CB29,IF($CC$44<=3,CC29,""))) ->  | BT29: =IF(CH29<>"",CH29,IF(AND(CI29<>"",$CI$44<=3),CI29,IF($CJ$44<=3,CJ29,""))) -> 0 | BV29: =BM29 -> 0 | BX29: =IF(ISERROR(RANK(BV29,$BV$28:$BV$43,0)),"",RANK(BV29,$BV$28:$BV$43,0)) -> 1 | BY29: =IF(BX29<7,BV29,"") -> 0 | BZ29: =IF(BV29>Ⅴどちらでもない,BY29,"") ->  | CA29: =IF(BQ29>0.2,BZ29,"") ->  | CB29: =IF(BQ29>0.1,BZ29,"") ->  | CC29: =IF(BQ29>0,BZ29,"") ->  | CE29: =IF(ISERROR(RANK(BV29,$BV$28:$BV$43,1)),"",RANK(BV29,$BV$28:$BV$43,1)) -> 1 | CF29: =IF(CE29<7,BV29,"") -> 0 | CG29: =IF(CF29<Ⅴどちらでもない,CF29,"") -> 0 | CH29: =IF(BQ29<-0.2,CG29,"") -> 0 | CI29: =IF(BQ29<-0.1,CG29,"") -> 0 | CJ29: =IF(BQ29<0,CG29,"") -> 0 | CK29: =OFFSET(データ!$D68,0,データ位置１６) -> 0.3821031142 | CL29: =OFFSET(データ!$D68,0,データ位置１７) -> 0.4397380835
C30: 11 | D30: 安全目標の設定 | G30: × | L30: ● | N30: | | T30: =OFFSET(データ!$D34,0,データ位置１) -> 0 | U30: =OFFSET(データ!$D34,0,データ位置２) -> 0.584461144 | V30: 3 | W30: 5 | X30: -0.584461144 | AA30: 0 | AC30: 0 | AE30: 1 | AF30: 0 | AL30: 1 | AM30: 0 | AN30: 0 | AO30: 0 | AP30: 0 | AQ30: 0 | AR30: =OFFSET(データ!$D34,0,データ位置１６) -> 0.7826229624 | AS30: =OFFSET(データ!$D34,0,データ位置１７) -> 0.8862056562 | AV30: 28 | AW30: 約束 | AZ30: × | BE30: ● | BI30: | | BM30: =OFFSET(データ!$D69,0,データ位置１) -> 0 | BN30: =OFFSET(データ!$D69,0,データ位置２) -> 1.052145027 | BO30: 3 | BP30: 7 | BQ30: -1.052145027 | BS30: =IF(CA30<>"",CA30,IF(AND(CB30<>"",$CB$44<=3),CB30,IF($CC$44<=3,CC30,""))) ->  | BT30: =IF(CH30<>"",CH30,IF(AND(CI30<>"",$CI$44<=3),CI30,IF($CJ$44<=3,CJ30,""))) -> 0 | BV30: =BM30 -> 0 | BX30: =IF(ISERROR(RANK(BV30,$BV$28:$BV$43,0)),"",RANK(BV30,$BV$28:$BV$43,0)) -> 1 | BY30: =IF(BX30<7,BV30,"") -> 0 | BZ30: =IF(BV30>Ⅴどちらでもない,BY30,"") ->  | CA30: =IF(BQ30>0.2,BZ30,"") ->  | CB30: =IF(BQ30>0.1,BZ30,"") ->  | CC30: =IF(BQ30>0,BZ30,"") ->  | CE30: =IF(ISERROR(RANK(BV30,$BV$28:$BV$43,1)),"",RANK(BV30,$BV$28:$BV$43,1)) -> 1 | CF30: =IF(CE30<7,BV30,"") -> 0 | CG30: =IF(CF30<Ⅴどちらでもない,CF30,"") -> 0 | CH30: =IF(BQ30<-0.2,CG30,"") -> 0 | CI30: =IF(BQ30<-0.1,CG30,"") -> 0 | CJ30: =IF(BQ30<0,CG30,"") -> 0 | CK30: =OFFSET(データ!$D69,0,データ位置１６) -> 1.178289279 | CL30: =OFFSET(データ!$D69,0,データ位置１７) -> 1.244227115
C31: 12 | D31: 取り組み計画の具体化 | G31: × | L31: ● | M31: | | T31: =OFFSET(データ!$D35,0,データ位置１) -> 0 | U31: =OFFSET(データ!$D35,0,データ位置２) -> 0.4277651951 | V31: 3 | W31: 4 | X31: -0.4277651951 | AA31: 0 | AC31: 0 | AE31: 1 | AF31: 0 | AL31: 1 | AM31: 0 | AN31: 0 | AO31: 0 | AP31: 0 | AQ31: 0 | AR31: =OFFSET(データ!$D35,0,データ位置１６) -> 0.6081446592 | AS31: =OFFSET(データ!$D35,0,データ位置１７) -> 0.7024322013 | AV31: 35 | AW31: 計画 | AZ31: × | BE31: ● | BF31: | | BM31: =OFFSET(データ!$D70,0,データ位置１) -> 0 | BN31: =OFFSET(データ!$D70,0,データ位置２) -> 0.4698693495 | BO31: 3 | BP31: 4 | BQ31: -0.4698693495 | BS31: =IF(CA31<>"",CA31,IF(AND(CB31<>"",$CB$44<=3),CB31,IF($CC$44<=3,CC31,""))) ->  | BT31: =IF(CH31<>"",CH31,IF(AND(CI31<>"",$CI$44<=3),CI31,IF($CJ$44<=3,CJ31,""))) -> 0 | BV31: =BM31 -> 0 | BX31: =IF(ISERROR(RANK(BV31,$BV$28:$BV$43,0)),"",RANK(BV31,$BV$28:$BV$43,0)) -> 1 | BY31: =IF(BX31<7,BV31,"") -> 0 | BZ31: =IF(BV31>Ⅴどちらでもない,BY31,"") ->  | CA31: =IF(BQ31>0.2,BZ31,"") ->  | CB31: =IF(BQ31>0.1,BZ31,"") ->  | CC31: =IF(BQ31>0,BZ31,"") ->  | CE31: =IF(ISERROR(RANK(BV31,$BV$28:$BV$43,1)),"",RANK(BV31,$BV$28:$BV$43,1)) -> 1 | CF31: =IF(CE31<7,BV31,"") -> 0 | CG31: =IF(CF31<Ⅴどちらでもない,CF31,"") -> 0 | CH31: =IF(BQ31<-0.2,CG31,"") -> 0 | CI31: =IF(BQ31<-0.1,CG31,"") -> 0 | CJ31: =IF(BQ31<0,CG31,"") -> 0 | CK31: =OFFSET(データ!$D70,0,データ位置１６) -> 0.6361753606 | CL31: =OFFSET(データ!$D70,0,データ位置１７) -> 0.7231064594
C32: 13 | D32: 計画の遂行度合 | G32: × | L32: ● | M32: | | T32: =OFFSET(データ!$D36,0,データ位置１) -> 0 | U32: =OFFSET(データ!$D36,0,データ位置２) -> 0.4932577369 | V32: 3 | W32: 4 | X32: -0.4932577369 | AA32: 0 | AC32: 0 | AE32: 1 | AF32: 0 | AL32: 1 | AM32: 0 | AN32: 0 | AO32: 0 | AP32: 0 | AQ32: 0 | AR32: =OFFSET(データ!$D36,0,データ位置１６) -> 0.6700838363 | AS32: =OFFSET(データ!$D36,0,データ位置１７) -> 0.7625139717 | AV32: 38 | AW32: 報告 | AZ32: × | BE32: ● | BG32: | | BM32: =OFFSET(データ!$D71,0,データ位置１) -> 0 | BN32: =OFFSET(データ!$D71,0,データ位置２) -> 0.7362897336 | BO32: 3 | BP32: 5 | BQ32: -0.7362897336 | BS32: =IF(CA32<>"",CA32,IF(AND(CB32<>"",$CB$44<=3),CB32,IF($CC$44<=3,CC32,""))) ->  | BT32: =IF(CH32<>"",CH32,IF(AND(CI32<>"",$CI$44<=3),CI32,IF($CJ$44<=3,CJ32,""))) -> 0 | BV32: =BM32 -> 0 | BX32: =IF(ISERROR(RANK(BV32,$BV$28:$BV$43,0)),"",RANK(BV32,$BV$28:$BV$43,0)) -> 1 | BY32: =IF(BX32<7,BV32,"") -> 0 | BZ32: =IF(BV32>Ⅴどちらでもない,BY32,"") ->  | CA32: =IF(BQ32>0.2,BZ32,"") ->  | CB32: =IF(BQ32>0.1,BZ32,"") ->  | CC32: =IF(BQ32>0,BZ32,"") ->  | CE32: =IF(ISERROR(RANK(BV32,$BV$28:$BV$43,1)),"",RANK(BV32,$BV$28:$BV$43,1)) -> 1 | CF32: =IF(CE32<7,BV32,"") -> 0 | CG32: =IF(CF32<Ⅴどちらでもない,CF32,"") -> 0 | CH32: =IF(BQ32<-0.2,CG32,"") -> 0 | CI32: =IF(BQ32<-0.1,CG32,"") -> 0 | CJ32: =IF(BQ32<0,CG32,"") -> 0 | CK32: =OFFSET(データ!$D71,0,データ位置１６) -> 0.9142956843 | CL32: =OFFSET(データ!$D71,0,データ位置１７) -> 1.007342549
C33: 14 | D33: 改善志向 | G33: × | L33: ● | O33: | | T33: =OFFSET(データ!$D37,0,データ位置１) -> 0 | U33: =OFFSET(データ!$D37,0,データ位置２) -> 0.9111490849 | V33: 3 | W33: 6 | X33: -0.9111490849 | AA33: 0 | AC33: 0 | AE33: 1 | AF33: 0 | AL33: 1 | AM33: 0 | AN33: 0 | AO33: 0 | AP33: 0 | AQ33: 0 | AR33: =OFFSET(データ!$D37,0,データ位置１６) -> 1.067777733 | AS33: =OFFSET(データ!$D37,0,データ位置１７) -> 1.149650303 | AV33: ２．職務への意識 | BE33: ● | BG33: | | BM33: =OFFSET(データ!$D21,0,データ位置１) -> 0 | BN33: =OFFSET(データ!$D21,0,データ位置２) -> 0.6038541676 | BO33: 3 | BP33: 5 | BQ33: -0.6038541676 | CK33: =OFFSET(データ!$D21,0,データ位置１６) -> 0.7153247382 | CL33: =OFFSET(データ!$D21,0,データ位置１７) -> 0.7735923807
C34: 15 | D34: 見直しと次へのアクション | G34: × | L34: ● | N34: | | T34: =OFFSET(データ!$D38,0,データ位置１) -> 0 | U34: =OFFSET(データ!$D38,0,データ位置２) -> 0.552189482 | V34: 3 | W34: 5 | X34: -0.552189482 | AA34: 0 | AC34: 0 | AE34: 1 | AF34: 0 | AL34: 1 | AM34: 0 | AN34: 0 | AO34: 0 | AP34: 0 | AQ34: 0 | AR34: =OFFSET(データ!$D38,0,データ位置１６) -> 0.7020001396 | AS34: =OFFSET(データ!$D38,0,データ位置１７) -> 0.7803088249 | AV34: 29 | AW34: 終業 | AZ34: =IF(BS34<>"","○",IF(BT34<>"","×","")) -> × | BE34: ● | BG34: | | BM34: =OFFSET(データ!$D72,0,データ位置１) -> 0 | BN34: =OFFSET(データ!$D72,0,データ位置２) -> 0.6120155789 | BO34: 3 | BP34: 5 | BQ34: -0.6120155789 | BS34: =IF(CA34<>"",CA34,IF(AND(CB34<>"",$CB$44<=3),CB34,IF($CC$44<=3,CC34,""))) ->  | BT34: =IF(CH34<>"",CH34,IF(AND(CI34<>"",$CI$44<=3),CI34,IF($CJ$44<=3,CJ34,""))) -> 0 | BV34: =BM34 -> 0 | BX34: =IF(ISERROR(RANK(BV34,$BV$28:$BV$43,0)),"",RANK(BV34,$BV$28:$BV$43,0)) -> 1 | BY34: =IF(BX34<7,BV34,"") -> 0 | BZ34: =IF(BV34>Ⅴどちらでもない,BY34,"") ->  | CA34: =IF(BQ34>0.2,BZ34,"") ->  | CB34: =IF(BQ34>0.1,BZ34,"") ->  | CC34: =IF(BQ34>0,BZ34,"") ->  | CE34: =IF(ISERROR(RANK(BV34,$BV$28:$BV$43,1)),"",RANK(BV34,$BV$28:$BV$43,1)) -> 1 | CF34: =IF(CE34<7,BV34,"") -> 0 | CG34: =IF(CF34<Ⅴどちらでもない,CF34,"") -> 0 | CH34: =IF(BQ34<-0.2,CG34,"") -> 0 | CI34: =IF(BQ34<-0.1,CG34,"") -> 0 | CJ34: =IF(BQ34<0,CG34,"") -> 0 | CK34: =OFFSET(データ!$D72,0,データ位置１６) -> 0.7736719772 | CL34: =OFFSET(データ!$D72,0,データ位置１７) -> 0.8581726411
C35: 16 | D35: 文書・記録の管理・活用 | G35: × | L35: ● | M35: | | T35: =OFFSET(データ!$D39,0,データ位置１) -> 0 | U35: =OFFSET(データ!$D39,0,データ位置２) -> 0.3988062613 | V35: 3 | W35: 4 | X35: -0.3988062613 | AA35: 0 | AC35: 0 | AE35: 1 | AF35: 0 | AL35: 1 | AM35: 0 | AN35: 0 | AO35: 0 | AP35: 0 | AQ35: 0 | AR35: =OFFSET(データ!$D39,0,データ位置１６) -> 0.6031545906 | AS35: =OFFSET(データ!$D39,0,データ位置１７) -> 0.7099710833 | AV35: 30 | AW35: 仕事 | AZ35: × | BE35: ● | BF35: | | BM35: =OFFSET(データ!$D73,0,データ位置１) -> 0 | BN35: =OFFSET(データ!$D73,0,データ位置２) -> 0.4576640961 | BO35: 3 | BP35: 4 | BQ35: -0.4576640961 | BS35: =IF(CA35<>"",CA35,IF(AND(CB35<>"",$CB$44<=3),CB35,IF($CC$44<=3,CC35,""))) ->  | BT35: =IF(CH35<>"",CH35,IF(AND(CI35<>"",$CI$44<=3),CI35,IF($CJ$44<=3,CJ35,""))) -> 0 | BV35: =BM35 -> 0 | BX35: =IF(ISERROR(RANK(BV35,$BV$28:$BV$43,0)),"",RANK(BV35,$BV$28:$BV$43,0)) -> 1 | BY35: =IF(BX35<7,BV35,"") -> 0 | BZ35: =IF(BV35>Ⅴどちらでもない,BY35,"") ->  | CA35: =IF(BQ35>0.2,BZ35,"") ->  | CB35: =IF(BQ35>0.1,BZ35,"") ->  | CC35: =IF(BQ35>0,BZ35,"") ->  | CE35: =IF(ISERROR(RANK(BV35,$BV$28:$BV$43,1)),"",RANK(BV35,$BV$28:$BV$43,1)) -> 1 | CF35: =IF(CE35<7,BV35,"") -> 0 | CG35: =IF(CF35<Ⅴどちらでもない,CF35,"") -> 0 | CH35: =IF(BQ35<-0.2,CG35,"") -> 0 | CI35: =IF(BQ35<-0.1,CG35,"") -> 0 | CJ35: =IF(BQ35<0,CG35,"") -> 0 | CK35: =OFFSET(データ!$D73,0,データ位置１６) -> 0.6203641324 | CL35: =OFFSET(データ!$D73,0,データ位置１７) -> 0.7054103244
C36: ２．コミュニケーションの実践 | L36: ● | M36: | | T36: =OFFSET(データ!$D13,0,データ位置１) -> 0 | U36: =OFFSET(データ!$D13,0,データ位置２) -> 0.3644014497 | V36: 3 | W36: 4 | X36: -0.3644014497 | AR36: =OFFSET(データ!$D13,0,データ位置１６) -> 0.5285408437 | AS36: =OFFSET(データ!$D13,0,データ位置１７) -> 0.6143394134 | AV36: 32 | AW36: 車両・機材・施設 | AZ36: × | BE36: ● | BH36: | | BM36: =OFFSET(データ!$D74,0,データ位置１) -> 0 | BN36: =OFFSET(データ!$D74,0,データ位置２) -> 0.8881301288 | BO36: 3 | BP36: 6 | BQ36: -0.8881301288 | BS36: =IF(CA36<>"",CA36,IF(AND(CB36<>"",$CB$44<=3),CB36,IF($CC$44<=3,CC36,""))) ->  | BT36: =IF(CH36<>"",CH36,IF(AND(CI36<>"",$CI$44<=3),CI36,IF($CJ$44<=3,CJ36,""))) -> 0 | BV36: =BM36 -> 0 | BX36: =IF(ISERROR(RANK(BV36,$BV$28:$BV$43,0)),"",RANK(BV36,$BV$28:$BV$43,0)) -> 1 | BY36: =IF(BX36<7,BV36,"") -> 0 | BZ36: =IF(BV36>Ⅴどちらでもない,BY36,"") ->  | CA36: =IF(BQ36>0.2,BZ36,"") ->  | CB36: =IF(BQ36>0.1,BZ36,"") ->  | CC36: =IF(BQ36>0,BZ36,"") ->  | CE36: =IF(ISERROR(RANK(BV36,$BV$28:$BV$43,1)),"",RANK(BV36,$BV$28:$BV$43,1)) -> 1 | CF36: =IF(CE36<7,BV36,"") -> 0 | CG36: =IF(CF36<Ⅴどちらでもない,CF36,"") -> 0 | CH36: =IF(BQ36<-0.2,CG36,"") -> 0 | CI36: =IF(BQ36<-0.1,CG36,"") -> 0 | CJ36: =IF(BQ36<0,CG36,"") -> 0 | CK36: =OFFSET(データ!$D74,0,データ位置１６) -> 1.014924079 | CL36: =OFFSET(データ!$D74,0,データ位置１７) -> 1.081201523
C37: 17 | D37: 職場の風通し | G37: =IF(Z37<>"","○",IF(AA37<>"","×","")) -> × | L37: ● | N37: | | T37: =OFFSET(データ!$D40,0,データ位置１) -> 0 | U37: =OFFSET(データ!$D40,0,データ位置２) -> 0.703656206 | V37: 3 | W37: 5 | X37: -0.703656206 | Z37: =IF(AH37<>"",AH37,IF(AND(AI37<>"",$AI$46<=3),AI37,IF($AJ$46<=3,AJ37,""))) ->  | AA37: =IF(AO37<>"",AO37,IF(AND(AP37<>"",$AP$46<=3),AP37,IF($AQ$46<=3,AQ37,""))) -> 0 | AC37: =T37 -> 0 | AE37: =IF(ISERROR(RANK(AC37,$AC$29:$AC$45,0)),"",RANK(AC37,$AC$29:$AC$45,0)) -> 1 | AF37: =IF(AE37<8,AC37,"") -> 0 | AH37: =IF(X37>0.2,AG37,"") ->  | AI37: =IF(X37>0.1,AG37,"") ->  | AJ37: =IF(X37>0,AG37,"") ->  | AL37: =IF(ISERROR(RANK(AC37,$AC$29:$AC$45,1)),"",RANK(AC37,$AC$29:$AC$45,1)) -> 1 | AM37: =IF(AL37<8,AC37,"") -> 0 | AN37: =IF(AM37<Ⅱどちらでもない,AM37,"") -> 0 | AO37: =IF(X37<-0.2,AN37,"") -> 0 | AP37: =IF(X37<-0.1,AN37,"") -> 0 | AQ37: =IF(X37<0,AN37,"") -> 0 | AR37: =OFFSET(データ!$D40,0,データ位置１６) -> 0.8661004727 | AS37: =OFFSET(データ!$D40,0,データ位置１７) -> 0.9510129694 | AV37: 36 | AW37: 会議・会合 | AZ37: × | BE37: ● | BG37: | | BM37: =OFFSET(データ!$D75,0,データ位置１) -> 0 | BN37: =OFFSET(データ!$D75,0,データ位置２) -> 0.6498978612 | BO37: 3 | BP37: 5 | BQ37: -0.6498978612 | BS37: =IF(CA37<>"",CA37,IF(AND(CB37<>"",$CB$44<=3),CB37,IF($CC$44<=3,CC37,""))) ->  | BT37: =IF(CH37<>"",CH37,IF(AND(CI37<>"",$CI$44<=3),CI37,IF($CJ$44<=3,CJ37,""))) -> 0 | BV37: =BM37 -> 0 | BX37: =IF(ISERROR(RANK(BV37,$BV$28:$BV$43,0)),"",RANK(BV37,$BV$28:$BV$43,0)) -> 1 | BY37: =IF(BX37<7,BV37,"") -> 0 | BZ37: =IF(BV37>Ⅴどちらでもない,BY37,"") ->  | CA37: =IF(BQ37>0.2,BZ37,"") ->  | CB37: =IF(BQ37>0.1,BZ37,"") ->  | CC37: =IF(BQ37>0,BZ37,"") ->  | CE37: =IF(ISERROR(RANK(BV37,$BV$28:$BV$43,1)),"",RANK(BV37,$BV$28:$BV$43,1)) -> 1 | CF37: =IF(CE37<7,BV37,"") -> 0 | CG37: =IF(CF37<Ⅴどちらでもない,CF37,"") -> 0 | CH37: =IF(BQ37<-0.2,CG37,"") -> 0 | CI37: =IF(BQ37<-0.1,CG37,"") -> 0 | CJ37: =IF(BQ37<0,CG37,"") -> 0 | CK37: =OFFSET(データ!$D75,0,データ位置１６) -> 0.8589799726 | CL37: =OFFSET(データ!$D75,0,データ位置１７) -> 0.968270897
C38: 18 | D38: リーダーシップ | L38: ●| | T38: =OFFSET(データ!$D41,0,データ位置１) -> 0 | U38: =OFFSET(データ!$D41,0,データ位置２) -> 0.1747434264 | V38: 3 | W38: 3 | X38: -0.1747434264 | AC38: 0 | AE38: 1 | AF38: 0 | AL38: 1 | AM38: 0 | AN38: 0 | AP38: 0 | AQ38: 0 | AR38: =OFFSET(データ!$D41,0,データ位置１６) -> 0.3617440898 | AS38: =OFFSET(データ!$D41,0,データ位置１７) -> 0.4594926502 | AV38: 39 | AW38: 出勤 | AZ38: × | BE38: ● | BF38: | | BM38: =OFFSET(データ!$D76,0,データ位置１) -> 0 | BN38: =OFFSET(データ!$D76,0,データ位置２) -> 0.4115631728 | BO38: 3 | BP38: 4 | BQ38: -0.4115631728 | BS38: =IF(CA38<>"",CA38,IF(AND(CB38<>"",$CB$44<=3),CB38,IF($CC$44<=3,CC38,""))) ->  | BT38: =IF(CH38<>"",CH38,IF(AND(CI38<>"",$CI$44<=3),CI38,IF($CJ$44<=3,CJ38,""))) -> 0 | BV38: =BM38 -> 0 | BX38: =IF(ISERROR(RANK(BV38,$BV$28:$BV$43,0)),"",RANK(BV38,$BV$28:$BV$43,0)) -> 1 | BY38: =IF(BX38<7,BV38,"") -> 0 | BZ38: =IF(BV38>Ⅴどちらでもない,BY38,"") ->  | CA38: =IF(BQ38>0.2,BZ38,"") ->  | CB38: =IF(BQ38>0.1,BZ38,"") ->  | CC38: =IF(BQ38>0,BZ38,"") ->  | CE38: =IF(ISERROR(RANK(BV38,$BV$28:$BV$43,1)),"",RANK(BV38,$BV$28:$BV$43,1)) -> 1 | CF38: =IF(CE38<7,BV38,"") -> 0 | CG38: =IF(CF38<Ⅴどちらでもない,CF38,"") -> 0 | CH38: =IF(BQ38<-0.2,CG38,"") -> 0 | CI38: =IF(BQ38<-0.1,CG38,"") -> 0 | CJ38: =IF(BQ38<0,CG38,"") -> 0 | CK38: =OFFSET(データ!$D76,0,データ位置１６) -> 0.5369799928 | CL38: =OFFSET(データ!$D76,0,データ位置１７) -> 0.6025375869
C39: 19 | D39: 部署間コミュニケーション | G39: × | L39: ● | M39: | | T39: =OFFSET(データ!$D42,0,データ位置１) -> 0 | U39: =OFFSET(データ!$D42,0,データ位置２) -> 0.4568694041 | V39: 3 | W39: 4 | X39: =T39-U39 -> -0.4568694041 | AA39: 0 | AC39: 0 | AE39: 1 | AF39: 0 | AL39: 1 | AM39: 0 | AN39: 0 | AO39: 0 | AP39: 0 | AQ39: 0 | AR39: =OFFSET(データ!$D42,0,データ位置１６) -> 0.638350504 | AS39: =OFFSET(データ!$D42,0,データ位置１７) -> 0.7332138907 | AV39: ３．人間関係への意識 | BE39: ● | BG39: | | BM39: =OFFSET(データ!$D22,0,データ位置１) -> 0 | BN39: =OFFSET(データ!$D22,0,データ位置２) -> 0.7378847219 | BO39: 3 | BP39: 5 | BQ39: -0.7378847219 | CK39: =OFFSET(データ!$D22,0,データ位置１６) -> 0.849197207 | CL39: =OFFSET(データ!$D22,0,データ位置１７) -> 0.9073822153
C40: 20 | D40: 部署間連携 | L40: ●| | T40: =OFFSET(データ!$D43,0,データ位置１) -> 0 | U40: =OFFSET(データ!$D43,0,データ位置２) -> 0.1979288832 | V40: 3 | W40: 3 | X40: -0.1979288832 | AC40: 0 | AE40: 1 | AF40: 0 | AL40: 1 | AM40: 0 | AN40: 0 | AP40: 0 | AQ40: 0 | AR40: =OFFSET(データ!$D43,0,データ位置１６) -> 0.4211344056 | AS40: =OFFSET(データ!$D43,0,データ位置１７) -> 0.5378078873 | AV40: 31 | AW40: 上役 | AZ40: =IF(BS40<>"","○",IF(BT40<>"","×","")) -> × | BE40: ● | BF40: | | BM40: =OFFSET(データ!$D77,0,データ位置１) -> 0 | BN40: =OFFSET(データ!$D77,0,データ位置２) -> 0.3698820812 | BO40: 3 | BP40: 4 | BQ40: -0.3698820812 | BS40: =IF(CA40<>"",CA40,IF(AND(CB40<>"",$CB$44<=3),CB40,IF($CC$44<=3,CC40,""))) ->  | BT40: =IF(CH40<>"",CH40,IF(AND(CI40<>"",$CI$44<=3),CI40,IF($CJ$44<=3,CJ40,""))) -> 0 | BV40: =BM40 -> 0 | BX40: =IF(ISERROR(RANK(BV40,$BV$28:$BV$43,0)),"",RANK(BV40,$BV$28:$BV$43,0)) -> 1 | BY40: =IF(BX40<7,BV40,"") -> 0 | BZ40: =IF(BV40>Ⅴどちらでもない,BY40,"") ->  | CA40: =IF(BQ40>0.2,BZ40,"") ->  | CB40: =IF(BQ40>0.1,BZ40,"") ->  | CC40: =IF(BQ40>0,BZ40,"") ->  | CE40: =IF(ISERROR(RANK(BV40,$BV$28:$BV$43,1)),"",RANK(BV40,$BV$28:$BV$43,1)) -> 1 | CF40: =IF(CE40<7,BV40,"") -> 0 | CG40: =IF(CF40<Ⅴどちらでもない,CF40,"") -> 0 | CH40: =IF(BQ40<-0.2,CG40,"") -> 0 | CI40: =IF(BQ40<-0.1,CG40,"") -> 0 | CJ40: =IF(BQ40<0,CG40,"") -> 0 | CK40: =OFFSET(データ!$D77,0,データ位置１６) -> 0.5132158476 | CL40: =OFFSET(データ!$D77,0,データ位置１７) -> 0.5881389471
C41: 21 | D41: 報告・連絡・相談の環境作り | G41: × | L41: ● | N41: | | T41: =OFFSET(データ!$D44,0,データ位置１) -> 0 | U41: =OFFSET(データ!$D44,0,データ位置２) -> 0.5243599983 | V41: 3 | W41: 5 | X41: -0.5243599983 | AA41: 0 | AC41: 0 | AE41: 1 | AF41: 0 | AL41: 1 | AM41: 0 | AN41: 0 | AO41: 0 | AP41: 0 | AQ41: 0 | AR41: =OFFSET(データ!$D44,0,データ位置１６) -> 0.6987063234 | AS41: =OFFSET(データ!$D44,0,データ位置１７) -> 0.7898402369 | AV41: 33 | AW41: 先輩 | AZ41: × | BE41: ● | BH41: | | BM41: =OFFSET(データ!$D78,0,データ位置１) -> 0 | BN41: =OFFSET(データ!$D78,0,データ位置２) -> 0.8885982049 | BO41: 3 | BP41: 6 | BQ41: -0.8885982049 | BS41: =IF(CA41<>"",CA41,IF(AND(CB41<>"",$CB$44<=3),CB41,IF($CC$44<=3,CC41,""))) ->  | BT41: =IF(CH41<>"",CH41,IF(AND(CI41<>"",$CI$44<=3),CI41,IF($CJ$44<=3,CJ41,""))) -> 0 | BV41: =BM41 -> 0 | BX41: =IF(ISERROR(RANK(BV41,$BV$28:$BV$43,0)),"",RANK(BV41,$BV$28:$BV$43,0)) -> 1 | BY41: =IF(BX41<7,BV41,"") -> 0 | BZ41: =IF(BV41>Ⅴどちらでもない,BY41,"") ->  | CA41: =IF(BQ41>0.2,BZ41,"") ->  | CB41: =IF(BQ41>0.1,BZ41,"") ->  | CC41: =IF(BQ41>0,BZ41,"") ->  | CE41: =IF(ISERROR(RANK(BV41,$BV$28:$BV$43,1)),"",RANK(BV41,$BV$28:$BV$43,1)) -> 1 | CF41: =IF(CE41<7,BV41,"") -> 0 | CG41: =IF(CF41<Ⅴどちらでもない,CF41,"") -> 0 | CH41: =IF(BQ41<-0.2,CG41,"") -> 0 | CI41: =IF(BQ41<-0.1,CG41,"") -> 0 | CJ41: =IF(BQ41<0,CG41,"") -> 0 | CK41: =OFFSET(データ!$D78,0,データ位置１６) -> 1.070124319 | CL41: =OFFSET(データ!$D78,0,データ位置１７) -> 1.165011235
C42: 22 | D42: 報告・連絡・相談の実践 | G42: × | L42: ● | N42: | | T42: =OFFSET(データ!$D45,0,データ位置１) -> 0 | U42: =OFFSET(データ!$D45,0,データ位置２) -> 0.7170026419 | V42: 3 | W42: 5 | X42: -0.7170026419 | AA42: 0 | AC42: 0 | AE42: 1 | AF42: 0 | AL42: 1 | AM42: 0 | AN42: 0 | AO42: 0 | AP42: 0 | AQ42: 0 | AR42: =OFFSET(データ!$D45,0,データ位置１６) -> 0.9101528268 | AS42: =OFFSET(データ!$D45,0,データ位置１７) -> 1.011115851 | AV42: 34 | AW42: 職場仲間 | AZ42: × | BE42: ● | BG42: | | BM42: =OFFSET(データ!$D79,0,データ位置１) -> 0 | BN42: =OFFSET(データ!$D79,0,データ位置２) -> 0.595736199 | BO42: 3 | BP42: 5 | BQ42: -0.595736199 | BS42: =IF(CA42<>"",CA42,IF(AND(CB42<>"",$CB$44<=3),CB42,IF($CC$44<=3,CC42,""))) ->  | BT42: =IF(CH42<>"",CH42,IF(AND(CI42<>"",$CI$44<=3),CI42,IF($CJ$44<=3,CJ42,""))) -> 0 | BV42: =BM42 -> 0 | BX42: =IF(ISERROR(RANK(BV42,$BV$28:$BV$43,0)),"",RANK(BV42,$BV$28:$BV$43,0)) -> 1 | BY42: =IF(BX42<7,BV42,"") -> 0 | BZ42: =IF(BV42>Ⅴどちらでもない,BY42,"") ->  | CA42: =IF(BQ42>0.2,BZ42,"") ->  | CB42: =IF(BQ42>0.1,BZ42,"") ->  | CC42: =IF(BQ42>0,BZ42,"") ->  | CE42: =IF(ISERROR(RANK(BV42,$BV$28:$BV$43,1)),"",RANK(BV42,$BV$28:$BV$43,1)) -> 1 | CF42: =IF(CE42<7,BV42,"") -> 0 | CG42: =IF(CF42<Ⅴどちらでもない,CF42,"") -> 0 | CH42: =IF(BQ42<-0.2,CG42,"") -> 0 | CI42: =IF(BQ42<-0.1,CG42,"") -> 0 | CJ42: =IF(BQ42<0,CG42,"") -> 0 | CK42: =OFFSET(データ!$D79,0,データ位置１６) -> 0.7269111644 | CL42: =OFFSET(データ!$D79,0,データ位置１７) -> 0.7954786431
C43: 23 | D43: 職場環境（仕事面） | G43: × | L43: ● | M43: | | T43: =OFFSET(データ!$D46,0,データ位置１) -> 0 | U43: =OFFSET(データ!$D46,0,データ位置２) -> 0.2802124464 | V43: 3 | W43: 4 | X43: -0.2802124464 | AA43: 0 | AC43: 0 | AE43: 1 | AF43: 0 | AL43: 1 | AM43: 0 | AN43: 0 | AO43: 0 | AP43: 0 | AQ43: 0 | AR43: =OFFSET(データ!$D46,0,データ位置１６) -> 0.5176961348 | AS43: =OFFSET(データ!$D46,0,データ位置１７) -> 0.6418330669 | AV43: 37 | AW43: 部下 | AZ43: × | BE43: ● | BI43: | | BM43: =OFFSET(データ!$D80,0,データ位置１) -> 0 | BN43: =OFFSET(データ!$D80,0,データ位置２) -> 1.097322403 | BO43: 3 | BP43: 7 | BQ43: -1.097322403 | BS43: =IF(CA43<>"",CA43,IF(AND(CB43<>"",$CB$44<=3),CB43,IF($CC$44<=3,CC43,""))) ->  | BT43: =IF(CH43<>"",CH43,IF(AND(CI43<>"",$CI$44<=3),CI43,IF($CJ$44<=3,CJ43,""))) -> 0 | BV43: =BM43 -> 0 | BX43: =IF(ISERROR(RANK(BV43,$BV$28:$BV$43,0)),"",RANK(BV43,$BV$28:$BV$43,0)) -> 1 | BY43: =IF(BX43<7,BV43,"") -> 0 | BZ43: =IF(BV43>Ⅴどちらでもない,BY43,"") ->  | CA43: =IF(BQ43>0.2,BZ43,"") ->  | CB43: =IF(BQ43>0.1,BZ43,"") ->  | CC43: =IF(BQ43>0,BZ43,"") ->  | CE43: =IF(ISERROR(RANK(BV43,$BV$28:$BV$43,1)),"",RANK(BV43,$BV$28:$BV$43,1)) -> 1 | CF43: =IF(CE43<7,BV43,"") -> 0 | CG43: =IF(CF43<Ⅴどちらでもない,CF43,"") -> 0 | CH43: =IF(BQ43<-0.2,CG43,"") -> 0 | CI43: =IF(BQ43<-0.1,CG43,"") -> 0 | CJ43: =IF(BQ43<0,CG43,"") -> 0 | CK43: =OFFSET(データ!$D80,0,データ位置１６) -> 1.230152401 | CL43: =OFFSET(データ!$D80,0,データ位置１７) -> 1.299584995
C44: 24 | D44: 職場環境（健康面） | L44: ●| | T44: =OFFSET(データ!$D47,0,データ位置１) -> 0 | U44: =OFFSET(データ!$D47,0,データ位置２) -> 0.128634223 | V44: 3 | W44: 3 | X44: -0.128634223 | AC44: 0 | AE44: 1 | AF44: 0 | AL44: 1 | AM44: 0 | AN44: 0 | AP44: 0 | AQ44: 0 | AR44: =OFFSET(データ!$D47,0,データ位置１６) -> 0.3815246827 | AS44: =OFFSET(データ!$D47,0,データ位置１７) -> 0.5137150072 | BF44: ="○："&$T$6 -> ○：0 | BI44: ="| ："&$U$6 -> | ：他社平均 | CA44: =COUNT(CA28:CA43) -> 0 | CB44: =COUNT(CB28:CB43) -> 0 | CC44: =COUNT(CC28:CC43) -> 0 | CH44: =COUNT(CH28:CH43) -> 14 | CI44: =COUNT(CI28:CI43) -> 14 | CJ44: =COUNT(CJ28:CJ43) -> 14
C45: 25 | D45: 職場環境（精神面） | L45: ●| | T45: =OFFSET(データ!$D48,0,データ位置１) -> 0 | U45: =OFFSET(データ!$D48,0,データ位置２) -> 0.09620581836 | V45: 3 | W45: 3 | X45: -0.09620581836 | AC45: 0 | AE45: 1 | AF45: 0 | AL45: 1 | AM45: 0 | AN45: 0 | AQ45: 0 | AR45: =OFFSET(データ!$D48,0,データ位置１６) -> 0.2847834796 | AS45: =OFFSET(データ!$D48,0,データ位置１７) -> 0.3833563647
M46: ="○："&$T$6 -> ○：0 | P46: ="| ："&$U$6 -> | ：他社平均 | AH46: =COUNT(AH29:AH45) -> 0 | AI46: =COUNT(AI29:AI45) -> 0 | AJ46: =COUNT(AJ29:AJ45) -> 0 | AO46: =COUNT(AO29:AO45) -> 12 | AP46: =COUNT(AP29:AP45) -> 15 | AQ46: =COUNT(AQ29:AQ45) -> 16
J49: ‐‐ | L49: ‐ | N49: + | P49: ++ | T49: =T6 -> 0 | U49: =U6 -> 他社平均 | X49: 差異 | AR49: =AR6 -> 上位20％ | AS49: =AS6 -> 上位10％
G50: 評価 | I50: =Ⅲ表示下限 -> -0.5 | K50: =Ⅲ低い -> 0 | M50: =Ⅲどちらでもない -> 0.5 | O50: =Ⅲ高い -> 1 | Q50: =Ⅲ表示上限 -> 1.5
B51: Ⅲ．教育訓練の充実 | I51: =IF(AND($V51=0,$W51=0,$T51>=$U51),"|●",IF(AND($V51=0,$W51=0,$T51<$U51),"●|",IF($V51=0,"●",IF($W51=0,"|","")))) ->  | J51: =IF(AND($V51=1,$W51=1,$T51>=$U51),"|●",IF(AND($V51=1,$W51=1,$T51<$U51),"●|",IF($V51=1,"●",IF($W51=1,"|","")))) ->  | K51: =IF(AND($V51=2,$W51=2,$T51>=$U51),"|●",IF(AND($V51=2,$W51=2,$T51<$U51),"●|",IF($V51=2,"●",IF($W51=2,"|","")))) ->  | L51: =IF(AND($V51=3,$W51=3,$T51>=$U51),"|●",IF(AND($V51=3,$W51=3,$T51<$U51),"●|",IF($V51=3,"●",IF($W51=3,"|","")))) -> ● | M51: =IF(AND($V51=4,$W51=4,$T51>=$U51),"|●",IF(AND($V51=4,$W51=4,$T51<$U51),"●|",IF($V51=4,"●",IF($W51=4,"|","")))) ->  | N51: =IF(AND($V51=5,$W51=5,$T51>=$U51),"|●",IF(AND($V51=5,$W51=5,$T51<$U51),"●|",IF($V51=5,"●",IF($W51=5,"|","")))) -> | | O51: =IF(AND($V51=6,$W51=6,$T51>=$U51),"|●",IF(AND($V51=6,$W51=6,$T51<$U51),"●|",IF($V51=6,"●",IF($W51=6,"|","")))) ->  | P51: =IF(AND($V51=7,$W51=7,$T51>=$U51),"|●",IF(AND($V51=7,$W51=7,$T51<$U51),"●|",IF($V51=7,"●",IF($W51=7,"|","")))) ->  | Q51: =IF(AND($V51=8,$W51=8,$T51>=$U51),"|●",IF(AND($V51=8,$W51=8,$T51<$U51),"●|",IF($V51=8,"●",IF($W51=8,"|","")))) ->  | R51: =IF(AND($V51=9,$W51=9,$T51>=$U51),"|●",IF(AND($V51=9,$W51=9,$T51<$U51),"●|",IF($V51=9,"●",IF($W51=9,"|","")))) ->  | T51: =OFFSET(データ!$D6,0,データ位置１) -> 0 | U51: =OFFSET(データ!$D6,0,データ位置２) -> 0.5176419901 | V51: =VLOOKUP(T51,Ⅲ評価,2) -> 3 | W51: =VLOOKUP(U51,Ⅲ評価,2) -> 5 | X51: =T51-U51 -> -0.5176419901 | AR51: =OFFSET(データ!$D6,0,データ位置１６) -> 0.7392828704 | AS51: =OFFSET(データ!$D6,0,データ位置１７) -> 0.855138486
C52: １．採用・教育の充実 | L52: ● | N52: | | T52: =OFFSET(データ!$D14,0,データ位置１) -> 0 | U52: =OFFSET(データ!$D14,0,データ位置２) -> 0.5866090389 | V52: 3 | W52: 5 | X52: -0.5866090389 | AR52: =OFFSET(データ!$D14,0,データ位置１６) -> 0.8342995396 | AS52: =OFFSET(データ!$D14,0,データ位置１７) -> 0.9637717532
C53: 問40 | D53: 人材確保 | G53: =IF(Z53<>"","○",IF(AA53<>"","×","")) -> × | L53: ● | N53: | | T53: =OFFSET(データ!$D49,0,データ位置１) -> 0 | U53: =OFFSET(データ!$D49,0,データ位置２) -> 0.5432756055 | V53: 3 | W53: 5 | X53: -0.5432756055 | Z53: =IF(AH53<>"",AH53,IF(AND(AI53<>"",$AI$64<=3),AI53,IF($AJ$64<=3,AJ53,""))) ->  | AA53: =IF(AO53<>"",AO53,IF(AND(AP53<>"",$AP$64<=3),AP53,IF($AQ$64<=3,AQ53,""))) -> 0 | AC53: =T53 -> 0 | AE53: =IF(ISERROR(RANK(AC53,$AC$53:$AC$63,0)),"",RANK(AC53,$AC$53:$AC$63,0)) -> 1 | AF53: =IF(AE53<4.5,AC53,"") -> 0 | AG53: =IF(AC53>Ⅲどちらでもない,AF53,"") ->  | AH53: =IF(X53>0.2,AG53,"") ->  | AI53: =IF(X53>0.1,AG53,"") ->  | AJ53: =IF(X53>0,AG53,"") ->  | AL53: =IF(ISERROR(RANK(AC53,$AC$53:$AC$63,1)),"",RANK(AC53,$AC$53:$AC$63,1)) -> 1 | AM53: =IF(AL53<4.5,AC53,"") -> 0 | AN53: =IF(AM53<Ⅲどちらでもない,AM53,"") -> 0 | AO53: =IF(X53<-0.2,AN53,"") -> 0 | AP53: =IF(X53<-0.1,AN53,"") -> 0 | AQ53: =IF(X53<0,AN53,"") -> 0 | AR53: =OFFSET(データ!$D49,0,データ位置１６) -> 0.7986466302 | AS53: =OFFSET(データ!$D49,0,データ位置１７) -> 0.9321335899
C54: 41 | D54: 採用への経営者の関わり | G54: =IF(Z54<>"","○",IF(AA54<>"","×","")) -> × | L54: ● | N54: | | T54: =OFFSET(データ!$D50,0,データ位置１) -> 0 | U54: =OFFSET(データ!$D50,0,データ位置２) -> 0.5323393626 | V54: 3 | W54: 5 | X54: -0.5323393626 | Z54: =IF(AH54<>"",AH54,IF(AND(AI54<>"",$AI$64<=3),AI54,IF($AJ$64<=3,AJ54,""))) ->  | AA54: =IF(AO54<>"",AO54,IF(AND(AP54<>"",$AP$64<=3),AP54,IF($AQ$64<=3,AQ54,""))) -> 0 | AC54: =T54 -> 0 | AE54: =IF(ISERROR(RANK(AC54,$AC$53:$AC$63,0)),"",RANK(AC54,$AC$53:$AC$63,0)) -> 1 | AF54: =IF(AE54<4.5,AC54,"") -> 0 | AH54: =IF(X54>0.2,AG54,"") ->  | AI54: =IF(X54>0.1,AG54,"") ->  | AJ54: =IF(X54>0,AG54,"") ->  | AL54: =IF(ISERROR(RANK(AC54,$AC$53:$AC$63,1)),"",RANK(AC54,$AC$53:$AC$63,1)) -> 1 | AM54: =IF(AL54<4.5,AC54,"") -> 0 | AN54: =IF(AM54<Ⅲどちらでもない,AM54,"") -> 0 | AO54: =IF(X54<-0.2,AN54,"") -> 0 | AP54: =IF(X54<-0.1,AN54,"") -> 0 | AQ54: =IF(X54<0,AN54,"") -> 0 | AR54: =OFFSET(データ!$D50,0,データ位置１６) -> 0.9006211937 | AS54: =OFFSET(データ!$D50,0,データ位置１７) -> 1.093128633
C55: 42 | D55: 新人教育の効果 | G55: =IF(Z55<>"","○",IF(AA55<>"","×","")) -> × | L55: ● | N55: | | T55: =OFFSET(データ!$D51,0,データ位置１) -> 0 | U55: =OFFSET(データ!$D51,0,データ位置２) -> 0.6842121484 | V55: 3 | W55: 5 | X55: -0.6842121484 | Z55: =IF(AH55<>"",AH55,IF(AND(AI55<>"",$AI$64<=3),AI55,IF($AJ$64<=3,AJ55,""))) ->  | AA55: =IF(AO55<>"",AO55,IF(AND(AP55<>"",$AP$64<=3),AP55,IF($AQ$64<=3,AQ55,""))) -> 0 | AC55: =T55 -> 0 | AE55: =IF(ISERROR(RANK(AC55,$AC$53:$AC$63,0)),"",RANK(AC55,$AC$53:$AC$63,0)) -> 1 | AF55: =IF(AE55<4.5,AC55,"") -> 0 | AH55: =IF(X55>0.2,AG55,"") ->  | AI55: =IF(X55>0.1,AG55,"") ->  | AJ55: =IF(X55>0,AG55,"") ->  | AL55: =IF(ISERROR(RANK(AC55,$AC$53:$AC$63,1)),"",RANK(AC55,$AC$53:$AC$63,1)) -> 1 | AM55: =IF(AL55<4.5,AC55,"") -> 0 | AN55: =IF(AM55<Ⅲどちらでもない,AM55,"") -> 0 | AO55: =IF(X55<-0.2,AN55,"") -> 0 | AP55: =IF(X55<-0.1,AN55,"") -> 0 | AQ55: =IF(X55<0,AN55,"") -> 0 | AR55: =OFFSET(データ!$D51,0,データ位置１６) -> 0.9849820146 | AS55: =OFFSET(データ!$D51,0,データ位置１７) -> 1.142199753
C56: ２．リーダー教育の充実 | L56: ● | M56: | | T56: =OFFSET(データ!$D15,0,データ位置１) -> 0 | U56: =OFFSET(データ!$D15,0,データ位置２) -> 0.2885670051 | V56: 3 | W56: 4 | X56: -0.2885670051 | AR56: =OFFSET(データ!$D15,0,データ位置１６) -> 0.5282636343 | AS56: =OFFSET(データ!$D15,0,データ位置１７) -> 0.6535573096
C57: 43 | D57: 知識・技能教育（定期的教育） | G57: =IF(Z57<>"","○",IF(AA57<>"","×","")) -> × | L57: ● | M57: | | T57: =OFFSET(データ!$D52,0,データ位置１) -> 0 | U57: =OFFSET(データ!$D52,0,データ位置２) -> 0.4914789837 | V57: 3 | W57: 4 | X57: -0.4914789837 | Z57: =IF(AH57<>"",AH57,IF(AND(AI57<>"",$AI$64<=3),AI57,IF($AJ$64<=3,AJ57,""))) ->  | AA57: =IF(AO57<>"",AO57,IF(AND(AP57<>"",$AP$64<=3),AP57,IF($AQ$64<=3,AQ57,""))) -> 0 | AC57: =T57 -> 0 | AE57: =IF(ISERROR(RANK(AC57,$AC$53:$AC$63,0)),"",RANK(AC57,$AC$53:$AC$63,0)) -> 1 | AF57: =IF(AE57<4.5,AC57,"") -> 0 | AH57: =IF(X57>0.2,AG57,"") ->  | AI57: =IF(X57>0.1,AG57,"") ->  | AJ57: =IF(X57>0,AG57,"") ->  | AL57: =IF(ISERROR(RANK(AC57,$AC$53:$AC$63,1)),"",RANK(AC57,$AC$53:$AC$63,1)) -> 1 | AM57: =IF(AL57<4.5,AC57,"") -> 0 | AN57: =IF(AM57<Ⅲどちらでもない,AM57,"") -> 0 | AO57: =IF(X57<-0.2,AN57,"") -> 0 | AP57: =IF(X57<-0.1,AN57,"") -> 0 | AQ57: =IF(X57<0,AN57,"") -> 0 | AR57: =OFFSET(データ!$D52,0,データ位置１６) -> 0.7962853233 | AS57: =OFFSET(データ!$D52,0,データ位置１７) -> 0.955612998
